Workbook

Sheet Hiiu (hidden)
G1: =SUM(G2:G4) -> 769148.6311 | I1: =SUM(I2:I4) -> 908455.5126 | K1: =SUM(K2:K4) -> 1173777.87 | O1: =SUM(O2:O4) -> 1847680.319 | Q1: =SUM(Q2:Q4) -> 809443.6716 | S1: =SUM(S2:S4) -> 2540043.48
C2: Eelarvearuanne | D2: 7603300 | E2: =D2*E5 -> 5203698.52 | F2: Tulumaks | G2: =E2*H2 -> 725590.3733 | H2: =H10/$E$10 -> 0.1394374348 | I2: =E2*J2 -> 822575.2252 | J2: =J10/$E$10 -> 0.1580751118 | K2: =E2*L2 -> 1128858.416 | L2: =L10/$E$10 -> 0.2169338619 | N2: =N10/$E$10 -> 0.4855535915 | O2: =E2*P2 -> 1825457.441 | P2: 0.3508 | Q2: =E2*R2 -> 701458.5605 | R2: 0.1348 | S2: =D2-E2 -> 2399601.48
D3: 358000 | E3: =D3*E5 -> 245015.2 | F3: Maamaks | G3: =E3*H3 -> 43558.25778 | H3: =H11/$E$11 -> 0.1777777778 | I3: =E3*J3 -> 54447.82222 | J3: =J11/$E$11 -> 0.2222222222 | K3: =E3*L3 -> 44919.45333 | L3: =L11/$E$11 -> 0.1833333333 | N3: =N11/$E$11 -> 0.4166666667 | O3: =E3*P3 -> 22222.87864 | P3: 0.0907 | Q3: =E3*R3 -> 79874.9552 | R3: 0.326 | S3: =D3-E3 -> 112984.8
D4: 87000 | E4: =D4*E5 -> 59542.8 | F4: Ressursitasu | G4: 0 | I4: 31432.46524 | J4: =J22/$E$22 -> 0.5278969957 | K4: 0 | N4: =N22/$E$22 -> 0.4721030043 | O4: 0 | Q4: 28110.15588 | R4: 0.4721 | S4: 27457.2
E5: 0,6844 | G5: Vallavalitsus | I5: Vallavalitsus | K5: Vallavalitsus | M5: Vallavalitsus | Q5: Vallavalitsus | S5: Vallavalitsus
D6: KOKKU | G6: Emmaste Vallavalitsus | I6: Pühalepa Vallavalitsus | K6: Käina Vallavalitsus | M6: Hiiu Vallavalitsus | O6: Kärdla Vallavalitsus | Q6: Kõrgessaaare Vallavalitsus | S6: Hiiumaa Vallavalitsus
D7: Eelarve projekt 2018 | E7: Eelarve 2017 | F7: Esialgne eelarve 2017 | G7: Eelarve projekt 2018 | H7: Eelarve 2017 | I7: Eelarve projekt 2018 | J7: Eelarve 2017 | K7: Eelarve projekt 2018 | L7: Eelarve 2017 | M7: Eelarve projekt 2018 | N7: Eelarve 2017 | O7: Eelarve projekt 2018 | P7: Eelarve 2017 | Q7: Eelarve projekt 2018 | R7: Eelarve 2017 | S7: Eelarve projekt 2018 | T7: Eelarve 2017
A8: 1 | C8: PÕHITEGEVUSE TULUD KOKKU | D8: =D9+D16+D17+D21 -> 11803165 | E8: =E9+E16+E17+E21 -> 12176749 | F8: =F9+F16+F17+F21 -> 11306381 | G8: 1558337 | H8: 1562040 | I8: 1535792 | J8: 1875579 | K8: 2475224 | L8: 2587471 | M8: 6233812 | N8: 6151659 | O8: =O9+O16+O17+O21 -> 0 | P8: =P9+P16+P17+P21 -> 0 | Q8: 0 | R8: 0 | S8: 0 | T8: 0
A9: 2 | B9: 30 | C9: Maksutulud | D9: =SUM(D10:D15) -> 7961300 | E9: =SUM(E10:E15) -> 7603392 | F9: =SUM(F10:F15) -> 7588398 | G9: =SUM(G10:G15) -> 1088000 | H9: 1074000 | I9: 1320400 | J9: 1225000 | K9: 1715900 | L9: 1637337 | M9: 3837000 | N9: 3667055 | O9: =SUM(O10:O15) -> 0 | P9: =SUM(P10:P15) -> 0 | Q9: 0 | R9: 0 | S9: 0 | T9: 0
A10: 3 | B10: 3000 | C10: Füüsilise isiku tulumaks | D10: =G10+I10+K10+M10+Q10+S10+W10+Z10+AC10+AF10+AI10+AL10+AO10+AR10+AU10+AX10+BA10+BD10+BG10+BJ10+BM10+BP10 -> 7603300 | E10: =H10+J10+L10+N10+R10+T10+X10+AA10+AD10+AG10+AJ10+AM10+AP10+AS10+AV10+AY10+BB10+BE10+BH10+BK10+BN10+BQ10 -> 7243392 | F10: 7228398 | G10: 1023000 | H10: 1010000 | I10: 1240400 | J10: 1145000 | K10: 1649900 | L10: 1571337 | M10: 3690000 | N10: 3517055
A11: 4 | B11: 3030 | C11: Maamaks | D11: 358000 | E11: 360000 | F11: 360000 | G11: 65000 | H11: 64000 | I11: 80000 | J11: 80000 | K11: 66000 | L11: 66000 | M11: 147000 | N11: 150000
A12: 5 | B12: 3034 | C12: Loomapidamismaks | D12: 0 | E12: 0
A13: 6 | B13: 3044 | C13: Reklaamimaks | D13: 0 | E13: 0
A14: 7 | B14: 3045 | C14: Teede ja tänavate sulgemise maks | D14: 0 | E14: 0
A15: 8 | B15: 3047 | C15: Parkimistasu | D15: 0 | E15: 0
A16: 9 | B16: 32 | C16: Tulud kaupade ja teenuste müügist | D16: 821439 | E16: 921948 | F16: 842261 | G16: 49530 | H16: =2500+26883+29380+200 -> 58963 | I16: 39100 | J16: =4500+76848+1700 -> 83048 | K16: =3000+162454+37778 -> 203232 | L16: =4000+202240+37978 -> 244218 | M16: =5000+419995+104582 -> 529577 | N16: 535719
A17: 10 | C17: Saadavad toetused tegevuskuludeks | D17: =SUM(D18:D20) -> 2918926 | E17: =SUM(E18:E20) -> 3521193 | F17: =SUM(F18:F20) -> 2769522 | G17: 420407 | H17: 427577 | I17: 124792 | J17: 506031 | K17: 552492 | L17: 701180 | M17: 1821235 | N17: 1886405 | O17: =SUM(O18:O20) -> 0 | P17: =SUM(P18:P20) -> 0 | Q17: 0 | R17: 0 | S17: 0 | T17: 0
A18: 11 | B18: 35200 | C18: Tasandusfond | D18: =G18+I18+K18+M18+Q18+S18+W18+Z18+AC18+AF18+AI18+AL18+AO18+AR18+AU18+AX18+BA18+BD18+BG18+BJ18+BM18+BP18 -> 0 | E18: =H18+J18+L18+N18+R18+T18+X18+AA18+AD18+AG18+AJ18+AM18+AP18+AS18+AV18+AY18+BB18+BE18+BH18+BK18+BN18+BQ18 -> 30727 | F18: 30727 | N18: 30727
A19: 12 | B19: 35201 | C19: Toetusfond | D19: =G19+I19+K19+M19+Q19+W19+Z19+AC19+AF19+AI19+AL19+AO19+AR19+AU19+AX19+BA19+BD19+BG19+BJ19+BM19+BP19 -> 2286952 | E19: =H19+J19+L19+N19+R19+T19+X19+AA19+AD19+AG19+AJ19+AM19+AP19+AS19+AV19+AY19+BB19+BE19+BH19+BK19+BN19+BQ19 -> 2650814 | F19: 2516202 | G19: 342478 | H19: 382542 | I19: 124792 | J19: 477910 | K19: =507787+25367 -> 533154 | L19: 539892 | M19: 1286528 | N19: 1250470
A20: 13 | B20: 3500, 352 | C20: Muud saadud toetused tegevuskuludeks | D20: =G20+I20+K20+M20+Q20+S20+W20+Z20+AC20+AF20+AI20+AL20+AO20+AR20+AU20+AX20+BA20+BD20+BG20+BJ20+BM20+BP20 -> 631974 | E20: =H20+J20+L20+N20+R20+T20+X20+AA20+AD20+AG20+AJ20+AM20+AP20+AS20+AV20+AY20+BB20+BE20+BH20+BK20+BN20+BQ20 -> 839652 | F20: 222593 | G20: 77929 | H20: 45035 | J20: 28121 | K20: 19338 | L20: =81688+1000+600+75000+3000 -> 161288 | M20: 534707 | N20: 605208
A21: 15 | C21: Muud tegevustulud | D21: =SUM(D22:D25) -> 101500 | E21: =SUM(E22:E25) -> 130216 | F21: =SUM(F22:F25) -> 106200 | G21: 400 | H21: 1500 | I21: 51500 | J21: 61500 | K21: 3600 | L21: 4736 | M21: 46000 | N21: 62480 | O21: =SUM(O22:O25) -> 0 | P21: =SUM(P22:P25) -> 0 | Q21: 0 | R21: 0 | S21: 0 | T21: 0
A22: 16 | B22: 38250, 38251 | C22: Kaevandamisõiguse tasu | D22: =G22+I22+K22+M22+Q22+S22+W22+Z22+AC22+AF22+AI22+AL22+AO22+AR22+AU22+AX22+BA22+BD22+BG22+BJ22+BM22+BP22 -> 91500 | E22: 116500 | F22: 96000 | I22: =51500 -> 51500 | J22: 61500 | M22: 40000 | N22: 55000
A23: 19 | B23: 38252, 38254 | C23: Laekumine vee erikasutusest | D23: 9600 | E23: 10300 | F23: 9800 | H23: 300 | K23: 3600 | L23: 4000 | M23: 6000 | N23: 6000
A24: 20 | B24: 3882 | C24: Saastetasud ja keskkonnale tekitatud kahju hüvitis | D24: 0 | E24: 200 | F24: 200 | N24: 200
A25: 21 | B25: 3880, 3888 | C25: Muud tegevustulud | D25: 400 | E25: 3216 | F25: 200 | G25: 400 | H25: 1200 | L25: 736 | N25: 1280
A26: 23 | C26: PÕHITEGEVUSE KULUD KOKKU | D26: =D27+D32 -> 10805247 | E26: =E27+E32 -> 11512379.4 | F26: 10551179 | G26: 1530382 | H26: 1536501 | I26: 1236683 | J26: 1907510.4 | K26: 2251275 | L26: 2341773 | M26: 5786907 | N26: 5726595 | O26: =O27+O32 -> 0 | P26: =P27+P32 -> 0 | Q26: 0 | R26: 0 | S26: 0 | T26: 0
A27: 24 | C27: Antud toetused tegevuskuludeks | D27: =SUM(D28:D31) -> 1051075 | E27: =SUM(E28:E31) -> 1315139.4 | F27: 1026549 | G27: 0 | H27: 143374 | I27: 59385 | J27: 151782.4 | K27: 137450 | L27: 265291 | M27: 854240 | N27: 754692 | O27: =SUM(O28:O31) -> 0 | P27: =SUM(P28:P31) -> 0 | Q27: 0 | R27: 0 | S27: 0 | T27: 0
A28: 25 | B28: 40 | C28: Subsiidiumid ettevõtlusega tegelevatele isikutele | D28: =G28+I28+K28+M28+Q28+S28+W28+Z28+AC28+AF28+AI28+AL28+AO28+AR28+AU28+AX28+BA28+BD28+BG28+BJ28+BM28+BP28 -> 0 | E28: 0
A29: 26 | B29: 413 | C29: Sotsiaalabitoetused ja muud toetused füüsilistele isikutele | D29: 423673 | E29: 678376 | F29: 602228 | H29: 67364 | I29: 59385 | J29: 94487 | K29: 66278 | L29: 174173 | M29: 298010 | N29: 342352
A30: 27 | B30: 4500 | C30: Sihtotstarbelised toetused tegevuskuludeks | D30: 613912 | E30: 603536.4 | F30: 391594 | H30: 76010 | J30: 49295.4 | K30: =15000+54942 -> 69942 | L30: =64273+17918 -> 82191 | M30: 543970 | N30: 396040
A31: 28 | B31: 452 | C31: Mittesihtotstarbelised toetused | D31: 13490 | E31: 33227 | F31: 32727 | J31: 8000 | K31: 1230 | L31: 8927 | M31: 12260 | N31: 16300
A32: 29 | C32: Muud tegevuskulud | D32: =SUM(D33:D35) -> 9754172 | E32: =SUM(E33:E35) -> 10197240 | F32: 9524630 | G32: 1530382 | H32: 1393127 | I32: 1177298 | J32: 1755728 | K32: 2113825 | L32: 2076482 | M32: 4932667 | N32: 4971903 | O32: =SUM(O33:O35) -> 0 | P32: =SUM(P33:P35) -> 0 | Q32: 0 | R32: 0 | S32: 0 | T32: 0
A33: 30 | B33: 50 | C33: Tööjõukulud | D33: =G33+I33+K33+M33+Q33+S33+W33+Z33+AC33+AF33+AI33+AL33+AO33+AR33+AU33+AX33+BA33+BD33+BG33+BJ33+BM33+BP33 -> 5348905 | E33: 6246215 | F33: 6011150 | G33: 942679 | H33: =604786+204416 -> 809202 | J33: 1149646 | K33: =26180+695658+14160+13680+17880+9984+4300+86400+129096+1560+20280+307549 -> 1326727 | L33: =961653+2458+4500+1600+700+327268+1485+36+30 -> 1299730 | M33: =2303408+776091 -> 3079499 | N33: 2987637
A34: 31 | B34: 55 | C34: Majandamiskulud | D34: 3166399 | E34: 3896970.98 | F34: 3437529 | G34: 587703 | H34: 566847 | J34: 606032 | K34: =721578+5220+10000+8000 -> 744798 | L34: =738910+10000+5803 -> 754713 | M34: 1833898 | N34: 1969378.98
A35: 32 | B35: 60 | C35: Muud kulud | D35: 1238868 | E35: 54054.02 | F35: 75951 | H35: =15600+1478 -> 17078 | I35: 1177298 | J35: 50 | K35: =2300+40000 -> 42300 | L35: =2300+19739 -> 22039 | M35: 19270 | N35: 14887.02
A36: 33 | C36: PÕHITEGEVUSE TULEM | D36: =D8-D26 -> 997918 | E36: =E8-E26 -> 664369.6 | F36: =F8-F26 -> 755202 | G36: 27955 | H36: 25539 | I36: 299109 | J36: -31931.4 | K36: 223949 | L36: 245698 | M36: 446905 | N36: 425064 | O36: 0 | P36: 0 | Q36: 0 | R36: 0 | S36: 0 | T36: 0
A37: 34 | C37: INVESTEERIMISTEGEVUS KOKKU | D37: =SUM(D38:D49) -> -2145643 | E37: =SUM(E38:E49) -> -2570874.6 | F37: -2369309 | G37: -133055 | H37: -492163 | I37: -224447 | J37: -1041413.6 | K37: -794723 | L37: -570212 | M37: -993418 | N37: -467086 | O37: =SUM(O38:O49) -> 0 | P37: =SUM(P38:P49) -> 0 | Q37: 0 | R37: 0 | S37: 0 | T37: 0
A38: 35 | B38: 381 | C38: Põhivara müük (+) | D38: =G38+I38+K38+M38+Q38+S38+W38+Z38+AC38+AF38+AI38+AL38+AO38+AR38+AU38+AX38+BA38+BD38+BG38+BJ38+BM38+BP38 -> 30000 | E38: =H38+J38+L38+N38+R38+T38+X38+AA38+AD38+AG38+AJ38+AM38+AP38+AS38+AV38+AY38+BB38+BE38+BH38+BK38+BN38+BQ38 -> 138920 | F38: 269000 | J38: 40000 | L38: 35000 | M38: 30000 | N38: 63920
A39: 36 | B39: 15 | C39: Põhivara soetus (-) | D39: =G39+I39+K39+M39+Q39+S39+W39+Z39+AC39+AF39+AI39+AL39+AO39+AR39+AU39+AX39+BA39+BD39+BG39+BJ39+BM39+BP39 -> -3203318 | E39: =H39+J39+L39+N39+R39+T39+X39+AA39+AD39+AG39+AJ39+AM39+AP39+AS39+AV39+AY39+BB39+BE39+BH39+BK39+BN39+BQ39 -> -2705027.6 | F39: -2551651 | G39: -110981 | H39: -507882 | I39: -211743 | J39: -1063496.6 | K39: -2154576 | L39: -597004 | M39: -726018 | N39: -536645
A40: 37 | B40: 3502 | C40: Põhivara soetuseks saadav sihtfinantseerimine(+) | D40: 1398771 | E40: 290654 | F40: 371790 | G40: 15000 | H40: 55240 | J40: 18335 | K40: 1383771 | L40: 54482 | N40: 162597
A41: 38 | B41: 4502 | C41: Põhivara soetuseks antav sihtfinantseerimine(-) | D41: -65531 | E41: -165348 | F41: -119134 | G41: -30000 | H41: -31021 | I41: -2234 | J41: -30659 | K41: -13297 | L41: -16540 | M41: -20000 | N41: -87128
A42: 39 | B42: 1502 | C42: Osaluste müük (+) | D42: 0 | E42: 0
A43: 40 | B43: 1501 | C43: Osaluste soetus (-) | D43: -210000 | E43: -33600 | F43: -210000 | L43: -33600 | M43: -210000
A44: 41 | B44: 1512 | C44: Muude aktsiate ja osade müük (+) | D44: 0 | E44: 0
A45: 42 | B45: 1511 | C45: Muude aktsiate ja osade soetus (-) | D45: 0 | E45: 0 | F45: -33600
A46: 43 | B46: 1532 | C46: Tagasilaekuvad laenud (+) | D46: 0 | E46: 0
A47: 44 | B47: 1531 | C47: Antavad laenud (-) | D47: 0 | E47: 0
A48: 45 | B48: 655 | C48: Finantstulud (+) | D48: 0 | E48: 110 | F48: 150 | J48: 100 | L48: 10
A49: 46 | B49: 650 | C49: Finantstkulud (-) | D49: -95565 | E49: -96583 | F49: -95864 | G49: -7074 | H49: -8500 | I49: -10470 | J49: -5693 | K49: -10621 | L49: -12560 | M49: -67400 | N49: -69830
A50: 47 | C50: EELARVE TULEM (ÜLEJÄÄK (+) / PUUDUJÄÄK (-)) | D50: =D36+D37 -> -1147725 | E50: =E36+E37 -> -1906505 | F50: -1614107 | G50: -105100 | H50: -466624 | I50: 74662 | J50: -1073345 | K50: -570774 | L50: -324514 | M50: -546513 | N50: -42022 | O50: =O36+O37 -> 0 | P50: =P36+P37 -> 0 | Q50: 0 | R50: 0 | S50: 0 | T50: 0
A51: 48 | C51: FINANTSEERIMISTEGEVUS | D51: =SUM(D52:D53) -> 845137 | E51: =SUM(E52:E53) -> 1135295 | F51: 818478 | G51: -94900 | H51: 366164 | I51: -58116 | J51: 685000 | K51: 492207 | L51: 98990 | M51: 505946 | N51: -14859 | O51: =SUM(O52:O53) -> 0 | P51: =SUM(P52:P53) -> 0 | Q51: 0 | R51: 0 | S51: 0 | T51: 0
A52: 49 | B52: 2585 | C52: Kohustuste võtmine (+) | D52: =G52+I52+K52+M52+Q52+S52+W52+Z52+AC52+AF52+AI52+AL52+AO52+AR52+AU52+AX52+BA52+BD52+BG52+BJ52+BM52+BP52 -> 1600000 | E52: =H52+J52+L52+N52+R52+T52+X52+AA52+AD52+AG52+AJ52+AM52+AP52+AS52+AV52+AY52+BB52+BE52+BH52+BK52+BN52+BQ52 -> 2023000 | F52: 1470000 | H52: 740000 | J52: 700000 | K52: 700000 | L52: 263000 | M52: 900000 | N52: 320000
A53: 50 | B53: 2586 | C53: Kohustuste tasumine (-) | D53: =G53+I53+K53+M53+Q53+S53+W53+Z53+AC53+AF53+AI53+AL53+AO53+AR53+AU53+AX53+BA53+BD53+BG53+BJ53+BM53+BP53 -> -754863 | E53: =H53+J53+L53+N53+R53+T53+X53+AA53+AD53+AG53+AJ53+AM53+AP53+AS53+AV53+AY53+BB53+BE53+BH53+BK53+BN53+BQ53 -> -887705 | F53: -651522 | G53: -94900 | H53: -373836 | I53: -58116 | J53: -15000 | K53: -207793 | L53: -164010 | M53: -394054 | N53: -334859
A54: 51 | B54: 100 | C54: LIKVIIDSETE VARADE MUUTUS (+ suurenemine, - vähenemine) | D54: =G54+I54+K54+M54+Q54+S54+W54+Z54+AC54+AF54+AI54+AL54+AO54+AR54+AU54+AX54+BA54+BD54+BG54+BJ54+BM54+BP54+O54 -> -302588 | E54: =H54+J54+L54+N54+R54+T54+X54+AA54+AD54+AG54+AJ54+AM54+AP54+AS54+AV54+AY54+BB54+BE54+BH54+BK54+BN54+BQ54 -> -771210 | F54: -795629 | G54: -200000 | H54: -100460 | I54: 16546 | J54: -388345 | K54: -78567 | L54: -225524 | M54: -40567 | N54: -56881
A55: 52 | C55: NÕUETE JA KOHUSTUSTE SALDODE MUUTUS (tekkepõhise e/a korral) (+/-) | D55: =G55+I55+K55+M55+Q55+T55+W55+Z55+AC55+AF55+AI55+AL55+AO55+AR55+AU55+AX55+BA55+BD55+BG55+BJ55+BM55+BP55 -> 0 | E55: =H55+J55+L55+N55+R55+U55+X55+AA55+AD55+AG55+AJ55+AM55+AP55+AS55+AV55+AY55+BB55+BE55+BH55+BK55+BN55+BQ55 -> 0 | G55: 0 | H55: 0 | I55: 0 | J55: 0 | K55: 0 | L55: 0 | M55: 0 | N55: 0 | O55: 0 | P55: 0 | Q55: 0 | R55: 0 | S55: 0 | T55: 0
A56: 53
A57: 54 | C57: PÕHITEGEVUSE KULUDE JA INVESTEERIMISTEGEVUSE VÄLJAMINEKUTE JAOTUS TEGEVUSALADE JÄRGI | D57: =G57+I57+K57+M57+Q57+S57+W57+Z57+AC57+AF57+AI57+AL57+AO57+AR57+AU57+AX57+BA57+BD57+BG57+BJ57+BM57+BP57+O57 -> 15743266 | E57: =H57+J57+L57+N57+R57+T57+X57+AA57+AD57+AG57+AJ57+AM57+AP57+AS57+AV57+AY57+BB57+BE57+BH57+BK57+BN57+BQ57+P57 -> 14512938 | F57: =F58+F66+F67+F71+F88+F95+F102+F109+F127+F140 -> 13561428 | G57: =G58+G66+G67+G71+G88+G95+G102+G109+G127+G140 -> 1684311 | H57: =H58+H66+H67+H71+H88+H95+H102+H109+H127+H140 -> 2083904 | I57: 1496472 | J57: 3007359 | K57: 4523708 | L57: =L58+L66+L67+L71+L88+L95+L102+L109+L127+L140 -> 3001477 | M57: 6622985 | N57: 6420198 | O57: 125160 | P57: 0 | Q57: 78680 | R57: 0 | S57: 1211950 | T57: 0
A58: 55 | B58: 01 | C58: Üldised valitsussektori teenused | D58: =SUM(D59:D65) -> 2035668 | E58: =SUM(E59:E65) -> 1439863.02 | F58: =SUM(F59:F65) -> 1591415 | G58: 208568 | H58: 212158 | I58: 202153 | J58: 288569 | K58: 389905 | L58: 330906 | M58: 585752 | N58: 608230.02 | O58: =SUM(O59:O65) -> 125160 | P58: =SUM(P59:P65) -> 0 | Q58: 78680 | R58: 0 | S58: 1211950 | T58: 0
A59: 56 | B59: 01111 | C59: Valla- ja linnavolikogu | D59: =G59+I59+K59+M59+Q59+S59+O59+Z59+AC59+AF59+AI59+AL59+AO59+AR59+AU59+AX59+BA59+BD59+BG59+BJ59+BM59+BP59 -> 78000 | E59: =H59+J59+L59+N59+R59+U59+X59+AA59+AD59+AG59+AJ59+AM59+AP59+AS59+AV59+AY59+BB59+BE59+BH59+BK59+BN59+BQ59 -> 114759 | F59: 105449 | H59: 9528 | J59: 30691 | L59: 33800 | N59: 40740 | S59: 78000
A60: 57 | B60: 01112 | C60: Valla- ja linnavalitsus | D60: =G60+I60+K60+M60+Q60+T60+W60+Z60+AC60+AF60+AI60+AL60+AO60+AR60+AU60+AX60+BA60+BD60+BG60+BJ60+BM60+BP60 -> 1026678 | E60: =H60+J60+L60+N60+R60+U60+X60+AA60+AD60+AG60+AJ60+AM60+AP60+AS60+AV60+AY60+BB60+BE60+BH60+BK60+BN60+BQ60 -> 907027 | F60: 1084880 | G60: 120018 | H60: 142749 | I60: 90563 | J60: 142068 | K60: 230345 | L60: 243751 | M60: =210000+375752 -> 585752 | N60: 378459
D61: =Q61+O61+M61+K61+I61+G61 -> 563540 | G61: 88550 | I61: 111590 | K61: 159560 | O61: 125160 | Q61: 78680 | S61: 766500
A62: 58 | B62: 01114 | C62: Reservfond | D62: =G62+I62+K62+M62+Q62+S62+W62+Z62+AC62+AF62+AI62+AL62+AO62+AR62+AU62+AX62+BA62+BD62+BG62+BJ62+BM62+BP62 -> 79700 | E62: =H62+J62+L62+N62+R62+U62+X62+AA62+AD62+AG62+AJ62+AM62+AP62+AS62+AV62+AY62+BB62+BE62+BH62+BK62+BN62+BQ62 -> 36014.02 | F62: 67911 | H62: 1478 | L62: 19739 | N62: 14797.02 | S62: 79700
A63: 59 | B63: 01600 | C63: Muud üldised valitsussektori teenused | D63: =G63+I63+K63+M63+Q63+S63+W63+Z63+AC63+AF63+AI63+AL63+AO63+AR63+AU63+AX63+BA63+BD63+BG63+BJ63+BM63+BP63 -> 55300 | E63: =H63+J63+L63+N63+R63+U63+X63+AA63+AD63+AG63+AJ63+AM63+AP63+AS63+AV63+AY63+BB63+BE63+BH63+BK63+BN63+BQ63 -> 142006 | F63: 100346 | H63: 12000 | J63: 15000 | L63: 21056 | N63: 93950 | S63: 55300
A64: 60 | B64: 01700 | C64: Valitsussektori võla teenindamine | D64: =G64+I64+K64+M64+Q64+S64+W64+Z64+AC64+AF64+AI64+AL64+AO64+AR64+AU64+AX64+BA64+BD64+BG64+BJ64+BM64+BP64 -> 95566 | E64: =H64+J64+L64+N64+R64+U64+X64+AA64+AD64+AG64+AJ64+AM64+AP64+AS64+AV64+AY64+BB64+BE64+BH64+BK64+BN64+BQ64 -> 96583 | F64: 95864 | H64: 8500 | J64: 5693 | L64: 12560 | N64: 69830 | S64: 95566
A65: 61 | C65: Ülalnimetamata üldised valitsussektori kulud kokku | D65: =G65+I65+K65+M65+Q65+S65+W65+Z65+AC65+AF65+AI65+AL65+AO65+AR65+AU65+AX65+BA65+BD65+BG65+BJ65+BM65+BP65 -> 136884 | E65: =H65+J65+L65+N65+R65+U65+X65+AA65+AD65+AG65+AJ65+AM65+AP65+AS65+AV65+AY65+BB65+BE65+BH65+BK65+BN65+BQ65 -> 143474 | F65: 136965 | H65: =37903 -> 37903 | J65: =82623+12494 -> 95117 | N65: 10454 | S65: 136884
A66: 62 | B66: 02 | C66: Riigikaitse | D66: =G66+I66+K66+M66+Q66+T66+W66+Z66+AC66+AF66+AI66+AL66+AO66+AR66+AU66+AX66+BA66+BD66+BG66+BJ66+BM66+BP66 -> 0 | E66: =H66+J66+L66+N66+R66+U66+X66+AA66+AD66+AG66+AJ66+AM66+AP66+AS66+AV66+AY66+BB66+BE66+BH66+BK66+BN66+BQ66 -> 0
A67: 63 | B67: 03 | C67: Avalik kord ja julgeolek | D67: =SUM(D68:D70) -> 1420 | E67: =SUM(E68:E70) -> 1400 | F67: 1400 | G67: 1420 | H67: 1400 | I67: 0 | J67: 0 | K67: 0 | L67: 0 | M67: 0 | N67: 0 | O67: =SUM(O68:O70) -> 0 | P67: =SUM(P68:P70) -> 0 | Q67: 0 | R67: 0 | S67: 0 | T67: 0
A68: 64 | B68: 03100 | C68: Politsei | D68: =G68+I68+K68+M68+Q68+T68+W68+Z68+AC68+AF68+AI68+AL68+AO68+AR68+AU68+AX68+BA68+BD68+BG68+BJ68+BM68+BP68 -> 0 | E68: 0
A69: 65 | B69: 03200 | C69: Päästeteenused | D69: 1420 | E69: 1400 | F69: 1400 | G69: 1420 | H69: 1400
A70: 66 | C70: Muu avalik kord ja julgeolek kokku | D70: 0 | E70: 0
A71: 67 | B71: 04 | C71: Majandus | D71: =SUM(D72:D87) -> 2097798 | E71: =SUM(E72:E87) -> 2943280.58 | F71: 1947600 | G71: 185991 | H71: 476257 | I71: 292968 | J71: 906805.6 | K71: 452385 | L71: 397134 | M71: 1166454 | N71: 1163083.98 | O71: =SUM(O72:O87) -> 0 | P71: =SUM(P72:P87) -> 0 | Q71: 0 | R71: 0 | S71: 0 | T71: 0
A72: 68 | B72: 04120 | C72: Ettevõtluse arengu toetamine, stardiabi | D72: =G72+I72+K72+M72+Q72+T72+W72+Z72+AC72+AF72+AI72+AL72+AO72+AR72+AU72+AX72+BA72+BD72+BG72+BJ72+BM72+BP72 -> 0 | E72: =H72+J72+L72+N72+R72+U72+X72+AA72+AD72+AG72+AJ72+AM72+AP72+AS72+AV72+AY72+BB72+BE72+BH72+BK72+BN72+BQ72 -> 0
A73: 69 | B73: 04210 | C73: Põllumajandus | D73: 97263 | E73: 100275 | F73: 94575 | G73: 19810 | H73: 21269 | I73: 22083 | J73: 26806 | M73: 55370 | N73: 52200
A74: 70 | B74: 04220 | C74: Metsamajandus | D74: 0 | E74: 0
A75: 71 | B75: 04230 | C75: Kalandus ja jahindus | D75: 0 | E75: 0
A76: 72 | B76: 04350 | C76: Elektrienergia | D76: 0 | E76: 0
A77: 73 | B77: 04360 | C77: Muu energia- ja soojamajandus | D77: 140992 | E77: 221169 | F77: 182019 | I77: 70000 | J77: 154400 | K77: 63442 | L77: 59189 | M77: 7550 | N77: 7580
A78: 74 | B78: 04510 | C78: Maanteetransport (vallateede- ja tänavate korrashoid) | D78: 617817 | E78: 1486760.6 | F78: 649642 | G78: 51553 | H78: =82624+240000 -> 322624 | I78: =40000+1924+85340 -> 127264 | J78: =42377+557978.6 -> 600355.6 | K78: =21000+90000 -> 111000 | L78: =21000+83764 -> 104764 | M78: =78000+250000 -> 328000 | N78: =459017 -> 459017
A79: 75 | B79: 04512 | C79: Ühistranspordi korraldus | D79: 0 | E79: 0
A80: 76 | B80: 04520 | C80: Veetransport | D80: 223243 | E80: 108836 | F80: 45591 | K80: =22243+175000+6000 -> 203243 | L80: =31961+56000 -> 87961 | M80: 20000 | N80: 20875
A81: 77 | B81: 04540 | C81: Õhutransport | D81: 0 | E81: 0
A82: 78 | B82: 04600 | C82: Side | D82: 0 | E82: 0
A83: 79 | B83: 04710 | C83: Kaubandus ja laondus | D83: 13730 | E83: 12978 | F83: 12690 | M83: 13730 | N83: 12978
A84: 80 | B84: 04730 | C84: Turism | D84: 58000 | E84: 90444 | F84: 53000 | M84: 58000 | N84: 90444
A85: 81 | B85: 04740 | C85: Üldmajanduslikud arendusprojektid | D85: 723932 | E85: 603472 | F85: 389565 | G85: 31982 | H85: 50000 | I85: 20000 | J85: =500+35000 -> 35500 | K85: =6500+40000 -> 46500 | L85: =2860+51040 -> 53900 | M85: =325450+300000 -> 625450 | N85: =484947-20875 -> 464072
A86: 82 | B86: 04900 | C86: Muu majandus (sh.majanduse haldamine) | D86: 222821 | E86: 275523.98 | F86: 465476 | G86: =71646+6000+5000 -> 82646 | H86: 82364 | I86: =30463+23158 -> 53621 | J86: 45922 | K86: =23700+4500 -> 28200 | L86: =53020+38300 -> 91320 | M86: 58354 | N86: 55917.98
A87: 83 | C87: Ülalnimetamata majandus kokku | D87: 0 | E87: 43822 | F87: 55042 | J87: =41957+1865 -> 43822
A88: 84 | B88: 05 | C88: Keskkonnakaitse | D88: =SUM(D89:D94) -> 427292 | E88: =SUM(E89:E94) -> 371424 | F88: 399406 | G88: 45000 | H88: 96882 | I88: 31144 | J88: 51458 | K88: 71256 | L88: 68526 | M88: 279892 | N88: 154558 | O88: =SUM(O89:O94) -> 0 | P88: =SUM(P89:P94) -> 0 | Q88: 0 | R88: 0 | S88: 0 | T88: 0
A89: 85 | B89: 05100 | C89: Jäätmekäitlus (prügivedu) | D89: =G89+I89+K89+M89+Q89+T89+W89+Z89+AC89+AF89+AI89+AL89+AO89+AR89+AU89+AX89+BA89+BD89+BG89+BJ89+BM89+BP89 -> 17000 | E89: =H89+J89+L89+N89+R89+U89+X89+AA89+AD89+AG89+AJ89+AM89+AP89+AS89+AV89+AY89+BB89+BE89+BH89+BK89+BN89+BQ89 -> 9800 | F89: 7300 | G89: 5000 | H89: 5000 | I89: 5800 | J89: 4800 | M89: 6200
B90: 05101 | C90: Avalike alade puhastus | D90: 200756 | E90: 84049 | F90: 195889 | K90: 71256 | L90: =61526+7000 -> 68526 | M90: 129500 | N90: 15523
A91: 86 | B91: 05200 | C91: Heitveekäitlus | D91: 39900 | E91: 91782 | F91: 21900 | G91: =9900+30000 -> 39900 | H91: =9900+81882 -> 91782
A92: 87 | B92: 05300 | C92: Saaste vähendamine | D92: 0 | E92: 0
A93: 88 | B93: 05400 | C93: Bioloogilise mitmekesisuse ja maastiku kaitse, haljastus | D93: 148932 | E93: 165214 | F93: 153185 | I93: 19880 | J93: =34627+6567 -> 41194 | M93: 129052 | N93: 124020
A94: 89 | C94: Ülalnimetamata keskkonnakaitse kulud kokku | D94: 20704 | E94: 20579 | F94: 21132 | G94: 100 | H94: 100 | I94: 5464 | J94: 5464 | M94: 15140 | N94: 15015
A95: 90 | B95: 06 | C95: Elamu- ja kommunaalmajandus | D95: =SUM(D96:D101) -> 300448 | E95: =SUM(E96:E101) -> 485718 | F95: 438294 | G95: 50146 | H95: 87885 | I95: 35011 | J95: 88807 | K95: 82211 | L95: 175806 | M95: 133080 | N95: 133220 | O95: =SUM(O96:O101) -> 0 | P95: =SUM(P96:P101) -> 0 | Q95: 0 | R95: 0 | S95: 0 | T95: 0
A96: 91 | B96: 06100 | C96: Elamumajanduse arendamine | D96: =G96+I96+K96+M96+Q96+T96+W96+Z96+AC96+AF96+AI96+AL96+AO96+AR96+AU96+AX96+BA96+BD96+BG96+BJ96+BM96+BP96 -> 0 | E96: =H96+J96+L96+N96+R96+U96+X96+AA96+AD96+AG96+AJ96+AM96+AP96+AS96+AV96+AY96+BB96+BE96+BH96+BK96+BN96+BQ96 -> 0
A97: 92 | B97: 06200 | C97: Kommunaalmajanduse arendamine | D97: 0 | E97: 0
A98: 93 | B98: 06300 | C98: Veevarustus | D98: 37811 | E98: 143785 | F98: 133532 | G98: 6700 | H98: =6700+20270 -> 26970 | J98: =1500+30659 -> 32159 | K98: =25002+509 -> 25511 | L98: =42918+36188 -> 79106 | M98: 5600 | N98: 5550
A99: 94 | B99: 06400 | C99: Tänavavalgustus | D99: 90815 | E99: 141997 | F99: 105705 | G99: 1800 | H99: =1800+7000 -> 8800 | I99: =5300+9715 -> 15015 | J99: =6905+27292 -> 34197 | K99: 12000 | L99: =12000+27000 -> 39000 | M99: 62000 | N99: 60000
A100: 95 | B100: 06605 | C100: Muu elamu- ja kommunaalmajanduse tegevus | D100: 169588 | E100: 199936 | F100: 199057 | G100: =10560+500+6000+4766+3820+16000 -> 41646 | H100: =25364+16000+10751 -> 52115 | I100: =6734+11028 -> 17762 | J100: 22451 | K100: =42700+2000 -> 44700 | L100: =40800+16900 -> 57700 | M100: =45480+20000 -> 65480 | N100: 67670
A101: 96 | C101: Ülalnimetamata elamu-ja kommunaalmajanduse kulud kokku | D101: 2234 | E101: 0 | I101: 2234
A102: 97 | B102: 07 | C102: Tervishoid | D102: =SUM(D103:D108) -> 20500 | E102: =SUM(E103:E108) -> 19471 | F102: 8500 | G102: 20000 | H102: 8000 | I102: 500 | J102: 500 | K102: 0 | L102: 0 | M102: 0 | N102: 10971 | O102: =SUM(O103:O108) -> 0 | P102: =SUM(P103:P108) -> 0 | Q102: 0 | R102: 0 | S102: 0 | T102: 0
A103: 98 | B103: 07110 | C103: Farmaatsiatooted - apteegid | D103: =G103+I103+K103+M103+Q103+T103+W103+Z103+AC103+AF103+AI103+AL103+AO103+AR103+AU103+AX103+BA103+BD103+BG103+BJ103+BM103+BP103 -> 0 | E103: =H103+J103+L103+N103+R103+U103+X103+AA103+AD103+AG103+AJ103+AM103+AP103+AS103+AV103+AY103+BB103+BE103+BH103+BK103+BN103+BQ103 -> 0
A104: 99 | B104: 07200 | C104: Ambulatoorsed teenused (kiirabi) | D104: 0 | E104: 0 | F104: 500
A105: 100 | B105: 07300 | C105: Haiglateenused | D105: 0 | E105: 0
A106: 101 | B106: 07400 | C106: Avalikud tervishoiuteenused | D106: 0 | E106: 0
A107: 102 | B107: 07600 | C107: Muu tervishoid, sh. tervishoiu haldamine | D107: 20000 | E107: 18971 | F107: 8000 | G107: =8000+6000+6000 -> 20000 | H107: 8000 | N107: 10971
A108: 103 | C108: Ülalnimetamata tervishoiukulud kokku | D108: 500 | E108: 500 | I108: 500 | J108: 500
A109: 105 | B109: 08 | C109: Vaba aeg, kultuur ja religioon | D109: =SUM(D110:D126) -> 3303604 | E109: =SUM(E110:E126) -> 2077679.4 | F109: 2325497 | G109: 256957 | H109: 275836 | I109: 151414 | J109: 258737.4 | K109: 2136377 | L109: 614270 | M109: 758856 | N109: 928836 | O109: =SUM(O110:O126) -> 0 | P109: =SUM(P110:P126) -> 0 | Q109: 0 | R109: 0 | S109: 0 | T109: 0
A110: 106 | B110: 08102 | C110: Sport | D110: =G110+I110+K110+M110+Q110+T110+W110+Z110+AC110+AF110+AI110+AL110+AO110+AR110+AU110+AX110+BA110+BD110+BG110+BJ110+BM110+BP110 -> 353948 | E110: =H110+J110+L110+N110+R110+U110+X110+AA110+AD110+AG110+AJ110+AM110+AP110+AS110+AV110+AY110+BB110+BE110+BH110+BK110+BN110+BQ110 -> 392499 | F110: 322083 | I110: 6008 | J110: 4087 | K110: =171365+28075 -> 199440 | L110: =162223+25000 -> 187223 | M110: =148500 -> 148500 | N110: 201189
A111: 107 | B111: 08103 | C111: Puhkepargid ja -baasid | D111: 20826 | E111: 52310 | F111: 24596 | G111: 18526 | H111: =19596+15000 -> 34596 | M111: 2300 | N111: 17714
A112: 108 | B112: 08107 | C112: Noorsootöö ja noortekeskused | D112: 353248 | E112: 399642 | F112: 307538 | G112: 111898 | H112: 130337 | I112: 72518 | J112: 85944 | K112: 5712 | L112: 9292 | M112: 163120 | N112: 174069
A113: 109 | B113: 08109 | C113: Vaba aja (üritused) tegevused | D113: 1940693 | E113: 147865.4 | F113: 697971 | G113: =7350+31300+9124+870+1660+21000 -> 71304 | H113: 41940 | I113: 12000 | J113: 19043.4 | K113: =20600+1815000+6789 -> 1842389 | L113: =20430+50952 -> 71382 | M113: 15000 | N113: 15500
A114: 110 | B114: 08201 | C114: Raamatukogud | D114: 276538 | E114: 284429 | F114: 265912 | G114: 24312 | H114: 23046 | I114: =17257+20038+18129 -> 55424 | J114: 54789 | K114: 53616 | L114: 54092 | M114: 143186 | N114: 152502
A115: 111 | B115: 08202 | C115: Rahvakultuur | D115: 263900 | E115: 582711 | F115: 532465 | G115: 7500 | H115: 23253 | J115: 22780 | K115: 26000 | L115: =26261+255000 -> 281261 | M115: 230400 | N115: 255417
A116: 112 | B116: 08203 | C116: Muuseumid | D116: 20517 | E116: 19764 | F116: 19764 | G116: 20517 | H116: 19764
A117: 113 | B117: 08234 | C117: Teatrid | D117: 0 | E117: 0
A118: 114 | B118: 08235 | C118: Audiovisuaal, sh kinod | D118: 0 | E118: 0
A119: 115 | B119: 08236 | C119: Muusika (kontsertorganisatsioonid) | D119: 0 | E119: 0
A120: 116 | B120: 08207 | C120: Muinsuskaitse | D120: 0 | E120: 0
A121: 117 | B121: 08210 | C121: Loomaaed | D121: 0 | E121: 0
A122: 118 | B122: 08211 | C122: Botaanikaaed | D122: 0 | E122: 0
A123: 119 | B123: 08300 | C123: Ringhäälingu- ja kirjastamisteenused | D123: 20120 | E123: 29317 | F123: 29017 | G123: 2900 | H123: 2900 | J123: 8907 | K123: 5220 | L123: 5220 | M123: 12000 | N123: 12290
A124: 120 | B124: 08400 | C124: Religiooni- ja muud ühiskonnateenused | D124: 0 | E124: 46500 | F124: 6500 | N124: 46500
A125: 121 | B125: 08600 | C125: Muu vaba aeg, kultuur, religioon, sh. haldus | D125: 48350 | E125: 77728 | F125: 68587 | J125: 18273 | K125: 4000 | L125: 5800 | M125: 44350 | N125: 53655
A126: 122 | C126: Ülalnimetamata vaba aja, kultuuri ja religiooni kulud kokku | D126: 5464 | E126: 44914 | F126: 51064 | I126: 5464 | J126: =27254+17660 -> 44914
A127: 129 | B127: 09 | C127: Haridus | D127: =SUM(D128:D139) -> 5462214 | E127: =SUM(E128:E139) -> 5620016 | F127: 5367752 | G127: 791126 | H127: 734929 | I127: 658382 | J127: 1211905 | K127: 1242240 | L127: 1161772 | M127: 2770466 | N127: 2511410 | O127: =SUM(O128:O139) -> 0 | P127: =SUM(P128:P139) -> 0 | Q127: 0 | R127: 0 | S127: 0 | T127: 0
A128: 130 | B128: 09110 | C128: Alusharidus (lasteaiad) | D128: =G128+I128+K128+M128+Q128+T128+W128+Z128+AC128+AF128+AI128+AL128+AO128+AR128+AU128+AX128+BA128+BD128+BG128+BJ128+BM128+BP128 -> 1684332 | E128: =H128+J128+L128+N128+R128+U128+X128+AA128+AD128+AG128+AJ128+AM128+AP128+AS128+AV128+AY128+BB128+BE128+BH128+BK128+BN128+BQ128 -> 1316267 | F128: 1282616 | G128: 299084 | H128: 218812 | I128: =137022+79487+2500 -> 219009 | J128: 206641 | K128: 326631 | L128: 288708 | M128: =663590+176018 -> 839608 | N128: 602106
A129: 131 | B129: 09210-09221 | C129: Üldhariduskoolid, sh LAK | D129: 2835927 | E129: 3160754 | F129: 2983518 | G129: =139808+51000+227514+2700+12000 -> 433022 | H129: =354868+11000+83000+10000 -> 458868 | I129: =176763+70312+5300+7080 -> 259455 | J129: =569635 -> 569635 | K129: =617527+16000 -> 633527 | L129: =598784+18240 -> 617024 | M129: =1484923+25000 -> 1509923 | N129: =1480427+34800 -> 1515227
A130: 136 | B130: 09222, 09223, 09300 | C130: Kutseõppeasutused | D130: 0 | E130: 0
A131: 137 | B131: 09400 | C131: Kolmanda taseme haridus - kõrgkoolid | D131: 0 | E131: 0
A132: 138 | B132: 09500 | C132: Täiskasvanute täiendkoolitus | D132: 0 | E132: 0
B133: 09510 | C133: Noorte huviharidus ja huvitegevus | D133: 452680 | E133: 439919 | F133: 393659 | G133: 12000 | H133: 14072 | I133: =46733+19608 -> 66341 | J133: =60624+15330 -> 75954 | K133: 218209 | L133: 196932 | M133: 156130 | N133: 152961
A134: 139 | B134: 09600 | C134: Koolitransport | D134: 102615 | E134: 96460 | F134: 99760 | G134: 16740 | H134: 16700 | I134: 44875 | J134: 43060 | K134: 17000 | L134: 16000 | M134: 24000 | N134: 20700
A135: 140 | B135: 09601 | C135: Koolitoit | D135: 290197 | E135: 260041 | F135: 259291 | G135: 30280 | H135: 26477 | I135: =48026+20676 -> 68702 | J135: 53362 | K135: 41800 | L135: 38385 | M135: 149415 | N135: 141817
A136: 141 | B136: 09602 | C136: Öömaja | D136: 94990 | E136: 77220 | F136: 77220 | K136: 3600 | L136: 3600 | M136: 91390 | N136: 73620
A137: 142 | B137: 09609 | C137: Muud hariduse abiteenused | D137: 0 | E137: 9732 | F137: 9732 | J137: 9732
A138: 143 | B138: 09800 | C138: Muu haridus, sh. hariduse haldus | D138: 1473 | E138: 34999 | F138: 30332 | J138: 28897 | K138: 1473 | L138: 1123 | N138: 4979
A139: 144 | C139: Ülalnimetamata hariduse kulud kokku | D139: 0 | E139: 224624 | F139: 231624 | J139: 224624
A140: 145 | B140: 10 | C140: Sotsiaalne kaitse | D140: =SUM(D141:D156) -> 1327822 | E140: =SUM(E141:E156) -> 1554086 | F140: 1481564 | G140: 125103 | H140: 190557 | I140: 124900 | J140: 200577 | K140: 149334 | L140: 253063 | M140: 928485 | N140: 909889 | O140: =SUM(O141:O156) -> 0 | P140: =SUM(P141:P156) -> 0 | Q140: 0 | R140: 0 | S140: 0 | T140: 0
A141: 146 | B141: 10110 | C141: Haigete sotsiaalne kaitse | D141: =G141+I141+K141+M141+Q141+T141+W141+Z141+AC141+AF141+AI141+AL141+AO141+AR141+AU141+AX141+BA141+BD141+BG141+BJ141+BM141+BP141 -> 0 | E141: =H141+J141+L141+N141+R141+U141+X141+AA141+AD141+AG141+AJ141+AM141+AP141+AS141+AV141+AY141+BB141+BE141+BH141+BK141+BN141+BQ141 -> 0
A142: 147 | B142: 10120 | C142: Puuetega inimeste sotsiaalhoolekande asutused | D142: 312480 | E142: 268747 | F142: 272093 | M142: 312480 | N142: 268747
A143: 148 | B143: 10121 | C143: Muu puuetega inimeste sotsiaalne kaitse | D143: 151157 | E143: 175260 | F143: 165147 | G143: 12220 | H143: 23413 | I143: 12500 | J143: 12000 | K143: 27147 | L143: 29803 | M143: 99290 | N143: 110044
A144: 149 | B144: 10200 | C144: Eakate sotsiaalhoolekande asutused | D144: 125129 | E144: 117734 | F144: 110688 | G144: 17784 | H144: 15000 | I144: 13200 | J144: 12400 | M144: 94145 | N144: 90334
A145: 150 | B145: 10201 | C145: Muu eakate sotsiaalne kaitse | D145: 223574 | E145: 258178 | F145: 267143 | G145: =1000+23960 -> 24960 | H145: =23931+55000 -> 78931 | I145: 77425 | J145: 72988 | K145: 30989 | L145: 25952 | M145: 90200 | N145: 80307
A146: 151 | B146: 10300 | C146: Toitjakaotanute sotsiaalne kaitse | D146: 0 | E146: 0
A147: 152 | B147: 10400 | C147: Laste ja noorte sotsiaalhoolekande asutused | D147: 0 | E147: 0
A148: 153 | B148: 10402 | C148: Muu perekondade ja laste sotsiaalne kaitse | D148: 168231 | E148: 219632 | F148: 208497 | G148: 14080 | H148: 23268 | I148: =10800+669 -> 11469 | J148: 26401 | K148: 43102 | L148: 75922 | M148: 99580 | N148: 94041
A149: 154 | B149: 10500 | C149: Töötute sotsiaalne kaitse | D149: 0 | E149: 0
A150: 155 | B150: 10600 | C150: Eluasemeteenused sotsiaalsetele riskirühmadele | D150: 11000 | E150: 3640 | M150: 11000 | N150: 3640
A151: 156 | B151: 10700 | C151: Riskirühmade sotsiaalhoolekande asutused | D151: 0 | E151: 0
A152: 157 | B152: 10701 | C152: Riiklik toimetulekutoetus | D152: 191630 | E152: 355793 | F152: 317378 | G152: 26600 | H152: 28696 | J152: 60375 | K152: 4230 | L152: 72291 | M152: 160800 | N152: 194431
A153: 158 | B153: 10702 | C153: Muu sotsiaalsete riskirühmade kaitse | D153: 3300 | E153: 5019 | F153: 4310 | K153: 3300 | L153: 5019
A154: 159 | B154: 10900 | C154: Muu sotsiaalne kaitse, sh. sotsiaalse kaitse haldus | D154: 141321 | E154: 150083 | F154: 136308 | G154: 29459 | H154: 21249 | I154: 10306 | J154: 16413 | K154: 40566 | L154: 44076 | M154: 60990 | N154: 68345
A155: 160 | C155: Ülalnimetamata sotsiaalse kaitse kulud kokku | D155: 0 | E155: 0
A156: 161
A157: 162 | C157: MUUD NÄITAJAD
A158: 163 | C158: Aasta alguse seisuga
A159: 164 | B159: 2580 | C159: Võlakohustused | D159: =G159+I159+K159+M159+Q159+S159+W159+Z159+AC159+AF159+AI159+AL159+AO159+AR159+AU159+AX159+BA159+BD159+BG159+BJ159+BM159+BP159+O159 -> 5995859.49 | E159: 4860564.49 | F159: 4860564.49 | G159: 758348.61 | H159: 392184.61 | I159: =J163 -> 1110000 | J159: 425000 | K159: =L163 -> 1188098.08 | L159: 1089108.08 | M159: =N163 -> 2939412.8 | N159: 2954271.8
A160: 165 | B160: 9100 | C160: sh sildfinantseering | D160: 0 | E160: 0
A161: 166 | B161: 1000 | C161: Likviidsed varad | D161: 395129.99 | E161: 809264.04 | F161: 809264.04 | G161: 200000.09 | H161: 100460.09 | I161: =499.9-16546 -> -16046.1 | J161: 388844.9 | K161: 170609 | L161: 261768.07 | M161: 40567 | N161: 58190.98
A162: 167 | C162: Perioodi lõpu seisuga
A163: 168 | B163: 2581 | C163: Võlakohustused | D163: =G163+I163+K163+M163+Q163+S163+W163+Z163+AC163+AF163+AI163+AL163+AO163+AR163+AU163+AX163+BA163+BD163+BG163+BJ163+BM163+BP163+O163 -> 6840996.49 | E163: 5995859.49 | F163: 5679042.49 | G163: 663448.61 | H163: 758348.61 | I163: =I159-58116 -> 1051884 | J163: 1110000 | K163: =K159+K52+K53 -> 1680305.08 | L163: 1188098.08 | M163: 3445358.8 | N163: 2939412.8
A164: 169 | B164: 9101 | C164: sh sildfinantseering | D164: 0 | E164: 0
A165: 170 | B165: 1001 | C165: Likviidsed varad | D165: 92541.99 | E165: 38054.04 | F165: 13635.04 | G165: 0.09 | H165: 0.09 | I165: 499.9 | J165: 499.9 | K165: 92042 | L165: 36244.07 | M165: 0 | N165: 1309.98
C167: Kontrollvalemid
C168: Tasakaalu kontroll | D168: =D50+D51-D54+D55 -> 0 | E168: =E50+E51-E54+E55 -> -4.656612873e-10 | F168: =F50+F51-F54+F55 -> 0 | G168: =G50+G51-G54+G55 -> 0 | H168: 0 | I168: 0 | J168: 0 | K168: 0 | L168: 0 | M168: 0 | N168: 0 | O168: 0 | P168: 0 | Q168: 0 | R168: 0 | S168: 0 | T168: 0
C169: Kontroll: likviidsed varad | D169: =D161+D54-D165 -> 0 | E169: =E161+E54-E165 -> 0 | F169: =F161+F54-F165 -> 3.637978807e-11 | G169: =G161+G54-G165 -> -3.492456324e-12 | H169: -3.492456324e-12 | I169: 0 | J169: 2.330580173e-11 | K169: 0 | L169: 0 | M169: 0 | N169: 3.183231456e-12 | O169: 0 | P169: 0 | Q169: 0 | R169: 0 | S169: 0 | T169: 0
C170: Kontroll: majandusliku sisu ja tegevusalade võrdlus | D170: =(D26-D39-D41-D43-D45-D47-D49)-D57 -> -1363605 | E170: =(E26-E39-E41-E43-E45-E47-E49)-E57 -> 0 | F170: =(F26-F39-F41-F43-F45-F47-F49)-F57 -> 0 | G170: =(G26-G39-G41-G43-G45-G47-G49)-G57 -> -5874 | H170: 0 | I170: -35342 | J170: 0 | K170: -93939 | L170: =(L26-L39-L41-L43-L45-L47-L49)-L57 -> 0 | M170: 187340 | N170: 0 | O170: -125160 | P170: 0 | Q170: -78680 | R170: 0 | S170: -1211950 | T170: 0
C171: Kontroll: võlakohustused | D171: =D159+D51-D163 -> 0 | E171: =E159+E51-E163 -> 0 | F171: =F159+F51-F163 -> 0 | G171: =G159+G51-G163 -> 0 | H171: 0 | I171: 0 | J171: 0 | K171: 0 | L171: 0 | M171: 0 | N171: 0 | O171: 0 | P171: 0 | Q171: 0 | R171: 0 | S171: 0 | T171: 0
C172: Art. 100 ja vaba jäägi võrdlus (read 166 ja 52) | D172: =Hiiu!D170 -> -1363605 | E172: =IF(ROUND(E161,3)<ROUND(-E54,3),"FALSE","OK") -> OK | F172: =IF(ROUND(F161,3)<ROUND(-F54,3),"FALSE","OK") -> OK | G172: =IF(ROUND(G161,3)<ROUND(-G54,3),"FALSE","OK") -> OK | H172: OK | I172: OK | J172: OK | K172: OK | L172: OK | M172: OK | N172: OK | O172: OK | P172: OK | Q172: OK | R172: OK | S172: OK | T172: OK
C179: Netovõlakoormus (eurodes) | D179: =IF(D163-D165<0,0,D163-D165) -> 6748454.5 | G179: =IF(G163-G165<0,0,G163-G165) -> 663448.52 | I179: =IF(I163-I165<0,0,I163-I165) -> 1051384.1 | K179: =IF(K163-K165<0,0,K163-K165) -> 1588263.08 | M179: =IF(M163-M165<0,0,M163-M165) -> 3445358.8 | O179: =IF(O163-O165<0,0,O163-O165) -> 0 | Q179: =IF(Q163-Q165<0,0,Q163-Q165) -> 0 | S179: =IF(S163-S165<0,0,S163-S165) -> 0
C180: Netovõlakoormuse % (eelarves kavandatud) | D180: =(D179)/D8 -> 0.5717495689 | G180: =(G179)/G8 -> 0.425741364 | I180: =(I179)/I8 -> 0.6845875613 | K180: =(K179)/K8 -> 0.6416643827 | M180: =(M179)/M8 -> 0.5526889165 | O180: =(O179)/O8 ->  | Q180: =(Q179)/Q8 ->  | S180: =(S179)/S8 -> 
C181: 6-kordne põhitegevuse tulude ja kulude vahe | D181: =6*D36 -> 5987508 | G181: =6*G36 -> 167730 | I181: =6*I36 -> 1794654 | K181: =6*K36 -> 1343694 | M181: =6*M36 -> 2681430 | O181: =6*O36 -> 0 | Q181: =6*Q36 -> 0 | S181: =6*S36 -> 0
C182: 60% põhitegevuse tulude kogusummast | D182: =D8*0.6 -> 7081899 | G182: =G8*0.6 -> 935002.2 | I182: =I8*0.6 -> 921475.2 | K182: =K8*0.6 -> 1485134.4 | M182: =M8*0.6 -> 3740287.2 | O182: =O8*0.6 -> 0 | Q182: =Q8*0.6 -> 0 | S182: =S8*0.6 -> 0
C183: Netovõlakoormuse ülemmäär (eurodes) | D183: =IF(D36*6>D8,D8,IF(D36*6<0.6*D8,0.6*D8,D36*6)) -> 7081899 | G183: =IF(G36*6>G8,G8,IF(G36*6<0.6*G8,0.6*G8,G36*6)) -> 935002.2 | I183: =IF(I36*6>I8,I8,IF(I36*6<0.6*I8,0.6*I8,I36*6)) -> 1535792 | K183: =IF(K36*6>K8,K8,IF(K36*6<0.6*K8,0.6*K8,K36*6)) -> 1485134.4 | M183: =IF(M36*6>M8,M8,IF(M36*6<0.6*M8,0.6*M8,M36*6)) -> 3740287.2 | O183: =IF(O36*6>O8,O8,IF(O36*6<0.6*O8,0.6*O8,O36*6)) -> 0 | Q183: =IF(Q36*6>Q8,Q8,IF(Q36*6<0.6*Q8,0.6*Q8,Q36*6)) -> 0 | S183: =IF(S36*6>S8,S8,IF(S36*6<0.6*S8,0.6*S8,S36*6)) -> 0
C184: Netovõlakoormuse individuaalne ülemmäär (%)eelarve põhjal | D184: =D183/D8 -> 0.6 | G184: =G183/G8 -> 0.6 | I184: =I183/I8 -> 1 | K184: =K183/K8 -> 0.6 | M184: =M183/M8 -> 0.6 | O184: =O183/O8 ->  | Q184: =Q183/Q8 ->  | S184: =S183/S8 -> 
C186: Tegeliku netovõlakoormuse ja piirmäära vastavuse kontroll | D186: =IF(D180<D184,"OK",IF(D180>D184,"FALSE")) -> OK | G186: =IF(G180<G184,"OK",IF(G180>G184,"FALSE")) -> OK | I186: =IF(I180<I184,"OK",IF(I180>I184,"FALSE")) -> OK | K186: =IF(K180<K184,"OK",IF(K180>K184,"FALSE")) -> FALSE | M186: =IF(M180<M184,"OK",IF(M180>M184,"FALSE")) -> OK | O186: =IF(O180<O184,"OK",IF(O180>O184,"FALSE")) ->  | Q186: =IF(Q180<Q184,"OK",IF(Q180>Q184,"FALSE")) ->  | S186: =IF(S180<S184,"OK",IF(S180>S184,"FALSE")) -> 

Sheet HIIUMAA VALD
B1: Hiiumaa 2018/2017 | D1: =D2+D3+D4 -> 5508256.52 | J1: =J2+J3+J4 -> 7729230 | K1: =V1+AD1+AP1+AV1+BB1+N1 -> 8048300 | N1: =N2+N3+N4 -> 760821.0048 | V1: =V2+V3+V4 -> 933204.7342 | AD1: =AD2+AD3+AD4 -> 1161948.018 | AO1: =AQ1+AW1 -> 4623 | AP1: =AP2+AP3+AP4 -> 1850353.343 | AQ1: 3340 | AV1: =AV2+AV3+AV4 -> 801929.4203 | AW1: 1283 | BB1: =BB2+BB3+BB4 -> 2540043.48
C2: tulumaks | D2: =D9*C5 -> 5203698.52 | J2: =J9 -> 7276995 | K2: =V2+AD2+AP2+AV2+BB2+N2 -> 7603300 | N2: =U2*D2 -> 715393.5513 | U2: =U9/$J$9 -> 0.1374779012 | V2: =AC2*D2 -> 840836.5955 | AC2: =AC9/J9 -> 0.1615844177 | AD2: =AL2*D2 -> 1115788.287 | AL2: =AL9/J9 -> 0.2144221619 | AM2: =AO2*D2 -> 2531680.087 | AO2: =AO9/J9 -> 0.4865155191 | AP2: =AQ2*D2 -> 1829074.516 | AQ2: =AO2/AO1*AQ1 -> 0.3514950971 | AV2: =AW2*D2 -> 702605.5703 | AW2: =AO2/AO1*AW1 -> 0.135020422 | BB2: =D9*C6 -> 2399601.48
C3: maamaks | D3: =D10*C5 -> 245015.2 | J3: =J10 -> 354669 | K3: =V3+AD3+AP3+AV3+BB3+N3 -> 358000 | N3: =U3*D3 -> 45427.45355 | U3: =U10/J10 -> 0.185406675 | V3: =AC3*D3 -> 55667.59382 | AC3: =AC10/J10 -> 0.2272005729 | AD3: =AL3*D3 -> 46159.731 | AL3: =AL10/J10 -> 0.1883953771 | AM3: =AO3*D3 -> 97760.42164 | AO3: =AO10/J10 -> 0.398997375 | AP3: =AQ3*D3 -> 21278.82666 | AQ3: =AO3*0.217663 -> 0.08684696564 | AV3: =AW3*D3 -> 76481.59498 | AW3: =AO3*0.782337 -> 0.3121504094 | BB3: =C6*D10 -> 112984.8
C4: ressursimaks | D4: =D21*C5 -> 59542.8 | J4: =J21 -> 97566 | K4: =V4+AD4+AP4+AV4+BB4+N4 -> 87000 | N4: =U4*D4 -> 0 | U4: =U21/J4 -> 0 | V4: =AC4*D4 -> 36700.5449 | AC4: =AC21/J21 -> 0.6163725068 | AD4: =AL4*D4 -> 0 | AL4: =AL21/J21 -> 0 | AM4: =AO4*D4 -> 22842.2551 | AO4: =AO21/J21 -> 0.3836274932 | AP4: =AQ4*D4 -> 0 | AV4: =AW4*D4 -> 22842.2551 | AW4: =AO4 -> 0.3836274932 | BB4: =C6*D21 -> 27457.2
B5: koefitsient osavald | C5: 0.6844 | D5: KOKKU | N5: Emmaste Vallavalitsus | V5: Pühalepa Vallavalitsus | AD5: Käina Vallavalitsus | AM5: Hiiu Vallavalitsus | AP5: Kärdla Vallavalitsus | AV5: Kõrgessaaare Vallavalitsus | BB5: Hiiumaa Vallavalitsus
B6: vallavalitsus | C6: =1-C5 -> 0.3156 | D6: Eelarve projekt 2018 | E6: Muudatus ettepanekud I | F6: Eelarve projekt 2018 koos muudatus ettepanekud I | G6: Muudatus ettepanek II | H6: Muudatus ettepanek III | I6: Eelarve projekt 2018 koos muudatus ettepanekud III | J6: Tegelik täitmine 2017 | K6: Eelarve 2017 | L6: Esialgne eelarve 2017 | M6: Tegelik täitmine 2016 | N6: Eelarve projekt 2018 | O6: Muudatus ettepanekud I | P6: Eelarve projekt 2018 koos muudatus ettepanekud I | Q6: Muudatus ettepanek II | R6: Muudatus ettepanek III | S6: Eelarve projekt 2018 koos muudatus ettepanekud III | T6: Eelarve 2017 | U6: Tegelik täitmine 2017 | V6: Eelarve projekt 2018 | W6: Muudatus ettepanekud I | X6: Eelarve projekt 2018 koos muudatus ettepanekud I | Y6: Muudatus ettepanek II | Z6: Muudatus ettepanek III | AA6: Eelarve projekt 2018 koos muudatus ettepanekud III | AB6: Eelarve 2017 | AC6: Tegelik täitmine 2017 | AD6: Eelarve projekt 2018 | AE6: Muudatus ettepanekud I | AF6: Eelarve projekt 2018 koos muudatus ettepanekud I | AG6: Muudatus ettepanek II | AH6: Eelarve projekt 2018 koos muudatus ettepanekud II | AI6: Muudatus ettepanek III | AJ6: Eelarve projekt 2018 koos muudatus ettepanekud III | AK6: Eelarve 2017 | AL6: Tegelik täitmine 2017 | AM6: Eelarve projekt 2018 | AN6: Eelarve 2017 | AO6: Tegelik täitmine 2017 | AP6: Eelarve projekt 2018 | AQ6: Muudatus ettepanekud I | AR6: Eelarve projekt 2018 koos muudatus ettepanekud I | AS6: Muudatus ettepanek II | AT6: Muudatus ettepanek III | AU6: Eelarve projekt 2018 koos muudatus ettepanekud III | AV6: Eelarve projekt 2018 | AW6: Muudatus ettepanekud I | AX6: Eelarve projekt 2018 koos muudatus ettepanekud I | AY6: Muudatus ettepanek II | AZ6: Muudatus ettepanek III | BA6: Eelarve projekt 2018 koos muudatus ettepanekud III | BB6: Eelarve projekt 2018 | BC6: Muudatus ettepanekud I | BD6: Eelarve projekt 2018 koos muudatus ettepanekud I | BE6: Muudatus ettepanek II | BF6: Muudatus ettepanek III | BG6: Eelarve projekt 2018 koos muudatus ettepanekud III
A7: 1 | C7: PÕHITEGEVUSE TULUD KOKKU | D7: =D8+D15+D16+D20 -> 12644349.87 | E7: =E8+E15+E16+E20 -> 632809 | F7: 13277158.87 | G7: 145868 | H7: 50940 | I7: 13473966.87 | J7: 12384611.12 | K7: 12172749 | L7: 11306381 | M7: 11499182.69 | N7: 917837.5011 | O7: -14171 | P7: 903666.5011 | Q7: -1889 | R7: =R8+R15+R16+R20 -> 63 | S7: =S8+S15+S16+S20 -> 901840.5011 | T7: 1562040 | U7: 1600407.88 | V7: 1037043.513 | W7: 53074 | X7: 1090117.513 | Y7: -2248 | Z7: 73 | AA7: 1087942.513 | AB7: 1875579 | AC7: 1914277.52 | AD7: 1509603.87 | AE7: -10952 | AF7: 1498651.87 | AG7: -1672 | AH7: 1496979.87 | AI7: 98 | AJ7: =AD7+AE7+AG7+AI7 -> 1497077.87 | AK7: 2587471 | AL7: 2573564.87 | AM7: 0 | AN7: 6151659 | AO7: 6296360.85 | AP7: 2527696.319 | AQ7: 16856 | AR7: 2544552.319 | AS7: -3770 | AT7: 160 | AU7: 2540942.319 | AV7: 1107564.672 | AW7: -65705 | AX7: 1041859.672 | AY7: 26786 | AZ7: =AZ8+AZ15+AZ16+AZ20 -> 62 | BA7: 1068707.672 | BB7: 5544604 | BC7: 653707 | BD7: 6198311 | BE7: 128661 | BF7: 50484 | BG7: 6377456 | BH7: =BG7+BA7+AU7+AH7+AA7+S7 -> 13473868.87 | BI7: =BH7-I7 -> -98
A8: 2 | B8: 30 | C8: Maksutulud | D8: =SUM(D9:D14) -> 7961299.874 | E8: =SUM(E9:E14) -> -4000 | F8: 7957299.874 | G8: 73930 | H8: 50940 | I8: 8082169.874 | J8: 7631664 | K8: 7599392 | L8: 7588398 | M8: 7276810 | N8: 769148.5011 | O8: -8328 | P8: 760820.5011 | Q8: -1889 | R8: =SUM(R9:R14) -> 63 | S8: 758994.5011 | T8: 1074000 | U8: 1066184 | V8: 908455.5126 | W8: 24749 | X8: 933204.5126 | Y8: -2248 | Z8: 73 | AA8: 931029.5126 | AB8: 1225000 | AC8: 1256430 | AD8: 1173777.87 | AE8: -11830 | AF8: 1161947.87 | AG8: -2672 | AH8: 1159275.87 | AI8: =SUM(AI9:AI14) -> 98 | AJ8: 1159373.87 | AK8: 1637337 | AL8: 1627167 | AM8: 0 | AN8: 3667055 | AO8: 3681883 | AP8: 1847680.319 | AQ8: 2672 | AR8: 1850352.319 | AS8: -3770 | AT8: 160 | AU8: 1846742.319 | AV8: 809443.6716 | AW8: -7515 | AX8: 801928.6716 | AY8: -2214 | AZ8: =SUM(AZ9:AZ14) -> 62 | BA8: 799776.6716 | BB8: 2452794 | BC8: -3748 | BD8: 2449046 | BE8: 86723 | BF8: 50484 | BG8: 2586253 | BH8: 8082071.874 | BI8: =BH8-I8 -> -98
A9: 3 | B9: 3000 | C9: Füüsilise isiku tulumaks | D9: =N9+V9+AD9+AM9+AV9+BB9+BJ9+BM9+BP9+BS9+BV9+BY9+CB9+CE9+CH9+CK9+CN9+CQ9+CT9+CW9+CZ9+DC9 -> 7603300 | E9: =O9+W9+AE9+AQ9+AW9+BC9 -> 0 | F9: =D9+E9 -> 7603300 | G9: =Q9+Y9+AG9+AS9+AY9+BE9 -> 73930 | H9: =R9+Z9+AI9+AT9+AZ9+BF9 -> 50940 | I9: =D9+E9+G9+H9 -> 7728170 | J9: =U9+AC9+AL9+AO9 -> 7276995 | K9: =T9+AB9+AK9+AN9+AW9+BC9+BK9+BN9+BQ9+BT9+BW9+BZ9+CC9+CF9+CI9+CL9+CO9+CR9+CU9+CX9+DA9+DD9 -> 7243392 | L9: 7228398 | M9: 6923461 | S9: =N9+O9+Q9+R9 -> 0 | T9: 1010000 | U9: 1000426 | AA9: =V9+W9+Y9 -> 0 | AB9: 1145000 | AC9: 1175849 | AH9: =AD9+AE9+AG9 -> 0 | AJ9: =AD9+AE9+AG9+AI9 -> 0 | AK9: 1571337 | AL9: 1560349 | AN9: 3517055 | AO9: 3540371 | AU9: =AP9+AQ9+AS9 -> 0 | BA9: =AV9+AW9+AY9 -> 0 | BB9: 7603300 | BD9: =BB9+BC9 -> 7603300 | BE9: 73930 | BF9: =7728170-7677230 -> 50940 | BG9: =BB9+BC9+BE9+BF9 -> 7728170 | BH9: 7728170 | BI9: 0
A10: 4 | B10: 3030 | C10: Maamaks | D10: =N10+V10+AD10+AM10+AV10+BB10+BJ10+BM10+BP10+BS10+BV10+BY10+CB10+CE10+CH10+CK10+CN10+CQ10+CT10+CW10+CZ10+DC10 -> 358000 | E10: -4000 | F10: 354000 | G10: 0 | H10: =R10+Z10+AI10+AT10+AZ10+BF10 -> 0 | I10: =D10+E10+G10+H10 -> 354000 | J10: =U10+AC10+AL10+AO10 -> 354669 | K10: =T10+AB10+AK10+AN10+AW10+BC10+BK10+BN10+BQ10+BT10+BW10+BZ10+CC10+CF10+CI10+CL10+CO10+CR10+CU10+CX10+DA10+DD10 -> 356000 | L10: 360000 | M10: 353349 | S10: =N10+O10+Q10+R10 -> 0 | T10: 64000 | U10: 65758 | AA10: =V10+W10+Y10 -> 0 | AB10: 80000 | AC10: 80581 | AH10: =AD10+AE10+AG10 -> 0 | AJ10: =AD10+AE10+AG10+AI10 -> 0 | AK10: 66000 | AL10: 66818 | AN10: 150000 | AO10: 141512 | AU10: =AP10+AQ10+AS10 -> 0 | BA10: =AV10+AW10+AY10 -> 0 | BB10: 358000 | BC10: -4000 | BD10: 354000 | BG10: =BB10+BC10+BE10 -> 354000 | BH10: 354000 | BI10: 0
A11: 5 | B11: 3034 | C11: Loomapidamismaks | D11: =N11+V11+AD11+AM11+AV11+BB11+BJ11+BM11+BP11+BS11+BV11+BY11+CB11+CE11+CH11+CK11+CN11+CQ11+CT11+CW11+CZ11+DC11 -> 0 | E11: 0 | F11: 0 | G11: 0 | H11: 0 | I11: 0 | J11: =U11+AC11+AL11+AO11 -> 0 | K11: =T11+AB11+AK11+AN11+AW11+BC11+BK11+BN11+BQ11+BT11+BW11+BZ11+CC11+CF11+CI11+CL11+CO11+CR11+CU11+CX11+DA11+DD11 -> 0 | M11: 0 | S11: 0 | AA11: 0 | AH11: 0 | AJ11: 0 | AU11: 0 | BA11: 0 | BD11: 0 | BG11: 0 | BH11: 0 | BI11: 0
A12: 6 | B12: 3044 | C12: Eraldised tuludest | D12: =N12+V12+AD12+AM12+AV12+BB12+BJ12+BM12+BP12+BS12+BV12+BY12+CB12+CE12+CH12+CK12+CN12+CQ12+CT12+CW12+CZ12+DC12+AP12 -> -0.1256937308 | E12: 0 | F12: =D12+E12 -> -0.1256937308 | G12: 0 | H12: 0 | I12: -0.1256937308 | J12: 0 | K12: =T12+AB12+AK12+AN12 -> 0 | M12: 0 | N12: =[1]Hiiu!G1-0.13 -> 769148.5011 | O12: -8328 | P12: =N12+O12 -> 760820.5011 | Q12: -1889 | R12: =758995-758932 -> 63 | S12: 758994.5011 | V12: =[1]Hiiu!I1 -> 908455.5126 | W12: 24749 | X12: =V12+W12 -> 933204.5126 | Y12: -2248 | Z12: =931030-930957 -> 73 | AA12: =V12+W12+Y12+Z12 -> 931029.5126 | AD12: =[1]Hiiu!K1 -> 1173777.87 | AE12: -11830 | AF12: =AD12+AE12 -> 1161947.87 | AG12: -2672 | AH12: 1159275.87 | AI12: =1159374-1159276 -> 98 | AJ12: 1159373.87 | AP12: =[1]Hiiu!O1 -> 1847680.319 | AQ12: 2672 | AR12: =AP12+AQ12 -> 1850352.319 | AS12: -3770 | AT12: =1846742-1846582 -> 160 | AU12: =AP12+AQ12+AS12+AT12 -> 1846742.319 | AV12: =[1]Hiiu!Q1 -> 809443.6716 | AW12: -7515 | AX12: =AV12+AW12 -> 801928.6716 | AY12: -2214 | AZ12: =799777-799715 -> 62 | BA12: =AV12+AW12+AY12+AZ12 -> 799776.6716 | BB12: -5508506 | BC12: 252 | BD12: =BB12+BC12 -> -5508254 | BE12: 12793 | BF12: =-5495917+5495461 -> -456 | BG12: =BB12+BC12+BE12+BF12 -> -5495917 | BH12: -98.12569373 | BI12: -98
A13: 7 | B13: 3045 | C13: Teede ja tänavate sulgemise maks | D13: =N13+V13+AD13+AM13+AV13+BB13+BJ13+BM13+BP13+BS13+BV13+BY13+CB13+CE13+CH13+CK13+CN13+CQ13+CT13+CW13+CZ13+DC13 -> 0 | E13: 0 | F13: 0 | G13: 0 | H13: 0 | I13: 0 | J13: 0 | K13: =T13+AB13+AK13+AN13+AW13+BC13+BK13+BN13+BQ13+BT13+BW13+BZ13+CC13+CF13+CI13+CL13+CO13+CR13+CU13+CX13+DA13+DD13 -> 0 | M13: 0 | S13: 0 | AA13: 0 | AH13: 0 | AJ13: 0 | AU13: 0 | BA13: 0 | BD13: 0 | BG13: 0 | BH13: 0 | BI13: 0
A14: 8 | B14: 3047 | C14: Parkimistasu | D14: =N14+V14+AD14+AM14+AV14+BB14+BJ14+BM14+BP14+BS14+BV14+BY14+CB14+CE14+CH14+CK14+CN14+CQ14+CT14+CW14+CZ14+DC14 -> 0 | E14: 0 | F14: 0 | G14: 0 | H14: 0 | I14: 0 | J14: 0 | K14: =T14+AB14+AK14+AN14+AW14+BC14+BK14+BN14+BQ14+BT14+BW14+BZ14+CC14+CF14+CI14+CL14+CO14+CR14+CU14+CX14+DA14+DD14 -> 0 | M14: 0 | S14: 0 | AA14: 0 | AH14: 0 | AJ14: 0 | AU14: 0 | BA14: 0 | BD14: 0 | BG14: 0 | BH14: 0 | BI14: 0
A15: 9 | B15: 32 | C15: Tulud kaupade ja teenuste müügist | D15: =N15+V15+AD15+AP15+AV15+BB15 -> 823439 | E15: -6000 | F15: =D15+E15 -> 817439 | G15: 21000 | H15: =R15+Z15+AI15+AT15+AZ15+BF15 -> 0 | I15: =D15+E15+G15+H15 -> 838439 | J15: 975884.75 | K15: =T15+AB15+AK15+AN15 -> 921948 | L15: 842261 | M15: 887413.18 | N15: 51530 | O15: -6000 | P15: =N15+O15 -> 45530 | S15: =N15+O15+Q15+R15 -> 45530 | T15: =2500+26883+29380+200 -> 58963 | U15: 69395.32 | V15: 39100 | X15: =V15+W15 -> 39100 | AA15: =V15+W15+Y15 -> 39100 | AB15: =4500+76848+1700 -> 83048 | AC15: 87079.4 | AD15: 194832 | AE15: =-8450-3168+2200+6200 -> -3218 | AF15: =AD15+AE15 -> 191614 | AG15: -8000 | AH15: =AD15+AE15+AG15 -> 183614 | AJ15: =AI15+AG15+AE15+AD15 -> 183614 | AK15: =4000+202240+37978 -> 244218 | AL15: 245755.28 | AM15: =5000+419995+104582-529577 -> 0 | AN15: 535719 | AO15: 573654.75 | AP15: =2500+339415+30315 -> 372230 | AR15: =AP15+AQ15 -> 372230 | AU15: =AP15+AQ15+AS15 -> 372230 | AV15: =2500+62980+74267 -> 139747 | AX15: =AV15+AW15 -> 139747 | AY15: 29000 | BA15: =AV15+AW15+AY15 -> 168747 | BB15: 26000 | BC15: =11618-2200-6200 -> 3218 | BD15: =BB15+BC15 -> 29218 | BG15: =BB15+BC15+BE15 -> 29218 | BH15: 838439 | BI15: 0
A16: 10 | C16: Saadavad toetused tegevuskuludeks | D16: =SUM(D17:D19) -> 3758111 | E16: =SUM(E17:E19) -> 642809 | F16: 4400920 | G16: 41938 | H16: 0 | I16: 4442858 | J16: 3665491.97 | K16: 3521193 | L16: 2769522 | M16: 3159922.68 | N16: 96759 | O16: 157 | P16: 96916 | Q16: 0 | R16: =SUM(R17:R19) -> 0 | S16: 96916 | T16: 427577 | U16: 463399.32 | V16: 87988 | W16: 28325 | X16: 116313 | Y16: 0 | AA16: 116313 | AB16: 506031 | AC16: 509773.12 | AD16: 137394 | AE16: 4096 | AF16: 141490 | AG16: 0 | AH16: 141490 | AI16: 0 | AJ16: 141490 | AK16: 701180 | AL16: 696345.59 | AM16: 0 | AN16: 1886405 | AO16: 1995973.94 | AP16: 302786 | AQ16: 14184 | AR16: 316970 | AS16: 0 | AU16: 316970 | AV16: 154374 | AW16: -58190 | AX16: 96184 | AY16: 0 | BA16: 96184 | BB16: 2978810 | BC16: 654237 | BD16: 3633047 | BE16: 41938 | BF16: 0 | BG16: 3674985 | BH16: 4442858 | BI16: 0
A17: 11 | B17: 35200 | C17: Tasandusfond | D17: =N17+V17+AD17+AM17+AV17+BB17+BJ17+BM17+BP17+BS17+BV17+BY17+CB17+CE17+CH17+CK17+CN17+CQ17+CT17+CW17+CZ17+DC17 -> 0 | E17: =O17+W17+AE17+AQ17+AW17+BC17 -> 6312 | F17: =D17+E17 -> 6312 | G17: =Q17+Y17+AG17+AS17+AY17+BE17 -> 0 | H17: =R17+Z17+AI17+AT17+AZ17+BF17 -> 0 | I17: =D17+E17+G17+H17 -> 6312 | J17: 30727 | K17: =T17+AB17+AK17+AN17 -> 30727 | L17: 30727 | M17: 30727 | P17: =N17+O17 -> 0 | S17: =N17+O17+Q17+R17 -> 0 | X17: =V17+W17 -> 0 | AA17: =V17+W17+Y17 -> 0 | AF17: =AD17+AE17 -> 0 | AH17: =AD17+AE17+AG17 -> 0 | AJ17: =AD17+AE17+AG17+AI17 -> 0 | AN17: 30727 | AO17: 30727 | AR17: =AP17+AQ17 -> 0 | AU17: =AP17+AQ17+AS17 -> 0 | AX17: =AV17+AW17 -> 0 | BA17: =AV17+AW17+AY17 -> 0 | BC17: 6312 | BD17: =BB17+BC17 -> 6312 | BG17: =BB17+BC17+BE17 -> 6312 | BH17: 6312 | BI17: 0
A18: 12 | B18: 35201 | C18: Toetusfond | D18: =N18+V18+AD18+AM18+AV18+BJ18+BM18+BP18+BS18+BV18+BY18+CB18+CE18+CH18+CK18+CN18+CQ18+CT18+CW18+CZ18+DC18+AP18+BB18 -> 3200055 | E18: =O18+W18+AE18+AQ18+AW18+BC18 -> -43720 | F18: =D18+E18 -> 3156335 | G18: =Q18+Y18+AG18+AS18+AY18+BE18 -> 10249 | H18: 0 | I18: =D18+E18+G18+H18 -> 3166584 | J18: 2659268 | K18: =T18+AB18+AK18+AN18 -> 2650814 | L18: 2516202 | M18: 2679832 | N18: 96359 | O18: =57+100 -> 157 | P18: =N18+O18 -> 96516 | S18: =N18+O18+Q18+R18 -> 96516 | T18: 382542 | U18: 383470 | V18: 84377 | W18: =25225+100 -> 25325 | X18: =V18+W18 -> 109702 | AA18: =V18+W18+Y18 -> 109702 | AB18: 477910 | AC18: 477160 | AD18: 122516 | AE18: =-464+100 -> -364 | AF18: =AD18+AE18 -> 122152 | AH18: =AD18+AE18+AG18 -> 122152 | AJ18: =AD18+AE18+AG18+AI18 -> 122152 | AK18: 539892 | AL18: 539892 | AN18: 1250470 | AO18: 1258746 | AP18: 203359 | AQ18: =7028+77 -> 7105 | AR18: =AP18+AQ18 -> 210464 | AU18: =AP18+AQ18+AS18 -> 210464 | AV18: 130844 | AW18: =-58290+100 -> -58190 | AX18: =AV18+AW18 -> 72654 | BA18: =AV18+AW18+AY18 -> 72654 | BB18: 2562600 | BC18: =-17500+18651-17236+41702-41002-50-25-1200-1093 -> -17753 | BD18: =BB18+BC18 -> 2544847 | BE18: 10249 | BG18: =BB18+BC18+BE18 -> 2555096 | BH18: 3166584 | BI18: 0
A19: 13 | B19: 3500, 352 | C19: Muud saadud toetused tegevuskuludeks | D19: =N19+V19+AD19+AM19+AV19+BB19+BJ19+BM19+BP19+BS19+BV19+BY19+CB19+CE19+CH19+CK19+CN19+CQ19+CT19+CW19+CZ19+DC19+AP19 -> 558056 | E19: =O19+W19+AE19+AQ19+AW19+BC19 -> 680217 | F19: =D19+E19 -> 1238273 | G19: =Q19+Y19+AG19+AS19+AY19+BE19 -> 31689 | H19: 0 | I19: 1269962 | J19: 975496.97 | K19: =T19+AB19+AK19+AN19 -> 839652 | L19: 222593 | M19: 449363.68 | N19: 400 | P19: =N19+O19 -> 400 | S19: 400 | T19: 45035 | U19: =79668.32+261 -> 79929.32 | V19: 3611 | W19: 3000 | X19: =V19+W19 -> 6611 | AA19: 6611 | AB19: 28121 | AC19: 32613.12 | AD19: 14878 | AE19: 4460 | AF19: =AD19+AE19 -> 19338 | AH19: 19338 | AJ19: 19338 | AK19: =81688+1000+600+75000+3000 -> 161288 | AL19: 156453.59 | AN19: 605208 | AO19: 706500.94 | AP19: 99427 | AQ19: 7079 | AR19: =AP19+AQ19 -> 106506 | AU19: 106506 | AV19: 23530 | AX19: =AV19+AW19 -> 23530 | BA19: 23530 | BB19: 416210 | BC19: =-4460+100000+550566+19572 -> 665678 | BD19: =BB19+BC19 -> 1081888 | BE19: =14148+2141+15400 -> 31689 | BG19: 1113577 | BH19: 1269962 | BI19: 0
A20: 15 | C20: Muud tegevustulud | D20: =SUM(D21:D24) -> 101500 | E20: =SUM(E21:E24) -> 0 | F20: 101500 | G20: 9000 | H20: 0 | I20: 110500 | J20: 111570.4 | K20: 130216 | L20: 106200 | M20: 175036.83 | N20: 400 | O20: 0 | P20: 400 | Q20: 0 | R20: 0 | S20: 400 | T20: 1500 | U20: 1429.24 | V20: 1500 | W20: 0 | X20: 1500 | Y20: 0 | AA20: 1500 | AB20: 61500 | AC20: 60995 | AD20: 3600 | AE20: 0 | AF20: 3600 | AG20: 9000 | AH20: 12600 | AI20: 0 | AJ20: 12600 | AK20: 4736 | AL20: 4297 | AM20: 0 | AN20: 62480 | AO20: 44849.16 | AP20: 5000 | AQ20: 0 | AR20: 5000 | AS20: 0 | AU20: 5000 | AV20: 4000 | AW20: 0 | AX20: 4000 | AY20: 0 | BA20: 4000 | BB20: 87000 | BC20: 0 | BD20: 87000 | BE20: 0 | BF20: 0 | BG20: 87000 | BH20: 110500 | BI20: 0
A21: 16 | B21: 38250, 38251 | C21: Kaevandamisõiguse tasu | D21: =N21+V21+AD21+AM21+AV21+BB21+BJ21+BM21+BP21+BS21+BV21+BY21+CB21+CE21+CH21+CK21+CN21+CQ21+CT21+CW21+CZ21+DC21 -> 87000 | E21: =O21+W21+AE21+AQ21+AW21+BC21 -> 0 | F21: =D21+E21 -> 87000 | G21: =Q21+Y21+AG21+AS21+AY21+BE21 -> 0 | H21: 0 | I21: =D21+E21+G21+H21 -> 87000 | J21: 97566 | K21: =T21+AB21+AK21+AN21 -> 116500 | L21: 96000 | M21: 160329 | P21: =N21+O21 -> 0 | S21: =N21+O21+Q21+R21 -> 0 | X21: =V21+W21 -> 0 | AA21: =V21+W21+Y21 -> 0 | AB21: 61500 | AC21: 60137 | AF21: =AD21+AE21 -> 0 | AH21: =AD21+AE21+AG21 -> 0 | AJ21: =AD21+AE21+AG21+AI21 -> 0 | AN21: 55000 | AO21: 37429 | AR21: =AP21+AQ21 -> 0 | AU21: =AP21+AQ21+AS21 -> 0 | AX21: =AV21+AW21 -> 0 | BA21: =AV21+AW21+AY21 -> 0 | BB21: =50000+37000 -> 87000 | BD21: =BB21+BC21 -> 87000 | BG21: =BB21+BC21+BE21 -> 87000 | BH21: 87000 | BI21: 0
A22: 19 | B22: 38252, 38254 | C22: Laekumine vee erikasutusest | D22: =N22+V22+AD22+AM22+AV22+BB22+BJ22+BM22+BP22+BS22+BV22+BY22+CB22+CE22+CH22+CK22+CN22+CQ22+CT22+CW22+CZ22+DC22+AP22 -> 11400 | E22: =O22+W22+AE22+AQ22+AW22+BC22 -> 0 | F22: =D22+E22 -> 11400 | G22: =Q22+Y22+AG22+AS22+AY22+BE22 -> 0 | H22: 0 | I22: =D22+E22+G22+H22 -> 11400 | J22: 10654 | K22: =T22+AB22+AK22+AN22 -> 10300 | L22: 9800 | M22: 11558 | N22: 300 | P22: =N22+O22 -> 300 | S22: =N22+O22+Q22+R22 -> 300 | T22: 300 | U22: 341 | V22: 1500 | X22: =V22+W22 -> 1500 | AA22: =V22+W22+Y22 -> 1500 | AC22: 858 | AD22: 3600 | AF22: =AD22+AE22 -> 3600 | AH22: =AD22+AE22+AG22 -> 3600 | AJ22: =AD22+AE22+AG22+AI22 -> 3600 | AK22: 4000 | AL22: 3561 | AN22: 6000 | AO22: 5894 | AP22: 2000 | AR22: =AP22+AQ22 -> 2000 | AU22: =AP22+AQ22+AS22 -> 2000 | AV22: 4000 | AX22: =AV22+AW22 -> 4000 | BA22: =AV22+AW22+AY22 -> 4000 | BD22: =BB22+BC22 -> 0 | BG22: =BB22+BC22+BE22 -> 0 | BH22: 11400 | BI22: 0
A23: 20 | B23: 3882 | C23: Saastetasud ja keskkonnale tekitatud kahju hüvitis | D23: =N23+V23+AD23+AM23+AV23+BB23+BJ23+BM23+BP23+BS23+BV23+BY23+CB23+CE23+CH23+CK23+CN23+CQ23+CT23+CW23+CZ23+DC23 -> 0 | E23: =O23+W23+AE23+AQ23+AW23+BC23 -> 0 | F23: =D23+E23 -> 0 | G23: =Q23+Y23+AG23+AS23+AY23+BE23 -> 0 | H23: 0 | I23: 0 | J23: 141 | K23: =T23+AB23+AK23+AN23 -> 200 | L23: 200 | M23: 1541 | P23: =N23+O23 -> 0 | S23: 0 | X23: =V23+W23 -> 0 | AA23: 0 | AF23: =AD23+AE23 -> 0 | AH23: 0 | AJ23: 0 | AN23: 200 | AO23: 141 | AR23: =AP23+AQ23 -> 0 | AU23: 0 | AX23: =AV23+AW23 -> 0 | BA23: 0 | BD23: =BB23+BC23 -> 0 | BG23: 0 | BH23: 0 | BI23: 0
A24: 21 | B24: 3880, 3888 | C24: Muud tegevustulud | D24: =N24+V24+AD24+AM24+AV24+BB24+BJ24+BM24+BP24+BS24+BV24+BY24+CB24+CE24+CH24+CK24+CN24+CQ24+CT24+CW24+CZ24+DC24+AP24 -> 3100 | E24: =O24+W24+AE24+AQ24+AW24+BC24 -> 0 | F24: 3100 | G24: =Q24+Y24+AG24+AS24+AY24+BE24 -> 9000 | H24: 0 | I24: 12100 | J24: 3209.4 | K24: =T24+AB24+AK24+AN24 -> 3216 | L24: 200 | M24: 1608.83 | N24: 100 | P24: 100 | S24: 100 | T24: 1200 | U24: =14.96+1073.28 -> 1088.24 | X24: 0 | AA24: 0 | AF24: 0 | AG24: =9500-500 -> 9000 | AH24: 9000 | AJ24: 9000 | AK24: 736 | AL24: 736 | AN24: 1280 | AO24: =663.63+721.53 -> 1385.16 | AP24: 3000 | AR24: 3000 | AU24: 3000 | AX24: 0 | BA24: 0 | BD24: 0 | BG24: 0 | BH24: 12100 | BI24: 0
A25: 23 | C25: PÕHITEGEVUSE KULUD KOKKU | D25: =D26+D31 -> 11572272 | E25: =E26+E31 -> 734310.918 | F25: 12306582.92 | G25: =G26+G31 -> 202423.21 | H25: 40888 | I25: 12549894.13 | J25: 11221230.01 | K25: 11512379.4 | L25: 10551179 | M25: 9989296.81 | N25: 829894 | O25: -15310 | P25: 814584 | Q25: -883 | R25: -1800 | S25: 811901 | T25: 1536501 | U25: 1462071.99 | V25: 914304 | W25: 17469 | X25: 931773 | Y25: 0 | AA25: 931773 | AB25: 1907510.4 | AC25: 1899975.1 | AD25: 1296410 | AE25: -8230 | AF25: 1288180 | AG25: 4675 | AH25: 1292855 | AI25: -900 | AJ25: 1291955 | AK25: 2341773 | AL25: 2193227.79 | AM25: 0 | AN25: 5726595 | AO25: 5665955.13 | AP25: 2244124 | AQ25: 21881 | AR25: 2266005 | AS25: 35370.19 | AT25: 0 | AU25: 2301375.19 | AV25: 888605 | AW25: -14450 | AX25: 874155 | AY25: 39464.07 | AZ25: 0 | BA25: 913619.07 | BB25: 5398935 | BC25: 732950.918 | BD25: 6131885.918 | BE25: 123797.45 | BF25: 43588 | BG25: 6299271.368 | BH25: 12550794.63 | BI25: 900.5
A26: 24 | C26: Antud toetused tegevuskuludeks | D26: =SUM(D27:D30) -> 1385129 | E26: =SUM(E27:E30) -> 489911 | F26: 1875040 | G26: 88137.95 | H26: -28764 | I26: 1934413.95 | J26: 1280647.9 | K26: 1315139.4 | L26: 1026549 | M26: 955473.54 | N26: 24310 | O26: 0 | P26: 24310 | Q26: 0 | R26: -4100 | S26: 20210 | T26: 143374 | U26: 132602.41 | V26: 30416 | W26: 0 | X26: 30416 | Y26: 0 | AA26: 30416 | AB26: 151782.4 | AC26: 144068.55 | AD26: 28830 | AE26: 7260 | AF26: 36090 | AG26: 0 | AH26: 36090 | AI26: 0 | AJ26: 36090 | AK26: 265291 | AL26: 232510.35 | AM26: 0 | AN26: 754692 | AO26: 771466.59 | AP26: 171480 | AQ26: 0 | AR26: 171480 | AS26: 0 | AT26: 0 | AU26: 171480 | AV26: 5000 | AW26: 0 | AX26: 5000 | AY26: 0 | BA26: 5000 | BB26: 1125093 | BC26: 482651 | BD26: 1607744 | BE26: 88137.95 | BF26: -24664 | BG26: 1671217.95 | BH26: 1934413.95 | BI26: 0
A27: 25 | B27: 40 | C27: Subsiidiumid ettevõtlusega tegelevatele isikutele | D27: =N27+V27+AD27+AM27+AV27+BB27+BJ27+BM27+BP27+BS27+BV27+BY27+CB27+CE27+CH27+CK27+CN27+CQ27+CT27+CW27+CZ27+DC27 -> 0 | E27: =O27+W27+AE27+AQ27+AW27+BC27 -> 532000 | F27: =D27+E27 -> 532000 | G27: =Q27+Y27+AG27+AS27+AY27+BE27 -> 0 | H27: =R27+Z27+AI27+AT27+AZ27+BF27 -> 0 | I27: =D27+E27+G27+H27 -> 532000 | J27: 0 | K27: =T27+AB27+AK27+AN27 -> 0 | M27: 0 | P27: =N27+O27 -> 0 | S27: =N27+O27+Q27+R27 -> 0 | X27: =V27+W27 -> 0 | AA27: =V27+W27+Y27 -> 0 | AF27: =AD27+AE27 -> 0 | AH27: =AD27+AE27+AG27 -> 0 | AJ27: =AD27+AE27+AG27+AI27 -> 0 | AR27: =AP27+AQ27 -> 0 | AU27: =AP27+AQ27+AS27 -> 0 | AX27: =AV27+AW27 -> 0 | BA27: =AV27+AW27+AY27 -> 0 | BC27: 532000 | BD27: =BB27+BC27 -> 532000 | BG27: =BB27+BC27+BE27+BF27 -> 532000 | BH27: 532000 | BI27: 0
A28: 26 | B28: 413 | C28: Sotsiaalabitoetused ja muud toetused füüsilistele isikutele | D28: =N28+V28+AD28+AM28+AV28+BB28+BJ28+BM28+BP28+BS28+BV28+BY28+CB28+CE28+CH28+CK28+CN28+CQ28+CT28+CW28+CZ28+DC28 -> 602055 | E28: =O28+W28+AE28+AQ28+AW28+BC28 -> -42089 | F28: =D28+E28 -> 559966 | G28: =Q28+Y28+AG28+AS28+AY28+BE28 -> 63474.04 | H28: 0 | I28: =D28+E28+G28+H28 -> 623440.04 | J28: 592879.66 | K28: =T28+AB28+AK28+AN28 -> 678376 | L28: 602228 | M28: 618725.67 | P28: =N28+O28 -> 0 | S28: =N28+O28+Q28+R28 -> 0 | T28: 67364 | U28: 58746.23 | X28: =V28+W28 -> 0 | AA28: =V28+W28+Y28 -> 0 | AB28: 94487 | AC28: 82910.64 | AE28: 6000 | AF28: =AD28+AE28 -> 6000 | AH28: =AD28+AE28+AG28 -> 6000 | AJ28: =AD28+AE28+AG28+AI28 -> 6000 | AK28: 174173 | AL28: 147055.62 | AN28: 342352 | AO28: 304167.17 | AR28: =AP28+AQ28 -> 0 | AU28: =AP28+AQ28+AS28 -> 0 | AX28: =AV28+AW28 -> 0 | BA28: =AV28+AW28+AY28 -> 0 | BB28: 602055 | BC28: =-42089-6000 -> -48089 | BD28: =BB28+BC28 -> 553966 | BE28: =606.04+43394+9225+10249 -> 63474.04 | BG28: 617440.04 | BH28: 623440.04 | BI28: 0
A29: 27 | B29: 4500 | C29: Sihtotstarbelised toetused tegevuskuludeks | D29: =N29+V29+AD29+AM29+AV29+BB29+BJ29+BM29+BP29+BS29+BV29+BY29+CB29+CE29+CH29+CK29+CN29+CQ29+CT29+CW29+CZ29+DC29+AP29 -> 754754 | E29: =O29+W29+AE29+AQ29+AW29+BC29 -> 0 | F29: =D29+E29 -> 754754 | G29: =Q29+Y29+AG29+AS29+AY29+BE29 -> 24663.91 | H29: -28764 | I29: 750653.91 | J29: 653276.24 | K29: =T29+AB29+AK29+AN29 -> 603536.4 | L29: 391594 | M29: 298570.87 | N29: 24310 | P29: =N29+O29 -> 24310 | R29: -4100 | S29: 20210 | T29: 76010 | U29: 68263.68 | V29: 30416 | X29: =V29+W29 -> 30416 | AA29: 30416 | AB29: 49295.4 | AC29: 54202.91 | AD29: =55923-27093 -> 28830 | AE29: 1260 | AF29: =AD29+AE29 -> 30090 | AH29: 30090 | AJ29: 30090 | AK29: =64273+17918 -> 82191 | AL29: 76573.73 | AN29: 396040 | AO29: 454235.92 | AP29: 171480 | AR29: =AP29+AQ29 -> 171480 | AU29: =AP29+AQ29+AS29+AT29 -> 171480 | AV29: 5000 | AX29: =AV29+AW29 -> 5000 | BA29: 5000 | BB29: =400450+67175+27093 -> 494718 | BC29: -1260 | BD29: =BB29+BC29 -> 493458 | BE29: =8374.91+14148+2141 -> 24663.91 | BF29: =-1290-2602-4483-14148-2141 -> -24664 | BG29: =BB29+BC29+BE29+BF29 -> 493457.91 | BH29: 750653.91 | BI29: 0
A30: 28 | B30: 452 | C30: Mittesihtotstarbelised toetused | D30: =N30+V30+AD30+AM30+AV30+BB30+BJ30+BM30+BP30+BS30+BV30+BY30+CB30+CE30+CH30+CK30+CN30+CQ30+CT30+CW30+CZ30+DC30 -> 28320 | E30: =O30+W30+AE30+AQ30+AW30+BC30 -> 0 | F30: 28320 | G30: =Q30+Y30+AG30+AS30+AY30+BE30 -> 0 | H30: 0 | I30: 28320 | J30: 34492 | K30: =T30+AB30+AK30+AN30 -> 33227 | L30: 32727 | M30: 38177 | P30: 0 | S30: 0 | U30: 5592.5 | X30: 0 | AA30: 0 | AB30: 8000 | AC30: 6955 | AF30: 0 | AH30: 0 | AJ30: 0 | AK30: 8927 | AL30: 8881 | AN30: 16300 | AO30: 13063.5 | AR30: 0 | AU30: 0 | AX30: 0 | BA30: 0 | BB30: 28320 | BD30: 28320 | BG30: =BB30+BC30+BE30+BF30 -> 28320 | BH30: 28320 | BI30: 0
A31: 29 | C31: Muud tegevuskulud | D31: =SUM(D32:D34) -> 10187143 | E31: =SUM(E32:E34) -> 244399.918 | F31: 10431542.92 | G31: 114285.26 | H31: 69652 | I31: 10615480.18 | J31: 9940582.11 | K31: 10197240 | L31: 9524630 | M31: 9033823.27 | N31: 805584 | O31: -15310 | P31: 790274 | Q31: -883 | R31: 2300 | S31: 791691 | T31: 1393127 | U31: 1329469.58 | V31: 883888 | W31: 17469 | X31: 901357 | Y31: 0 | Z31: 0 | AA31: 901357 | AB31: 1755728 | AC31: 1755906.55 | AD31: 1267580 | AE31: -15490 | AF31: 1252090 | AG31: 4675 | AH31: 1256765 | AI31: -900 | AJ31: 1255865 | AK31: 2076482 | AL31: 1960717.44 | AM31: 0 | AN31: 4971903 | AO31: 4894488.54 | AP31: 2072644 | AQ31: 21881 | AR31: 2094525 | AS31: 35370.19 | AU31: 2129895.19 | AV31: 883605 | AW31: -14450 | AX31: 869155 | AY31: 39464.07 | BA31: 908619.07 | BB31: 4273842 | BC31: 250299.918 | BD31: 4524141.918 | BE31: 35659.5 | BF31: 68252 | BG31: 4628053.418 | BH31: 10616380.68 | BI31: 900.5
A32: 30 | B32: 50 | C32: Tööjõukulud | D32: =N32+V32+AD32+AM32+AV32+BB32+BJ32+BM32+BP32+BS32+BV32+BY32+CB32+CE32+CH32+CK32+CN32+CQ32+CT32+CW32+CZ32+DC32+AP32 -> 6468772 | E32: =O32+W32+AE32+AQ32+AW32+BC32 -> 28815.918 | F32: =D32+E32 -> 6497587.918 | G32: =Q32+Y32+AG32+AS32+AY32+BE32-0.5 -> 21416 | H32: =R32+Z32+AI32+AT32+AZ32+BF32 -> 3374 | I32: =D32+E32+G32+H32 -> 6522377.918 | J32: 6216672.55 | K32: =T32+AB32+AK32+AN32 -> 6246215 | L32: 6011150 | M32: 5741698.56 | N32: 361279 | O32: -13310 | P32: =N32+O32 -> 347969 | Q32: -3183 | R32: =2522+852 -> 3374 | S32: =N32+O32+Q32+R32 -> 348160 | T32: =604786+204416 -> 809202 | U32: 797812.31 | V32: 491887 | W32: =13648-12644+6065 -> 7069 | X32: =V32+W32 -> 498956 | AA32: =V32+W32+Y32 -> 498956 | AB32: 1149646 | AC32: 1161491.11 | AD32: =276673+13680+17880+14160+9984+4300+30240+196728+20280 -> 583925 | AE32: =3840+1933-47693 -> -41920 | AF32: =AD32+AE32 -> 542005 | AH32: =AD32+AE32+AG32 -> 542005 | AJ32: =AD32+AE32+AG32+AI32 -> 542005 | AK32: =961653+2458+4500+1600+700+327268+1485+36+30 -> 1299730 | AL32: 1272331.11 | AN32: 2987637 | AO32: 2985038.02 | AP32: 1003838 | AQ32: =6694-198 -> 6496 | AR32: =AP32+AQ32 -> 1010334 | AS32: 8840 | AU32: =AP32+AQ32+AS32 -> 1019174 | AV32: 316813 | AW32: -14450 | AX32: =AV32+AW32 -> 302363 | BA32: =AV32+AW32+AY32 -> 302363 | BB32: 3711030 | BC32: =BC130-3840-1993-0.5 -> 84930.918 | BD32: =BB32+BC32 -> 3795960.918 | BE32: =((12000*1.338)-302.5)+6 -> 15759.5 | BG32: =BB32+BC32+BE32+BF32 -> 3811720.418 | BH32: 6522378.418 | BI32: 0.5
A33: 31 | B33: 55 | C33: Majandamiskulud | D33: =N33+V33+AD33+AM33+AV33+BB33+BJ33+BM33+BP33+BS33+BV33+BY33+CB33+CE33+CH33+CK33+CN33+CQ33+CT33+CW33+CZ33+DC33+AP33 -> 3630501 | E33: =O33+W33+AE33+AQ33+AW33+BC33 -> 215584 | F33: =D33+E33 -> 3846085 | G33: =Q33+Y33+AG33+AS33+AY33+BE33 -> 91469.26 | H33: =R33+Z33+AI33+AT33+AZ33+BF33 -> 66278 | I33: 4003832.26 | J33: 3714201.74 | K33: =T33+AB33+AK33+AN33 -> 3896970.98 | L33: 3437529 | M33: 3281657.77 | N33: 438705 | O33: =-12000+10000 -> -2000 | P33: =N33+O33 -> 436705 | Q33: 2300 | R33: =11900-900-1200-800-1800-1660+726+1660-2000-1000-2000-1000-3000 -> -1074 | S33: =N33+O33+Q33+R33 -> 437931 | T33: 566847 | U33: 526133.63 | V33: 391801 | W33: =710+3300+2800+590+3000 -> 10400 | X33: =V33+W33 -> 402201 | AA33: =V33+W33+Y33 -> 402201 | AB33: 606032 | AC33: 594258.04 | AD33: =683655-2300 -> 681355 | AE33: =15210+10000+1300+2220-1600+2000-1200-1500 -> 26430 | AF33: =AD33+AE33 -> 707785 | AG33: =900+4275+5000-500-10000+2000+1600 -> 3275 | AH33: =AD33+AE33+AG33 -> 711060 | AI33: =-900 -> -900 | AJ33: =AD33+AE33+AG33+AI33 -> 710160 | AK33: =738910+10000+5803 -> 754713 | AL33: 684425.24 | AN33: 1969378.98 | AO33: 1909384.83 | AP33: 1068806 | AQ33: =385+15000 -> 15385 | AR33: =AP33+AQ33 -> 1084191 | AS33: =153+300+2261.08+250+1640.58+6628.2+300+992.44+3749.39+221.5+1684+8350 -> 26530.19 | AU33: =AP33+AQ33+AS33 -> 1110721.19 | AV33: 566722 | AX33: =AV33+AW33 -> 566722 | AY33: =200+300+48+7416.07+2500+29000 -> 39464.07 | BA33: =AV33+AW33+AY33 -> 606186.07 | BB33: =482540+572 -> 483112 | BC33: =50000+BC126-15210+18651-2220+19572+2516+100000+60 -> 165369 | BD33: =BB33+BC33 -> 648481 | BE33: =15400+500+4000 -> 19900 | BF33: =1480+50483+14148+2141 -> 68252 | BG33: =BB33+BC33+BE33+BF33 -> 736633 | BH33: 4004732.26 | BI33: 900
A34: 32 | B34: 60 | C34: Muud kulud | D34: =N34+V34+AD34+AM34+AV34+BB34+BJ34+BM34+BP34+BS34+BV34+BY34+CB34+CE34+CH34+CK34+CN34+CQ34+CT34+CW34+CZ34+DC34 -> 87870 | E34: =O34+W34+AE34+AQ34+AW34+BC34 -> 0 | F34: =D34+E34 -> 87870 | G34: =Q34+Y34+AG34+AS34+AY34+BE34 -> 1400 | H34: 0 | I34: 89270 | J34: 9707.82 | K34: =T34+AB34+AK34+AN34 -> 54054.02 | L34: 75951 | M34: 10466.94 | N34: 5600 | P34: =N34+O34 -> 5600 | S34: 5600 | T34: =15600+1478 -> 17078 | U34: 5523.64 | V34: 200 | X34: =V34+W34 -> 200 | AA34: 200 | AB34: 50 | AC34: 157.4 | AD34: 2300 | AF34: =AD34+AE34 -> 2300 | AG34: 1400 | AH34: 3700 | AJ34: 3700 | AK34: =2300+19739 -> 22039 | AL34: 3961.09 | AN34: 14887.02 | AO34: 65.69 | AR34: =AP34+AQ34 -> 0 | AU34: 0 | AV34: 70 | AX34: =AV34+AW34 -> 70 | BA34: 70 | BB34: 79700 | BD34: =BB34+BC34 -> 79700 | BG34: 79700 | BH34: 89270 | BI34: 0
A35: 33 | C35: PÕHITEGEVUSE TULEM | D35: =D7-D25 -> 1072077.874 | E35: =E7-E25 -> -101501.918 | F35: 970575.9563 | G35: -56555.21 | H35: 10052 | I35: 924072.7463 | J35: 1163381.11 | K35: =K7-K25+4000 -> 664369.6 | L35: 755202 | M35: 1509885.88 | N35: 87943.50107 | O35: 1139 | P35: 89082.50107 | Q35: -1006 | R35: 1863 | S35: 89939.50107 | T35: 25539 | U35: 138335.89 | V35: 122739.5126 | W35: 35605 | X35: 158344.5126 | Y35: -2248 | Z35: 73 | AA35: 156169.5126 | AB35: -31931.4 | AC35: 14302.42 | AD35: 213193.8696 | AE35: -2722 | AF35: 210471.8696 | AG35: -6347 | AH35: 204124.8696 | AI35: 998 | AJ35: 205122.8696 | AK35: 245698 | AL35: 380337.08 | AM35: 0 | AN35: 425064 | AO35: 630405.72 | AP35: 283572.3195 | AQ35: -5025 | AR35: 278547.3195 | AS35: -39140.19 | AT35: 160 | AU35: 239567.1295 | AV35: 218959.6716 | AW35: -51255 | AX35: 167704.6716 | AY35: -12678.07 | AZ35: 62 | BA35: 155088.6016 | BB35: 145669 | BC35: -79243.918 | BD35: 66425.082 | BE35: 4863.55 | BF35: 6896 | BG35: 78184.632 | BH35: 923074.2463 | BI35: -998.5
A36: 34 | C36: INVESTEERIMISTEGEVUS KOKKU | D36: =SUM(D37:D48) -> -2350762 | E36: =SUM(E37:E48) -> -494648 | F36: -2845410 | G36: -190686 | H36: -4483 | I36: -3040579 | J36: -2374474.3 | K36: -2570874.6 | L36: -2369309 | M36: -1399242.47 | N36: -190074 | O36: 32000 | P36: -158074 | Q36: 0 | R36: 0 | S36: -158074 | T36: -492163 | U36: -417468.83 | V36: -311713 | W36: -11284 | X36: -322997 | Y36: -18365 | Z36: 0 | AA36: -341362 | AB36: -1041413.6 | AC36: -852053.79 | AD36: -806478 | AE36: -515364 | AF36: -1321842 | AG36: -149601 | AH36: -1471443 | AI36: 0 | AJ36: -1471443 | AK36: -570212 | AL36: -516437.73 | AM36: 0 | AN36: -467086 | AO36: -588513.95 | AP36: -845932 | AQ36: 0 | AR36: -845932 | AS36: 0 | AT36: 0 | AU36: -845932 | AV36: -81046 | AW36: 0 | AX36: -81046 | AY36: -35000 | AZ36: 0 | BA36: -116046 | BB36: -115519 | BC36: 0 | BD36: -115519 | BE36: 12280 | BF36: -4483 | BG36: -107722 | BH36: -3040579 | BI36: 0
A37: 35 | B37: 381 | C37: Põhivara müük (+) | D37: =N37+V37+AD37+AM37+AV37+BB37+BJ37+BM37+BP37+BS37+BV37+BY37+CB37+CE37+CH37+CK37+CN37+CQ37+CT37+CW37+CZ37+DC37+AP37 -> 30000 | E37: =O37+W37+AE37+AQ37+AW37+BC37 -> 40000 | F37: =D37+E37 -> 70000 | G37: =Q37+Y37+AG37+AS37+AY37+BE37 -> -10600 | H37: =R37+Z37+AI37+AT37+AZ37+BF37 -> 0 | I37: =D37+E37+G37+H37 -> 59400 | J37: 72964 | K37: =T37+AB37+AK37+AN37 -> 138920 | L37: 269000 | M37: 113421.18 | S37: =N37+O37+Q37+R37 -> 0 | U37: 2220 | AA37: =V37+W37+Y37 -> 0 | AB37: 40000 | AC37: 40000 | AE37: 40000 | AF37: =AD37+AE37 -> 40000 | AG37: 19400 | AH37: =AD37+AE37+AG37 -> 59400 | AJ37: =AD37+AE37+AG37+AI37 -> 59400 | AK37: 35000 | AL37: 16824 | AN37: 63920 | AO37: 13920 | AP37: 30000 | AR37: =AP37+AQ37 -> 30000 | AS37: -30000 | AU37: =AP37+AQ37+AS37 -> 0 | BA37: =AV37+AW37+AY37 -> 0 | BG37: =BB37+BC37+BE37+BF37 -> 0 | BH37: 59400 | BI37: 0
A38: 36 | B38: 15 | C38: Põhivara soetus (-) | D38: -3389381 | E38: -216284 | F38: =D38+E38 -> -3605665 | G38: -37085 | H38: 0 | I38: =D38+E38+G38+H38 -> -3642750 | J38: -2505852.23 | K38: =T38+AB38+AK38+AN38 -> -2705027.6 | L38: -2551651 | M38: -1537228.46 | N38: -183000 | O38: =-8000-3000+20000+15000 -> 24000 | P38: =N38+O38 -> -159000 | S38: =N38+O38+Q38+R38 -> -159000 | T38: -507882 | U38: -403817.88 | V38: -301243 | W38: =-5000+5808-10132-6960 -> -16284 | X38: =V38+W38 -> -317527 | Y38: =-6085-12280 -> -18365 | AA38: =V38+W38+Y38 -> -335892 | AB38: -1063496.6 | AC38: -874535.66 | AD38: -2166840 | AE38: =-(32000+12000) -> -44000 | AF38: =AD38+AE38 -> -2210840 | AG38: =-30000-3000+7000 -> -26000 | AH38: =AD38+AE38+AG38 -> -2236840 | AJ38: =AD38+AE38+AG38+AI38 -> -2236840 | AK38: -597004 | AL38: -531015.73 | AN38: -536645 | AO38: -696482.96 | AP38: -648432 | AR38: =AP38+AQ38 -> -648432 | AS38: 30000 | AU38: =AP38+AQ38+AS38 -> -618432 | AV38: -77586 | AW38: -180000 | AX38: =AV38+AW38 -> -257586 | AY38: -35000 | BA38: =AV38+AW38+AY38 -> -292586 | BB38: -12280 | BD38: =BB38+BC38 -> -12280 | BE38: 12280 | BG38: =BB38+BC38+BE38+BF38 -> 0 | BH38: -3642750 | BI38: 0
A39: 37 | B39: 3502 | C39: Põhivara soetuseks saadav sihtfinantseerimine(+) | D39: 1383771 | E39: -318364 | F39: =D39+E39 -> 1065407 | G39: -143001 | H39: 0 | I39: 922406 | J39: 638796.71 | K39: =T39+AB39+AK39+AN39 -> 290654 | L39: 371790 | M39: 257372.71 | O39: 8000 | P39: =N39+O39 -> 8000 | S39: 8000 | T39: 55240 | U39: 20751 | W39: 5000 | X39: =V39+W39 -> 5000 | AA39: 5000 | AB39: 18335 | AC39: 18335 | AD39: 1383771 | AE39: -511364 | AF39: =AD39+AE39 -> 872407 | AG39: -143001 | AH39: 729406 | AJ39: 729406 | AK39: 54482 | AL39: 51282.5 | AN39: 162597 | AO39: 548428.21 | AR39: =AP39+AQ39 -> 0 | AU39: 0 | AW39: 180000 | AX39: =AV39+AW39 -> 180000 | BA39: 180000 | BD39: =BB39+BC39 -> 0 | BG39: 0 | BH39: 922406 | BI39: 0
A40: 38 | B40: 4502 | C40: Põhivara soetuseks antav sihtfinantseerimine(-) | D40: -69587 | E40: 0 | F40: -69587 | G40: 0 | H40: -4483 | I40: -74070 | J40: -454284.91 | K40: =T40+AB40+AK40+AN40 -> -165348 | L40: -119134 | M40: -140430.3 | P40: 0 | S40: 0 | T40: -31021 | U40: -28658.14 | X40: 0 | AA40: 0 | AB40: -30659 | AC40: -30069.95 | AD40: -12788 | AF40: -12788 | AH40: -12788 | AJ40: -12788 | AK40: -16540 | AL40: -9696 | AN40: -87128 | AO40: -385860.82 | AR40: 0 | AU40: 0 | AX40: 0 | BA40: 0 | BB40: -56799 | BD40: -56799 | BF40: -4483 | BG40: -61282 | BH40: -74070 | BI40: 0
A41: 39 | B41: 1502 | C41: Osaluste müük (+) | D41: 0 | E41: 0 | F41: 0 | G41: 0 | H41: 0 | I41: 0 | J41: 0 | K41: =T41+AB41+AK41+AN41+AW41+BC41+BK41+BN41+BQ41+BT41+BW41+BZ41+CC41+CF41+CI41+CL41+CO41+CR41+CU41+CX41+DA41+DD41 -> 0 | M41: 0 | P41: 0 | S41: 0 | X41: 0 | AA41: 0 | AF41: 0 | AH41: 0 | AJ41: 0 | AR41: 0 | AU41: 0 | AX41: 0 | BA41: 0 | BD41: 0 | BG41: 0 | BH41: 0 | BI41: 0
A42: 40 | B42: 1501 | C42: Osaluste soetus (-) | D42: -210000 | E42: 0 | F42: -210000 | G42: 0 | H42: 0 | I42: -210000 | J42: -33600 | K42: =T42+AB42+AK42+AN42 -> -33600 | L42: -210000 | M42: 0 | P42: 0 | S42: 0 | X42: 0 | AA42: 0 | AF42: 0 | AH42: 0 | AJ42: 0 | AK42: -33600 | AL42: -33600 | AP42: -210000 | AR42: -210000 | AU42: -210000 | AX42: 0 | BA42: 0 | BD42: 0 | BG42: 0 | BH42: -210000 | BI42: 0
A43: 41 | B43: 1512 | C43: Muude aktsiate ja osade müük (+) | D43: 0 | E43: 0 | F43: 0 | G43: 0 | H43: 0 | I43: 0 | J43: 0 | K43: =T43+AB43+AK43+AN43+AW43+BC43+BK43+BN43+BQ43+BT43+BW43+BZ43+CC43+CF43+CI43+CL43+CO43+CR43+CU43+CX43+DA43+DD43 -> 0 | M43: 0 | P43: 0 | S43: 0 | X43: 0 | AA43: 0 | AF43: 0 | AH43: 0 | AJ43: 0 | AR43: 0 | AU43: 0 | AX43: 0 | BA43: 0 | BD43: 0 | BG43: 0 | BH43: 0 | BI43: 0
A44: 42 | B44: 1511 | C44: Muude aktsiate ja osade soetus (-) | D44: 0 | E44: 0 | F44: 0 | G44: 0 | H44: 0 | I44: 0 | J44: 0 | K44: =T44+AB44+AK44+AN44+AW44+BC44+BK44+BN44+BQ44+BT44+BW44+BZ44+CC44+CF44+CI44+CL44+CO44+CR44+CU44+CX44+DA44+DD44 -> 0 | L44: -33600 | M44: 0 | P44: 0 | S44: 0 | X44: 0 | AA44: 0 | AF44: 0 | AH44: 0 | AJ44: 0 | AR44: 0 | AU44: 0 | AX44: 0 | BA44: 0 | BD44: 0 | BG44: 0 | BH44: 0 | BI44: 0
A45: 43 | B45: 1532 | C45: Tagasilaekuvad laenud (+) | D45: 0 | E45: 0 | F45: 0 | G45: 0 | H45: 0 | I45: 0 | J45: 0 | K45: =T45+AB45+AK45+AN45+AW45+BC45+BK45+BN45+BQ45+BT45+BW45+BZ45+CC45+CF45+CI45+CL45+CO45+CR45+CU45+CX45+DA45+DD45 -> 0 | M45: 0 | P45: 0 | S45: 0 | X45: 0 | AA45: 0 | AF45: 0 | AH45: 0 | AJ45: 0 | AR45: 0 | AU45: 0 | AX45: 0 | BA45: 0 | BD45: 0 | BG45: 0 | BH45: 0 | BI45: 0
A46: 44 | B46: 1531 | C46: Antavad laenud (-) | D46: 0 | E46: 0 | F46: 0 | G46: 0 | H46: 0 | I46: 0 | J46: 0 | K46: =T46+AB46+AK46+AN46+AW46+BC46+BK46+BN46+BQ46+BT46+BW46+BZ46+CC46+CF46+CI46+CL46+CO46+CR46+CU46+CX46+DA46+DD46 -> 0 | M46: 0 | P46: 0 | S46: 0 | X46: 0 | AA46: 0 | AF46: 0 | AH46: 0 | AJ46: 0 | AR46: 0 | AU46: 0 | AX46: 0 | BA46: 0 | BD46: 0 | BG46: 0 | BH46: 0 | BI46: 0
A47: 45 | B47: 655 | C47: Finantstulud (+) | D47: 0 | E47: 0 | F47: 0 | G47: 0 | H47: 0 | I47: 0 | J47: 66.46 | K47: =T47+AB47+AK47+AN47 -> 110 | L47: 150 | M47: 53.35 | P47: 0 | S47: 0 | X47: 0 | AA47: 0 | AB47: 100 | AC47: 22.6 | AF47: 0 | AH47: 0 | AJ47: 0 | AK47: 10 | AL47: 20.19 | AO47: 23.67 | AR47: 0 | AU47: 0 | AX47: 0 | BA47: 0 | BD47: 0 | BG47: 0 | BH47: 0 | BI47: 0
A48: 46 | B48: 650 | C48: Finantstkulud (-) | D48: -95565 | E48: 0 | F48: =D48+E48 -> -95565 | G48: 0 | H48: =R48+Z48+AI48+AT48+AZ48+BF48 -> 0 | I48: -95565 | J48: -92564.33 | K48: =T48+AB48+AK48+AN48 -> -96583 | L48: -95864 | M48: -92430.95 | N48: -7074 | P48: =N48+O48 -> -7074 | S48: -7074 | T48: -8500 | U48: -7963.81 | V48: -10470 | X48: =V48+W48 -> -10470 | AA48: -10470 | AB48: -5693 | AC48: -5805.78 | AD48: -10621 | AF48: =AD48+AE48 -> -10621 | AH48: -10621 | AJ48: -10621 | AK48: -12560 | AL48: -10252.69 | AN48: -69830 | AO48: -68542.05 | AP48: -17500 | AR48: =AP48+AQ48 -> -17500 | AU48: -17500 | AV48: -3460 | AX48: =AV48+AW48 -> -3460 | BA48: -3460 | BB48: -46440 | BD48: =BB48+BC48 -> -46440 | BG48: -46440 | BH48: -95565 | BI48: 0
A49: 47 | C49: EELARVE TULEM (ÜLEJÄÄK (+) / PUUDUJÄÄK (-)) | D49: =D35+D36 -> -1278684.126 | E49: =E35+E36 -> -596149.918 | F49: -1874834.044 | G49: -247241.21 | H49: 5569 | I49: -2116506.254 | J49: -1211093.19 | K49: -1906505 | L49: -1614107 | M49: 110643.41 | N49: -102130.4989 | O49: 33139 | P49: -68991.49893 | Q49: -1006 | R49: =R35+R36 -> 1863 | S49: -68134.49893 | T49: -466624 | U49: -279132.94 | V49: -188973.4874 | W49: 24321 | X49: -164652.4874 | Y49: -20613 | Z49: 73 | AA49: -185192.4874 | AB49: -1073345 | AC49: -837751.37 | AD49: -593284.1304 | AE49: -518086 | AF49: -1111370.13 | AG49: -155948 | AH49: -1267318.13 | AI49: =AI35+AI36 -> 998 | AJ49: -1266320.13 | AK49: -324514 | AL49: -136100.65 | AM49: 0 | AN49: -42022 | AO49: 41891.77 | AP49: -562359.6805 | AQ49: -5025 | AR49: -567384.6805 | AS49: -39140.19 | AT49: 160 | AU49: -606364.8705 | AV49: 137913.6716 | AW49: -51255 | AX49: 86658.67158 | AY49: -47678.07 | AZ49: 62 | BA49: 39042.60158 | BB49: 30150 | BC49: -79243.918 | BD49: -49093.918 | BE49: =BE35+BE36 -> 17143.55 | BF49: 2413 | BG49: -29537.368 | BH49: -2117504.754 | BI49: -998.5
A50: 48 | C50: FINANTSEERIMISTEGEVUS | D50: =SUM(D51:D52) -> 845137 | E50: =SUM(E51:E52) -> 511364 | F50: 1356501 | G50: 35000 | H50: 0 | I50: 1391501 | J50: 1131118.41 | K50: 1135295 | L50: 818478 | M50: 144853.13 | N50: -94900 | O50: 0 | P50: -94900 | Q50: 0 | R50: =SUM(R51:R52) -> 0 | S50: -94900 | T50: 366164 | U50: 366163.99 | V50: -58116 | W50: 0 | X50: -58116 | Y50: 0 | Z50: 0 | AA50: -58116 | AB50: 685000 | AC50: 685000 | AD50: 492207 | AE50: 511364 | AF50: 1003571 | AG50: 0 | AH50: 1003571 | AI50: =SUM(AI51:AI52) -> 0 | AJ50: 1003571 | AK50: 98990 | AL50: 96928.7 | AM50: 0 | AN50: -14859 | AO50: -16974.28 | AP50: 520439 | AQ50: 0 | AR50: 520439 | AS50: 0 | AT50: 0 | AU50: 520439 | AV50: 15657 | AW50: 0 | AX50: 15657 | AY50: 35000 | AZ50: 0 | BA50: 50657 | BB50: -30150 | BC50: 0 | BD50: -30150 | BE50: 0 | BF50: 0 | BG50: -30150 | BH50: 1391501 | BI50: 0
A51: 49 | B51: 2585 | C51: Kohustuste võtmine (+) | D51: =N51+V51+AD51+AM51+AV51+BB51+BJ51+BM51+BP51+BS51+BV51+BY51+CB51+CE51+CH51+CK51+CN51+CQ51+CT51+CW51+CZ51+DC51+AP51 -> 1600000 | E51: =O51+W51+AE51+AQ51+AW51+BC51 -> 511364 | F51: =D51+E51 -> 2111364 | G51: =Q51+Y51+AG51+AS51+AY51+BE51 -> 35000 | H51: 0 | I51: =D51+E51+G51 -> 2146364 | J51: 2023000 | K51: =T51+AB51+AK51+AN51 -> 2023000 | L51: 1470000 | M51: 2638392.43 | P51: =N51+O51 -> 0 | S51: =N51+O51+Q51+R51 -> 0 | T51: 740000 | U51: 740000 | X51: =V51+W51 -> 0 | AA51: =V51+W51+Y51 -> 0 | AB51: 700000 | AC51: 700000 | AD51: 700000 | AE51: 511364 | AF51: =AD51+AE51 -> 1211364 | AH51: =AD51+AE51+AG51 -> 1211364 | AJ51: =AD51+AE51+AG51+AI51 -> 1211364 | AK51: 263000 | AL51: 263000 | AN51: 320000 | AO51: 320000 | AP51: 822414 | AR51: =AP51+AQ51 -> 822414 | AU51: =AP51+AQ51+AS51 -> 822414 | AV51: 77586 | AX51: =AV51+AW51 -> 77586 | AY51: 35000 | BA51: =AV51+AW51+AY51 -> 112586 | BD51: =BB51+BC51 -> 0 | BG51: =BB51+BC51+BE51 -> 0 | BH51: 2146364 | BI51: 0
A52: 50 | B52: 2586 | C52: Kohustuste tasumine (-) | D52: =N52+V52+AD52+AM52+AV52+BB52+BJ52+BM52+BP52+BS52+BV52+BY52+CB52+CE52+CH52+CK52+CN52+CQ52+CT52+CW52+CZ52+DC52+AP52 -> -754863 | E52: =O52+W52+AE52+AQ52+AW52+BC52 -> 0 | F52: =D52+E52 -> -754863 | G52: =Q52+Y52+AG52+AS52+AY52+BE52 -> 0 | H52: 0 | I52: =D52+E52+G52 -> -754863 | J52: -891881.59 | K52: =T52+AB52+AK52+AN52 -> -887705 | L52: -651522 | M52: -2493539.3 | N52: -94900 | P52: =N52+O52 -> -94900 | S52: =N52+O52+Q52+R52 -> -94900 | T52: -373836 | U52: -373836.01 | V52: -58116 | X52: =V52+W52 -> -58116 | AA52: =V52+W52+Y52 -> -58116 | AB52: -15000 | AC52: -15000 | AD52: -207793 | AF52: =AD52+AE52 -> -207793 | AH52: =AD52+AE52+AG52 -> -207793 | AJ52: =AD52+AE52+AG52+AI52 -> -207793 | AK52: -164010 | AL52: -166071.3 | AN52: -334859 | AO52: -336974.28 | AP52: -301975 | AR52: =AP52+AQ52 -> -301975 | AU52: =AP52+AQ52+AS52 -> -301975 | AV52: -61929 | AX52: =AV52+AW52 -> -61929 | BA52: =AV52+AW52+AY52 -> -61929 | BB52: -30150 | BD52: =BB52+BC52 -> -30150 | BG52: =BB52+BC52+BE52 -> -30150 | BH52: -754863 | BI52: 0
A53: 51 | B53: 100 | C53: LIKVIIDSETE VARADE MUUTUS (+ suurenemine, - vähenemine) | D53: -433547 | E53: =O53+W53+AE53+AQ53+AW53+BC53 -> -84786 | F53: =D53+E53 -> -518333 | G53: =Q53+Y53+AG53+AS53+AY53+BE53 -> -212241 | H53: =R53+Z53+AI53+AT53+AZ53+BF53 -> 5569 | I53: =D53+E53+G53+H53 -> -725005 | J53: -79974.93 | K53: =T53+AB53+AK53+AN53 -> -771210 | L53: -795629 | M53: 255496.54 | N53: -197031 | O53: 33139 | P53: =N53+O53 -> -163892 | Q53: -1006 | R53: 1863 | S53: =N53+O53+Q53+1+R53 -> -163034 | T53: -100460 | U53: 87030.95 | V53: =-103450-136206-7433 -> -247089 | W53: =24321 -> 24321 | X53: =V53+W53 -> -222768 | Y53: -20613 | Z53: 73 | AA53: =V53+W53+Y53+Z53 -> -243308 | AB53: -388345 | AC53: -152751.37 | AD53: =-179602+88129-9604 -> -101077 | AE53: -6722 | AF53: =AD53+AE53 -> -107799 | AG53: -155948 | AH53: =AD53+AE53+AG53 -> -263747 | AI53: 998 | AJ53: =AD53+AE53+AG53+AI53 -> -262749 | AK53: -225524 | AL53: -39172 | AN53: -56881 | AO53: 24917.49 | AP53: -41921 | AQ53: -5025 | AR53: =AP53+AQ53 -> -46946 | AS53: -39140 | AT53: 160 | AU53: =AP53+AQ53+AS53+AT53 -> -85926 | AV53: 153571 | AW53: -51255 | AX53: =AV53+AW53 -> 102316 | AY53: -12678 | AZ53: 62 | BA53: =AV53+AW53+AY53+AZ53 -> 89700 | BC53: -79244 | BD53: =BB53+BC53 -> -79244 | BE53: 17144 | BF53: 2413 | BG53: =BB53+BC53+BE53+BF53 -> -59687 | BH53: -726002 | BI53: -997
A54: 52 | C54: NÕUETE JA KOHUSTUSTE SALDODE MUUTUS (tekkepõhise e/a korral) (+/-) | D54: =D25-D38-D40-D42-D48 -> 15336805 | E54: 950594.918 | F54: 16287399.92 | G54: 239508.21 | H54: =H25-H38-H40-H42-H48 -> 45371 | I54: =I25-I38-I40-I42-I48 -> 16572279.13 | J54: 14307531.48 | K54: 14512938 | L54: 13527828 | M54: 11759386.52 | N54: 1019968 | O54: -39310 | P54: 980658 | Q54: -883 | R54: -1800 | S54: =S25-S38-S40-S42-S48 -> 977975 | T54: 2083904 | U54: 1902511.82 | V54: 1226017 | W54: 33753 | X54: 1259770 | Y54: 18365 | Z54: 0 | AA54: 1278135 | AB54: 3007359 | AC54: 2810386.49 | AD54: 3486659 | AE54: 35770 | AF54: 3522429 | AG54: =AG25-AG38-AG40-AG42-AG48 -> 30675 | AH54: =AH25-AH38-AH40-AH42-AH48 -> 3553104 | AI54: -900 | AJ54: 3552204 | AK54: 3001477 | AL54: 2777792.21 | AM54: 0 | AN54: 6420198 | AO54: 6816840.96 | AP54: 3120056 | AQ54: 21881 | AR54: 3141937 | AS54: 5370.19 | AT54: 0 | AU54: 3147307.19 | AV54: 969651 | AW54: 165550 | AX54: 1135201 | AY54: 74464.07 | AZ54: 0 | BA54: 1209665.07 | BB54: 5514454 | BC54: 732950.918 | BD54: 6247404.918 | BE54: 111517.45 | BF54: 48071 | BG54: 6406993.368 | BH54: 16573179.63 | BI54: 900.5
A55: 53 | D55: =D35+D36-(D53-D50) -> -0.125693731 | E55: 0.08199999994 | F55: -0.04369373061 | G55: -0.21 | H55: 0 | I55: -0.2536937296 | J55: 0.1499999971 | K55: 0 | L55: 0 | M55: 6.98491931e-10 | N55: 0.5010724994 | O55: 0 | P55: 0.5010724994 | Q55: 0 | R55: 0 | S55: -0.4989275006 | T55: 0 | U55: 0.1000000003 | V55: -0.4873709775 | W55: 0 | X55: -0.4873709776 | Y55: 0 | Z55: 0 | AA55: -0.4873709776 | AB55: 0 | AC55: 0 | AD55: -0.1304272527 | AE55: 0 | AF55: -0.1304272527 | AG55: 0 | AH55: -0.1304272527 | AI55: 0 | AJ55: =AJ35+AJ36-(AJ53-AJ50) -> -0.1304272527 | AK55: 0 | AL55: 0.0500000001 | AM55: 0 | AN55: 0 | AO55: -3.637978807e-10 | AP55: 0.3194559999 | AQ55: 0 | AR55: 0.3194559999 | AS55: -0.19 | AT55: 0 | AU55: =AU35+AU36-(AU53-AU50) -> 0.1294559999 | AV55: -0.3284239999 | AW55: 0 | AX55: -0.3284239999 | AY55: -0.07 | AZ55: 0 | BA55: -0.3984239999 | BB55: 0 | BC55: 0.08199999994 | BD55: 0.0820000004 | BE55: -0.45 | BF55: 0 | BG55: -0.3679999998 | BH55: -1.753693731 | BI55: -1.500000001
C56: raha jääk | I56: 729289.12 | S56: 176758.87 | AA56: 217541.53 | AH56: 208681.58 | AU56: 58622.19 | BH56: 661604.17 | BI56: -67684.95
A58: 54 | C58: PÕHITEGEVUSE KULUDE JA INVESTEERIMISTEGEVUSE VÄLJAMINEKUTE JAOTUS TEGEVUSALADE JÄRGI | D58: =N58+V58+AD58+AM58+AV58+BB58+BJ58+BM58+BP58+BS58+BV58+BY58+CB58+CE58+CH58+CK58+CN58+CQ58+CT58+CW58+CZ58+DC58+AP58 -> 15336805.2 | E58: =O58+W58+AE58+AQ58+AW58+BC58 -> 950594.884 | F58: =P58+X58+AF58+AR58+AX58+BD58 -> 16287400.08 | G58: =Q58+Y58+AG58+AS58+AY58+BE58 -> 239508.21 | H58: =H59+H67+H68+H72+H89+H96+H103+H110+H128+H141 -> 45371.09 | I58: =I59+I67+I68+I72+I89+I96+I103+I110+I128+I141 -> 16572279.38 | J58: 14306987.98 | K58: =T58+AB58+AK58+AN58 -> 14512938 | L58: =L59+L67+L68+L72+L89+L96+L103+L110+L128+L141 -> 13561428 | M58: 11759386.52 | N58: 1019968.2 | O58: -39310.424 | P58: 980657.776 | Q58: -883 | R58: -1800 | S58: 977974.776 | T58: =T59+T67+T68+T72+T89+T96+T103+T110+T128+T141 -> 2083904 | U58: 1902511.924 | V58: 1226017 | W58: 33752.9 | X58: =X59+X67+X68+X72+X89+X96+X103+X110+X128+X141 -> 1259769.9 | Y58: =Y59+Y67+Y68+Y72+Y89+Y96+Y103+Y110+Y128+Y141 -> 18365 | AA58: =AA59+AA67+AA68+AA72+AA89+AA96+AA103+AA110+AA128+AA141 -> 1278134.9 | AB58: 3007359 | AC58: =AC59+AC67+AC68+AC72+AC89+AC96+AC103+AC110+AC128+AC141 -> 2810386.49 | AD58: 3486659 | AE58: 35769.99 | AF58: =AF59+AF67+AF68+AF72+AF89+AF96+AF103+AF110+AF128+AF141 -> 3522428.99 | AG58: =AG59+AG67+AG68+AG72+AG89+AG96+AG103+AG110+AG128+AG141 -> 30675 | AH58: =AH59+AH67+AH68+AH72+AH89+AH96+AH103+AH110+AH128+AH141 -> 3553103.99 | AI58: =AI59+AI67+AI68+AI72+AI89+AI96+AI103+AI110+AI128+AI141 -> -900 | AJ58: 3552203.99 | AK58: =AK59+AK67+AK68+AK72+AK89+AK96+AK103+AK110+AK128+AK141 -> 3001477 | AL58: =AL59+AL67+AL68+AL72+AL89+AL96+AL103+AL110+AL128+AL141 -> 2777248.71 | AM58: 0 | AN58: 6420198 | AO58: =AO59+AO67+AO68+AO72+AO89+AO96+AO103+AO110+AO128+AO141 -> 6816840.86 | AP58: 3120056 | AQ58: 21881 | AR58: =AR59+AR67+AR68+AR72+AR89+AR96+AR103+AR110+AR128+AR141 -> 3141937 | AS58: =AS59+AS67+AS68+AS72+AS89+AS96+AS103+AS110+AS128+AS141 -> 5369.69 | AU58: =AU59+AU67+AU68+AU72+AU89+AU96+AU103+AU110+AU128+AU141 -> 3147306.69 | AV58: 969651 | AW58: 165550 | AX58: =AX59+AX67+AX68+AX72+AX89+AX96+AX103+AX110+AX128+AX141 -> 1135201 | AY58: =AY59+AY67+AY68+AY72+AY89+AY96+AY103+AY110+AY128+AY141 -> 74464.07 | BA58: =BA59+BA67+BA68+BA72+BA89+BA96+BA103+BA110+BA128+BA141 -> 1209665.07 | BB58: 5514454 | BC58: 732951.418 | BD58: =BD59+BD67+BD68+BD72+BD89+BD96+BD103+BD110+BD128+BD141 -> 6247405.418 | BE58: =BE59+BE67+BE68+BE72+BE89+BE96+BE103+BE110+BE128+BE141 -> 111517.45 | BF58: =BF59+BF67+BF68+BF72+BF89+BF96+BF103+BF110+BF128+BF141 -> 48071.09 | BG58: =BG59+BG67+BG68+BG72+BG89+BG96+BG103+BG110+BG128+BG141 -> 6356510.958 | BH58: =BG58+BA58+AU58+AH58+AA58+S58 -> 16522696.38 | BI58: -49583
A59: 55 | B59: 01 | C59: Üldised valitsussektori teenused | D59: =SUM(D60:D66) -> 1442073.2 | E59: =O59+W59+AE59+AQ59+AW59+BC59 -> 104600 | F59: =SUM(F60:F66) -> 1546673.2 | G59: =Q59+Y59+AG59+AS59+AY59+BE59 -> 30978.5 | H59: =SUM(H60:H66) -> -3000 | I59: 1574651.7 | J59: 1440050.554 | K59: =SUM(K60:K66) -> 1439863.02 | L59: =SUM(L60:L66) -> 1591415 | M59: =SUM(M60:M66) -> 1083082.03 | N59: 102204.2 | O59: 0 | P59: 102204.2 | Q59: 0 | R59: -3000 | S59: 99204.2 | T59: 212158 | U59: 202263.594 | V59: 87883 | W59: 3300 | X59: =SUM(X60:X66) -> 91183 | Y59: =SUM(Y60:Y66) -> 0 | AA59: 91183 | AB59: 288569 | AC59: =SUM(AC60:AC66) -> 300713.96 | AD59: 142143 | AE59: 1300 | AF59: =SUM(AF60:AF66) -> 143443 | AG59: =SUM(AG60:AG66) -> -500 | AH59: 142943 | AI59: 0 | AJ59: 142943 | AK59: 330906 | AL59: =SUM(AL60:AL66) -> 307937.68 | AM59: 0 | AN59: 608230.02 | AO59: =SUM(AO60:AO66) -> 629135.32 | AP59: =SUM(AP60:AP66) -> 262310 | AQ59: =SUM(AQ60:AQ66) -> 0 | AR59: =SUM(AR60:AR66) -> 262310 | AS59: =SUM(AS60:AS66) -> 0 | AU59: 262310 | AV59: 53906 | AW59: 0 | AX59: =SUM(AX60:AX66) -> 53906 | AY59: =SUM(AY60:AY66) -> 0 | BA59: 53906 | BB59: 793627 | BC59: 100000 | BD59: =SUM(BD60:BD66) -> 893627 | BE59: =SUM(BE60:BE66) -> 31478.5 | BF59: 0 | BG59: 925105.5 | BH59: =BG59+BA59+AU59+AH59+AA59+S59 -> 1574651.7 | BI59: 0
A60: 56 | B60: 01111 | C60: Valla- ja linnavolikogu | D60: =N60+V60+AD60+AM60+AV60+BB60+AP60+BM60+BP60+BS60+BV60+BY60+CB60+CE60+CH60+CK60+CN60+CQ60+CT60+CW60+CZ60+DC60 -> 81580 | E60: 0 | F60: =D60+E60 -> 81580 | G60: 0 | H60: =R60+Z60+AI60+AT60+AZ60+BF60 -> 0 | I60: =D60+E60+G60+H60 -> 81580 | J60: 118827.56 | K60: =T60+AB60+AK60+AN60 -> 114759 | L60: 105449 | M60: 77486.7 | P60: =N60+O60 -> 0 | S60: =N60+O60+Q60 -> 0 | T60: 9528 | U60: 12414.66 | X60: =V60+W60 -> 0 | AA60: =V60+W60+Y60 -> 0 | AB60: 30691 | AC60: 26011.6 | AF60: =AD60+AE60 -> 0 | AH60: =AD60+AE60+AG60 -> 0 | AJ60: =AD60+AE60+AG60+AI60 -> 0 | AK60: 33800 | AL60: 28903.74 | AN60: 40740 | AO60: 51497.56 | AR60: =AP60+AQ60 -> 0 | AU60: =AP60+AQ60+AS60 -> 0 | AX60: =AV60+AW60 -> 0 | BA60: =AV60+AW60+AY60 -> 0 | BB60: 81580 | BD60: =BB60+BC60 -> 81580 | BG60: =BB60+BC60+BE60 -> 81580 | BH60: 81580 | BI60: 0
A61: 57 | B61: 01112 | C61: Valla- ja linnavalitsus | D61: =N61+V61+AD61+AM61+AV61+BC61+BJ61+BM61+BP61+BS61+BV61+BY61+CB61+CE61+CH61+CK61+CN61+CQ61+CT61+CW61+CZ61+DC61+AP61+BB61 -> 1079948.2 | E61: 4600 | F61: =D61+E61 -> 1084548.2 | G61: 30978.5 | H61: =R61+Z61+AI61+AT61+AZ61+BF61 -> -3000 | I61: =D61+E61+G61+H61 -> 1112526.7 | J61: 913635.85 | K61: =T61+AB61+AK61+AN61 -> 907027 | L61: 1084880 | M61: 745191.18 | N61: =75130.2+20000 -> 95130.2 | P61: =N61+O61 -> 95130.2 | R61: -3000 | S61: =N61+O61+Q61+R61 -> 92130.2 | T61: 142749 | U61: 134346.1 | V61: 68513 | W61: 3300 | X61: =V61+W61 -> 71813 | AA61: =V61+W61+Y61 -> 71813 | AB61: 142068 | AC61: 162271.61 | AD61: 131522 | AE61: =-3000+4300 -> 1300 | AF61: =AD61+AE61 -> 132822 | AG61: -500 | AH61: =AD61+AE61+AG61 -> 132322 | AJ61: =AD61+AE61+AG61+AI61 -> 132322 | AK61: 243751 | AL61: 248324.36 | AN61: 378459 | AO61: 368693.78 | AP61: =34810+210000 -> 244810 | AR61: =AP61+AQ61 -> 244810 | AU61: =AP61+AQ61+AS61 -> 244810 | AV61: 50446 | AX61: =AV61+AW61 -> 50446 | BA61: =AV61+AW61+AY61 -> 50446 | BB61: =294747+194780 -> 489527 | BD61: =BB61+BC61 -> 489527 | BE61: =((12000*1.338)-302.5)+15400+500-181+6 -> 31478.5 | BG61: =BB61+BC61+BE61 -> 521005.5 | BH61: 1112526.7 | BI61: 0
D62: =N62+V62+AD62+AM62+AV62+BC62+BJ62+BM62+BP62+BS62+BV62+BY62+CB62+CE62+CH62+CK62+CN62+CQ62+CT62+CW62+CZ62+DC62+AP62+BB62 -> 0 | E62: 0 | F62: 0 | G62: 0 | H62: 0 | I62: =D62+E62+G62+H62 -> 0 | J62: 0 | K62: 0 | M62: 0 | P62: 0 | S62: =N62+O62+Q62 -> 0 | X62: 0 | AA62: 0 | AF62: 0 | AH62: 0 | AJ62: 0 | AR62: 0 | AU62: 0 | AX62: 0 | BA62: 0 | BD62: 0 | BG62: 0 | BH62: 0 | BI62: 0
A63: 58 | B63: 01114 | C63: Reservfond | D63: =N63+V63+AD63+AM63+AV63+BC63+BJ63+BM63+BP63+BS63+BV63+BY63+CB63+CE63+CH63+CK63+CN63+CQ63+CT63+CW63+CZ63+DC63+AP63+BB63 -> 79700 | E63: 0 | F63: 79700 | G63: 0 | H63: 0 | I63: 79700 | J63: 0 | K63: 36014.02 | L63: 67911 | P63: 0 | S63: 0 | T63: 1478 | U63: 0 | X63: 0 | AA63: 0 | AF63: 0 | AH63: 0 | AJ63: 0 | AK63: 19739 | AN63: 14797.02 | AR63: 0 | AU63: 0 | AX63: 0 | BA63: 0 | BB63: 79700 | BD63: 79700 | BG63: 79700 | BH63: 79700 | BI63: 0
A64: 59 | B64: 01600 | C64: Muud üldised valitsussektori teenused | D64: =N64+V64+AD64+AM64+AV64+BC64+BJ64+BM64+BP64+BS64+BV64+BY64+CB64+CE64+CH64+CK64+CN64+CQ64+CT64+CW64+CZ64+DC64+AP64+BB64 -> 60780 | E64: 0 | F64: 60780 | G64: 0 | H64: 0 | I64: 60780 | J64: 186395.32 | K64: 142006 | L64: 100346 | M64: 81438.96 | P64: 0 | S64: 0 | T64: 12000 | U64: 11201.5 | V64: 4400 | X64: 4400 | AA64: 4400 | AB64: 15000 | AC64: 14335 | AF64: 0 | AH64: 0 | AJ64: 0 | AK64: 21056 | AL64: 20456.89 | AN64: 93950 | AO64: 140401.93 | AR64: 0 | AU64: 0 | AX64: 0 | BA64: 0 | BB64: 56380 | BD64: 56380 | BG64: 56380 | BH64: 60780 | BI64: 0
A65: 60 | B65: 01700 | C65: Valitsussektori võla teenindamine | D65: =N65+V65+AD65+AM65+AV65+BC65+BJ65+BM65+BP65+BS65+BV65+BY65+CB65+CE65+CH65+CK65+CN65+CQ65+CT65+CW65+CZ65+DC65+AP65+BB65 -> 95565 | E65: 0 | F65: 95565 | G65: 0 | H65: 0 | I65: 95565 | J65: 92564.434 | K65: 96583 | L65: 95864 | M65: 92750.95 | N65: 7074 | P65: 7074 | S65: 7074 | T65: 8500 | U65: 7963.914 | V65: 10470 | X65: 10470 | AA65: 10470 | AB65: 5693 | AC65: 5805.78 | AD65: 10621 | AF65: 10621 | AH65: 10621 | AJ65: 10621 | AK65: 12560 | AL65: 10252.69 | AN65: 69830 | AO65: 68542.05 | AP65: 17500 | AR65: 17500 | AU65: 17500 | AV65: 3460 | AX65: 3460 | BA65: 3460 | BB65: 46440 | BD65: 46440 | BG65: 46440 | BH65: 95565 | BI65: 0
A66: 61 | C66: Ülalnimetamata üldised valitsussektori kulud kokku | D66: =N66+V66+AD66+AM66+AV66+BJ66+BM66+BP66+BS66+BV66+BY66+CB66+CE66+CH66+CK66+CN66+CQ66+CT66+CW66+CZ66+DC66+AP66+BB66 -> 44500 | E66: 100000 | F66: 144500 | G66: 0 | H66: 0 | I66: 144500 | J66: 128627.39 | K66: 143474 | L66: 136965 | M66: 86214.24 | P66: 0 | S66: 0 | T66: =37903 -> 37903 | U66: 36337.42 | V66: 4500 | X66: 4500 | AA66: 4500 | AB66: =82623+12494 -> 95117 | AC66: =84665.51+7624.46 -> 92289.97 | AF66: 0 | AH66: 0 | AJ66: 0 | AN66: 10454 | AR66: 0 | AU66: 0 | AX66: 0 | BA66: 0 | BB66: 40000 | BC66: 100000 | BD66: 140000 | BG66: 140000 | BH66: 144500 | BI66: 0
A67: 62 | B67: 02 | C67: Riigikaitse | D67: =N67+V67+AD67+AM67+AV67+BC67+BJ67+BM67+BP67+BS67+BV67+BY67+CB67+CE67+CH67+CK67+CN67+CQ67+CT67+CW67+CZ67+DC67 -> 0 | E67: 0 | G67: 0 | I67: 0 | J67: 0 | K67: 0 | M67: 0 | BH67: 0 | BI67: 0
A68: 63 | B68: 03 | C68: Avalik kord ja julgeolek | D68: =SUM(D69:D71) -> 1420 | E68: =SUM(E69:E71) -> 0 | F68: 1420 | G68: 0 | H68: 0 | I68: 1420 | J68: 1276.88 | K68: 1400 | L68: 1400 | M68: 1623.59 | N68: 1420 | O68: 0 | P68: 1420 | Q68: 0 | R68: 0 | S68: 1420 | T68: 1400 | U68: 1276.88 | V68: 0 | W68: 0 | X68: 0 | Y68: 0 | AA68: 0 | AB68: 0 | AC68: 0 | AD68: 0 | AE68: 0 | AF68: 0 | AG68: 0 | AH68: 0 | AI68: 0 | AJ68: 0 | AK68: 0 | AL68: 0 | AM68: 0 | AN68: 0 | AO68: 0 | AP68: 0 | AQ68: 0 | AR68: 0 | AS68: 0 | AU68: 0 | AV68: 0 | AW68: 0 | AX68: 0 | AY68: 0 | BA68: 0 | BB68: 0 | BC68: 0 | BD68: 0 | BE68: 0 | BF68: 0 | BG68: 0 | BH68: 1420 | BI68: 0
A69: 64 | B69: 03100 | C69: Politsei | D69: =N69+V69+AD69+AM69+AV69+BC69+BJ69+BM69+BP69+BS69+BV69+BY69+CB69+CE69+CH69+CK69+CN69+CQ69+CT69+CW69+CZ69+DC69 -> 0 | E69: =O69+W69+AE69+AQ69+AW69+BC69 -> 0 | F69: =D69+E69 -> 0 | G69: =Q69+Y69+AG69+AS69+AY69+BE69 -> 0 | H69: =R69+Z69+AI69+AT69+AZ69+BF69 -> 0 | I69: =D69+E69+G69 -> 0 | J69: 0 | K69: 0 | P69: =N69+O69 -> 0 | S69: =N69+O69+Q69 -> 0 | X69: =V69+W69 -> 0 | AA69: =V69+W69+Y69 -> 0 | AF69: =AD69+AE69 -> 0 | AH69: =AD69+AE69+AG69 -> 0 | AJ69: =AD69+AE69+AG69+AI69 -> 0 | AR69: =AP69+AQ69 -> 0 | AU69: =AP69+AQ69+AS69 -> 0 | AX69: =AV69+AW69 -> 0 | BA69: =AV69+AW69+AY69 -> 0 | BD69: =BB69+BC69 -> 0 | BG69: =BB69+BC69+BE69 -> 0 | BH69: 0 | BI69: 0
A70: 65 | B70: 03200 | C70: Päästeteenused | D70: =N70+V70+AD70+AM70+AV70+BC70+BJ70+BM70+BP70+BS70+BV70+BY70+CB70+CE70+CH70+CK70+CN70+CQ70+CT70+CW70+CZ70+DC70 -> 1420 | E70: 0 | F70: =D70+E70 -> 1420 | G70: =Q70+Y70+AG70+AS70+AY70+BE70 -> 0 | H70: 0 | I70: =D70+E70+G70 -> 1420 | J70: 1276.88 | K70: 1400 | L70: 1400 | M70: 1623.59 | N70: 1420 | P70: =N70+O70 -> 1420 | S70: =N70+O70+Q70 -> 1420 | T70: 1400 | U70: 1276.88 | X70: =V70+W70 -> 0 | AA70: =V70+W70+Y70 -> 0 | AF70: =AD70+AE70 -> 0 | AH70: =AD70+AE70+AG70 -> 0 | AJ70: 0 | AR70: =AP70+AQ70 -> 0 | AU70: =AP70+AQ70+AS70 -> 0 | AX70: =AV70+AW70 -> 0 | BA70: =AV70+AW70+AY70 -> 0 | BD70: =BB70+BC70 -> 0 | BG70: =BB70+BC70+BE70 -> 0 | BH70: 1420 | BI70: 0
A71: 66 | C71: Muu avalik kord ja julgeolek kokku | D71: =N71+V71+AD71+AM71+AV71+BC71+BJ71+BM71+BP71+BS71+BV71+BY71+CB71+CE71+CH71+CK71+CN71+CQ71+CT71+CW71+CZ71+DC71 -> 0 | E71: 0 | F71: 0 | G71: =Q71+Y71+AG71+AS71+AY71+BE71 -> 0 | H71: 0 | I71: 0 | J71: 0 | K71: 0 | P71: 0 | S71: 0 | X71: 0 | AA71: 0 | AF71: 0 | AH71: 0 | AJ71: 0 | AR71: 0 | AU71: 0 | AX71: 0 | BA71: 0 | BD71: 0 | BG71: 0 | BH71: 0 | BI71: 0
A72: 67 | B72: 04 | C72: Majandus | D72: =SUM(D73:D88) -> 2370506 | E72: 689316 | F72: =SUM(F73:F88) -> 3059822 | G72: =SUM(G73:G88) -> 121431.07 | H72: 62383 | I72: 3243636.07 | J72: 2822789.43 | K72: 2943280.58 | L72: =SUM(L73:L88) -> 1947600 | M72: =SUM(M74:M88) -> 1538998.4 | N72: 182414 | O72: -10000 | P72: 172414 | Q72: 8930 | R72: 11900 | S72: 193244 | T72: 476257 | U72: 463889.29 | V72: 382468 | W72: 2800 | X72: =SUM(X73:X88) -> 385268 | Y72: =SUM(Y73:Y88) -> 18365 | AA72: 403633 | AB72: 906805.6 | AC72: 770376.6 | AD72: 423907 | AE72: 54243 | AF72: =SUM(AF73:AF88) -> 478150 | AG72: =SUM(AG73:AG88) -> 35000 | AH72: 513150 | AI72: 0 | AJ72: 513150 | AK72: 397134 | AL72: 325637.51 | AM72: 0 | AN72: 1163083.98 | AO72: 1262886.03 | AP72: =SUM(AP73:AP88) -> 630780 | AQ72: =SUM(AQ73:AQ88) -> 0 | AR72: =SUM(AR73:AR88) -> 630780 | AS72: =SUM(AS73:AS88) -> 0 | AU72: 630780 | AV72: 187514 | AW72: 80000 | AX72: =SUM(AX73:AX88) -> 267514 | AY72: =SUM(AY73:AY88) -> 71416.07 | BA72: 338930.07 | BB72: 563423 | BC72: 562273 | BD72: =SUM(BD73:BD88) -> 1125696 | BE72: =SUM(BE73:BE88) -> -12280 | BF72: 50483 | BG72: 1113416 | BH72: 3193153.07 | BI72: -50483
A73: 68 | B73: 04120 | C73: Ettevõtluse arengu toetamine, stardiabi | D73: =N73+V73+AD73+AM73+AP73+AV73+BB73 -> 0 | E73: 0 | F73: =D73+E73 -> 0 | G73: =Q73+Y73+AG73+AS73+AY73+BE73 -> 0 | H73: 0 | I73: =D73+E73+G73+H73 -> 0 | J73: 0 | K73: 0 | P73: =N73+O73 -> 0 | S73: =N73+O73+Q73+R73 -> 0 | X73: =V73+W73 -> 0 | AA73: =V73+W73+Y73 -> 0 | AF73: =AD73+AE73 -> 0 | AH73: =AD73+AE73+AG73 -> 0 | AJ73: =AD73+AE73+AG73+AI73 -> 0 | AR73: =AP73+AQ73 -> 0 | AU73: =AP73+AQ73+AS73 -> 0 | AX73: =AV73+AW73 -> 0 | BA73: =AV73+AW73+AY73 -> 0 | BD73: =BB73+BC73 -> 0 | BG73: =BB73+BC73+BE73 -> 0 | BH73: 0 | BI73: =BH73-I73 -> 0
A74: 69 | B74: 04210 | C74: Põllumajandus | D74: =N74+V74+AD74+AM74+AP74+AV74+BB74 -> 80556 | E74: 0 | F74: =D74+E74 -> 80556 | G74: 0 | H74: 0 | I74: =D74+E74+G74+H74 -> 80556 | J74: 101413.21 | K74: 100275 | L74: 94575 | M74: 91572.12 | N74: 19513 | P74: =N74+O74 -> 19513 | S74: 19513 | T74: 21269 | U74: 17849.4 | V74: 22083 | X74: =V74+W74 -> 22083 | AA74: =V74+W74+Y74 -> 22083 | AB74: 26806 | AC74: 26735.58 | AF74: =AD74+AE74 -> 0 | AH74: =AD74+AE74+AG74 -> 0 | AJ74: 0 | AN74: 52200 | AO74: 56828.23 | AP74: 28910 | AR74: =AP74+AQ74 -> 28910 | AU74: =AP74+AQ74+AS74 -> 28910 | AV74: 10050 | AX74: =AV74+AW74 -> 10050 | BA74: =AV74+AW74+AY74 -> 10050 | BD74: =BB74+BC74 -> 0 | BG74: =BB74+BC74+BE74 -> 0 | BH74: 80556 | BI74: 0
A75: 70 | B75: 04220 | C75: Metsamajandus | D75: 0 | E75: 0 | F75: 0 | G75: 0 | H75: 0 | I75: 0 | J75: 0 | K75: 0 | M75: 0 | P75: 0 | S75: 0 | X75: 0 | AA75: 0 | AF75: 0 | AH75: 0 | AJ75: 0 | AR75: 0 | AU75: 0 | AX75: 0 | BA75: 0 | BD75: 0 | BG75: 0 | BH75: 0 | BI75: 0
A76: 71 | B76: 04230 | C76: Kalandus ja jahindus | D76: 0 | E76: 0 | F76: 0 | G76: 0 | H76: 0 | I76: 0 | J76: =U76+AC76+AL76+AO76 -> 0 | K76: 0 | M76: 0 | P76: 0 | S76: 0 | X76: 0 | AA76: 0 | AF76: 0 | AH76: 0 | AJ76: 0 | AR76: 0 | AU76: 0 | AX76: 0 | BA76: 0 | BD76: 0 | BG76: 0 | BH76: 0 | BI76: 0
A77: 72 | B77: 04430 | C77: Ehitus | D77: 42743 | E77: 0 | F77: 42743 | G77: -12280 | H77: 0 | I77: 30463 | J77: 0 | K77: 0 | P77: 0 | S77: =N77+O77+Q77+R77 -> 0 | V77: 30463 | X77: 30463 | AA77: 30463 | AF77: 0 | AH77: 0 | AJ77: 0 | AR77: 0 | AU77: 0 | AX77: 0 | BA77: 0 | BB77: 12280 | BD77: 12280 | BE77: -12280 | BG77: 0 | BH77: 30463 | BI77: 0
A78: 73 | B78: 04360 | C78: Muu energia- ja soojamajandus | D78: 250492 | E78: 82800 | F78: 333292 | G78: 0 | H78: 0 | I78: 333292 | J78: 130573.17 | K78: 221169 | L78: 182019 | M78: 65081.25 | P78: 0 | S78: 0 | V78: 179500 | W78: 2800 | X78: 182300 | AA78: 182300 | AB78: 154400 | AC78: 74179.6 | AD78: 63442 | AF78: 63442 | AH78: 63442 | AJ78: 63442 | AK78: 59189 | AL78: 52608.47 | AN78: 7580 | AO78: 3785.1 | AP78: 3252 | AR78: 3252 | AU78: 3252 | AV78: 4298 | AW78: 80000 | AX78: 84298 | BA78: 84298 | BD78: 0 | BG78: 0 | BH78: 333292 | BI78: 0
A79: 74 | B79: 04510 | C79: Maanteetransport (vallateede- ja tänavate korrashoid) | D79: 645347 | E79: -10000 | F79: 635347 | G79: 78501.07 | H79: 0 | I79: 713848.07 | J79: 1429587.3 | K79: 1486760.6 | L79: 649642 | M79: 730465.32 | N79: =65318+20000 -> 85318 | O79: -10000 | P79: 75318 | S79: 75318 | T79: =82624+240000 -> 322624 | U79: 314166.81 | V79: =41924+85340 -> 127264 | X79: 127264 | Y79: 6085 | AA79: 133349 | AB79: =42377+557978.6 -> 600355.6 | AC79: 564430.87 | AD79: =21000+83765 -> 104765 | AF79: 104765 | AG79: 30000 | AH79: 134765 | AJ79: 134765 | AK79: =21000+83764 -> 104764 | AL79: 99388.69 | AN79: =459017 -> 459017 | AO79: 451600.93 | AP79: =55170+172414 -> 227584 | AR79: 227584 | AU79: 227584 | AV79: =22830+77586 -> 100416 | AX79: 100416 | AY79: =7416.07+35000 -> 42416.07 | BA79: 142832.07 | BD79: 0 | BG79: 0 | BH79: 713848.07 | BI79: 0
A80: 75 | B80: 04512 | C80: Ühistranspordi korraldus | D80: 16050 | E80: 534516 | F80: 550566 | G80: 0 | H80: 0 | I80: 550566 | J80: 0 | K80: 0 | P80: 0 | S80: 0 | X80: 0 | AA80: 0 | AF80: 0 | AH80: 0 | AJ80: 0 | AR80: 0 | AU80: 0 | AX80: 0 | BA80: 0 | BB80: 16050 | BC80: 534516 | BD80: 550566 | BG80: =BB80+BC80+BE80 -> 550566 | BH80: 550566 | BI80: 0
A81: 76 | B81: 04520 | C81: Veetransport | D81: 223243 | E81: 32000 | F81: 255243 | G81: 12280 | H81: 0 | I81: 267523 | J81: 58227.2 | K81: 108836 | L81: 45591 | M81: 19658.35 | P81: 0 | S81: 0 | X81: 0 | Y81: 12280 | AA81: 12280 | AD81: =175000+6000 -> 181000 | AE81: =32000+1260+3840+1933+15210 -> 54243 | AF81: 235243 | AH81: 235243 | AJ81: 235243 | AK81: =31961+56000 -> 87961 | AL81: 37352.2 | AN81: 20875 | AO81: 20875 | AR81: 0 | AU81: 0 | AX81: 0 | BA81: 0 | BB81: 42243 | BC81: =-(3840+1933)-1260-15210 -> -22243 | BD81: 20000 | BG81: 20000 | BH81: 267523 | BI81: 0
A82: 77 | B82: 04540 | C82: Õhutransport | D82: 0 | E82: 0 | F82: 0 | G82: 0 | H82: 0 | I82: 0 | J82: 0 | K82: 0 | M82: 0 | P82: 0 | S82: 0 | X82: 0 | AA82: 0 | AF82: 0 | AH82: 0 | AJ82: 0 | AR82: 0 | AU82: 0 | AX82: 0 | BA82: 0 | BD82: 0 | BG82: 0 | BH82: 0 | BI82: 0
A83: 78 | B83: 04600 | C83: Side | D83: 0 | E83: 0 | F83: 0 | G83: 0 | H83: 0 | I83: 0 | J83: 0 | K83: 0 | M83: 0 | P83: 0 | S83: 0 | X83: 0 | AA83: 0 | AF83: 0 | AH83: 0 | AJ83: 0 | AR83: 0 | AU83: 0 | AX83: 0 | BA83: 0 | BD83: 0 | BG83: 0 | BH83: 0 | BI83: 0
A84: 79 | B84: 04710 | C84: Kaubandus ja laondus | D84: 18730 | E84: 0 | F84: 18730 | G84: 0 | H84: 0 | I84: 18730 | J84: 12802.37 | K84: 12978 | L84: 12690 | M84: 11571.55 | P84: 0 | S84: 0 | X84: 0 | AA84: 0 | AF84: 0 | AH84: 0 | AJ84: 0 | AN84: 12978 | AO84: 12802.37 | AP84: 13730 | AR84: 13730 | AU84: 13730 | AX84: 0 | BA84: 0 | BB84: 5000 | BD84: 5000 | BG84: 5000 | BH84: 18730 | BI84: 0
A85: 80 | B85: 04730 | C85: Turism | D85: 58000 | E85: 0 | F85: 58000 | G85: 29000 | H85: 0 | I85: 87000 | J85: 45779.3 | K85: 90444 | L85: 53000 | M85: 20180.88 | P85: 0 | S85: 0 | X85: 0 | AA85: 0 | AF85: 0 | AH85: 0 | AJ85: 0 | AN85: 90444 | AO85: 45779.3 | AR85: 0 | AU85: 0 | AV85: 58000 | AX85: 58000 | AY85: 29000 | BA85: 87000 | BD85: 0 | BG85: 0 | BH85: 87000 | BI85: 0
A86: 81 | B86: 4740 | C86: Üldmajanduslikud arendusprojektid | D86: 843050 | E86: 50000 | F86: 893050 | G86: 0 | H86: 50483 | I86: 943533 | J86: 735838 | K86: 603472 | L86: 389565 | M86: 364530.78 | P86: 0 | S86: 0 | T86: 50000 | U86: 49181.07 | X86: 0 | AA86: 0 | AB86: =500+35000 -> 35500 | AC86: 23314.71 | AD86: =6500+40000 -> 46500 | AF86: 46500 | AH86: 46500 | AJ86: 46500 | AK86: =2860+51040 -> 53900 | AL86: 48295.36 | AN86: =484947-20875 -> 464072 | AO86: 615046.86 | AP86: =11200+300000 -> 311200 | AR86: 311200 | AU86: 311200 | AV86: 2500 | AX86: 2500 | BA86: 2500 | BB86: =415675+67175 -> 482850 | BC86: 50000 | BD86: 532850 | BF86: 50483 | BG86: 532850 | BH86: 893050 | BI86: -50483
A87: 82 | B87: 04900 | C87: Muu majandus (sh.majanduse haldamine) | D87: 192295 | E87: 0 | F87: 192295 | G87: 13930 | H87: 11900 | I87: 218125 | J87: 261866.91 | K87: 275523.98 | L87: 465476 | M87: 208939.58 | N87: 77583 | P87: 77583 | Q87: =-1000+1500+8430 -> 8930 | R87: =11900 -> 11900 | S87: =N87+O87+Q87+R87 -> 98413 | T87: 82364 | U87: 82692.01 | V87: 23158 | X87: 23158 | AA87: 23158 | AB87: 45922 | AC87: 35013.87 | AD87: =23700+4500 -> 28200 | AF87: 28200 | AG87: 5000 | AH87: 33200 | AJ87: 33200 | AK87: =53020+38300 -> 91320 | AL87: 87992.79 | AN87: 55917.98 | AO87: 56168.24 | AP87: 46104 | AR87: 46104 | AU87: 46104 | AV87: 12250 | AX87: 12250 | BA87: 12250 | BB87: 5000 | BD87: 5000 | BG87: 5000 | BH87: 218125 | BI87: 0
A88: 83 | C88: Ülalnimetamata majandus kokku | D88: 0 | E88: 0 | F88: 0 | G88: 0 | H88: 0 | I88: 0 | J88: 46701.97 | K88: 43822 | L88: 55042 | M88: 26998.57 | P88: 0 | S88: =N88+O88+Q88+R88 -> 0 | X88: 0 | AA88: 0 | AB88: =41957+1865 -> 43822 | AC88: 46701.97 | AF88: 0 | AH88: 0 | AJ88: 0 | AR88: 0 | AU88: 0 | AX88: 0 | BA88: 0 | BD88: 0 | BG88: 0 | BH88: 0 | BI88: 0
A89: 84 | B89: 05 | C89: Keskkonnakaitse | D89: =SUM(D90:D95) -> 449358 | E89: 0 | F89: =SUM(F90:F95) -> 449358 | G89: =SUM(G90:G95) -> 9200 | H89: =SUM(H90:H95) -> 0 | I89: =SUM(I90:I95) -> 458558 | J89: 320624.75 | K89: 371424 | L89: =SUM(L90:L95) -> 399406 | M89: =SUM(M90:M95) -> 244728.4 | N89: 65000 | O89: 0 | P89: 65000 | Q89: 5200 | R89: 0 | S89: 70200 | T89: 96882 | U89: 22123.78 | V89: 31524 | X89: =SUM(X90:X95) -> 31524 | Y89: =SUM(Y90:Y95) -> 0 | AA89: =V89+W89+Y89 -> 31524 | AB89: 51458 | AC89: 48013.67 | AD89: 71256 | AF89: =SUM(AF90:AF95) -> 71256 | AG89: =SUM(AG90:AG95) -> 0 | AH89: 71256 | AI89: 0 | AJ89: 71256 | AK89: 68526 | AL89: 52742.93 | AM89: 0 | AN89: 154558 | AO89: 197744.37 | AP89: =SUM(AP90:AP95) -> 185335 | AQ89: =SUM(AQ90:AQ95) -> 0 | AR89: =SUM(AR90:AR95) -> 185335 | AS89: =SUM(AS90:AS95) -> 0 | AU89: =AP89+AQ89+AS89 -> 185335 | AV89: 79493 | AW89: 0 | AX89: =SUM(AX90:AX95) -> 79493 | AY89: =SUM(AY90:AY95) -> 0 | BA89: =AV89+AW89+AY89 -> 79493 | BB89: 16750 | BC89: 0 | BD89: =SUM(BD90:BD95) -> 16750 | BE89: =SUM(BE90:BE95) -> 4000 | BF89: =SUM(BF90:BF95) -> 0 | BG89: =SUM(BG90:BG95) -> 20750 | BH89: 458558 | BI89: 0
A90: 85 | B90: 05100 | C90: Jäätmekäitlus (prügivedu) | D90: 17000 | E90: 0 | F90: =D90+E90 -> 17000 | G90: =Q90+Y90+AG90+AS90+AY90+BE90 -> 2000 | H90: 0 | I90: =D90+E90+G90+H90 -> 19000 | J90: 12901.06 | K90: 9800 | L90: 7300 | M90: 45568.93 | N90: 5000 | P90: =N90+O90 -> 5000 | Q90: 2000 | S90: =N90+O90+Q90 -> 7000 | T90: 5000 | U90: 6638.66 | V90: 5800 | X90: =V90+W90 -> 5800 | AA90: =V90+W90+Y90 -> 5800 | AB90: 4800 | AC90: 4290.28 | AF90: =AD90+AE90 -> 0 | AH90: =AD90+AE90+AG90 -> 0 | AJ90: =AD90+AE90+AG90+AI90 -> 0 | AO90: 1972.12 | AP90: 3100 | AR90: =AP90+AQ90 -> 3100 | AU90: =AP90+AQ90+AS90 -> 3100 | AV90: 3100 | AX90: =AV90+AW90 -> 3100 | BA90: =AV90+AW90+AY90 -> 3100 | BD90: =BB90+BC90 -> 0 | BG90: =BB90+BC90+BE90 -> 0 | BH90: 19000 | BI90: 0
B91: 05101 | C91: Avalike alade puhastus | D91: 200756 | E91: 0 | F91: =D91+E91 -> 200756 | G91: 0 | H91: 0 | I91: =D91+E91+G91+H91 -> 200756 | J91: 69356.99 | K91: 84049 | L91: 195889 | M91: 11373.64 | P91: =N91+O91 -> 0 | S91: =N91+O91+Q91 -> 0 | X91: =V91+W91 -> 0 | AA91: =V91+W91+Y91 -> 0 | AD91: 71256 | AF91: =AD91+AE91 -> 71256 | AH91: =AD91+AE91+AG91 -> 71256 | AJ91: 71256 | AK91: =61526+7000 -> 68526 | AL91: 52742.93 | AN91: 15523 | AO91: 16614.06 | AP91: 90500 | AR91: =AP91+AQ91 -> 90500 | AU91: =AP91+AQ91+AS91 -> 90500 | AV91: 39000 | AX91: =AV91+AW91 -> 39000 | BA91: =AV91+AW91+AY91 -> 39000 | BD91: =BB91+BC91 -> 0 | BG91: =BB91+BC91+BE91 -> 0 | BH91: 200756 | BI91: 0
A92: 86 | B92: 05200 | C92: Heitveekäitlus | D92: 59900 | E92: 0 | F92: 59900 | G92: 0 | H92: 0 | I92: 59900 | J92: 15453.12 | K92: 91782 | L92: 21900 | M92: 0 | N92: =9900+50000 -> 59900 | P92: 59900 | S92: 59900 | T92: =9900+81882 -> 91782 | U92: 15453.12 | X92: 0 | AA92: 0 | AF92: 0 | AH92: 0 | AJ92: 0 | AR92: 0 | AU92: 0 | AX92: 0 | BA92: 0 | BD92: 0 | BG92: 0 | BH92: 59900 | BI92: 0
A93: 87 | B93: 05300 | C93: Saaste vähendamine | D93: 0 | E93: 0 | F93: 0 | G93: 0 | H93: 0 | I93: 0 | J93: 0 | K93: 0 | M93: 0 | P93: 0 | S93: 0 | X93: 0 | AA93: 0 | AF93: 0 | AH93: 0 | AJ93: 0 | AR93: 0 | AU93: 0 | AX93: 0 | BA93: 0 | BD93: 0 | BG93: 0 | BH93: 0 | BI93: 0
A94: 88 | B94: 05400 | C94: Bioloogilise mitmekesisuse ja maastiku kaitse, haljastus | D94: 149388 | E94: 0 | F94: 149388 | G94: 3200 | H94: 0 | I94: 152588 | J94: 202082.82 | K94: 165214 | L94: 153185 | M94: 157863.15 | P94: 0 | Q94: 3200 | S94: 3200 | V94: 20260 | X94: 20260 | AA94: 20260 | AB94: =34627+6567 -> 41194 | AC94: 38366.72 | AF94: 0 | AH94: 0 | AJ94: 0 | AN94: 124020 | AO94: 163716.1 | AP94: 91735 | AR94: 91735 | AU94: 91735 | AV94: 37393 | AX94: 37393 | BA94: 37393 | BD94: 0 | BG94: 0 | BH94: 152588 | BI94: 0
A95: 89 | C95: Ülalnimetamata keskkonnakaitse kulud kokku | D95: 22314 | E95: 0 | F95: 22314 | G95: 4000 | H95: 0 | I95: 26314 | J95: 20830.76 | K95: 20579 | L95: 21132 | M95: 29922.68 | N95: 100 | P95: 100 | S95: 100 | T95: 100 | U95: 32 | V95: 5464 | X95: 5464 | AA95: 5464 | AB95: 5464 | AC95: 5356.67 | AF95: 0 | AH95: 0 | AJ95: 0 | AN95: 15015 | AO95: 15442.09 | AR95: 0 | AU95: 0 | AX95: 0 | BA95: 0 | BB95: 16750 | BD95: 16750 | BE95: 4000 | BG95: 20750 | BH95: 26314 | BI95: 0
A96: 90 | B96: 06 | C96: Elamu- ja kommunaalmajandus | D96: =SUM(D97:D102) -> 334414 | E96: 0 | F96: =SUM(F97:F102) -> 334414 | G96: =SUM(G97:G102) -> 6491.91 | H96: -3891.91 | I96: 337014 | J96: 402507.58 | K96: 485718 | L96: =SUM(L97:L102) -> 438294 | M96: =SUM(M97:M102) -> 480795.83 | N96: 47965 | O96: 0 | P96: 47965 | Q96: -1883 | R96: 0 | S96: 46082 | T96: 87885 | U96: 63507.56 | V96: 32777 | X96: =SUM(X97:X102) -> 32777 | Y96: =SUM(Y97:Y102) -> 0 | AA96: 32777 | AB96: 88807 | AC96: 61679.95 | AD96: 56700 | AF96: =SUM(AF97:AF102) -> 56700 | AG96: =SUM(AG97:AG102) -> 0 | AH96: 56700 | AI96: 0 | AJ96: 56700 | AK96: 175806 | AL96: 157424.64 | AM96: 0 | AN96: 133220 | AO96: 119895.43 | AP96: =SUM(AP97:AP102) -> 78980 | AQ96: =SUM(AQ97:AQ102) -> 0 | AR96: =SUM(AR97:AR102) -> 78980 | AS96: =SUM(AS97:AS102) -> 0 | AU96: 78980 | AV96: 34100 | AW96: 0 | AX96: =SUM(AX97:AX102) -> 34100 | AY96: =SUM(AY97:AY102) -> 0 | BA96: 34100 | BB96: 83892 | BC96: 0 | BD96: =SUM(BD97:BD102) -> 83892 | BE96: =SUM(BE97:BE102) -> 8374.91 | BF96: -3891.91 | BG96: 88375 | BH96: 337014 | BI96: 0
A97: 91 | B97: 06100 | C97: Elamumajanduse arendamine | D97: 0 | E97: 0 | F97: =D97+E97 -> 0 | G97: =Q97+Y97+AG97+AS97+AY97+BE97 -> 0 | H97: =R97+Z97+AI97+AT97+AZ97+BF97 -> 0 | I97: =D97+E97+G97+H97 -> 0 | J97: 0 | K97: 0 | M97: 0 | P97: =N97+O97 -> 0 | S97: =N97+O97+Q97 -> 0 | X97: =V97+W97 -> 0 | AA97: =V97+W97+Y97 -> 0 | AF97: =AD97+AE97 -> 0 | AH97: =AD97+AE97+AG97 -> 0 | AJ97: =AD97+AE97+AG97+AI97 -> 0 | AR97: =AP97+AQ97 -> 0 | AU97: =AP97+AQ97+AS97 -> 0 | AX97: =AV97+AW97 -> 0 | BA97: =AV97+AW97+AY97 -> 0 | BD97: =BB97+BC97 -> 0 | BG97: =BB97+BC97+BE97+BF97 -> 0 | BH97: 0 | BI97: 0
A98: 92 | B98: 06200 | C98: Kommunaalmajanduse arendamine | D98: 0 | E98: 0 | F98: =D98+E98 -> 0 | G98: 0 | H98: 0 | I98: =D98+E98+G98+H98 -> 0 | J98: 0 | K98: 0 | M98: 0 | P98: =N98+O98 -> 0 | S98: =N98+O98+Q98 -> 0 | X98: =V98+W98 -> 0 | AA98: =V98+W98+Y98 -> 0 | AF98: =AD98+AE98 -> 0 | AH98: =AD98+AE98+AG98 -> 0 | AJ98: 0 | AR98: =AP98+AQ98 -> 0 | AU98: =AP98+AQ98+AS98 -> 0 | AX98: =AV98+AW98 -> 0 | BA98: =AV98+AW98+AY98 -> 0 | BD98: =BB98+BC98 -> 0 | BG98: 0 | BH98: 0 | BI98: 0
A99: 93 | B99: 06300 | C99: Veevarustus | D99: 75192 | E99: 0 | F99: 75192 | G99: 8374.91 | H99: -6074.91 | I99: 77492 | J99: 143506.76 | K99: 143785 | L99: 133532 | M99: 105109.18 | N99: 5700 | P99: 5700 | S99: 5700 | T99: =6700+20270 -> 26970 | U99: 33419.81 | X99: 0 | AA99: 0 | AB99: =1500+30659 -> 32159 | AC99: 29069.95 | AF99: 0 | AH99: 0 | AJ99: 0 | AK99: =42918+36188 -> 79106 | AL99: 76418.87 | AN99: 5550 | AO99: 4598.13 | AP99: 5600 | AR99: 5600 | AU99: 5600 | AX99: 0 | BA99: 0 | BB99: =36799+27093 -> 63892 | BD99: 63892 | BE99: 8374.91 | BF99: =-2182.91-2602-1290 -> -6074.91 | BG99: =BB99+BC99+BE99+BF99 -> 66192 | BH99: 77492 | BI99: 0
A100: 94 | B100: 06400 | C100: Tänavavalgustus | D100: 90815 | E100: 0 | F100: 90815 | G100: 0 | H100: 0 | I100: 90815 | J100: 109548.42 | K100: 141997 | L100: 105705 | M100: 138851.04 | N100: 1800 | P100: 1800 | S100: 1800 | T100: =1800+7000 -> 8800 | U100: 7497.1 | V100: =5300+9715 -> 15015 | X100: 15015 | AA100: 15015 | AB100: =6905+27292 -> 34197 | AC100: 14983.13 | AD100: 12000 | AF100: 12000 | AH100: 12000 | AJ100: 12000 | AK100: =12000+27000 -> 39000 | AL100: 33466.97 | AN100: 60000 | AO100: 53601.22 | AP100: 53000 | AR100: 53000 | AU100: 53000 | AV100: 9000 | AX100: 9000 | BA100: 9000 | BD100: 0 | BG100: 0 | BH100: 90815 | BI100: 0
A101: 95 | B101: 06605 | C101: Muu elamu- ja kommunaalmajanduse tegevus | D101: 168407 | E101: =O101+W101+AE101+AQ101+AW101+BC101 -> 0 | F101: 168407 | G101: -1883 | H101: 2183 | I101: 168707 | J101: 149452.4 | K101: 199936 | L101: 199057 | M101: 236835.61 | N101: =24465+16000 -> 40465 | P101: 40465 | Q101: =-1000-883 -> -1883 | S101: 38582 | T101: =25364+16000+10751 -> 52115 | U101: 22590.65 | V101: =6734+11028 -> 17762 | X101: 17762 | AA101: 17762 | AB101: 22451 | AC101: 17626.87 | AD101: =42700+2000 -> 44700 | AF101: 44700 | AH101: 44700 | AJ101: 44700 | AK101: =40800+16900 -> 57700 | AL101: 47538.8 | AN101: 67670 | AO101: 61696.08 | AP101: 20380 | AR101: 20380 | AU101: 20380 | AV101: 25100 | AX101: 25100 | BA101: 25100 | BB101: 20000 | BD101: 20000 | BF101: 2183 | BG101: 22183 | BH101: 168707 | BI101: 0
A102: 96 | C102: Ülalnimetamata elamu-ja kommunaalmajanduse kulud kokku | D102: 0 | E102: 0 | F102: 0 | G102: 0 | H102: 0 | I102: 0 | J102: 0 | K102: 0 | M102: 0 | P102: 0 | S102: 0 | X102: 0 | AA102: 0 | AF102: 0 | AH102: 0 | AJ102: 0 | AR102: 0 | AU102: 0 | AX102: 0 | BA102: 0 | BD102: 0 | BG102: =BB102+BC102+BE102+BF102 -> 0 | BH102: 0 | BI102: 0
A103: 97 | B103: 07 | C103: Tervishoid | D103: =SUM(D104:D109) -> 14500 | E103: 0 | F103: =SUM(F104:F109) -> 14500 | G103: =SUM(G104:G109) -> 0 | H103: 0 | I103: 14500 | J103: 12417.02 | K103: 19471 | L103: =SUM(L104:L109) -> 8500 | M103: 6924.57 | N103: 14000 | O103: 0 | P103: 14000 | Q103: 0 | S103: 14000 | T103: 8000 | U103: 6248.82 | V103: 0 | X103: =SUM(X104:X109) -> 0 | Y103: =SUM(Y104:Y109) -> 0 | AA103: 0 | AB103: 500 | AC103: 0 | AD103: 0 | AF103: =SUM(AF104:AF109) -> 0 | AG103: =SUM(AG104:AG109) -> 0 | AH103: 0 | AI103: 0 | AJ103: 0 | AK103: 0 | AL103: 0 | AM103: 0 | AN103: 10971 | AO103: 6168.2 | AP103: =SUM(AP104:AP109) -> 0 | AQ103: =SUM(AQ104:AQ109) -> 0 | AR103: =SUM(AR104:AR109) -> 0 | AS103: =SUM(AS104:AS109) -> 0 | AU103: 0 | AV103: 0 | AW103: 0 | AX103: =SUM(AX104:AX109) -> 0 | AY103: =SUM(AY104:AY109) -> 0 | BA103: 0 | BB103: 500 | BC103: 0 | BD103: =SUM(BD104:BD109) -> 500 | BE103: =SUM(BE104:BE109) -> 0 | BF103: 0 | BG103: 500 | BH103: 14500 | BI103: 0
A104: 98 | B104: 07110 | C104: Farmaatsiatooted - apteegid | D104: 0 | E104: 0 | F104: =D104+E104 -> 0 | G104: =Q104+Y104+AG104+AS104+AY104+BE104 -> 0 | H104: =R104+Z104+AI104+AT104+AZ104+BF104 -> 0 | I104: =D104+E104+G104+H104 -> 0 | J104: 0 | K104: 0 | M104: 0 | P104: =N104+O104 -> 0 | S104: =N104+O104+Q104 -> 0 | X104: =V104+W104 -> 0 | AA104: =V104+W104+Y104 -> 0 | AF104: =AD104+AE104 -> 0 | AH104: =AD104+AE104+AG104 -> 0 | AJ104: =AD104+AE104+AG104+AI104 -> 0 | AR104: =AP104+AQ104 -> 0 | AU104: =AP104+AQ104+AS104 -> 0 | AX104: =AV104+AW104 -> 0 | BA104: =AV104+AW104+AY104 -> 0 | BD104: =BB104+BC104 -> 0 | BG104: =BB104+BC104+BE104 -> 0 | BH104: 0 | BI104: 0
A105: 99 | B105: 07200 | C105: Ambulatoorsed teenused (kiirabi) | D105: 0 | E105: 0 | F105: =D105+E105 -> 0 | G105: 0 | H105: 0 | I105: =D105+E105+G105+H105 -> 0 | J105: 0 | K105: 0 | L105: 500 | M105: 172.31 | P105: =N105+O105 -> 0 | S105: =N105+O105+Q105 -> 0 | X105: =V105+W105 -> 0 | AA105: =V105+W105+Y105 -> 0 | AF105: =AD105+AE105 -> 0 | AH105: =AD105+AE105+AG105 -> 0 | AJ105: 0 | AR105: =AP105+AQ105 -> 0 | AU105: =AP105+AQ105+AS105 -> 0 | AX105: =AV105+AW105 -> 0 | BA105: =AV105+AW105+AY105 -> 0 | BD105: =BB105+BC105 -> 0 | BG105: =BB105+BC105+BE105 -> 0 | BH105: 0 | BI105: 0
A106: 100 | B106: 07300 | C106: Haiglateenused | D106: 0 | E106: 0 | F106: 0 | G106: 0 | H106: 0 | I106: 0 | J106: 0 | K106: 0 | M106: 0 | P106: 0 | S106: 0 | X106: 0 | AA106: 0 | AF106: 0 | AH106: 0 | AJ106: 0 | AR106: 0 | AU106: 0 | AX106: 0 | BA106: 0 | BD106: 0 | BG106: 0 | BH106: 0 | BI106: 0
A107: 101 | B107: 07400 | C107: Avalikud tervishoiuteenused | D107: 0 | E107: 0 | F107: 0 | G107: 0 | H107: 0 | I107: 0 | J107: 0 | K107: 0 | M107: 0 | P107: 0 | S107: 0 | X107: 0 | AA107: 0 | AF107: 0 | AH107: 0 | AJ107: 0 | AR107: 0 | AU107: 0 | AX107: 0 | BA107: 0 | BD107: 0 | BG107: 0 | BH107: 0 | BI107: 0
A108: 102 | B108: 07600 | C108: Muu tervishoid, sh. tervishoiu haldamine | D108: 14000 | E108: 0 | F108: 14000 | G108: 0 | H108: 0 | I108: 14000 | J108: 12417.02 | K108: 18971 | L108: 8000 | M108: 6752.26 | N108: =6000+8000 -> 14000 | P108: 14000 | S108: 14000 | T108: 8000 | U108: 6248.82 | X108: 0 | AA108: 0 | AF108: 0 | AH108: 0 | AJ108: 0 | AN108: 10971 | AO108: 6168.2 | AR108: 0 | AU108: 0 | AX108: 0 | BA108: 0 | BD108: 0 | BG108: 0 | BH108: 14000 | BI108: 0
A109: 103 | C109: Ülalnimetamata tervishoiukulud kokku | D109: 500 | E109: 0 | F109: 500 | G109: 0 | H109: 0 | I109: 500 | J109: 0 | K109: 500 | M109: 0 | P109: 0 | S109: 0 | X109: 0 | AA109: 0 | AB109: 500 | AF109: 0 | AH109: 0 | AJ109: 0 | AR109: 0 | AU109: 0 | AX109: 0 | BA109: 0 | BB109: 500 | BD109: 500 | BG109: 500 | BH109: 500 | BI109: 0
A110: 105 | B110: 08 | C110: Vaba aeg, kultuur ja religioon | D110: =SUM(D111:D127) -> 3372509 | E110: 165741 | F110: =SUM(F111:F127) -> 3538250 | G110: =SUM(G111:G127) -> 8287.69 | H110: =SUM(H111:H127) -> -3220 | I110: =SUM(I111:I127) -> 3543317.69 | J110: 2345156.88 | K110: 2077679.4 | L110: =SUM(L111:L127) -> 2325497 | M110: 1504739.34 | N110: 248333 | O110: 11000 | P110: 259333 | Q110: =SUM(Q111:Q127) -> 2163 | R110: =SUM(R111:R127) -> -4700 | S110: =SUM(S111:S127) -> 256796 | T110: 275836 | U110: 275123.54 | V110: 146374 | W110: 590 | X110: =SUM(X111:X127) -> 146964 | Y110: =SUM(Y111:Y127) -> 0 | AA110: =SUM(AA111:AA127) -> 146964 | AB110: 258737.4 | AC110: 247826.1 | AD110: 2143944 | AE110: 22720 | AF110: =SUM(AF111:AF127) -> 2166664 | AG110: =SUM(AG111:AG127) -> -12600 | AH110: =SUM(AH111:AH127) -> 2154064 | AI110: =SUM(AI111:AI127) -> 0 | AJ110: 2154064 | AK110: 614270 | AL110: 599817.37 | AM110: 0 | AN110: 928836 | AO110: 1222389.87 | AP110: =SUM(AP111:AP127) -> 575366 | AQ110: =SUM(AQ111:AQ127) -> 22079 | AR110: =SUM(AR111:AR127) -> 597445 | AS110: =SUM(AS111:AS127) -> 15724.69 | AU110: =SUM(AU111:AU127) -> 613169.69 | AV110: 154140 | AW110: 100000 | AX110: =SUM(AX111:AX127) -> 254140 | AY110: =SUM(AY111:AY127) -> 3000 | BA110: =SUM(BA111:BA127) -> 257140 | BB110: 104352 | BC110: 9352 | BD110: =SUM(BD111:BD127) -> 113704 | BE110: =SUM(BE111:BE127) -> 0 | BF110: =SUM(BF111:BF127) -> 1480 | BG110: =SUM(BG111:BG127) -> 115184 | BH110: 3543317.69 | BI110: 0
A111: 106 | B111: 08102 | C111: Sport | D111: 372448 | E111: 10000 | F111: =D111+E111 -> 382448 | G111: =Q111+Y111+AG111+AS111+AY111+BE111 -> -15600 | H111: =R111+Z111+AI111+AT111+AZ111+BF111 -> 0 | I111: =D111+E111+G111+H111 -> 366848 | J111: 394674.03 | K111: 392499 | L111: 322083 | M111: 276218.68 | P111: =N111+O111 -> 0 | S111: =N111+O111+Q111+R111 -> 0 | V111: 6008 | X111: =V111+W111 -> 6008 | AA111: =V111+W111+Y111 -> 6008 | AB111: 4087 | AC111: 3754.73 | AD111: =171365+46575 -> 217940 | AE111: 10000 | AF111: =AD111+AE111 -> 227940 | AG111: =-10000-7000+1400 -> -15600 | AH111: =AD111+AE111+AG111 -> 212340 | AJ111: =AD111+AE111+AG111+AI111 -> 212340 | AK111: =162223+25000 -> 187223 | AL111: 187913.27 | AN111: 201189 | AO111: 203006.03 | AP111: 148500 | AR111: =AP111+AQ111 -> 148500 | AU111: =AP111+AQ111+AS111 -> 148500 | AX111: =AV111+AW111 -> 0 | BA111: =AV111+AW111+AY111 -> 0 | BD111: =BB111+BC111 -> 0 | BG111: =BB111+BC111+BE111+BF111 -> 0 | BH111: 366848 | BI111: 0
A112: 107 | B112: 08103 | C112: Puhkepargid ja -baasid | D112: 20826 | E112: 0 | F112: =D112+E112 -> 20826 | G112: 1000 | H112: -900 | I112: =D112+E112+G112+H112 -> 20926 | J112: 54897.05 | K112: 52310 | L112: 24596 | M112: 68265.51 | N112: 18526 | P112: =N112+O112 -> 18526 | Q112: 1000 | R112: -900 | S112: 18626 | T112: =19596+15000 -> 34596 | U112: 36943.93 | X112: =V112+W112 -> 0 | AA112: =V112+W112+Y112 -> 0 | AF112: =AD112+AE112 -> 0 | AH112: =AD112+AE112+AG112 -> 0 | AJ112: 0 | AN112: 17714 | AO112: 17953.12 | AP112: 2300 | AR112: =AP112+AQ112 -> 2300 | AU112: =AP112+AQ112+AS112 -> 2300 | AX112: =AV112+AW112 -> 0 | BA112: =AV112+AW112+AY112 -> 0 | BD112: =BB112+BC112 -> 0 | BG112: 0 | BH112: 20926 | BI112: 0
A113: 108 | B113: 08107 | C113: Noorsootöö ja noortekeskused | D113: 400148 | E113: 8000 | F113: 408148 | G113: 2975.83 | H113: 1374 | I113: 412497.83 | J113: 384585.67 | K113: 399642 | L113: 307538 | M113: 279836.08 | N113: 101818 | O113: 8000 | P113: 109818 | Q113: =-3853+2087 -> -1766 | R113: =-1200-800+(360+122)*7 -> 1374 | S113: 109426 | T113: 130337 | U113: 123873.93 | V113: 67478 | X113: 67478 | AA113: 67478 | AB113: 85944 | AC113: 85458.94 | AF113: 0 | AH113: 0 | AJ113: 0 | AK113: 9292 | AL113: 7203.28 | AN113: 174069 | AO113: 168049.52 | AP113: 136570 | AR113: 136570 | AS113: =992.44+3749.39 -> 4741.83 | AU113: 141311.83 | AV113: 25550 | AX113: 25550 | BA113: 25550 | BB113: 68732 | BD113: 68732 | BG113: 68732 | BH113: 412497.83 | BI113: 0
A114: 109 | B114: 08109 | C114: Vaba aja (üritused) tegevused | D114: 1908118 | E114: 19572 | F114: 1927690 | G114: 800 | H114: =R114+Z114+AI114+AT114+AZ114+BF114 -> -1254 | I114: 1927236 | J114: 135050.81 | K114: 147865.4 | L114: 697971 | M114: =95379.21+54175.46+45719.49 -> 195274.16 | N114: =24570+1660 -> 26230 | P114: 26230 | Q114: =-1000+1800 -> 800 | R114: =-1800-1660+726 -> -2734 | S114: =N114+O114+Q114+R114 -> 24296 | T114: 41940 | U114: 37929.79 | V114: 12000 | X114: 12000 | AA114: 12000 | AB114: 19043.4 | AC114: 14799.22 | AD114: =20600+1815000+6788 -> 1842388 | AF114: 1842388 | AH114: 1842388 | AJ114: 1842388 | AK114: =20430+50952 -> 71382 | AL114: 66792.3 | AN114: 15500 | AO114: 15529.5 | AP114: 22000 | AR114: 22000 | AU114: 22000 | AV114: 5000 | AX114: 5000 | BA114: 5000 | BB114: 500 | BC114: 19572 | BD114: 20072 | BF114: 1480 | BG114: =BB114+BC114+BE114+BF114 -> 21552 | BH114: 1927236 | BI114: 0
A115: 110 | B115: 08201 | C115: Raamatukogud | D115: 276256 | E115: 6169 | F115: 282425 | G115: 10768.78 | H115: 0 | I115: 293193.78 | J115: 272837.36 | K115: 284429 | L115: 265912 | M115: 262408.41 | N115: 24030 | P115: 24030 | S115: =N115+O115+Q115+R115 -> 24030 | T115: 23046 | U115: 23608.01 | V115: =17257+20038+18129 -> 55424 | W115: 590 | X115: 56014 | AA115: 56014 | AB115: 54789 | AC115: 53868.48 | AD115: 53616 | AE115: -1500 | AF115: 52116 | AH115: 52116 | AJ115: 52116 | AK115: 54092 | AL115: 53284.03 | AN115: 152502 | AO115: 142076.84 | AP115: 113146 | AQ115: 7079 | AR115: 120225 | AS115: =1640.58+6628.2 -> 8268.78 | AU115: 128493.78 | AV115: 30040 | AX115: 30040 | AY115: 2500 | BA115: 32540 | BD115: 0 | BG115: =BB115+BC115+BE115+BF115 -> 0 | BH115: 293193.78 | BI115: 0
A116: 111 | B116: 08202 | C116: Rahvakultuur | D116: 313894 | E116: 115000 | F116: 428894 | G116: 7514.08 | H116: -2440 | I116: 433968.08 | J116: 592854.57 | K116: 582711 | L116: 532465 | M116: 319974.03 | N116: =37494+20000 -> 57494 | O116: 3000 | P116: 60494 | Q116: =750-750+1000+300 -> 1300 | R116: =1660-4100 -> -2440 | S116: 59354 | T116: 23253 | U116: 30363.82 | X116: 0 | AA116: 0 | AB116: 22780 | AC116: 22778.16 | AD116: 26000 | AE116: 12000 | AF116: 38000 | AG116: 3000 | AH116: 41000 | AJ116: 41000 | AK116: =26261+255000 -> 281261 | AL116: 274232.77 | AN116: 255417 | AO116: 265479.82 | AP116: 141850 | AR116: 141850 | AS116: =153+300+2261.08 -> 2714.08 | AU116: 144564.08 | AV116: 88550 | AW116: 100000 | AX116: 188550 | AY116: =200+300 -> 500 | BA116: 189050 | BD116: 0 | BG116: 0 | BH116: 433968.08 | BI116: 0
A117: 112 | B117: 08203 | C117: Muuseumid | D117: 20235 | E117: 0 | F117: 20235 | G117: 829 | H117: 0 | I117: 21064 | J117: 19155 | K117: 19764 | L117: 19764 | M117: 18646.54 | N117: 20235 | P117: 20235 | Q117: =629+200 -> 829 | S117: 21064 | T117: 19764 | U117: 19155 | X117: 0 | AA117: 0 | AF117: 0 | AH117: 0 | AJ117: 0 | AR117: 0 | AU117: 0 | AX117: 0 | BA117: 0 | BD117: 0 | BG117: 0 | BH117: 21064 | BI117: 0
A118: 113 | B118: 08234 | C118: Teatrid | D118: 0 | E118: 0 | F118: 0 | G118: 0 | H118: 0 | I118: 0 | J118: 0 | K118: 0 | P118: 0 | S118: 0 | X118: 0 | AA118: 0 | AF118: 0 | AH118: 0 | AJ118: 0 | AR118: 0 | AU118: 0 | AX118: 0 | BA118: 0 | BD118: 0 | BG118: 0 | BH118: 0 | BI118: 0
A119: 114 | B119: 08235 | C119: Audiovisuaal, sh kinod | D119: 0 | E119: 0 | F119: 0 | G119: 0 | H119: 0 | I119: 0 | J119: 0 | K119: 0 | M119: 0 | P119: 0 | S119: 0 | X119: 0 | AA119: 0 | AF119: 0 | AH119: 0 | AJ119: 0 | AR119: 0 | AU119: 0 | AX119: 0 | BA119: 0 | BD119: 0 | BG119: 0 | BH119: 0 | BI119: 0
A120: 115 | B120: 08236 | C120: Muusika (kontsertorganisatsioonid) | D120: 0 | E120: 0 | F120: 0 | G120: 0 | H120: 0 | I120: 0 | J120: 0 | K120: 0 | M120: 0 | P120: 0 | S120: 0 | X120: 0 | AA120: 0 | AF120: 0 | AH120: 0 | AJ120: 0 | AR120: 0 | AU120: 0 | AX120: 0 | BA120: 0 | BD120: 0 | BG120: 0 | BH120: 0 | BI120: 0
A121: 116 | B121: 08207 | C121: Muinsuskaitse | D121: 0 | E121: 0 | F121: 0 | G121: 0 | H121: 0 | I121: 0 | J121: 0 | K121: 0 | M121: 8302.8 | P121: 0 | S121: 0 | X121: 0 | AA121: 0 | AF121: 0 | AH121: 0 | AJ121: 0 | AR121: 0 | AU121: 0 | AX121: 0 | BA121: 0 | BD121: 0 | BG121: 0 | BH121: 0 | BI121: 0
A122: 117 | B122: 08210 | C122: Loomaaed | D122: 0 | E122: 0 | F122: 0 | G122: 0 | H122: 0 | I122: 0 | J122: 0 | K122: 0 | P122: 0 | S122: 0 | X122: 0 | AA122: 0 | AF122: 0 | AH122: 0 | AJ122: 0 | AR122: 0 | AU122: 0 | AX122: 0 | BA122: 0 | BD122: 0 | BG122: 0 | BH122: 0 | BI122: 0
A123: 118 | B123: 08211 | C123: Botaanikaaed | D123: 0 | E123: 0 | F123: 0 | G123: 0 | H123: 0 | I123: 0 | J123: 0 | K123: 0 | P123: 0 | S123: 0 | X123: 0 | AA123: 0 | AF123: 0 | AH123: 0 | AJ123: 0 | AR123: 0 | AU123: 0 | AX123: 0 | BA123: 0 | BD123: 0 | BG123: 0 | BH123: =BG123+BA123+AU123+AH123+AA123+S123 -> 0 | BI123: 0
A124: 119 | B124: 08300 | C124: Ringhäälingu- ja kirjastamisteenused | D124: 20120 | E124: 0 | F124: 20120 | G124: 0 | H124: 0 | I124: 20120 | J124: 28425.44 | K124: 29317 | L124: 29017 | M124: 29801.69 | P124: 0 | S124: 0 | T124: 2900 | U124: 3249.06 | X124: 0 | AA124: 0 | AB124: 8907 | AC124: 8844.8 | AE124: 2220 | AF124: 2220 | AH124: 2220 | AJ124: 2220 | AK124: 5220 | AL124: 4786.12 | AN124: 12290 | AO124: 11545.46 | AR124: 0 | AU124: 0 | AX124: 0 | BA124: 0 | BB124: 20120 | BC124: -2220 | BD124: 17900 | BG124: =BB124+BC124+BE124 -> 17900 | BH124: 20120 | BI124: 0
A125: 120 | B125: 08400 | C125: Religiooni- ja muud ühiskonnateenused | D125: 0 | E125: 0 | F125: 0 | G125: 0 | H125: 0 | I125: 0 | J125: 346500 | K125: =T125+AB125+AK125+AN125 -> 46500 | L125: 6500 | M125: 0 | P125: 0 | S125: 0 | X125: 0 | AA125: 0 | AF125: 0 | AH125: 0 | AJ125: 0 | AN125: 46500 | AO125: 346500 | AR125: 0 | AU125: 0 | AX125: 0 | BA125: 0 | BD125: 0 | BG125: 0 | BH125: 0 | BI125: 0
A126: 121 | B126: 08600 | C126: Muu vaba aeg, kultuur, religioon, sh. haldus | D126: 35000 | E126: 7000 | F126: 42000 | G126: 0 | H126: 0 | I126: 42000 | J126: 74837.66 | K126: 77728 | L126: 68587 | M126: 41441.44 | P126: 0 | S126: 0 | X126: 0 | AA126: 0 | AB126: 18273 | AC126: 16982.48 | AD126: 4000 | AF126: 4000 | AH126: 4000 | AJ126: 4000 | AK126: 5800 | AL126: 5605.6 | AN126: 53655 | AO126: 52249.58 | AP126: 11000 | AQ126: 15000 | AR126: 26000 | AU126: 26000 | AV126: 5000 | AX126: 5000 | BA126: 5000 | BB126: 15000 | BC126: =-15000+7000 -> -8000 | BD126: 7000 | BG126: 7000 | BH126: 42000 | BI126: 0
A127: 122 | C127: Ülalnimetamata vaba aja, kultuuri ja religiooni kulud kokku | D127: 5464 | E127: 0 | F127: 5464 | G127: 0 | H127: 0 | I127: 5464 | J127: 41339.29 | K127: 44914 | L127: 51064 | M127: 4570 | P127: 0 | S127: 0 | V127: 5464 | X127: 5464 | AA127: 5464 | AB127: =27254+17660 -> 44914 | AC127: 41339.29 | AF127: 0 | AH127: 0 | AJ127: 0 | AR127: 0 | AU127: 0 | AX127: 0 | BA127: 0 | BD127: 0 | BG127: 0 | BH127: 5464 | BI127: 0
A128: 129 | B128: 09 | C128: Haridus | D128: =SUM(D129:D140) -> 5820713 | E128: 24961.884 | F128: =SUM(F129:F140) -> 5845674.884 | G128: =SUM(G129:G140) -> -21010 | H128: -6900 | I128: 5817764.884 | J128: 5528062.73 | K128: 5620016 | L128: =SUM(L129:L140) -> 5367752 | M128: =SUM(M129:M140) -> 5606698.96 | N128: 283501 | O128: -40310.424 | P128: 243190.576 | Q128: -15293 | R128: -6000 | S128: 221897.576 | T128: 734929 | U128: 686114.85 | V128: 442456 | W128: 20997.9 | X128: =SUM(X129:X140) -> 463453.9 | Y128: =SUM(Y129:Y140) -> 0 | AA128: 463453.9 | AB128: 1211905 | AC128: 1199047.34 | AD128: 569847 | AE128: -50493.01 | AF128: =SUM(AF129:AF140) -> 519353.99 | AG128: =SUM(AG129:AG140) -> 7175 | AH128: 526528.99 | AI128: -900 | AJ128: 525628.99 | AK128: 1161772 | AL128: 1109741.94 | AM128: 0 | AN128: 2511410 | AO128: 2533158.6 | AP128: =SUM(AP129:AP140) -> 942495 | AQ128: =SUM(AQ129:AQ140) -> -198 | AR128: =SUM(AR129:AR140) -> 942297 | AS128: =SUM(AS129:AS140) -> -29229 | AU128: 913068 | AV128: 322743 | AW128: -14450 | AX128: =SUM(AX129:AX140) -> 308293 | AY128: =SUM(AY129:AY140) -> 48 | BA128: 308341 | BB128: 3259671 | BC128: 109415.418 | BD128: =SUM(BD129:BD140) -> 3369086.418 | BE128: =SUM(BE129:BE140) -> 16289 | BF128: 0 | BG128: 3385375.418 | BH128: 5818664.884 | BI128: 900
A129: 130 | B129: 09110 | C129: Alusharidus (lasteaiad) | D129: 1639499 | E129: -1200 | F129: =D129+E129 -> 1638299 | G129: =Q129+Y129+AG129+AS129+AY129+BE129 -> -32354 | H129: =R129+Z129+AI129+AT129+AZ129+BF129 -> -3000 | I129: =D129+E129+G129+H129 -> 1602945 | J129: 1282147.42 | K129: 1316267 | L129: 1282616 | M129: 1226868.91 | N129: 78940 | P129: =N129+O129 -> 78940 | Q129: =-1000-4014 -> -5014 | R129: =-2000-1000 -> -3000 | S129: =N129+O129+Q129+R129 -> 70926 | T129: 218812 | U129: 211280.83 | V129: 95767 | X129: =V129+W129 -> 95767 | AA129: =V129+W129+Y129 -> 95767 | AB129: 206641 | AC129: 200929.79 | AD129: 72753 | AE129: -1200 | AF129: =AD129+AE129 -> 71553 | AH129: =AD129+AE129+AG129 -> 71553 | AJ129: =AD129+AE129+AG129+AI129 -> 71553 | AK129: 288708 | AL129: 282211.65 | AN129: 602106 | AO129: 587725.15 | AP129: =135235+176018 -> 311253 | AR129: =AP129+AQ129 -> 311253 | AS129: =250+221-30000 -> -29529 | AU129: =AP129+AQ129+AS129 -> 281724 | AV129: 67345 | AX129: =AV129+AW129 -> 67345 | AY129: 48 | BA129: =AV129+AW129+AY129 -> 67393 | BB129: 1013441 | BD129: =BB129+BC129 -> 1013441 | BE129: 2141 | BG129: =BB129+BC129+BE129 -> 1015582 | BH129: 1602945 | BI129: 0
A130: 131 | B130: 09210-09221 | C130: Üldhariduskoolid, sh LAK | D130: 3152020 | E130: 21430.984 | F130: =D130+E130 -> 3173450.984 | G130: -5385 | H130: -3000 | I130: =D130+E130+G130+H130 -> 3165065.984 | J130: 3111249.3 | K130: 3160754 | L130: 2983518 | M130: 3530361.47 | N130: =95208+51000 -> 146208 | O130: =(-9948*1.338)-15000 -> -28310.424 | P130: =N130+O130 -> 117897.576 | Q130: =-2700-500-1500-6960 -> -11660 | R130: =-2000-1000 -> -3000 | S130: =N130+O130+Q130+R130 -> 103237.576 | T130: =354868+11000+83000+10000 -> 458868 | U130: =413877.18+9453.96 -> 423331.14 | V130: =161055+7080 -> 168135 | W130: =((2550+7650)*1.338)+710+6960+0.4 -> 21318 | X130: =V130+W130 -> 189453 | AA130: =V130+W130+Y130 -> 189453 | AB130: =569635 -> 569635 | AC130: 561633.37 | AD130: =252492 -> 252492 | AE130: =-35645*1.338 -> -47693.01 | AF130: =AD130+AE130 -> 204798.99 | AG130: =4275+2000 -> 6275 | AH130: =AD130+AE130+AG130 -> 211073.99 | AJ130: 211073.99 | AK130: =598784+18240 -> 617024 | AL130: 578729.91 | AN130: =1480427+34800 -> 1515227 | AO130: =1510580.72+36974.16 -> 1547554.88 | AP130: 282657 | AQ130: -198 | AR130: =AP130+AQ130 -> 282459 | AU130: =AP130+AQ130+AS130 -> 282459 | AV130: 195048 | AW130: =-(10800*1.338)+0.4 -> -14450 | AX130: =AV130+AW130 -> 180598 | BA130: =AV130+AW130+AY130 -> 180598 | BB130: =2049180+58300 -> 2107480 | BC130: =((14568+9948)*1.338)-((7200+3600)*1.338)+10072+((35645)*1.338)+(10800*1.338)+197 -> 90764.418 | BD130: =BB130+BC130 -> 2198244.418 | BG130: =BB130+BC130+BE130 -> 2198244.418 | BH130: 3165065.984 | BI130: 0
A131: 136 | B131: 09222, 09223, 09300 | D131: 0 | E131: 0 | F131: 0 | G131: 0 | H131: 0 | I131: 0 | J131: 0 | K131: 0 | P131: 0 | S131: 0 | X131: 0 | AA131: 0 | AF131: 0 | AH131: 0 | AJ131: 0 | AR131: 0 | AU131: 0 | AX131: 0 | BA131: 0 | BD131: 0 | BG131: 0 | BH131: 0 | BI131: 0
A132: 137 | B132: 09400 | C132: Kolmanda taseme haridus - kõrgkoolid | D132: 0 | E132: 0 | F132: 0 | G132: 0 | H132: 0 | I132: 0 | J132: 0 | K132: 0 | P132: 0 | S132: 0 | X132: 0 | AA132: 0 | AF132: 0 | AH132: 0 | AJ132: 0 | AR132: 0 | AU132: 0 | AX132: 0 | BA132: 0 | BD132: 0 | BG132: 0 | BH132: 0 | BI132: 0
A133: 138 | B133: 09500 | C133: Täiskasvanute täiendkoolitus | D133: 0 | E133: =O133+W133+AE133+AQ133+AW133+BC133 -> 0 | F133: 0 | G133: 0 | H133: 0 | I133: 0 | J133: 0 | K133: 0 | P133: 0 | S133: 0 | X133: 0 | AA133: 0 | AF133: 0 | AH133: 0 | AJ133: 0 | AR133: 0 | AU133: 0 | AX133: 0 | BA133: 0 | BD133: 0 | BG133: 0 | BH133: 0 | BI133: 0
B134: 09510 | C134: Noorte huviharidus ja huvitegevus | D134: 487901 | E134: 7243 | F134: 495144 | G134: 1200 | H134: -900 | I134: 495444 | J134: 423678.54 | K134: 439919 | L134: 393659 | M134: 402067.91 | N134: 12000 | O134: -12000 | P134: 0 | S134: 0 | T134: 14072 | U134: 10525.55 | V134: =47369+19608 -> 66977 | W134: =-5808+3000+5000 -> 2192 | X134: 69169 | AA134: 69169 | AB134: =60624+15330 -> 75954 | AC134: 72695.58 | AD134: 185079 | AE134: -1600 | AF134: 183479 | AG134: 900 | AH134: 184379 | AI134: -900 | AJ134: 183479 | AK134: 196932 | AL134: 187485.38 | AN134: 152961 | AO134: 152972.03 | AP134: 144130 | AR134: 144130 | AS134: 300 | AU134: 144430 | AX134: 0 | BA134: 0 | BB134: 79715 | BC134: 18651 | BD134: 98366 | BG134: 98366 | BH134: 496344 | BI134: 900
A135: 139 | B135: 09600 | C135: Koolitransport | D135: 102615 | E135: 10132 | F135: 112747 | G135: 0 | H135: 0 | I135: 112747 | J135: 92095.3 | K135: 96460 | L135: 99760 | M135: 96809.71 | N135: 15940 | P135: 15940 | S135: 15940 | T135: 16700 | U135: 14233.35 | V135: 42875 | W135: 10132 | X135: 53007 | AA135: 53007 | AB135: 43060 | AC135: 42542.95 | AD135: 17000 | AF135: 17000 | AH135: 17000 | AJ135: 17000 | AK135: 16000 | AL135: 14086.56 | AN135: 20700 | AO135: 21232.44 | AR135: 0 | AU135: 0 | AV135: 24000 | AX135: 24000 | BA135: 24000 | BB135: 2800 | BD135: 2800 | BG135: 2800 | BH135: 112747 | BI135: 0
A136: 140 | B136: 09601 | C136: Koolitoit | D136: 290330 | E136: -12644.1 | F136: 277685.9 | G136: 1381 | H136: 0 | I136: 279066.9 | J136: 271543.37 | K136: 260041 | L136: 259291 | M136: 251658.47 | N136: 30413 | P136: 30413 | Q136: 1381 | S136: 31794 | T136: 26477 | U136: 26743.98 | V136: =48026+20676 -> 68702 | W136: =-(2550+6900)*1.338 -> -12644.1 | X136: 56057.9 | AA136: 56057.9 | AB136: 53362 | AC136: 54399.58 | AD136: 41800 | AF136: 41800 | AH136: 41800 | AJ136: 41800 | AK136: 38385 | AL136: 43155.96 | AN136: 141817 | AO136: 147243.85 | AP136: 115065 | AR136: 115065 | AU136: 115065 | AV136: 34350 | AX136: 34350 | BA136: 34350 | BD136: 0 | BG136: 0 | BH136: 279066.9 | BI136: 0
A137: 141 | B137: 09602 | C137: Öömaja | D137: 94990 | E137: 0 | F137: 94990 | G137: 0 | H137: 0 | I137: 94990 | J137: 71515.74 | K137: 77220 | L137: 77220 | M137: 73457.33 | P137: 0 | S137: 0 | X137: 0 | AA137: 0 | AF137: 0 | AH137: 0 | AJ137: 0 | AK137: 3600 | AL137: 2949.96 | AN137: 73620 | AO137: 68565.78 | AP137: 89390 | AR137: 89390 | AU137: 89390 | AV137: 2000 | AX137: 2000 | BA137: 2000 | BB137: 3600 | BD137: 3600 | BG137: 3600 | BH137: 94990 | BI137: =BH137-I137 -> 0
A138: 142 | B138: 09609 | C138: Muud hariduse abiteenused | D138: =N138+V138+AD138+AM138+AP138+AV138+BB138 -> 0 | E138: 0 | F138: 0 | G138: 0 | H138: 0 | I138: 0 | J138: 7471.58 | K138: 9732 | L138: 9732 | M138: 4486.17 | P138: 0 | S138: 0 | X138: 0 | AA138: 0 | AB138: 9732 | AC138: 7471.58 | AF138: 0 | AH138: 0 | AJ138: 0 | AR138: 0 | AU138: 0 | AX138: 0 | BA138: 0 | BD138: 0 | BG138: 0 | BH138: 0 | BI138: 0
A139: 143 | B139: 09800 | C139: Muu haridus, sh. hariduse haldus | D139: 53358 | E139: 0 | F139: 53358 | G139: 14148 | H139: 0 | I139: 67506 | J139: 44326.21 | K139: 34999 | L139: 30332 | M139: 20988.99 | P139: 0 | S139: 0 | X139: 0 | AA139: 0 | AB139: 28897 | AC139: 35339.22 | AD139: 723 | AF139: 723 | AH139: 723 | AJ139: 723 | AK139: 1123 | AL139: 1122.52 | AN139: 4979 | AO139: 7864.47 | AR139: 0 | AU139: 0 | AX139: 0 | BA139: 0 | BB139: 52635 | BD139: 52635 | BE139: 14148 | BG139: 66783 | BH139: 67506 | BI139: 0
A140: 144 | C140: Ülalnimetamata hariduse kulud kokku | D140: 0 | E140: 0 | F140: 0 | G140: 0 | H140: 0 | I140: 0 | J140: =U140+AC140+AL140+AO140 -> 224035.27 | K140: 224624 | L140: 231624 | P140: 0 | S140: 0 | X140: 0 | AA140: 0 | AB140: 224624 | AC140: 224035.27 | AF140: 0 | AH140: 0 | AJ140: 0 | AR140: 0 | AU140: 0 | AX140: 0 | BA140: 0 | BD140: 0 | BG140: 0 | BH140: 0 | BI140: 0
A141: 145 | B141: 10 | C141: Sotsiaalne kaitse | D141: =SUM(D142:D157) -> 1531312 | E141: -34024 | F141: =SUM(F142:F157) -> 1497288 | G141: =SUM(G142:G157) -> 84129.04 | H141: 0 | I141: 1581417.04 | J141: 1434102.16 | K141: 1554086 | L141: =SUM(L142:L157) -> 1481564 | M141: =SUM(M142:M157) -> 1291795.4 | N141: 75131 | O141: 0 | P141: 75131 | Q141: 0 | R141: 0 | S141: 75131 | T141: 190557 | U141: 181963.61 | V141: 102535 | W141: 6065 | X141: =SUM(X142:X157) -> 108600 | Y141: =SUM(Y142:Y157) -> 0 | AA141: 108600 | AB141: 200577 | AC141: 182728.87 | AD141: 78862 | AE141: 8000 | AF141: =SUM(AF142:AF157) -> 86862 | AG141: =SUM(AG142:AG157) -> 1600 | AH141: 88462 | AI141: 0 | AJ141: 88462 | AK141: 253063 | AL141: 223946.64 | AM141: 0 | AN141: 909889 | AO141: 845463.04 | AP141: =SUM(AP142:AP157) -> 444790 | AQ141: =SUM(AQ142:AQ157) -> 0 | AR141: =SUM(AR142:AR157) -> 444790 | AS141: =SUM(AS142:AS157) -> 18874 | AU141: 463664 | AV141: 137755 | AW141: 0 | AX141: =SUM(AX142:AX157) -> 137755 | AY141: =SUM(AY142:AY157) -> 0 | BA141: 137755 | BB141: 692239 | BC141: -48089 | BD141: =SUM(BD142:BD157) -> 644150 | BE141: =SUM(BE142:BE157) -> 63655.04 | BF141: 0 | BG141: 707805.04 | BH141: 1581417.04 | BI141: 0
A142: 146 | B142: 10110 | C142: Haigete sotsiaalne kaitse | D142: 0 | E142: 0 | F142: =D142+E142 -> 0 | G142: =Q142+Y142+AG142+AS142+AY142+BE142 -> 0 | H142: =R142+Z142+AI142+AT142+AZ142+BF142 -> 0 | I142: =D142+E142+G142+H142 -> 0 | J142: 0 | K142: 0 | M142: 0 | P142: =N142+O142 -> 0 | S142: =N142+O142+Q142 -> 0 | X142: =V142+W142 -> 0 | AA142: =V142+W142+Y142 -> 0 | AF142: =AD142+AE142 -> 0 | AH142: =AD142+AE142+AG142 -> 0 | AJ142: =AD142+AE142+AG142+AI142 -> 0 | AR142: =AP142+AQ142 -> 0 | AU142: =AP142+AQ142+AS142 -> 0 | AX142: =AV142+AW142 -> 0 | BA142: =AV142+AW142+AY142 -> 0 | BD142: =BB142+BC142 -> 0 | BG142: =BB142+BC142+BE142 -> 0 | BH142: 0 | BI142: 0
A143: 147 | B143: 10120 | C143: Puuetega inimeste sotsiaalhoolekande asutused | D143: 312480 | E143: 0 | F143: =D143+E143 -> 312480 | G143: =Q143+Y143+AG143+AS143+AY143+BE143 -> 18874 | H143: 0 | I143: =D143+E143+G143+H143 -> 331354 | J143: 284515.03 | K143: 268747 | L143: 272093 | M143: 223553.82 | P143: =N143+O143 -> 0 | S143: =N143+O143+Q143 -> 0 | X143: =V143+W143 -> 0 | AA143: =V143+W143+Y143 -> 0 | AF143: =AD143+AE143 -> 0 | AH143: =AD143+AE143+AG143 -> 0 | AJ143: 0 | AN143: 268747 | AO143: 284515.03 | AP143: 312480 | AR143: =AP143+AQ143 -> 312480 | AS143: =10524+8350 -> 18874 | AU143: =AP143+AQ143+AS143 -> 331354 | AX143: =AV143+AW143 -> 0 | BA143: =AV143+AW143+AY143 -> 0 | BD143: =BB143+BC143 -> 0 | BG143: =BB143+BC143+BE143 -> 0 | BH143: 331354 | BI143: 0
A144: 148 | B144: 10121 | C144: Muu puuetega inimeste sotsiaalne kaitse | D144: 162070 | E144: 0 | F144: 162070 | G144: 25319.04 | H144: 0 | I144: 187389.04 | J144: 148169.1 | K144: 175260 | L144: 165147 | M144: 130973.6 | N144: 5320 | P144: 5320 | S144: 5320 | T144: 23413 | U144: 21150.21 | V144: 0 | X144: 0 | AA144: 0 | AB144: 12000 | AC144: 11809.2 | AD144: 14700 | AF144: 14700 | AH144: 14700 | AJ144: 14700 | AK144: 29803 | AL144: 27265.21 | AN144: 110044 | AO144: 87944.48 | AP144: 33020 | AR144: 33020 | AU144: 33020 | AV144: 8240 | AX144: 8240 | BA144: 8240 | BB144: 100790 | BD144: 100790 | BE144: =10430+606.04+14283 -> 25319.04 | BG144: =BB144+BC144+BE144+BF144 -> 126109.04 | BH144: 187389.04 | BI144: 0 | BK144: -5993
A145: 149 | B145: 10200 | C145: Eakate sotsiaalhoolekande asutused | D145: 125129 | E145: 0 | F145: 125129 | G145: 0 | H145: 0 | I145: 125129 | J145: 102957.88 | K145: 117734 | L145: 110688 | M145: 108338.7 | N145: 17784 | P145: 17784 | S145: 17784 | T145: 15000 | U145: 14137.02 | V145: 13200 | X145: 13200 | AA145: 13200 | AB145: 12400 | AC145: 9539.99 | AF145: 0 | AH145: 0 | AJ145: 0 | AN145: 90334 | AO145: 79280.87 | AP145: 24610 | AR145: 24610 | AU145: 24610 | AV145: 69535 | AX145: 69535 | BA145: 69535 | BD145: 0 | BG145: =BB145+BC145+BE145+BF145 -> 0 | BH145: 125129 | BI145: 0
A146: 150 | B146: 10201 | C146: Muu eakate sotsiaalne kaitse | D146: 224744 | E146: 2000 | F146: 226744 | G146: 1600 | H146: 0 | I146: 228344 | J146: 243288.39 | K146: 258178 | L146: 267143 | M146: 176039.02 | N146: 22926 | P146: 22926 | S146: 22926 | T146: =23931+55000 -> 78931 | U146: 82755.31 | V146: 78229 | X146: 78229 | AA146: 78229 | AB146: 72988 | AC146: 68128.99 | AD146: 30989 | AE146: 2000 | AF146: 32989 | AG146: 1600 | AH146: 34589 | AJ146: 34589 | AK146: 25952 | AL146: 25608.54 | AN146: 80307 | AO146: 66795.55 | AP146: 45920 | AR146: 45920 | AU146: 45920 | AV146: 27780 | AX146: 27780 | BA146: 27780 | BB146: 18900 | BD146: 18900 | BG146: 18900 | BH146: 228344 | BI146: 0
A147: 151 | B147: 10300 | C147: Toitjakaotanute sotsiaalne kaitse | D147: 0 | E147: 0 | F147: 0 | G147: 0 | H147: 0 | I147: 0 | J147: 0 | K147: 0 | M147: 0 | P147: 0 | S147: 0 | X147: 0 | AA147: 0 | AF147: 0 | AH147: 0 | AJ147: 0 | AR147: 0 | AU147: 0 | AX147: 0 | BA147: 0 | BD147: 0 | BG147: 0 | BH147: 0 | BI147: 0
A148: 152 | B148: 10400 | C148: Laste ja noorte sotsiaalhoolekande asutused | D148: 0 | E148: 0 | F148: 0 | G148: 0 | H148: 0 | I148: 0 | J148: 0 | K148: 0 | M148: 0 | P148: 0 | S148: 0 | X148: 0 | AA148: 0 | AF148: 0 | AH148: 0 | AJ148: 0 | AR148: 0 | AU148: 0 | AX148: 0 | BA148: 0 | BD148: 0 | BG148: 0 | BH148: 0 | BI148: 0
A149: 153 | B149: 10402 | C149: Muu perekondade ja laste sotsiaalne kaitse | D149: 181866 | E149: 0 | F149: 181866 | G149: -5058 | H149: 0 | I149: 176808 | J149: 191106.92 | K149: 219632 | L149: 208497 | M149: 182902.97 | N149: 100 | P149: 100 | S149: 100 | T149: 23268 | U149: 22611.63 | V149: 800 | X149: 800 | AA149: 800 | AB149: 26401 | AC149: 26046.93 | AE149: 6000 | AF149: 6000 | AH149: 6000 | AJ149: 6000 | AK149: 75922 | AL149: 60928.47 | AN149: 94041 | AO149: 81519.89 | AP149: 8800 | AR149: 8800 | AU149: 8800 | AV149: 2600 | AX149: 2600 | BA149: 2600 | BB149: 169566 | BC149: -6000 | BD149: 163566 | BE149: =9225-14283 -> -5058 | BG149: 158508 | BH149: 176808 | BI149: 0
A150: 154 | B150: 10500 | C150: Töötute sotsiaalne kaitse | D150: 0 | E150: 0 | F150: 0 | G150: 0 | H150: 0 | I150: 0 | J150: 0 | K150: 0 | M150: 0 | P150: 0 | S150: 0 | X150: 0 | AA150: 0 | AF150: 0 | AH150: 0 | AJ150: 0 | AR150: 0 | AU150: 0 | AX150: 0 | BA150: 0 | BD150: 0 | BG150: 0 | BH150: 0 | BI150: 0
A151: 155 | B151: 10600 | C151: Eluasemeteenused sotsiaalsetele riskirühmadele | D151: 11000 | E151: 0 | F151: 11000 | G151: 0 | H151: 0 | I151: 11000 | J151: 3954.63 | K151: 3640 | M151: 0 | P151: 0 | S151: 0 | X151: 0 | AA151: 0 | AF151: 0 | AH151: 0 | AJ151: 0 | AN151: 3640 | AO151: 3954.63 | AR151: 0 | AU151: 0 | AV151: 11000 | AX151: 11000 | BA151: 11000 | BD151: 0 | BG151: 0 | BH151: 11000 | BI151: 0
A152: 156 | B152: 10700 | C152: Riskirühmade sotsiaalhoolekande asutused | D152: 669 | E152: 0 | F152: 669 | G152: 0 | H152: 0 | I152: 669 | J152: 0 | K152: 0 | M152: 0 | P152: 0 | S152: 0 | X152: 0 | AA152: 0 | AF152: 0 | AH152: 0 | AJ152: 0 | AR152: 0 | AU152: 0 | AX152: 0 | BA152: 0 | BB152: 669 | BD152: 669 | BG152: 669 | BH152: 669 | BI152: 0
A153: 157 | B153: 10701 | C153: Riiklik toimetulekutoetus | D153: 317524 | E153: -42089 | F153: 275435 | G153: 43394 | H153: 0 | I153: 318829 | J153: 311559.28 | K153: 355793 | L153: 317378 | M153: 349409.2 | P153: 0 | S153: 0 | T153: 28696 | U153: 21809.41 | X153: 0 | AA153: 0 | AB153: 60375 | AC153: 51357.92 | AF153: 0 | AH153: 0 | AJ153: 0 | AK153: 72291 | AL153: 64158.47 | AN153: 194431 | AO153: 174233.48 | AR153: 0 | AU153: 0 | AX153: 0 | BA153: 0 | BB153: 317524 | BC153: =275435-317524 -> -42089 | BD153: 275435 | BE153: 43394 | BG153: 318829 | BH153: 318829 | BI153: 0
A154: 158 | B154: 10702 | C154: Muu sotsiaalsete riskirühmade kaitse | D154: 3300 | E154: 0 | F154: 3300 | G154: 0 | H154: 0 | I154: 3300 | J154: 5155.24 | K154: 5019 | L154: 4310 | M154: 3662.36 | P154: 0 | S154: 0 | X154: 0 | AA154: 0 | AD154: 3300 | AF154: 3300 | AH154: 3300 | AJ154: 3300 | AK154: 5019 | AL154: 5155.24 | AR154: 0 | AU154: 0 | AX154: 0 | BA154: 0 | BD154: 0 | BG154: 0 | BH154: 3300 | BI154: 0
A155: 159 | B155: 10900 | C155: Muu sotsiaalne kaitse, sh. sotsiaalse kaitse haldus | D155: 192530 | E155: 6065 | F155: 198595 | G155: 0 | H155: 0 | I155: 198595 | J155: 143395.69 | K155: 150083 | L155: 136308 | M155: 116915.73 | N155: 29001 | P155: 29001 | S155: 29001 | T155: 21249 | U155: 19500.03 | V155: 10306 | W155: 6065 | X155: 16371 | AA155: 16371 | AB155: 16413 | AC155: 15845.84 | AD155: 29873 | AF155: 29873 | AH155: 29873 | AJ155: 29873 | AK155: 44076 | AL155: 40830.71 | AN155: 68345 | AO155: 67219.11 | AP155: 19960 | AR155: 19960 | AU155: 19960 | AV155: 18600 | AX155: 18600 | BA155: 18600 | BB155: 84790 | BD155: 84790 | BG155: 84790 | BH155: 198595 | BI155: 0
A156: 160 | C156: Ülalnimetamata sotsiaalse kaitse kulud kokku | D156: 0 | E156: 0 | F156: 0 | G156: 0 | H156: 0 | I156: 0 | J156: 0 | K156: =T156+AB156+AK156+AN156+AW156+BH156+BK156+BN156+BQ156+BT156+BW156+BZ156+CC156+CF156+CI156+CL156+CO156+CR156+CU156+CX156+DA156+DD156 -> 0 | M156: 0 | P156: 0 | S156: 0 | X156: 0 | AA156: 0 | AF156: 0 | AH156: 0 | AJ156: 0 | AR156: 0 | AU156: 0 | AX156: 0 | BA156: 0 | BD156: 0 | BG156: 0 | BH156: 0 | BI156: 0
A157: 161 | D157: 0 | E157: 0 | F157: 0 | G157: 0 | H157: 0 | I157: 0 | M157: 0 | P157: 0 | S157: 0 | X157: 0 | AA157: 0 | AF157: 0 | AH157: 0 | AJ157: 0 | AR157: 0 | AU157: 0 | AX157: 0 | BA157: 0 | BD157: 0 | BG157: 0 | BH157: 0 | BI157: 0
BH158: 0 | BI158: 0
BH159: 0 | BI159: 0
BH160: 0 | BI160: 0
BH161: 0 | BI161: 0
BH162: 0 | BI162: 0
B163: =B53 -> 100 | C163: =C53 -> LIKVIIDSETE VARADE MUUTUS (+ suurenemine, - vähenemine) | D163: -433547 | E163: -84786 | F163: =F53 -> -518333 | G163: =G53 -> -212241 | H163: 5569 | I163: -725005 | J163: -79974.93 | K163: -771210 | L163: -795629 | N163: -197031 | O163: 33139 | P163: -163892 | Q163: -1006 | S163: -163034 | T163: -100460 | U163: 87030.95 | V163: -247089 | W163: 24321 | X163: =X53 -> -222768 | Y163: =Y53 -> -20613 | AA163: -243308 | AB163: -388345 | AC163: -152751.37 | AD163: -101077 | AE163: -6722 | AF163: =AF53 -> -107799 | AG163: =AG53 -> -155948 | AH163: -263747 | AI163: 998 | AJ163: -262749 | AK163: -225524 | AL163: -39172 | AM163: 0 | AN163: -56881 | AO163: 24917.49 | AP163: -41921 | AQ163: -5025 | AR163: =AR53 -> -46946 | AS163: =AS53 -> -39140 | AU163: -85926 | AV163: 153571 | AW163: -51255 | AX163: =AX53 -> 102316 | AY163: =AY53 -> -12678 | BA163: 89700 | BB163: 0 | BC163: -79244 | BD163: =BD53 -> -79244 | BE163: =BE53 -> 17144 | BF163: 2413 | BG163: -59687 | BH163: -726002 | BI163: -997
C178: Netovõlakoormus (eurodes) | I178: =5212076+I50 -> 6603577
C179: Netovõlakoormuse % perioodi lõpu seisuga | I179: =I178/I7 -> 0.4900989487
C180: 6-kordne põhitegevuse tulude ja kulude vahe | I180: =6*I35 -> 5544436.478
C181: 60% põhitegevuse tulude kogusummast | I181: =I7*0.6 -> 8084380.125
C182: Netovõlakoormuse ülemmäär (eurodes) | I182: =I181 -> 8084380.125
C183: Netovõlakoormuse individuaalne ülemmäär (%) | I183: =I182/I7 -> 0.6
C185: Tegeliku netovõlakoormuse ja piirmäära vastavuse kontroll | I185: =IF(I179<I183,"OK",IF(I179>I183,"FALSE")) -> OK

Sheet investeeringud (hidden)
C1: Allikas
B2: 2018. EELARVE | C2: Omavahendid | D2: Laen | E2: Toetus, projekt | F2: Projekt kokku
A3: HIIUMAA VALD | B3: =B4+B16+B27+B39+B57+B61 -> 3818664 | C3: =C4+C16+C27+C39+C57+C61 -> 610890 | D3: =D4+D16+D27+D39+D57+D61 -> 2116364 | E3: =E4+E16+E27+E39+E57+E61 -> 1044410 | G3: =G4+G16+G27+G39 -> 3771664
A4: Emmaste osavald | B4: =B5+B9+B10+B11+B12+B13+B15+B14 -> 159000 | C4: =C5+C9+C10+C11+C12+C13+C15 -> 151000 | D4: =D5+D9+D10+D11+D13+D15 -> 0 | E4: =E5+E9+E10+E11+E13+E15+E14 -> 8000 | G4: =C4+D4+E4 -> 159000
A5: Emmaste Põhikooli remont | B5: =SUM(B6:B8) -> 36000 | C5: =SUM(C6:C8) -> 36000
A6: sh koolisöökla remont | B6: =C6 -> 26000 | C6: 26000
A7: sh Emmaste kooli vertikaalplaneering | B7: 10000 | C7: 10000
A8: sh Emmaste kooli bussioote paviljon ja rattahoidla | B8: =C8 -> 0 | C8: =15000-15000 -> 0
A9: Valla munitsipaalkorteri remont | B9: 16000 | C9: 16000
A10: Emmaste Ambulatooriumi küttekatla renoveerimine | B10: 6000 | C10: 6000 | I10: INVESTEERIMISTEGEVUS KOKKU | J10: -2350762
A11: Valla teede parendamine | B11: =C11+E11 -> 0 | C11: =10000-10000 -> 0 | E11: =10000-10000 -> 0 | I11: Põhivara müük (+) | J11: 30000
A12: Valgu seltsimaja renoveerimine | B12: =C12 -> 23000 | C12: =20000+3000 -> 23000 | I12: Põhivara soetus (-) | J12: -3389381
A13: Tärkma biopuhasti | B13: 50000 | C13: 50000 | I13: Põhivara soetuseks saadav sihtfinantseerimine(+) | J13: 1383771
A14: Mänguväljak (katuseraha) | B14: =E14 -> 8000 | E14: 8000
A15: Kaasav eelarve | B15: 20000 | C15: 20000 | I15: Põhivara soetuseks antav sihtfinantseerimine(-) | J15: -69587
A16: Pühalepa osavald | B16: =SUM(B17:B26) -> 329807 | C16: =SUM(C17:C26) -> 286567 | D16: 0 | E16: 43240 | G16: =C16+D16+E16 -> 329807 | I16: Osaluste müük (+) | J16: 0
A17: Palade Põhikooli hakkepuidu katel | B17: 179500 | C17: 179500 | I17: Osaluste soetus (-) | J17: -210000
A18: Palade võimla avatäited ja turvauks | B18: 7080 | C18: 7080 | I18: Muude aktsiate ja osade müük (+) | J18: 0
A19: Suuremõisa majadevaheline tänav | B19: 38240 | E19: 38240 | I19: Muude aktsiate ja osade soetus (-) | J19: 0
A20: Kergliiklustee Kärdla-Paluküla | B20: 47100 | C20: 47100 | I20: Tagasilaekuvad laenud (+) | J20: 0
A21: Palade Loodushariduskeskus (Soera maa-ala planeering) | B21: =C21 -> 13800 | C21: =19608-5808 -> 13800 | I21: Antavad laenud (-) | J21: 0
A22: Tänavavalgustus (Kullipesa) | B22: 9715 | C22: 9715
A23: Bussi kapitaliliisingu sissemaks | B23: =C23 -> 10132 | C23: 10132
A24: Palade Põhikooli hoone remont, motoring | B24: =C24 -> 6960 | C24: 6960
A25: Naistlaiu sadama projekteerimistööd | B25: 12280 | C25: =B25 -> 12280
A26: Mänguväljak (katuseraha) | B26: =E26 -> 5000 | E26: 5000
A27: Käina osavald | B27: =SUM(B28:B38) -> 2213839 | C27: =C28+C32+C33+C34+C37+C38 -> 137305 | D27: =D28+D32+D33+D34+D37+D38 -> 1216364 | E27: =E28+E32+E33+E34+E37+E38+E35+E36 -> 813170 | G27: =C27+D27+E27 -> 2166839 | I27: Finantstkulud (-) | J27: -95565
A28: Elamuskeskuse Tuuletorn2018 | B28: 1815000 | D28: =D30 -> 1216364 | E28: =E30 -> 598636 | F28: =F30+F31+F29 -> 2857152 | G28: =C28+D28+E28 -> 1815000
A29: 2017 | C29: 105404 | F29: =D29+E29+C29 -> 105404
A30: 2018 | D30: =1815000-598636 -> 1216364 | E30: =101150+497486 -> 598636 | F30: =D30+E30+C30 -> 1815000
A31: 2019 | D31: =936748-406908 -> 529840 | E31: =50000+356908 -> 406908 | F31: =D31+E31 -> 936748
A32: Käina Spordikeskus | B32: 46575 | C32: =46575-7000 -> 39575 | G32: =C32+D32+E32 -> 39575
A33: Vallateed | B33: =E33 -> 83764 | E33: 83764 | G33: 83764
A34: Orjaku kalasadama väikepaatide bassein | B34: 175000 | C34: =B34-E34 -> 51230 | E34: 123770 | G34: 175000
A35: Kultuurikeskuse projekteerimine | B35: =C35+D35+E35 -> 15000 | C35: 15000
A36: Orjaku projekt | B36: =C36+D36+E36 -> 32000 | C36: 25000 | E36: 7000
A37: Arendusprojektid (Lussuliiva, Käina tööstusala, Käina keskosa) | B37: =C37+D37+E37 -> 40000 | C37: =20000+10000+10000 -> 40000 | G37: 40000
A38: Maa munitsipaliseerimine, soetamine | B38: =C38+D38+E38 -> 6500 | C38: 6500 | G38: 6500
A39: Kärdla osavald | B39: =SUM(B40:B56) -> 858432 | C39: =SUM(C40+C41+C45+C46+C47+C48+C51+C52+C55+C56) -> 36018 | D39: =D40+D41+D45+D46+D47+D48+D51+D52+D55+D56 -> 822414 | E39: =E40+E41+E45+E46+E47+E48+E51+E52+E55+E56 -> 0 | G39: =C39+D39+E39+C57+D57+E57+C61+D61+E61 -> 1128298
A40: Kergliiklustee Kärdla-Paluküla kaasfinatseering | B40: 11900 | D40: 11900
A41: Pargi 3 arendus | B41: 68400 | D41: 68400 | F41: =SUM(F42:F44) -> 938000
A42: 2018 | D42: 68400 | F42: =SUM(D42:E42) -> 68400
A43: 2019 | D43: 131600 | E43: 434820 | F43: =SUM(D43:E43) -> 566420
A44: 2020 | D44: 100000 | E44: 203180 | F44: 303180
A45: Turu tänav | B45: 45000 | D45: 45000
A46: Hausma parkla | B46: 6000 | D46: 6000
A47: Optiline kaabel+tänavavalgustuse projekteerimised | B47: 43700 | D47: 43700
A48: Keskväljak | B48: 100000 | D48: 100000 | F48: =SUM(F49:F50) -> 1878000
A49: 2018 | D49: 100000 | F49: =D49 -> 100000
A50: 2019 | D50: 270000 | E50: 1508000 | F50: =D50+E50 -> 1778000
A51: Mängude maja soojustuse kaasfinantseering | B51: 25000 | D51: 25000
A52: Kalda maja renoveerimine (lasteaed) | B52: 176018 | C52: =B52-D52 -> 36018 | D52: 140000 | F52: =SUM(F53:F54) -> 552191
A53: 2018 | C53: 36018 | D53: 140000 | F53: =C53+D53+E53 -> 176018
A54: 2019 | E54: =100000+276173 -> 376173 | F54: =C54+D54+E54 -> 376173
A55: Kärdla veevärk AS aktsiate soetus | B55: 210000 | D55: 210000
A56: Vallateed | B56: 172414 | D56: 172414
A57: Kõrgessaare osavald | B57: =B58+B59+B60 -> 257586 | C57: 0 | D57: 77586 | E57: =E58+E59+E60 -> 180000
A58: Vallateed | B58: =E58+D58+C58 -> 77586 | D58: 77586
A59: Kõrgessaare tervisemaja katuse renoveerimine | B59: =E59+D59+C59 -> 100000 | E59: 100000
A60: Katlamaja parendus | B60: 80000 | E60: 80000
A61: Hiiumaa Vallavalitsus | B61: =SUM(B25:B70) -> 12280 | C61: =SUM(C25:C70) -> 12280 | D61: =SUM(D25:D70) -> 0 | E61: =SUM(E25:E70) -> 0

Sheet Investeeringud II
C1: Allikas
B2: 2018. EELARVE | C2: Omavahendid | D2: Laen | E2: Toetus, projekt | F2: Projekt kokku
A3: HIIUMAA VALD | B3: =B4+B16+B27+B39+B57 -> 3852750 | C3: =C4+C16+C27+C39+C57 -> 783980 | D3: =D4+D16+D27+D39+D57 -> 2146364 | E3: =E4+E16+E27+E39+E57 -> 922406 | G3: =G4+G16+G27+G39 -> 
A4: Emmaste osavald | B4: =B5+B9+B10+B11+B12+B13+B15+B14 -> 159000 | C4: =C5+C9+C10+C11+C12+C13+C15 -> 151000 | D4: =D5+D9+D10+D11+D13+D15 -> 0 | E4: =E5+E9+E10+E11+E13+E15+E14 -> 8000 | G4: =C4+D4+E4 -> 159000
A5: Emmaste Põhikooli remont | B5: =SUM(B6:B8) -> 36000 | C5: =SUM(C6:C8) -> 36000
A6: sh koolisöökla remont | B6: =C6 -> 26000 | C6: 26000
A7: sh Emmaste kooli vertikaalplaneering | B7: 10000 | C7: 10000
A8: sh Emmaste kooli bussioote paviljon ja rattahoidla | B8: =C8 -> 0 | C8: =15000-15000 -> 0
A9: Valla munitsipaalkorteri remont | B9: 16000 | C9: 16000
A10: Emmaste Ambulatooriumi küttekatla renoveerimine | B10: 6000 | C10: 6000 | I10: INVESTEERIMISTEGEVUS KOKKU | J10: -2350762
A11: Valla teede parendamine | B11: =C11+E11 -> 0 | C11: =10000-10000 -> 0 | E11: =10000-10000 -> 0 | I11: Põhivara müük (+) | J11: 30000
A12: Valgu seltsimaja renoveerimine | B12: =C12 -> 23000 | C12: =20000+3000 -> 23000 | I12: Põhivara soetus (-) | J12: -3389381
A13: Tärkma biopuhasti | B13: 50000 | C13: 50000 | I13: Põhivara soetuseks saadav sihtfinantseerimine(+) | J13: 1383771
A14: Mänguväljak (katuseraha) | B14: =E14 -> 8000 | E14: 8000
A15: Kaasav eelarve | B15: 20000 | C15: 20000 | I15: Põhivara soetuseks antav sihtfinantseerimine(-) | J15: -69587
A16: Pühalepa osavald | B16: =SUM(B17:B26) -> 335892 | C16: =SUM(C17:C26) -> 330892 | D16: 0 | E16: 5000 | G16: =C16+D16+E16 -> 335892 | I16: Osaluste müük (+) | J16: 0
A17: Palade Põhikooli hakkepuidu katel | B17: 179500 | C17: 179500 | I17: Osaluste soetus (-) | J17: -210000
A18: Palade võimla avatäited ja turvauks | B18: 7080 | C18: 7080 | I18: Muude aktsiate ja osade müük (+) | J18: 0
A19: Suuremõisa majadevaheline tänav | B19: 38240 | C19: 38240 | I19: Muude aktsiate ja osade soetus (-) | J19: 0
A20: Kergliiklustee Kärdla-Paluküla | B20: 47100 | C20: 47100 | I20: Tagasilaekuvad laenud (+) | J20: 0
A21: Palade Loodushariduskeskus (Soera maa-ala planeering) | B21: =C21 -> 13800 | C21: =19608-5808 -> 13800 | I21: Antavad laenud (-) | J21: 0
A22: Tänavavalgustus (Kullipesa) | B22: =C22 -> 15800 | C22: =9715+6085 -> 15800
A23: Bussi kapitaliliisingu sissemaks | B23: =C23 -> 10132 | C23: 10132
A24: Palade Põhikooli hoone remont, motoring | B24: =C24 -> 6960 | C24: 6960
A25: Naistlaiu sadama projekteerimistööd | B25: 12280 | C25: =B25 -> 12280
A26: Mänguväljak (katuseraha) | B26: =E26 -> 5000 | E26: 5000
A27: Käina osavald | B27: =SUM(B28:B38) -> 2236840 | C27: =C28+C32+C33+C34+C37+C38+C35+C36 -> 296070 | D27: =D28+D32+D33+D34+D37+D38 -> 1211364 | E27: =E28+E32+E33+E34+E37+E38+E35+E36 -> 729406 | G27: =C27+D27+E27 -> 2236840 | I27: Finantstkulud (-) | J27: -95565
A28: Elamuskeskuse Tuuletorn2018 | B28: 1815000 | C28: 5000 | D28: =D30-5000 -> 1211364 | E28: =E30 -> 598636 | F28: =F30+F31+F29 -> 2857152 | G28: =C28+D28+E28 -> 1815000
A29: 2017 | C29: 105404 | F29: =D29+E29+C29 -> 105404
A30: 2018 | D30: =1815000-598636 -> 1216364 | E30: =101150+497486 -> 598636 | F30: =D30+E30+C30 -> 1815000
A31: 2019 | D31: =936748-406908 -> 529840 | E31: =50000+356908 -> 406908 | F31: =D31+E31 -> 936748
A32: Käina Spordikeskus | B32: =C32 -> 39576 | C32: =46575-7000+1 -> 39576 | G32: =C32+D32+E32 -> 39576
A33: Vallateed | B33: =E33+C33 -> 113764 | C33: =30000+83764 -> 113764 | G33: 113764
A34: Orjaku kalasadama väikepaatide bassein | B34: =C34+D34+E34 -> 175000 | C34: =51230 -> 51230 | E34: 123770 | G34: 175000
A35: Kultuurikeskuse projekteerimine | B35: =C35+D35+E35 -> 15000 | C35: 15000
A36: Orjaku projekt | B36: =C36+D36+E36 -> 32000 | C36: 25000 | E36: 7000
A37: Arendusprojektid (Lussuliiva, Käina tööstusala, Käina keskosa) | B37: =C37+D37+E37 -> 40000 | C37: =20000+10000+10000 -> 40000 | G37: 40000
A38: Maa munitsipaliseerimine, soetamine | B38: =C38+D38+E38 -> 6500 | C38: 6500 | G38: 6500
A39: Kärdla osavald | B39: =B40+B41+B45+B46+B47+B48+B51+B52+B55+B56 -> 828432 | C39: =SUM(C40+C41+C45+C46+C47+C48+C51+C52+C55+C56) -> 6018 | D39: =D40+D41+D45+D46+D47+D48+D51+D52+D55+D56 -> 822414 | E39: =E40+E41+E45+E46+E47+E48+E51+E52+E55+E56 -> 0 | G39: =C39+D39+E39+C57+D57+E57+#REF!+#REF!+#REF! -> 
A40: Kergliiklustee Kärdla-Paluküla kaasfinatseering | B40: 11900 | D40: 11900
A41: Pargi 3 arendus | B41: 68400 | D41: 68400 | F41: =SUM(F42:F44) -> 938000
A42: 2018 | D42: 68400 | F42: =SUM(D42:E42) -> 68400
A43: 2019 | D43: 131600 | E43: 434820 | F43: =SUM(D43:E43) -> 566420
A44: 2020 | D44: 100000 | E44: 203180 | F44: 303180
A45: Turu tänav | B45: 45000 | D45: 45000
A46: Hausma parkla | B46: 6000 | D46: 6000
A47: Optiline kaabel+tänavavalgustuse projekteerimised | B47: 43700 | D47: 43700
A48: Keskväljak | B48: 100000 | D48: 100000 | F48: =SUM(F49:F50) -> 1878000
A49: 2018 | D49: 100000 | F49: =D49 -> 100000
A50: 2019 | D50: 270000 | E50: 1508000 | F50: =D50+E50 -> 1778000
A51: Mängude maja soojustuse kaasfinantseering | B51: 25000 | D51: 25000
A52: Kalda maja renoveerimine (lasteaed) | B52: =C52+D52+E52 -> 146018 | C52: =36018-30000 -> 6018 | D52: 140000 | F52: =SUM(F53:F54) -> 552191
A53: 2018 | C53: 36018 | D53: 140000 | F53: =C53+D53+E53 -> 176018
A54: 2019 | E54: =100000+276173 -> 376173 | F54: =C54+D54+E54 -> 376173
A55: Kärdla veevärk AS aktsiate soetus | B55: 210000 | D55: 210000
A56: Vallateed | B56: 172414 | D56: 172414
A57: Kõrgessaare osavald | B57: =B58+B59+B60 -> 292586 | C57: =C58+C59+C60 -> 0 | D57: 112586 | E57: =E58+E59+E60 -> 180000
A58: Vallateed | B58: =E58+D58+C58 -> 112586 | D58: =77586+35000 -> 112586
A59: Kõrgessaare tervisemaja katuse renoveerimine | B59: =E59+D59+C59 -> 100000 | E59: 100000
A60: Katlamaja parendus | B60: 80000 | E60: 80000

Sheet Põhitegevuse kulud
E1: Kärdla, Kõrgessaare | H1: Emmaste | J1: Pühalepa | L1: Käina | N1: Hiiu üldvalitsemine
C2: 2017 Hiiumaa koondeelarve | D2: 2018 Hiiumaa koondeelarve | E2: 2017 Hiiu vald | F2: 2018 Kärdla | G2: 2018 Kõrgessaare | H2: 2017 Emmaste | I2: 2018 Emmaste | J2: 2017 Pühalepa | K2: 2018 Pühalepa | L2: 2017 Käina | M2: 2018 Käina | N2: 2018 Hiiumaa üldvalitsemine
B3: Põhitegevuse kulud | C3: =C9+C12+C24+C26+C29+C32+C36+C41+C43+C47+C51+C54+C57+C61+C65+C69+C72+C76+C81+C83+C86+C89+C93+C97+C102+C104+C108+C110+C112+C117+C119+C124+C128+C132+C136+C139+C141+C147+C151+C156+C165+C168+C170+C175+C180+C183+C190+C195+C198+C202+C205+C209+C213+C216+C218+C222+C224 -> 11204378.97 | D3: =F3+G3+N3+I3+K3+M3 -> 12549893.55 | E3: =E9+E12+E24+E26+E29+E32+E36+E41+E43+E47+E51+E54+E57+E61+E65+E69+E72+E76+E81+E83+E86+E89+E93+E97+E102+E104+E108+E110+E112+E117+E119+E124+E128+E132+E136+E139+E141+E147+E151+E156+E165+E168+E170+E175+E180+E183+E187+E190+E195+E198+E202+E205+E209+E213+E216+E218+E222+E224+E145 -> 5666439.969 | F3: =F9+F12+F24+F26+F29+F32+F36+F41+F43+F47+F51+F54+F57+F61+F65+F69+F72+F76+F81+F83+F86+F89+F93+F97+F102+F104+F108+F110+F112+F117+F119+F124+F128+F132+F136+F139+F141+F147+F151+F156+F165+F168+F170+F175+F180+F183+F190+F195+F198+F202+F205+F209+F213+F216+F218+F222+F224 -> 2301374.8 | G3: =G9+G12+G24+G26+G29+G32+G36+G41+G43+G47+G51+G54+G57+G61+G65+G69+G72+G76+G81+G83+G86+G89+G93+G97+G102+G104+G108+G110+G112+G117+G119+G124+G128+G132+G136+G139+G141+G147+G151+G156+G165+G168+G170+G175+G180+G183+G190+G195+G198+G202+G205+G209+G213+G216+G218+G222+G224 -> 913619 | H3: =H9+H12+H24+H26+H29+H32+H36+H41+H43+H47+H51+H54+H57+H61+H65+H69+H72+H76+H81+H83+H86+H89+H93+H97+H102+H104+H108+H110+H112+H117+H119+H124+H128+H132+H136+H139+H141+H147+H151+H156+H165+H168+H170+H175+H180+H183+H187+H190+H195+H198+H202+H205+H209+H213+H216+H218+H222+H224 -> 1462071.966 | I3: =I9+I12+I24+I26+I29+I32+I36+I41+I43+I47+I51+I54+I57+I61+I65+I69+I72+I76+I81+I83+I86+I89+I93+I97+I102+I104+I108+I110+I112+I117+I119+I124+I128+I132+I136+I139+I141+I147+I151+I156+I165+I168+I170+I175+I180+I183+I187+I190+I195+I198+I202+I205+I209+I213+I216+I218+I222+I224 -> 811901.36 | J3: =J9+J12+J24+J26+J29+J32+J36+J41+J43+J47+J51+J54+J57+J61+J65+J69+J72+J76+J81+J83+J86+J89+J93+J97+J102+J104+J108+J110+J112+J117+J119+J124+J128+J132+J136+J139+J141+J147+J151+J156+J165+J168+J170+J175+J180+J183+J187+J190+J195+J198+J202+J205+J209+J213+J216+J218+J222+J224 -> 1899975.26 | K3: =K9+K12+K24+K26+K29+K32+K36+K41+K43+K47+K51+K54+K57+K61+K65+K69+K72+K76+K81+K83+K86+K89+K93+K97+K102+K104+K108+K110+K112+K117+K119+K124+K128+K132+K136+K139+K141+K147+K151+K156+K165+K168+K170+K175+K180+K183+K187+K190+K195+K198+K202+K205+K209+K213+K216+K218+K222+K224 -> 931772.5 | L3: =L9+L12+L24+L26+L29+L32+L36+L41+L43+L47+L51+L54+L57+L61+L65+L69+L72+L76+L81+L83+L86+L89+L93+L97+L102+L104+L108+L110+L112+L117+L119+L124+L128+L132+L136+L139+L141+L147+L151+L156+L165+L168+L170+L175+L180+L183+L187+L190+L195+L198+L202+L205+L209+L213+L216+L218+L222+L224 -> 2193228.4 | M3: =M9+M12+M24+M26+M29+M32+M36+M41+M43+M47+M51+M54+M57+M61+M65+M69+M72+M76+M81+M83+M86+M89+M93+M97+M102+M104+M108+M110+M112+M117+M119+M124+M128+M132+M136+M139+M141+M147+M151+M156+M165+M168+M170+M175+M180+M183+M190+M195+M198+M202+M205+M209+M213+M216+M218+M222+M224 -> 1291955 | N3: =N9+N12+N24+N26+N29+N32+N36+N41+N43+N47+N51+N54+N57+N61+N65+N69+N72+N76+N81+N83+N86+N89+N93+N97+N102+N104+N108+N110+N112+N117+N119+N124+N128+N132+N136+N139+N141+N147+N151+N156+N165+N168+N170+N175+N180+N183+N187+N190+N195+N198+N202+N205+N209+N213+N216+N218+N222+N224 -> 6299270.89
A4: 41 | B4: Sotsiaaltoetused | C4: =C58+C109+C120+C125+C152+C171+C176+C184+C192+C199+C206+C210+C217+C219+C225 -> 594189.66 | D4: 1155621 | E4: 304167.17 | F4: 0 | G4: 0 | H4: 58746.23 | I4: 0 | J4: 82910.64 | K4: 0 | L4: 148365.62 | M4: 0 | N4: 1155621
A5: 45 | B5: Muud toetused | C5: =C13+C33+C37+C62+C66+C73+C94+C98+C105+C113+C121+C126+C133+C129+C146+C148+C153+C172+C177+C226 -> 688668.24 | D5: 783076.09 | E5: 467299.42 | F5: 171480 | G5: 5000 | H5: 73856.18 | I5: 24310 | J5: 61127.91 | K5: 30416 | L5: 86384.73 | M5: 30090 | N5: 521780.09
A6: 50 | B6: Tööjõukulud | C6: =C10+C14+C27+C30+C34+C38+C44+C48+C52+C55+C59+C63+C67+C70+C74+C77+C84+C90+C95+C106+C114+C122+C130+C134+C137+C142+C149+C154+C158+C166+C173+C178+C181+C185+C188+C193+C196+C200+C203+C207+C211+C214+C220+C227 -> 6216702.306 | D6: 6512932.66 | E6: 2985037.69 | F6: 1010634 | G6: 302363 | H6: 797812.316 | I6: 348160.16 | J6: 1161521.25 | K6: 498955.5 | L6: 1272331.05 | M6: 542005 | N6: 3810815
A7: 55 | B7: Majandamiskulud | C7: =C11+C21+C28+C31+C35+C39+C42+C45+C49+C53+C56+C60+C64+C68+C71+C75+C78+C82+C85+C87+C91+C96+C100+C103+C107+C111+C115+C118+C123+C127+C131+C135+C138+C140+C143+C150+C155+C164+C167+C169+C174+C179+C182+C186+C189+C194+C197+C201+C204+C208+C212+C215+C221+C223+C228 -> 3715642.789 | D7: 3994105.8 | E7: 1909869.999 | F7: 1119260.8 | G7: 606186 | H7: 526133.6 | I7: 433831.2 | J7: 594167.06 | K7: 402201 | L7: 685472.13 | M7: 717560 | N7: 715066.8
A8: 60 | B8: Riigilõivud | C8: =C23+C25+C46+C50+C80+C88+C101+C116 -> 6464.6 | D8: =D23+D25+D46+D50+D80+D88+D101+D116 -> 87870 | E8: =E23+E25+E46+E50+E80+E88+E101+E116+E92 -> 65.69 | F8: =F23+F25+F46+F50+F80+F88+F101+F116 -> 0 | G8: 70 | H8: 5523.64 | I8: 5600 | J8: 248.4 | K8: 200 | L8: 674.87 | M8: 2300 | N8: 79700
A9: 01111 | B9: Valla- ja linnavolikogu | C9: =E9+H9+J9+L9 -> 118820.56 | D9: =F9+G9+N9+I9+K9+M9 -> 81580 | E9: =SUM(E10:E11) -> 51497.56 | F9: =SUM(F10:F11) -> 0 | G9: 0 | H9: 12407.66 | I9: 0 | J9: 26011.6 | K9: 0 | L9: 28903.74 | M9: 0 | N9: =SUM(N10:N11) -> 81580
A10: 50 | B10: Tööjõukulud | C10: 99765.84 | D10: 71580 | E10: 45298.91 | H10: 11328.45 | I10: 0 | J10: 14905.03 | L10: 28233.45 | N10: 71580
A11: 55 | B11: Majandamiskulud | C11: 19054.72 | D11: 10000 | E11: 6198.65 | H11: =1086.21-7 -> 1079.21 | I11: 0 | J11: =11076.57+30 -> 11106.57 | K11: 0 | L11: 670.29 | N11: 10000
A12: 01112 | B12: Valla- ja linnavalitsus | C12: 915426.34 | D12: 686962 | E12: =E13+E14+E21+E23 -> 368693.78 | F12: =F13+F14+F21+F23 -> 34810 | G12: =G13+G14+G21+G23 -> 50446 | H12: 134346.1 | I12: 72130.2 | J12: 162271.61 | K12: 71813 | L12: 250114.85 | M12: 132322 | N12: =N13+N14+N21+N23 -> 325440.8
A13: 45 | B13: Muud toetused | C13: 1068 | D13: 0 | L13: 1068 | M13: 0
A14: 50 | B14: Tööjõukulud | C14: 665582.23 | D14: 456178 | E14: 254297.93 | F14: 32110 | G14: 38530 | H14: 84573.95 | I14: 44956 | J14: 135659.01 | K14: 41477 | L14: 191051.34 | M14: =17338+M15+M16+M17+M18+M19+M20 -> 97622 | N14: =186689+14794 -> 201483
A15: 5001 | B15: Avaliku teenistuse ametnike töötasu Vallasekretär üleandmiseks | C15: 0 | D15: 13680 | M15: 13680
A16: 5001 | B16: Avaliku teenistuse ametnike töötasu abivallavanem arenguosakonda | C16: 0 | D16: 17880 | M16: 17880
A17: 5001 | B17: Avaliku teenistuse ametnike töötasu Finantsjuht-pearaamatupidaja üleandmiseks | C17: 0 | D17: 14160 | M17: 14160
A18: 5002 | B18: Töötajate töötasu raamatupidaja kuni 31.03.18+ aastaaruande koostamine | C18: 0 | D18: 4300 | M18: 4300
A19: 5002 | B19: Töötajate töötasu vanemraamatupidaja keskusesse | C19: 0 | D19: 9984 | M19: 9984
A20: 506 | B20: keskusesse üleviidavate maksud | C20: 0 | D20: 20280 | M20: 20280
A21: 55 | B21: Majandamiskulud | C21: 247950.24 | D21: 230484 | E21: 114395.85 | F21: 2700 | G21: 11916 | H21: 49712.15 | I21: =30174.2-3000 -> 27174.2 | J21: =26551.6-30 -> 26521.6 | K21: =27036+3300 -> 30336 | L21: =56073.64+1247 -> 57320.64 | M21: =25600+8000+1300-500 -> 34400 | N21: =108057.8+15400+500 -> 123957.8
A22: 60 | B22: Muud tegevuskulud | C22: 0 | D22: 0
A23: 60 | B23: Riigilõivud | C23: 825.87 | D23: 300 | H23: 60 | J23: =61+30 -> 91 | L23: 674.87 | M23: 300
A24: 01114 | B24: Kohaliku omavalitsuse üksuse reservfond | C24: 0 | D24: 79700 | E24: =E25 -> 0 | F24: =F25 -> 0 | G24: =G25 -> 0 | H24: 0 | I24: 0 | J24: 0 | K24: 0 | L24: 0 | M24: 0 | N24: =N25 -> 79700
A25: 60 | B25: Muud tegevuskulud | C25: 0 | D25: 79700 | E25: 0 | I25: 0 | K25: 0 | M25: 0 | N25: 79700
A26: 01120 | B26: Rahandus- ja fiskaalpoliitika | C26: 36337.42 | D26: 195563 | E26: =E27+E28 -> 0 | F26: =F27+F28 -> 0 | G26: =G27+G28 -> 0 | H26: 36337.42 | I26: 0 | J26: 0 | K26: 0 | L26: 0 | M26: 0 | N26: =N27+N28 -> 195563
A27: 50 | B27: Tööjõukulud | C27: 29288.66 | D27: 171342 | H27: 29288.66 | I27: 0 | N27: =171342 -> 171342
A28: 55 | B28: Majandamiskulud | C28: 7048.76 | D28: 24221 | H28: 7048.76 | I28: 0 | N28: =23438+783 -> 24221
A29: 01330 | B29: Muud üldised teenused | C29: 84665.51 | D29: 4400 | E29: =E31 -> 0 | F29: =F31 -> 0 | G29: =G31 -> 0 | H29: 0 | I29: 0 | J29: =J31+J30 -> 84665.51 | K29: 4400 | L29: 0 | M29: 0 | N29: =N31 -> 0
A30: 50 | B30: Tööjõukulud | C30: 48296.95 | D30: 0 | J30: 48296.95 | K30: 0
A31: 55 | B31: Majandamiskulud | C31: 36368.56 | D31: 4400 | J31: 36368.56 | K31: 4400
A32: 01600 | B32: Muud üldised valitsussektori teenused | C32: 186395.32 | D32: 56380 | E32: =E33+E34+E35 -> 140401.93 | F32: =F33+F34+F35 -> 0 | G32: 0 | H32: 11201.5 | I32: 0 | J32: 14335 | K32: 0 | L32: 20456.89 | M32: 0 | N32: =N33+N34+N35 -> 56380
A33: 45 | B33: Muud toetused | C33: 148529.17 | D33: 56380 | E33: 105566.67 | H33: =11201.5 -> 11201.5 | I33: 0 | J33: 14335 | K33: 0 | L33: 17426 | M33: 0 | N33: 56380
A34: 50 | B34: Tööjõukulud | C34: 27714.63 | D34: 0 | E34: 24836.6 | L34: 2878.03
A35: 55 | B35: Majandamiskulud | C35: 10151.52 | D35: 0 | E35: 9998.66 | L35: 152.86
A36: 01800 | B36: Üldiseloomuga ülekanded valitsussektoris | C36: 7624.46 | D36: 144500 | E36: =E37+E39 -> 0 | F36: =F37+F39 -> 0 | G36: =G37+G39 -> 0 | H36: 0 | I36: 0 | J36: =J37+J39+J38 -> 7624.46 | K36: 4500 | L36: 0 | M36: 0 | N36: =N37+N39 -> 140000
A37: 45 | B37: Muud toetused | C37: 0 | D37: 40000 | N37: 40000
A38: 50 | B38: Tööjõukulud | C38: 2622.48 | D38: 0 | J38: 2622.48
A39: 55 | B39: Majandamiskulud | C39: 5001.98 | D39: 104500 | J39: 5001.98 | K39: 4500 | N39: 100000
A40: 60 | B40: Muud tegevuskulud | C40: 0 | D40: 0 | M40: 0
A41: 03200 | B41: Päästeteenused | C41: 1276.88 | D41: 1420 | E41: =E42 -> 0 | F41: =F42 -> 0 | G41: =G42 -> 0 | H41: 1276.88 | I41: 1420 | J41: 0 | K41: 0 | L41: 0 | M41: 0 | N41: =N42 -> 0
A42: 55 | B42: Majandamiskulud | C42: 1276.88 | D42: 1420 | H42: 1276.88 | I42: 1420
A43: 04210 | B43: Põllumajandus | C43: 101413.21 | D43: 80556 | E43: =E44+E45+E46 -> 56828.23 | F43: =F44+F45+F46 -> 28910 | G43: =G44+G45+G46 -> 10050 | H43: 17849.4 | I43: 19513 | J43: 26735.58 | K43: 22083 | L43: 0 | M43: 0 | N43: =N44+N45+N46 -> 0
A44: 50 | B44: Tööjõukulud | C44: 87587.77 | D44: 67330 | E44: 51040.37 | F44: 27910 | G44: 9150 | H44: 15029.74 | I44: 15033 | J44: 21517.66 | K44: 15237
A45: 55 | B45: Majandamiskulud | C45: 13802.88 | D45: 13176 | E45: 5787.86 | F45: 1000 | G45: 900 | H45: 2819.66 | I45: 4480 | J45: 5195.36 | K45: 6796
A46: 60 | B46: Muud tegevuskulud | C46: 22.56 | D46: 50 | J46: 22.56 | K46: 50
A47: 04360 | B47: Muu energia- ja soojamajandus | C47: 68555.97 | D47: 73792 | E47: =E48+E49+E50 -> 3785.1 | F47: =F48+F49+F50 -> 3252 | G47: =G48+G49+G50 -> 4298 | H47: 0 | I47: 0 | J47: 12162.4 | K47: 2800 | L47: 52608.47 | M47: 63442 | N47: =N48+N49+N50 -> 0
A48: 50 | B48: Tööjõukulud | C48: 26888.75 | D48: 31402 | L48: 26888.75 | M48: 31402
A49: 55 | B49: Majandamiskulud | C49: 41649.53 | D49: 42320 | E49: 3767.41 | F49: 3252 | G49: 4228 | J49: 12162.4 | K49: 2800 | L49: 25719.72 | M49: 32040
A50: 60 | B50: Muud tegevuskulud | C50: 17.69 | D50: 70 | E50: 17.69 | G50: 70
A51: 04430 | B51: Ehitus | C51: 44457.97 | D51: 30463 | E51: =E52+E53 -> 0 | F51: =F52+F53 -> 0 | G51: =G52+G53 -> 0 | H51: 0 | I51: 0 | J51: 44457.97 | K51: 30463 | L51: 0 | M51: 0 | N51: =N52+N53 -> 0
A52: 50 | B52: Tööjõukulud | C52: 42962.74 | D52: 28355 | J52: 42962.74 | K52: 28355
A53: 55 | B53: Majandamiskulud | C53: 1495.23 | D53: 2108 | J53: 1495.23 | K53: 2108
A54: 04510 | B54: Maanteetransport | C54: 281246.67 | D54: 223658 | E54: =E55+E56 -> 141068.72 | F54: =F55+F56 -> 55170 | G54: =G55+G56 -> 30246 | H54: 75335.45 | I54: 75318 | J54: 44575.56 | K54: 41924 | L54: 20266.94 | M54: 21000 | N54: =N55+N56 -> 0
A55: 50 | B55: Tööjõukulud | C55: 11194.9 | D55: 12475 | H55: 11194.9 | I55: 11351 | K55: 1124
A56: 55 | B56: Majandamiskulud | C56: 270051.77 | D56: 211183 | E56: 141068.72 | F56: 55170 | G56: =22830+7416 -> 30246 | H56: 64140.55 | I56: =53967+10000 -> 63967 | J56: 44575.56 | K56: 40800 | L56: 20266.94 | M56: 21000
A57: 04512 | B57: Ühistranspordi korraldus | C57: 0 | D57: 550566 | E57: =E58+E59+E60 -> 0 | F57: =F58+F59+F60 -> 0 | G57: =G58+G59+G60 -> 0 | H57: 0 | I57: 0 | J57: 0 | K57: 0 | L57: 0 | M57: 0 | N57: =N58+N59+N60 -> 550566
A58: 41 | B58: Sotsiaaltoetused | C58: 0 | D58: 532000 | N58: 532000
A59: 50 | B59: Tööjõukulud | C59: 0 | D59: 16050 | N59: 16050
A60: 55 | B60: Majandamiskulud | C60: 0 | D60: 2516 | N60: 2516
A61: 04520 | B61: Veetransport | C61: 24589.6 | D61: 42245 | E61: =E62+E63+E64 -> 0 | F61: =F62+F63+F64 -> 0 | G61: =G62+G63+G64 -> 0 | H61: 0 | I61: 0 | J61: 0 | K61: 0 | L61: 24589.6 | M61: 22243 | N61: =N62+N63+N64 -> 20002
A62: 45 | B62: Muud toetused | C62: 1169.3 | D62: 21262 | L62: 1169.3 | M62: 1260 | N62: =21260-1260+2 -> 20002
A63: 50 | B63: Tööjõukulud | C63: 5429.61 | D63: 5773 | L63: 5429.61 | M63: 5773 | N63: =5773-5773 -> 0
A64: 55 | B64: Majandamiskulud | C64: 17990.69 | D64: 15210 | L64: 17990.69 | M64: 15210 | N64: =15210-15210 -> 0
A65: 04710 | B65: Kaubandus ja laondus | C65: 12802.37 | D65: 18730 | E65: =E66+E67+E68 -> 12802.37 | F65: =F66+F67+F68 -> 13730 | G65: =G66+G67+G68 -> 0 | H65: 0 | I65: 0 | J65: 0 | K65: 0 | L65: 0 | M65: 0 | N65: =N66+N67+N68 -> 5000
A66: 45 | B66: Muud toetused | C66: 0 | D66: 5000 | N66: 5000
A67: 50 | B67: Tööjõukulud | C67: 10946.18 | D67: 11770 | E67: 10946.18 | F67: 11770
A68: 55 | B68: Majandamiskulud | C68: 1856.19 | D68: 1960 | E68: 1856.19 | F68: 1960
A69: 04730 | B69: Turism | C69: 45779.3 | D69: 87000 | E69: =E71+E70 -> 45779.3 | F69: =F71+F70 -> 0 | G69: =G71+G70 -> 87000 | H69: 0 | I69: 0 | J69: 0 | K69: 0 | L69: 0 | M69: 0 | N69: =N71+N70 -> 0
A70: 50 | B70: Tööjõukulud | C70: 2840.5 | D70: 0 | E70: 2840.5
A71: 55 | B71: Majandamiskulud | C71: 42938.8 | D71: 87000 | E71: 42938.8 | G71: =58000+29000 -> 87000
A72: 04740 | B72: Üldmajanduslikud arendusprojektid | C72: 377442.37 | D72: 603533 | E72: =E73+E74+E75 -> 303322.71 | F72: =F73+F74+F75 -> 11200 | G72: =G73+G74+G75 -> 2500 | H72: 49181.07 | I72: 0 | J72: 22314.71 | K72: 0 | L72: 2623.88 | M72: 6500 | N72: =N73+N74+N75 -> 583333
A73: 45 | B73: Muud toetused | C73: =E73+H73+J73+L73 -> 200949.9 | D73: =F73+G73+N73+I73+K73+M73 -> 373305 | E73: =126840.69+20875 -> 147715.69 | H73: 49181.07 | I73: 0 | J73: =5053.14-1000 -> 4053.14 | L73: 0 | N73: 373305
A74: 50 | B74: Tööjõukulud | C74: 33727.09 | D74: 68425 | E74: 33727.09 | N74: 68425
A75: 55 | B75: Majandamiskulud | C75: 142765.38 | D75: 161803 | E75: 121879.93 | F75: 11200 | G75: 2500 | J75: 18261.57 | L75: 2623.88 | M75: 6500 | N75: =41120+50000+50483 -> 141603
A76: 04900 | B76: Muu majandus (sh majanduse haldus) | C76: 225865.71 | D76: =D77+D78+D80 -> 213625 | E76: =E77+E78+E80 -> 56168.24 | F76: =F77+F78+F80 -> 46104 | G76: =G77+G78+G80 -> 12250 | H76: 82692.01 | I76: 98413 | J76: 35013.87 | K76: 23158 | L76: 51991.59 | M76: 28700 | N76: =N77+N78+N80 -> 5000
A77: 50 | B77: Tööjõukulud | C77: 112799.43 | D77: =F77+G77+N77+I77+K77+M77 -> 78945 | E77: 14902.21 | F77: 18354 | H77: 45534.01 | I77: =44133+8430 -> 52563 | J77: 26026.04 | K77: 8028 | L77: 26337.17
A78: 55 | B78: Majandamiskulud | C78: 112881.44 | D78: =F78+G78+N78+I78+K78+M78 -> 134530 | E78: 41266.03 | F78: 27750 | G78: 12250 | H78: 37108 | I78: =33450+1500-1000+11900 -> 45850 | J78: 8852.99 | K78: 14980 | L78: 25654.42 | M78: =13700+M79+5000 -> 28700 | N78: 5000
A79: 5511 | B79: Kinnistute, hoonete ja ruumide majandamiskulud Remondifond | C79: 0 | D79: =F79+G79+N79+I79+K79+M79 -> 10000 | M79: 10000
A80: 60 | B80: Muud tegevuskulud | C80: 184.84 | D80: =F80+G80+N80+I80+K80+M80 -> 150 | H80: 50 | J80: 134.84 | K80: 150
A81: 05100 | B81: Jäätmekäitlus (sh prügivedu) | C81: =E81+H81+J81+L81 -> 12901.07 | D81: =F81+G81+N81+I81+K81+M81 -> 19000 | E81: =E82 -> 1972.13 | F81: =F82 -> 3100 | G81: =G82 -> 3100 | H81: 6638.66 | I81: 7000 | J81: 4290.28 | K81: 5800 | L81: 0 | M81: 0 | N81: =N82 -> 0
A82: 55 | B82: Majandamiskulud | C82: 12901.07 | D82: 19000 | E82: 1972.13 | F82: 3100 | G82: 3100 | H82: =199+6439.66 -> 6638.66 | I82: =5000+2000 -> 7000 | J82: 4290.28 | K82: 5800
A83: 05101 | B83: Avalike alade puhastus (2017) | C83: 62966.99 | D83: 200756 | E83: =E84+E85 -> 16614.06 | F83: =F84+F85 -> 90500 | G83: =G84+G85 -> 39000 | H83: 0 | I83: 0 | J83: =J84+J85 -> 0 | K83: 0 | L83: 46352.93 | M83: 71256 | N83: =N84+N85 -> 0
A84: 50 | B84: Tööjõukulud | C84: 18301.17 | D84: 20256 | L84: 18301.17 | M84: 20256
A85: 55 | B85: Majandamiskulud | C85: 44665.82 | D85: 180500 | E85: 16614.06 | F85: 90500 | G85: 39000 | L85: 28051.76 | M85: 51000
A86: 05200 | B86: Heitveekäitlus | C86: 9693.12 | D86: 9900 | E86: =E87+E88 -> 0 | F86: =F87+F88 -> 0 | G86: =G87+G88 -> 0 | H86: 9693.12 | I86: 9900 | J86: 0 | K86: 0 | L86: 0 | M86: 0 | N86: =N87+N88 -> 0
A87: 55 | B87: Majandamiskulud | C87: 4915 | D87: 5000 | H87: 4915 | I87: 5000
A88: 60 | B88: Muud tegevuskulud | C88: 4778.12 | D88: 4900 | H88: 4778.12 | I88: 4900
A89: 05400 | B89: Bioloogilise mitmekesisuse ja maastiku kaitse | C89: 156777.49 | D89: 152588 | E89: =E90+E91+E92 -> 124635.77 | F89: =F90+F91 -> 91735 | G89: =G90+G91 -> 37393 | H89: 0 | I89: 3200 | J89: 32141.72 | K89: 20260 | L89: 0 | M89: 0 | N89: =N90+N91 -> 0
A90: 50 | B90: Tööjõukulud | C90: 49815.64 | D90: 51532 | E90: 43319 | F90: 36509 | G90: 14643 | J90: 6496.64 | K90: 380
A91: 55 | B91: Majandamiskulud | C91: 106913.85 | D91: 101056 | E91: =81268.77 -> 81268.77 | F91: 55226 | G91: 22750 | I91: 3200 | J91: 25645.08 | K91: 19880
A92: 60 | B92: Muud tegevuskulud | C92: 48 | D92: 0 | E92: 48
A93: 05600 | B93: Muu keskkonnakaitse (sh keskkonnakaitse haldus) | C93: 20830.76 | D93: 26314 | E93: =E94+E95+E96 -> 15442.09 | F93: =F94+F95+F96 -> 0 | G93: =G94+G95+G96 -> 0 | H93: 32 | I93: 100 | J93: 5356.67 | K93: 5464 | L93: 0 | M93: 0 | N93: =N94+N95+N96 -> 20750
A94: 45 | B94: Muud toetused | C94: 5356.67 | D94: 5464 | J94: 5356.67 | K94: 5464
A95: 50 | B95: Tööjõukulud | C95: 14741.84 | D95: 14450 | E95: 14741.84 | N95: 14450
A96: 55 | B96: Majandamiskulud | C96: 732.25 | D96: 6400 | E96: 700.25 | H96: 32 | I96: 100 | N96: =2300+4000 -> 6300
A97: 06300 | B97: Veevarustus | C97: 52178.67 | D97: 36210.09 | E97: =E100+E101+E98 -> 4598.13 | F97: =F100+F101+F98 -> 5600 | G97: 0 | H97: 4761.67 | I97: 5700 | J97: 0 | K97: 0 | L97: =L100+L101+L98 -> 42818.87 | M97: =M100+M101 -> 0 | N97: =N100+N101+N98 -> 24910.09
A98: 45 | B98: Muud toetused | C98: 42818.87 | D98: 24910.09 | H98: =28658.14-28658.14 -> 0 | J98: =29069.95-29069.95 -> 0 | L98: 42818.87 | M98: 0 | N98: =27093+8375-2182.91-2602-1290-4483 -> 24910.09
A99: 4500 | B99: Antud sihtfinantseerimine tegevuskuludeks riigi osa 2017 | C99: 0 | D99: 0
A100: 55 | B100: Majandamiskulud | C100: 8724.28 | D100: 10600 | E100: 4598.13 | F100: 5600 | H100: 4126.15 | I100: 5000
A101: 60 | B101: Muud tegevuskulud | C101: 635.52 | D101: 700 | H101: 635.52 | I101: 700
A102: 06400 | B102: Tänavavalgustus | C102: 66721.03 | D102: 81100 | E102: =E103 -> 53601.22 | F102: =F103 -> 53000 | G102: =G103 -> 9000 | H102: 1683.7 | I102: 1800 | J102: 3787.13 | K102: 5300 | L102: 7648.98 | M102: 12000 | N102: =N103 -> 0
A103: 55 | B103: Majandamiskulud | C103: 66721.03 | D103: 81100 | E103: 53601.22 | F103: 53000 | G103: 9000 | H103: 1683.7 | I103: 1800 | J103: 3787.13 | K103: 5300 | L103: 7648.98 | M103: 12000
A104: 06605 | B104: Muud elamu- ja kommunaalmajanduse tegevus | C104: 112187.51 | D104: 130707.16 | E104: =E106+E107+E105 -> 35835.26 | F104: =F106+F107 -> 20380 | G104: =G106+G107 -> 25100 | H104: =H106+H107+H105 -> 17708.82 | I104: 22582.16 | J104: 17626.87 | K104: 17762 | L104: 41016.56 | M104: 42700 | N104: =N106+N107+N105 -> 2183
A105: 45 | B105: Muud toetused | C105: 0 | D105: 2183 | E105: =25860.82-25860.82 -> 0 | N105: 2183
A106: 50 | B106: Tööjõukulud | C106: 18903.12 | D106: 18090.16 | H106: 11361.24 | I106: =10945.16-883 -> 10062.16 | J106: 7541.88 | K106: 8028 | L106: 0
A107: 55 | B107: Majandamiskulud | C107: 93284.39 | D107: 110434 | E107: =12500.85+23278.76+55.65 -> 35835.26 | F107: 20380 | G107: 25100 | H107: =6340.61+6.97 -> 6347.58 | I107: =13520-1000 -> 12520 | J107: 10084.99 | K107: 9734 | L107: 41016.56 | M107: 42700
A108: 07210 | B108: Üldmeditsiiniteenused | C108: 0 | D108: 500 | E108: =E109 -> 0 | F108: =F109 -> 0 | G108: =G109 -> 0 | H108: 0 | I108: 0 | J108: 0 | K108: 0 | L108: 0 | M108: 0 | N108: =N109 -> 500
A109: 41 | B109: Sotsiaaltoetused | C109: 0 | D109: 500 | K109: 0 | N109: 500
A110: 07600 | B110: Muu tervishoid, sh tervishoiu haldamine | C110: 12417.02 | D110: 8000 | E110: =E111 -> 6168.2 | F110: =F111 -> 0 | G110: =G111 -> 0 | H110: 6248.82 | I110: 8000 | J110: 0 | K110: 0 | L110: 0 | M110: 0 | N110: =N111 -> 0
A111: 55 | B111: Majandamiskulud | C111: 12417.02 | D111: 8000 | E111: 6168.2 | H111: 6248.82 | I111: 8000
A112: 08102 | B112: Sport | C112: 345946.48 | D112: 327273 | E112: =E113+E114+E115+E116 -> 183006.03 | F112: =F113+F114+F115+F116 -> 148500 | G112: =G113+G114+G115+G116 -> 0 | H112: 0 | I112: 0 | J112: 3754.75 | K112: 6008 | L112: 159185.7 | M112: 172765 | N112: =N113+N114+N115+N116 -> 0
A113: 45 | B113: Muud toetused | C113: 186142.08 | D113: 149858 | E113: =8823.08+193790-20000 -> 182613.08 | F113: 148500 | J113: 3529 | K113: 1358
A114: 50 | B114: Tööjõukulud | C114: 56968.6 | D114: 59462 | L114: 56968.6 | M114: 59462
A115: 55 | B115: Majandamiskulud | C115: 102835.8 | D115: 115953 | E115: 392.95 | J115: 225.75 | K115: 4650 | L115: =6482.68+95734.42 -> 102217.1 | M115: =109903+10000-10000+1400 -> 111303
A116: 60 | B116: Muud tegevuskulud | C116: 0 | D116: 2000 | M116: 2000
A117: 08103 | B117: Puhkepargid ja -baasid | C117: 22750.87 | D117: 20926 | E117: =E118 -> 0 | F117: =F118 -> 2300 | G117: =G118 -> 0 | H117: 22750.87 | I117: 18626 | J117: 0 | K117: 0 | L117: 0 | M117: 0 | N117: =N118 -> 0
A118: 55 | B118: Majandamiskulud | C118: 22750.87 | D118: 20926 | F118: 2300 | H118: 22750.87 | I118: =18526+1000-900 -> 18626
A119: 08107 | B119: Noorsootöö ja noortekeskused | C119: 384585.57 | D119: 404498 | E119: =E120+E121+E122+E123 -> 168049.42 | F119: =F120+F121+F122+F123 -> 141312 | G119: =G120+G121+G122+G123 -> 25550 | H119: 123873.93 | I119: 101426 | J119: 85458.94 | K119: 67478 | L119: 7203.28 | M119: 0 | N119: =N120+N121+N122+N123 -> 68732
A120: 41 | B120: Sotsiaaltoetused | C120: 7203.28 | D120: 3300 | L120: 7203.28 | M120: 0 | N120: 3300
A121: 45 | B121: Muud toetused | C121: 300 | D121: 360 | E121: 150 | F121: 150 | H121: 150 | I121: 210
A122: 50 | B122: Tööjõukulud | C122: 188330.72 | D122: 255924 | E122: 83456.42 | F122: 75190 | G122: 16050 | H122: 63058.65 | I122: =81998-3853+2087+3374 -> 83606 | J122: 41815.65 | K122: 46228 | N122: 34850
A123: 55 | B123: Majandamiskulud | C123: 188751.57 | D123: 144914 | E123: 84443 | F123: =61230+4742 -> 65972 | G123: 9500 | H123: 60665.28 | I123: =19610-1200-800 -> 17610 | J123: 43643.29 | K123: 21250 | M123: 0 | N123: 30582
A124: 08109 | B124: Vaba aja üritused | C124: 87818.269 | D124: 103788 | E124: =E125+E126+E127 -> 15529.259 | F124: =F125+F126+F127 -> 22000 | G124: =G125+G126+G127 -> 5000 | H124: 37929.79 | I124: 22636 | J124: 14799.22 | K124: 12000 | L124: 19560 | M124: 20600 | N124: =N125+N126+N127 -> 21552
A125: 41 | B125: Sotsiaaltoetused | C125: 500 | D125: 500 | H125: 500 | I125: 0 | N125: 500
A126: 45 | B126: Muud toetused | C126: 35990.4 | D126: 37000 | E126: 15000 | F126: 22000 | G126: 5000 | H126: 5225 | J126: 6065.4 | L126: 9700 | M126: 10000
A127: 55 | B127: Majandamiskulud | C127: 51327.869 | D127: 66288 | E127: 529.259 | H127: 32204.79 | I127: =24570+1800-1000-1800-1660+726 -> 22636 | J127: 8733.82 | K127: 12000 | L127: =7430+2430 -> 9860 | M127: 10600 | N127: =19572+1480 -> 21052
A128: 08201 | B128: Raamatukogud | C128: 272837.36 | D128: 293193.8 | E128: =E130+E131+E129 -> 142076.84 | F128: =F130+F131 -> 128493.8 | G128: =G130+G131 -> 32540 | H128: =H130+H131+H129 -> 23608.01 | I128: 24030 | J128: 53868.48 | K128: 56014 | L128: 53284.03 | M128: 52116 | N128: =N130+N131+N129 -> 0
A129: 45 | B129: Muud toetused | C129: 9081.98 | D129: 0 | E129: 9081.98
A130: 50 | B130: Tööjõukulud | C130: 170924.73 | D130: 184733 | E130: 86642.92 | F130: =69978+6694 -> 76672 | G130: 21515 | H130: 14408.96 | I130: 14230 | J130: 37095.7 | K130: 37410 | L130: 32777.15 | M130: 34906
A131: 55 | B131: Majandamiskulud | C131: 92830.65 | D131: 108460.8 | E131: 46351.94 | F131: =43168.8+384+8269 -> 51821.8 | G131: =8525+2500 -> 11025 | H131: 9199.05 | I131: 9800 | J131: 16772.78 | K131: =18014+590 -> 18604 | L131: 20506.88 | M131: =18710-1500 -> 17210
A132: 08202 | B132: Rahvakultuur | C132: 312240.08 | D132: 295968 | E132: =E133+E134+E135 -> 265479.82 | F132: =F133+F134+F135 -> 144564 | G132: =G133+G134+G135 -> 89050 | H132: 20337.9 | I132: 36354 | J132: 5900.4 | K132: 0 | L132: 20521.96 | M132: 26000 | N132: =N133+N134+N135 -> 0
A133: 45 | B133: Muud toetused | C133: 5032 | D133: 21000 | E133: 32 | H133: 5000 | I133: 21000
A134: 50 | B134: Tööjõukulud | C134: 129717.07 | D134: 141594 | E134: 126737.32 | F134: 98110 | G134: 39470 | H134: 2979.75 | I134: 4014
A135: 55 | B135: Majandamiskulud | C135: 177491.01 | D135: 133374 | E135: 138710.5 | F135: =43740+2714 -> 46454 | G135: =49080+500 -> 49580 | H135: 12358.15 | I135: =12480+1300+1660-4100 -> 11340 | J135: 5900.4 | L135: 20521.96 | M135: 26000
A136: 08203 | B136: Muuseumid | C136: 19155 | D136: 21064 | E136: =E137+E138 -> 0 | F136: =F137+F138 -> 0 | G136: =G137+G138 -> 0 | H136: 19155 | I136: 21064 | J136: 0 | K136: 0 | L136: 0 | M136: 0 | N136: =N137+N138 -> 0
A137: 50 | B137: Tööjõukulud | C137: 14113.63 | D137: 14859 | H137: 14113.63 | I137: =14230+629 -> 14859
A138: 55 | B138: Majandamiskulud | C138: 5041.37 | D138: 6205 | H138: 5041.37 | I138: =6005+200 -> 6205
A139: 08209 | B139: Seltsitegevus | C139: 0 | D139: 1660 | E139: =E140 -> 0 | F139: =F140 -> 0 | G139: =G140 -> 0 | H139: 0 | I139: 1660 | J139: 0 | K139: 0 | L139: 0 | M139: 0 | N139: =N140 -> 0
A140: 55 | B140: Majandamiskulud | C140: 0 | D140: 1660 | I140: 1660
A141: 08300 | B141: Ringhäälingu- ja kirjastamisteenused | C141: 28425.38 | D141: 20120 | E141: =E143+E142 -> 11545.46 | F141: =F143 -> 0 | G141: =G143 -> 0 | H141: 3249.06 | I141: 0 | J141: =J143+J142 -> 8844.8 | K141: 0 | L141: =L143+L142 -> 4786.06 | M141: 2220 | N141: =N143 -> 17900
A142: 50 | B142: Tööjõukulud | C142: 12889.15 | D142: 0 | E142: 2554.56 | J142: 7832.59 | L142: 2502
A143: 55 | B143: Majandamiskulud | C143: 15536.23 | D143: 20120 | E143: 8990.9 | H143: 3249.06 | I143: 0 | J143: 1012.21 | L143: 2284.06 | M143: 2220 | N143: =20120-2220 -> 17900
A144: 5500 | B144: Administreerimiskulud kulud keskuse allt | C144: 0 | D144: 0
A145: 08400 | B145: Religiooni- ja muud ühiskonnateenused | C145: =E145+H145+J145+L145 -> 6500 | D145: =F145+G145+N145+I145+K145+M145 -> 0 | E145: =E146 -> 6500 | F145: =F146 -> 0 | G145: =G146 -> 0 | H145: 0 | I145: 0 | J145: 0 | K145: 0 | L145: 0 | M145: 0 | N145: =N146 -> 0
A146: 45 | B146: Muud toetused | C146: 6500 | D146: 0 | E146: =346500-340000 -> 6500
A147: 08500 | B147: Teadus- ja arendustegevus vabas ajas, kultuuris ja religioonis | C147: 33339.29 | D147: 5464 | E147: =E148+E149+E150 -> 0 | F147: =F148+F149+F150 -> 0 | G147: =G148+G149+G150 -> 0 | H147: 0 | I147: 0 | J147: 33339.29 | K147: 5464 | L147: 0 | M147: 0 | N147: =N148+N149+N150 -> 0
A148: 45 | B148: Muud toetused | C148: 7532 | D148: 5464 | J148: 7532 | K148: 5464
A149: 50 | B149: Tööjõukulud | C149: 17924.69 | D149: 0 | J149: 17924.69
A150: 55 | B150: Majandamiskulud | C150: 7882.6 | D150: 0 | J150: 7882.6
A151: 08600 | B151: Muu vaba aeg, kultuur, religioon, sh haldus | C151: =E151+H151+J151+L151 -> 74837.66 | D151: =F151+G151+N151+I151+K151+M151 -> 42000 | E151: =E152+E154+E155 -> 52249.58 | F151: =F152+F154+F155 -> 26000 | G151: =G152+G154+G155 -> 5000 | H151: 0 | I151: 0 | J151: =J152+J154+J155+J153 -> 16982.48 | K151: 0 | L151: 5605.6 | M151: 4000 | N151: =N152+N154+N155 -> 7000
A152: 41 | B152: Sotsiaaltoetused | C152: 1930 | D152: 2000 | E152: 1930 | N152: 2000
A153: 45 | B153: Muud toetused | C153: 2586 | D153: 0 | J153: 2586
A154: 50 | B154: Tööjõukulud | C154: 28367.83 | D154: 6000 | E154: 18720.63 | F154: 6000 | J154: 9647.2
A155: 55 | B155: Majandamiskulud | C155: 41953.83 | D155: 34000 | E155: 31598.95 | F155: =5000+15000 -> 20000 | G155: 5000 | J155: 4749.28 | L155: 5605.6 | M155: 4000 | N155: =13000-8000 -> 5000
A156: 09110 | B156: Alusharidus | C156: 1282147.31 | D156: 1456927 | E156: =E158+E164 -> 587725.15 | F156: =F158+F164 -> 135706 | G156: =G158+G164 -> 67393 | H156: 211280.83 | I156: 70926 | J156: 200929.79 | K156: 95767 | L156: 282211.54 | M156: 71553 | N156: =N158+N164+N157 -> 1015582
A157: 45 | B157: Muud toetused | C157: 0 | D157: 2141 | N157: 2141
A158: 50 | B158: Tööjõukulud | C158: 1007368.1 | D158: 1218967 | E158: 439935.98 | F158: 58980 | G158: 27780 | H158: 165725.26 | I158: =36195-4014 -> 32181 | J158: 160879.05 | K158: 62537 | L158: 240827.81 | M158: =-184720+M159+M161 -> 42248 | N158: 995241
A159: 5002 | B159: Töötajate töötasu hoiurühm ja perenaine ja koristaja | C159: 0 | D159: 30240 | M159: 30240
A160: 5002 | B160: Töötajate töötasu Õpetajate palk | C160: 0 | D160: 0
A161: 50026 | B161: Õpetajad 11 õpetajat + direktor | C161: 0 | D161: 196728 | M161: 196728
A162: 506 | B162: Tööjõukuludega kaasnevad maksud ja sotsiaalkindlustusmaksed õpetajad | C162: 0 | D162: 0
A163: 506040 | B163: Töötuskindlustusmakse õpetajad | C163: 0 | D163: 0
A164: 55 | B164: Majandamiskulud | C164: 274779.21 | D164: 235819 | E164: 147789.17 | F164: =76255+471 -> 76726 | G164: =39565+48 -> 39613 | H164: 45555.57 | I164: =42745-1000-3000 -> 38745 | J164: 40050.74 | K164: 33230 | L164: =26714+14669.73 -> 41383.73 | M164: =30505-1200 -> 29305 | N164: 18200
A165: 09212 | B165: Põhihariduse otsekulud | C165: 2972566.2 | D165: 3056725.6 | E165: =E166+E167 -> 1514748.44 | F165: =F166+F167 -> 282459 | G165: =G166+G167 -> 180598 | H165: 347337.14 | I165: 67238 | J165: 547465.93 | K165: 175412.6 | L165: 563014.69 | M165: 211074 | N165: =N166+N167 -> 2139944
A166: 50 | B166: Tööjõukulud | C166: 2276987.11 | D166: 2392322.6 | E166: =771283.24+243833.15+131508.36 -> 1146624.75 | F166: =61257-198 -> 61059 | G166: =67425-14450 -> 52975 | H166: 288822.77 | I166: =33739-13310-6960 -> 13469 | J166: =388036.37+30 -> 388066.37 | K166: =77061+13647.6 -> 90708.6 | L166: 453473.22 | M166: =116035-47693 -> 68342 | N166: =2073305-58300+90764 -> 2105769
A167: 55 | B167: Majandamiskulud | C167: 695579.09 | D167: 664403 | E167: =239428+67636.48+57376.21+3683 -> 368123.69 | F167: 221400 | G167: 127623 | H167: 58514.37 | I167: =61469-3200-1500-3000 -> 53769 | J167: 159399.56 | K167: =83994+710 -> 84704 | L167: 109541.47 | M167: =136457+4275+2000 -> 142732 | N167: 34175
A168: 09220 | B168: Põhi- ja üldkeskhariduse kaudsed kulud | C168: 62143.34 | D168: 58300 | E168: =E169 -> 36974.16 | F168: =F169 -> 0 | G168: =G169 -> 0 | H168: 9453.96 | I168: 0 | J168: 0 | K168: 0 | L168: 15715.22 | M168: 0 | N168: =N169 -> 58300
A169: 55 | B169: Majandamiskulud | C169: 62143.34 | D169: 58300 | E169: 36974.16 | H169: 9453.96 | I169: 0 | L169: 15715.22 | M169: 0 | N169: 58300
A170: 09510 | B170: Noorte huviharidus ja huvitegevus | C170: 410395.82 | D170: 476644 | E170: =E171+E172+E173+E174 -> 152972.03 | F170: =F171+F172+F173+F174 -> 144430 | G170: =G171+G172+G173+G174 -> 0 | H170: 10525.55 | I170: 0 | J170: 59412.86 | K170: 50369 | L170: 187485.38 | M170: 183479 | N170: =N171+N172+N173+N174 -> 98366
A171: 41 | B171: Sotsiaaltoetused | C171: 550 | D171: 0 | E171: 550
A172: 45 | B172: Muud toetused | C172: 256 | D172: 320 | E172: 140 | F172: 170 | L172: 116 | M172: 150
A173: 50 | B173: Tööjõukulud | C173: 288709.82 | D173: 319392 | E173: =113345.25+1203.72 -> 114548.97 | F173: =125810+300 -> 126110 | J173: 30518.05 | K173: 31103 | L173: 143642.8 | M173: 150179 | N173: 12000
A174: 55 | B174: Majandamiskulud | C174: 120880 | D174: 156932 | E174: =14804.35+468+22460.71 -> 37733.06 | F174: 18150 | H174: 10525.55 | I174: =12000-12000 -> 0 | J174: 28894.81 | K174: =16266+3000 -> 19266 | L174: 43726.58 | M174: =34750-1600+900-900 -> 33150 | N174: =67715+18651 -> 86366
A175: 09600 | B175: Koolitransport | C175: 92095.3 | D175: 102615 | E175: =E176+E177+E178+E179 -> 21232.44 | F175: =F176+F177+F178+F179 -> 0 | G175: =G176+G177+G178+G179 -> 24000 | H175: 14233.35 | I175: 15940 | J175: 42542.95 | K175: 42875 | L175: 14086.56 | M175: 17000 | N175: =N176+N177+N178+N179 -> 2800
A176: 41 | B176: Sotsiaaltoetused | C176: 767.39 | D176: 2800 | H176: 600 | I176: 0 | J176: 167.39 | K176: 0 | N176: 2800
A177: 45 | B177: Muud toetused | C177: 34605.87 | D177: 37870 | H177: 3098.61 | I177: 3100 | J177: 17420.7 | K177: 17770 | L177: 14086.56 | M177: 17000
A178: 50 | B178: Tööjõukulud | C178: 15042.39 | D178: 15061 | J178: 15042.39 | K178: 15061
A179: 55 | B179: Majandamiskulud | C179: 41679.65 | D179: 46884 | E179: 21232.44 | G179: 24000 | H179: 10534.74 | I179: 12840 | J179: 9912.47 | K179: 10044
A180: 09601 | B180: Koolitoit | C180: 257939.666 | D180: 279066.9 | E180: =E181+E182 -> 147243.85 | F180: =F181+F182 -> 115065 | G180: =G181+G182 -> 34350 | H180: 13140.136 | I180: 31794 | J180: 54399.72 | K180: 56057.9 | L180: 43155.96 | M180: 41800 | N180: =N181+N182 -> 0
A181: 50 | B181: Tööjõukulud | C181: 106912.636 | D181: 109501.9 | E181: =43616.48+18087.02 -> 61703.5 | F181: 43500 | G181: 19050 | H181: 13140.136 | I181: =13443+1381 -> 14824 | J181: 32069 | K181: =44772-12644.1 -> 32127.9
A182: 55 | B182: Majandamiskulud | C182: 151027.03 | D182: 169565 | E182: =69815.76+15724.59 -> 85540.35 | F182: 71565 | G182: 15300 | I182: 16970 | J182: 22330.72 | K182: 23930 | L182: 43155.96 | M182: 41800
A183: 09602 | B183: Öömaja | C183: 85118.99 | D183: 94990 | E183: =E184+E185+E186 -> 68565.18 | F183: =F184+F185+F186 -> 89390 | G183: =G184+G185+G186 -> 2000 | H183: 13603.85 | I183: 0 | J183: 0 | K183: 0 | L183: 2949.96 | M183: 0 | N183: =N184+N185+N186 -> 3600
A184: 41 | B184: Sotsiaaltoetused | C184: 2949.96 | D184: 3600 | L184: 2949.96 | M184: 0 | N184: 3600
A185: 50 | B185: Tööjõukulud | C185: 47596.46 | D185: 47870 | E185: 47596.46 | F185: 47870
A186: 55 | B186: Majandamiskulud | C186: 34572.57 | D186: 43520 | E186: =2582+18386.72 -> 20968.72 | F186: 41520 | G186: 2000 | H186: 13603.85
A187: 09609 | B187: Muud hariduse abiteenused | C187: 10836.62 | D187: 0 | E187: =E188+E189 -> 0 | F187: =F188+F189 -> 0 | G187: =G188+G189 -> 0 | H187: 0 | I187: 0 | J187: 10836.62 | K187: 0 | L187: 0 | M187: 0 | N187: =N188+N189 -> 0
A188: 50 | B188: Tööjõukulud | C188: 6358.39 | D188: 0 | J188: 6358.39
A189: 55 | B189: Majandamiskulud | C189: 4478.23 | D189: 0 | J189: =1113.19+3365.04 -> 4478.23
A190: 09800 | B190: Muu haridus, sh hariduse haldus | C190: 44326.21 | D190: 67505 | E190: =E192+E193+E194 -> 7864.47 | F190: =F192+F193+F194 -> 0 | G190: =G192+G193+G194 -> 0 | H190: 0 | I190: 0 | J190: 35339.22 | K190: 0 | L190: 1122.52 | M190: 723 | N190: =N192+N193+N194+N191 -> 66782
A191: 45 | B191: Muud toetused | C191: 0 | D191: 14147 | N191: =14148-1 -> 14147
A192: 41 | B192: Sotsiaaltoetused | C192: 400 | D192: 750 | L192: 400 | M192: 0 | N192: 750
A193: 50 | B193: Tööjõukulud | C193: 34239.75 | D193: 52108 | E193: 314.13 | J193: 33203.1 | L193: 722.52 | M193: 723 | N193: 51385
A194: 55 | B194: Majandamiskulud | C194: 9686.46 | D194: 500 | E194: 7550.34 | J194: 2136.12 | N194: 500
A195: 10120 | B195: Puuetega inimeste sotsiaalhoolekandeasutused | C195: 284515.03 | D195: 312480 | E195: =E196+E197 -> 284515.03 | F195: =F196+F197 -> 312480 | G195: =G196+G197 -> 0 | H195: 0 | I195: 0 | J195: 0 | K195: 0 | L195: 0 | M195: 0 | N195: =N196+N197 -> 0
A196: 50 | B196: Tööjõukulud | C196: 235577.82 | D196: 237930 | E196: 235577.82 | F196: 237930
A197: 55 | B197: Majandamiskulud | C197: 48937.21 | D197: 74550 | E197: 48937.21 | F197: 74550
A198: 10121 | B198: Muu puuetega inimeste sotsiaalne kaitse | C198: 148169.1 | D198: 187389 | E198: =E199+E200+E201 -> 87944.48 | F198: =F199+F200+F201 -> 33020 | G198: =G199+G200+G201 -> 8240 | H198: 21150.21 | I198: 5320 | J198: 11809.2 | K198: 0 | L198: 27265.21 | M198: 14700 | N198: =N199+N200+N201 -> 126109
A199: 41 | B199: Sotsiaaltoetused | C199: 86816.63 | D199: 120116 | E199: 51602.1 | F199: 0 | G199: 0 | H199: 11387.89 | I199: 0 | J199: 11809.2 | K199: 0 | L199: =7786.84+4230.6 -> 12017.44 | M199: 0 | N199: =94797+10249+606+14283+181 -> 120116
A200: 50 | B200: Tööjõukulud | C200: 14360.45 | D200: 26980 | E200: 13810.77 | F200: 19110 | G200: 7870 | L200: =549.68 -> 549.68
... 28 more rows

Sheet Omatulud
A1: 32 | B1: Tulud kaupade ja teenuste müügist | C1: Hiiumaa vald KOKKU | D1: Emmaste Osavald | E1: Pühalepa Osavald | F1: Käina Osavald | G1: Kõrgessaare Osavald | H1: Kärdla Osavald | I1: Hiiumaa üldvalitsemine
C2: =SUM(C3:C23) -> 838439 | D2: 45530 | E2: 39100 | F2: 183614 | G2: 168747 | H2: 372230 | I2: 29218
B3: Riigilõivud | C3: =SUM(D3:I3) -> 15000 | D3: 2500 | E3: 4500 | F3: 3000 | G3: 2500 | H3: 2500
A4: 3220 | B4: Lasteaia õppemaks | C4: =SUM(D4:I4) -> 7795 | D4: 1200 | H4: 6595
B5: Lasteaia kohatasud lastevanematelt | C5: =SUM(D5:I5) -> 32106 | F5: 10616 | G5: 5890 | H5: 15600
B6: Ujumine | C6: =SUM(D6:I6) -> 6480 | H6: 6480
B7: Lasteaia toitlustustulud | C7: 68500 | D7: 7000 | E7: 10000 | F7: 22000 | G7: 9500 | H7: 20000
B8: Lasteaia kohatasud teistelt KOV | C8: 14050 | F8: =8450-8450 -> 0 | I8: =5600+8450 -> 14050
B9: Huvihariduse kohatasud teistelt KOV | C9: 2500 | I9: 2500
B10: Kooli kohatasud teistelt KOV | C10: 12668 | F10: =3168-3168 -> 0 | I10: =9500+3168 -> 12668
B11: Huvikooli õppemaksud | C11: 38670 | F11: =18000+1000+100 -> 19100 | G11: 2300 | H11: 17270
B12: Õppekava väline tulu | C12: 56060 | E12: 11000 | F12: 2000 | G12: =25000+720+340+2000 -> 28060 | H12: 15000
B13: Kultuuriasutuste majandustegevus (muuseum) | C13: =SUM(D13:I13) -> 15140 | D13: 1000 | E13: 3500 | F13: 140 | G13: =180+100+100 -> 380 | H13: =1440+1130+6700+850 -> 10120
B14: Laekumised spordi-ja puhkeasutuste majandustegevus | C14: 60180 | D14: 1000 | F14: =61000+2000+3780-8000 -> 58780 | G14: 400
A15: 3224 | B15: Laekumised sotsiaalteenuste osutamisest | C15: 205500 | D15: 2200 | E15: 5700 | F15: =2400+1100 -> 3500 | G15: =250+2200+11000 -> 13450 | H15: =84000+5700+86500+4450 -> 180650
A16: 3225 | B16: Elamu ja kommunaaltegevuse tulud | C16: 41700 | D16: 3500 | F16: =4800+2100+5000+1800+9000+5000+1000 -> 28700 | G16: 4000 | H16: 5500
A17: 3230 | B17: Laekumised transpordi- ja sideasutuste majandusteg | C17: 4300 | D17: 1300 | F17: 1000 | H17: =2100-100 -> 2000
A18: 3232 | B18: Laekumised Kommunaalasutuste majandustegevusest | C18: 115300 | D18: 11000 | E18: 3300 | F18: 4000 | G18: =58000+29000 -> 87000 | H18: =9900+100 -> 10000
B19: Toitlustusteenused (õpetajate toitlustus) | C19: 42700 | D19: 2700 | G19: =1400+1600 -> 3000 | H19: 37000
A20: 3233 | B20: Üüri ja renditulud mitteeluruumidelt | C20: 66920 | D20: =12000 -> 12000 | F20: =8000+2200 -> 10200 | G20: =255+4800+1400+150 -> 6605 | H20: =1815+10800+1200+20000+4300 -> 38115 | I20: =2200-2200 -> 0
B21: Üüri ja renditulud eluruumidelt | C21: 20700 | F21: 12500 | G21: 4000 | H21: 4200
B22: Laekumised õiguste müügist | C22: =SUM(D22:I22) -> 10440 | F22: =1378+6200 -> 7578 | G22: =0.24+1661.76 -> 1662 | H22: 1200 | I22: =6200-6200 -> 0
B23: Muu kaupade ja teenuste müük | C23: 1730 | D23: =80+50 -> 130 | E23: 1100 | F23: 500

Sheet Riigitoetus Sots.
B1: Riigi toetus SOTS
B2: 2017 | C2: Lapsehoiuteenus | D2: Toimetulekutoetus | E2: Vajaduspõhine | F2: Sots.teenus | G2: Lapsehoiuteenus | H2: Toimetulekutoetus | I2: Vajaduspõhine | J2: Sots.teenus
B3: Hiiu vald | C3: 11742 | D3: 142761 | E3: 24084 | F3: 15898 | G3: =C3/$C$7 -> 0.4813478724 | H3: =D3/$D$7 -> 0.5012393967 | I3: =E3/$E$7 -> 0.4176826625 | J3: =F3/$F$7 -> 0.5777519352
B4: Emmaste vald | C4: 5993 | D4: 27053 | E4: 7142 | F4: 1643 | G4: =C4/$C$7 -> 0.245675166 | H4: =D4/$D$7 -> 0.09498413011 | I4: =E4/$E$7 -> 0.1238618824 | J4: =F4/$F$7 -> 0.05970854381
B5: Käina vald | C5: 4693 | D5: 69119 | E5: 15989 | F5: 4517 | G5: 0.192383373 | H5: 0.2426794843 | I5: 0.2772931444 | J5: 0.164153069
B6: Pühalepa vald | C6: 1966 | D6: 45883 | E6: 10446 | F6: 5459 | G6: 0.08059358859 | H6: 0.1610969889 | I6: 0.1811623107 | J6: 0.198386452
C7: =SUM(C3:C6) -> 24394 | D7: =SUM(D3:D6) -> 284816 | E7: 57661 | F7: 27517 | G7: 1 | H7: 1 | I7: 1 | J7: 1
B9: 2018 | C9: Lapsehoiuteenus | D9: Toimetulekutoetus | E9: Vajaduspõhine | F9: Sots.teenus | G9: Matusetoetus | H9: Rahvastiku- toimingute kulude hüvitis
A10: 2018-01-30 | B10: Hiiumaa | C10: 24713 | D10: 275435 | E10: 6829 | F10: 24943 | G10: 30669 | H10: 11341
B11: Hiiu vald | C11: =$C$10*G3 -> 11895.54997 | D11: =$D$10*H3 -> 138058.8732 | E11: =$E$10*I3 -> 2852.354902 | F11: =$F$10*J3 -> 14410.86652
B12: Emmaste vald | C12: =$C$10*G4 -> 6071.370378 | D12: =$D$10*H4 -> 26161.95388 | E12: =$E$10*I4 -> 845.8527948 | F12: =$F$10*J4 -> 1489.310208
B13: Käina vald | C13: 4754.370296 | D13: 66842.42376 | E13: 1893.634883 | F13: 4094.47
B14: Pühalepa vald | C14: 1991.709355 | D14: 44371.74915 | E14: 1237.15742 | F14: 4948.353273
C15: =SUM(C11:C14) -> 24713 | D15: =SUM(D11:D14) -> 275435 | E15: =SUM(E11:E14) -> 6829 | F15: =SUM(F11:F14) -> 24943
B17: Rahandusministeerium - toetusfond
B18: Selgitus | C18: Summa | E18: Tegevusala | G18: Objekt
B19: Emmaste Lapsehoiuteenus | C19: 5993 | D19: Emmaste sotsiaal | E19: 10121 | F19: Muu puuetega inimeste sotsiaalne kaitse
C20: 5993 | E20: 10121 Kokku
C21: 11948 | D21: Sotsiaalosakond | E21: 10402 | F21: Muu perekondade ja laste sotsiaalne kaitse | G21: 304 | H21: Vajaduspõhine peretoetus
B22: Hiiu Lapsehoiuteenus | C22: 11700 | D22: Hiiu sotsiaal | E22: 10402 | F22: Muu perekondade ja laste sotsiaalne kaitse | G22: 305 | H22: Lapsehoiuteenus
B23: Riiklik Matusetoetus | C23: 30196 | D23: Sotsiaalosakond | E23: 10402 | F23: Muu perekondade ja laste sotsiaalne kaitse
C24: 53844 | E24: 10402 Kokku
C25: 4229 | D25: Käina sotsiaal | E25: 10701 | F25: Riiklik toimetulekutoetus
C26: 145000 | D26: Hiiu sotsiaal | E26: 10701 | F26: Riiklik toimetulekutoetus
C27: 27053 | D27: Emmaste sotsiaal | E27: 10701 | F27: Riiklik toimetulekutoetus
C28: 9306 | D28: Pühalepa sotsiaal | E28: 10701 | F28: Riiklik toimetulekutoetus
C29: 131936 | D29: Pühalepa sotsiaal | E29: 10701 | F29: Riiklik toimetulekutoetus
C30: 317524 | E30: 10701 Kokku
C31: 15800 | D31: Hiiu sotsiaal | E31: 10900 | F31: Muu sotsiaalne kaitse, sh sotsiaalse kaitse haldus
C32: 15800 | E32: 10900 Kokku
C33: 393161
G36: KOKKU | H36: 2018 Emmaste | I36: 2018 Kärdla | J36: 2018 Kõrgessaare | K36: 2018 Hiiumaa üldvalitsemine | L36: 2018 Pühalepa | M36: 2018 Käina
E37: 3156335 | F37: =E37-G38 -> 2804176 | G37: 3200055
A38: 352 | B38: Saadud mittesihtotstarbeline finantseerimine | C38: =SUM(C39:C43) -> 393161 | G38: =SUM(G39:G43) -> 352159 | H38: 0 | I38: 0 | J38: 0 | K38: 352159 | L38: 0 | M38: 0 | N38: 307207
A39: 10121 | B39: Muu puuetega inimeste sotsiaalne kaitse Lapsehoiuteenus | C39: 5993 | D39: Emmaste puudega lapsed | G39: =SUM(H39:M39) -> 5993 | H39: 0 | K39: 5993 | N39: 6829
A40: 10201
A41: 10402 | B41: Muu perekondade ja laste sotsiaalne kaitse, matus , puudega lapse teenus | C41: 53844 | D41: 30196 Matus 11948 11700 hiiu lapsehoiuteenus | E41: juurde 473 matus maha 8529 puudega lapse teenus | F41: =473+G41-8529 -> 45788 | G41: 53844 | I41: 0 | J41: 0 | K41: =53844 -> 53844
A42: 10701 | B42: Riiklik toimetulekutoetus | C42: 317524 | D42: Hiiu 145000 Emmaste 27053 Käina 4229 141242 | E42: maha 42089 | F42: =G42-42089 -> 234433 | G42: 276522 | H42: 0 | K42: =317524-41002 -> 276522 | M42: 0 | N42: 275435
A43: 10900 | B43: Muu sotsiaalne kaitse, sh sotsiaalse kaitse haldus administreerimiskulu | C43: 15800 | D43: Hiiu vald | E43: juurde 9143 | F43: =9143+G43 -> 24943 | G43: 15800 | K43: 15800 | N43: 24943
G44: =G39+G41+G42+G43 -> 352159
B45: Kirje | C45: Summa | D45: Eelarvekonto | E45: Projekt | G45: Üksus | I45: Tegevusala | K45: Objekt
B46: Rahvastikutoimingute kulude hüvitis | C46: 11522 | D46: 352000 | E46: 1001 | F46: Rahandusministeerium - toetusfond | G46: 20 | H46: Vallavalitsus | I46: 01112 | J46: Valla- ja linnavalitsus
B47: Kohaliku omavalitsuse toetusfond | C47: 25 | D47: 352000 | G47: 24 | H47: Emmaste osavallavalitsus | I47: 01112 | J47: Valla- ja linnavalitsus
B48: Kohaliku omavalitsuse toetusfond | C48: 50 | D48: 352000 | G48: 23 | H48: Käina osavallavalitsus | I48: 01112 | J48: Valla- ja linnavalitsus
B49: Kohaliku omavalitsuse toetusfond HH HT | C49: 39215 | D49: 352000 | E49: 1002 | F49: Rahandusministeerium - huvihariduse toetus | G49: 25 | H49: Pühalepa osavallavalitsus | I49: 01112 | J49: Valla- ja linnavalitsus | K49: 13 | L49: Toetuseelarve
B50: Kohaliku omavalitsuse toetusfond | C50: 21899 | D50: 352000 | G50: 25 | H50: Pühalepa osavallavalitsus | I50: 01112 | J50: Valla- ja linnavalitsus | K50: 13 | L50: Toetuseelarve
C51: 72711 | I51: 01112 Kokku
B52: Kohaliku omavalitsuse toetusfond | C52: 16093 | D52: 352000 | G52: 20 | H52: Vallavalitsus | I52: 01800 | J52: Üldiseloomuga ülekanded valitsussektoris | K52: 13 | L52: Toetuseelarve
C53: 16093 | I53: 01800 Kokku
B54: Kohaliku omavalitsuse toetusfond | C54: 8300 | D54: 352000 | G54: 264 | H54: Hiiu majandus | I54: 05100 | J54: Jäätmekäitlus (sh prügivedu)
B55: Kohaliku omavalitsuse toetusfond | C55: 2205 | D55: 352000 | G55: 244 | H55: Emmaste majandus | I55: 05100 | J55: Jäätmekäitlus (sh prügivedu)
C56: 10505 | I56: 05100 Kokku
B57: Kohaliku omavalitsuse toetusfond | C57: 3532 | D57: 352000 | G57: 234 | H57: Käina majandus | I57: 05101 | J57: Avalike alade puhastus (2017)
C58: 3532 | I58: 05101 Kokku
B59: Kohaliku omavalitsuse toetusfond HH HT | C59: 22750 | D59: 352000 | E59: 1002 | F59: Rahandusministeerium - huvihariduse toetus | G59: N41 | H59: Emmaste Avatud Noortekeskus | I59: 08107 | J59: Noorsootöö ja noortekeskused
B60: Tegevuse toetamiseks | C60: 39942 | D60: 352100 | E60: 1002 | F60: Rahandusministeerium - huvihariduse toetus | G60: 236 | H60: Käina kultuur | I60: 08107 | J60: Noorsootöö ja noortekeskused
C61: 62692 | I61: 08107 Kokku
C62: 165533 | I62: Üldkokkuvõte
G64: KOKKU | H64: 2018 Emmaste | I64: 2018 Kärdla | J64: 2018 Kõrgessaare | K64: 2018 Hiiumaa üldvalitsemine | L64: 2018 Pühalepa | M64: 2018 Käina
A65: 01112 | B65: Valla- ja linnavalitsus | C65: 72711 | D65: Rahvastikutoimingud 11522 Pühalepa HHHT 39215 Pühalepa koolitoit 17500;Lasteaia teenuse toetus 1200; jäätmed 3199;Sünnid, surmad Käina 50 Emmaste 25 | G65: =SUM(H65:M65) -> 50737 | K65: =72711-3199-17500-50-25-1200 -> 50737 | M65: 0
A66: 01800 | B66: Üldiseloomuga ülekanded valitsussektoris | C66: 16093 | D66: Ressursitasude komp 1093 Hiiu 15000 Lasteaia toetus | E66: juurde Emmaste lasteaed 12951 | G66: 69653 | H66: 0 | K66: =16093+41702+12951-1093 -> 69653
A67: 04510 | B67: Maanteetransport | C67: 434634 | D67: teed | G67: 435111 | H67: =75318+100 -> 75418 | I67: =131845+77 -> 131922 | J67: =59330+100 -> 59430 | L67: =84377+100 -> 84477 | M67: =83764+100 -> 83864 | N67: 435111
A68: 05100 | B68: Jäätmekäitlus (sh prügivedu) | C68: 10505 | D68: jäätmed | G68: 0 | H68: 0 | K68: =10505-10505 -> 0 | N68: 0
A69: 05101 | B69: Avalike alade puhastus (2017) | C69: 3532 | D69: jäätmed | G69: 0 | K69: =3532-3532 -> 0 | M69: 0 | N69: 0
A70: 08107 | B70: Noorsootöö ja noortekeskused | C70: 62692 | D70: Käina HHHT 39942 Emmaste HHHT 22750 | G70: 62692 | H70: 0 | K70: 62692 | M70: 0 | N70: 200273
A71: 09510 | B71: Noorte huviharidus ja huvitegevus (2017, varem 08105, 08106) | C71: 79715 | D71: Hiiu HHHT | G71: 98366 | K71: =79715+18651 -> 98366
A72: 09110 | B72: Alusharidus | C72: 25300 | D72: käina lasteaed | G72: 25300 | H72: 0 | K72: 25300 | N72: 94953
A73: 09800 | B73: Muu haridus, sh hariduse haldus | C73: =14097+227514+331282+121752+407269+784026+12951+21041+71514+71514+38752 -> 2101712 | D73: Emmaste kool 14097+227514 Käina 331282 Pühalepa eritugi 121752+407269 Hiiu vald 784026 Emmaste lasteaed 12951 | E73: maha Emmaste lasteaed 12951 | G73: =SUM(H73:M73) -> 2062317 | H73: =21041+57 -> 21098 | I73: =71514+7028 -> 78542 | J73: =71514-58290 -> 13224 | K73: =1898891-12951 -> 1885940 | L73: 25225 | M73: =38752-464 -> 38288 | N73: 2062317

Sheet Riigitoetus koolid
D1: Üldhariduskoolide pidamiseks antav toetus 2017
B2: õpilaste arv 2017 | C2: 2017. aasta koefitsient | D2: sh põhikooli õpetajate tööjõukuludeks | E2: sh direktorite ja õppealajuhatajate tööjõukuldeks | F2: sh tõhustatud ja eritoe tegevuskuludeks | G2: sh õpetajate, direktorite ja õppealajuhatajate täienduskoolitusteks | H2: sh õppekirjanduseks | I2: sh koolilõunaks
A3: Palade Põhikool | B3: 73 | C3: 1.97 | D3: 259149 | E3: 17600 | G3: 2200 | H3: 5700 | I3: 13650
A4: Suuremõisa Põhikool | B4: 27 | C4: 1.97
A5: Käina Põhikool | B5: 153 | C5: 1.33 | D5: 266359 | E5: 30048 | G5: 3256 | H5: 8721 | I5: 20885
A6: Emmaste Põhikool | B6: 83 | C6: 1.98 | D6: 218807 | E6: 14097 | G6: 1610 | H6: 4731 | I6: 11330
A7: Lauka Põhikool | B7: 58 | C7: 1.32 | D7: 689444 | E7: 56536 | G7: 7318 | H7: 20816 | I7: 49823
A8: Kärdla Põhikool | B8: 308 | C8: 1.32
A9: KOKKU 2017 | B9: =SUM(B3:B8) -> 702 | D9: =SUM(D3:D8) -> 1433759 | E9: =SUM(E3:E7) -> 118281 | F9: =SUM(F3:F8) -> 0 | G9: =SUM(G3:G8) -> 14384 | H9: =SUM(H3:H8) -> 39968 | I9: =SUM(I3:I8) -> 95688
D13: Üldhariduskoolide pidamiseks antav toetus 2018
B14: õpilaste arv 2018 | C14: 2017. aasta koefitsient | D14: sh põhikooli õpetajate tööjõukuludeks 2018 | E14: sh direktorite ja õppealajuhatajate tööjõukuldeks | F14: sh tõhustatud ja eritoe tegevuskuludeks | G14: sh õpetajate, direktorite ja õppealajuhatajate täienduskoolitusteks | H14: sh õppekirjanduseks | I14: sh koolilõunaks | J14: Üldhariduskoolide pidamiseks antav toetus osavaldade eelarves | K14: Üldhariduskoolide pidamiseks antav toetus üldvalitsuse eelarves
A15: Palade Põhikool | B15: 73 | C15: 1.97 | D15: 215583 | E15: 17600 | F15: 8544 | G15: 1672 | H15: 4161 | I15: 12600 | J15: =G15+H15+I15 -> 18433
A16: Suuremõisa Põhikool | B16: 27 | C16: 1.97 | D16: 78650 | F16: 2136 | G16: 528 | H16: 1539 | I16: 4725 | J16: 6792
A17: Käina Põhikool | B17: 151 | C17: 1.33 | D17: 302549 | E17: 30048 | F17: 6408 | G17: 3256 | H17: 8607 | I17: 26425 | J17: 38288
A18: Emmaste Põhikool | B18: 84 | C18: 1.98 | D18: 251681 | E18: 14097 | F18: 10680 | G18: 1610 | H18: 4788 | I18: 14700 | J18: 21098
A19: Lauka Põhikool | B19: 52 | C19: 1.32 | D19: =106403+278 -> 106681 | E19: 8171 | F19: 5340 | G19: 1160 | H19: 2964 | I19: 9100 | J19: 13224
A20: Kärdla Põhikool | B20: 312 | C20: 1.32 | D20: 690763 | E20: =56536-E19 -> 48365 | F20: 88644 | G20: 6158 | H20: 17784 | I20: 54600 | J20: 78542
A21: Üldvalitsemine | B21: 0 | D21: =SUM(D15:D20) -> 1645907 | E21: =SUM(E15:E20) -> 118281 | F21: =SUM(F15:F20) -> 121752 | K21: =SUM(D21:J21) -> 1885940
A22: KOKKU | B22: =SUM(B15:B21) -> 699 | D22: =SUM(D15:D20) -> 1645907 | E22: 118281 | F22: 121752 | G22: =SUM(G15:G20) -> 14384 | H22: 39843 | I22: 122150 | J22: 176377 | K22: =SUM(K21) -> 1885940
A23: Üldhariduskoolide pidamiseks antav toetus KOKKU | J23: =SUM(J22:K22) -> 2062317

Sheet Leht3 (hidden)

Sheet Koolide haridusrahad (hidden)
A1: Maakond | B1: Kohalik omavalitsus | C1: Kohalik omavalitsus | D1: Kohalik omavalitsus | G1: Õpilaste arv | AB1: Väike gümnaasiumi lisa koefitsient | AC1: Toetus põhikooli õpetaja tööjõukuludeks | AO1: Toetus gümnaasiumi õpetaja tööjõukuludeks | AV1: Direktori ja õppeala-juhataja tööjõukulud | AY1: Täiendus-koolitus | AZ1: Õppe-kirjandus | BA1: Koolilõuna | BB1: Tõhustatud ja eritoe tegevustoetus | BE1: Toetus 2018 KOKKU | BK1: Toetus 2017 | BL1: Muutus | BM1: Toetus 2014 juhtimis-kuludeks | BN1: Toetus 2014 täienduskoolitus
G2: Tava | I2: Tõhustatud tugi | K2: Eritugi | O2: Koduõpe lapse-vanema soovil | P2: Mittestatsionaarne PK | T2: Mittestatsionaarne G | X2: KOKKU | Y2: sh mittestatsionaarne | AC2: Tavaõpe | AE2: HEV | AF2: Koduõpe lapse-vanema soovil | AG2: Mitte-statsionaarne | AH2: Väikesaarte lisa | AI2: Õpilase kohta toetuse säilitamine | AJ2: HEV rahastuse muutuse tasandus | AL2: KOKKU | AO2: Tavaõpe | AQ2: HEV | AR2: Mitte-statsionaarne | AS2: Väike G lisa | AT2: Vene koolide 60/40 õppe lisa | AU2: KOKKU
G3: PK | H3: G | I3: PK | J3: G | K3: PK | L3: KÕP PK | M3: G | N3: KÕP G | P3: Tava | Q3: Ekstern | R3: Üksik-ained | S3: Üksikaine kursusi | T3: Tava | U3: Ekstern | V3: Üksik-ained | W3: Üksikaine kursusi | Y3: tõhustatud tugi PK | Z3: tõhustatud tugi G | AA3: eritugi | AC3: koefitsient PK | AD3: Toetus | AK3: 2017 | AM3: Õpetajate palgakulu | AN3: VAHE | AO3: koefitsient G | AP3: Toetus | AW3: Direktori palk | AX3: VAHE | BC3: Eritoe palk
A4: Harju | B4: Aegviidu, Anija | C4: Anija | D4: Anija vald | G4: 450 | H4: 39 | I4: 71 | J4: 0 | K4: 5 | L4: 0 | M4: 0 | N4: 0 | O4: 0 | P4: 0 | Q4: 0 | R4: 0 | S4: 0 | T4: 0 | U4: 0 | V4: 0 | W4: 0 | X4: =SUM(G4:W4)-S4-W4 -> 565 | Y4: 0 | Z4: 0 | AA4: 0 | AB4: 0 | AC4: 1.469 | AD4: =ROUND(G4*AC4*C$33,0) -> 976371 | AE4: =ROUND((I4*I$29+K4*K$29+L4*L$29)*C$33,0) -> 239274 | AF4: =ROUND(O4*O$29*C$33,0) -> 0 | AG4: =ROUND((P4*P$29+Q4*Q$29+S4*S$29)*C$33,0) -> 0 | AL4: =SUM(AD4:AJ4) -> 1215645 | AO4: 1.12 | AP4: =ROUND(H4*AO4*C$33,0) -> 64515 | AQ4: =ROUND((J4*J$29+M4*M$29+N4*N$29)*C$33,0) -> 0 | AR4: =ROUND((T4*T$29)*C$33,0)+ROUND((W4*W$29)*C$33,0)+ROUND((U4*U$29)*C$33,0) -> 0 | AS4: =ROUND(H4*AB4*C$33,0) -> 0 | AT4: =ROUND(H4*C$33*AT$29,0) -> 5760 | AU4: =SUM(AP4:AT4) -> 70275 | AV4: =ROUND(MAX(X4*C$34,BM4),0) -> 71164 | AY4: =ROUND(MAX(X4*C$35,BN4),0) -> 9598 | AZ4: =ROUND((SUM(G4:N4)+O4+P4+SUM(Q4:R4)/5+T4+SUM(U4:V4)/5)*C$36,0) -> 32205 | BA4: =ROUND((G4+H4+I4+J4+K4+M4)*C$37,0) -> 98875 | BB4: =ROUND((I4*I$30+J4*J$30+K4*K$30+L4*L$30+M4*M$30+N4*N$30)*C$38,0)+ROUND((Y4*Y$30)*C$38,0)+ROUND((Z4*Z$30+AA4*AA$30)*C$38,0) -> 97188 | BE4: =AL4+AU4+AV4+AY4+AZ4+BA4+BB4 -> 1594950 | BK4: 1276874 | BL4: =BE4-BK4 -> 318076 | BM4: 71164 | BN4: 9598
A5: Harju | B5: Harku | C5: Harku | D5: Harku vald | G5: 1547 | H5: 105 | I5: 22 | J5: 0 | K5: 22 | L5: 0 | M5: 0 | N5: 0 | O5: 4 | P5: 0 | Q5: 0 | R5: 0 | S5: 0 | T5: 0 | U5: 0 | V5: 0 | W5: 0 | X5: =SUM(G5:W5)-S5-W5 -> 1700 | Y5: 0 | Z5: 0 | AA5: 0 | AB5: 0.074 | AC5: 1 | AD5: 2284919 | AE5: 194964 | AF5: 3131 | AG5: 0 | AL5: =SUM(AD5:AJ5) -> 2483014 | AO5: 1.12 | AP5: 173695 | AQ5: 0 | AR5: 0 | AS5: 11476 | AU5: =SUM(AP5:AT5) -> 185171 | AV5: =MAX(X5*C$34,BM5) -> 156400 | AY5: =MAX(X5*C$35,BN5) -> 20400 | AZ5: 96900 | BA5: 296800 | BB5: 117480 | BE5: 3356165 | BK5: 2686489 | BL5: =BE5-BK5 -> 669676 | BM5: 108839 | BN5: 14128
A6: Harju | B6: Jõelähtme | C6: Jõelähtme | D6: Jõelähtme vald | G6: 609 | H6: 68 | I6: 5 | J6: 0 | K6: 11 | L6: 1 | M6: 0 | N6: 0 | O6: 1 | P6: 0 | Q6: 0 | R6: 0 | S6: 0 | T6: 0 | U6: 0 | V6: 0 | W6: 0 | X6: 695 | Y6: 0 | Z6: 0 | AA6: 0 | AB6: 0.092 | AC6: 1.36 | AD6: 1223310 | AE6: 85666 | AF6: 783 | AG6: 0 | AL6: 1309759 | AO6: 1.12 | AP6: 112488 | AQ6: 0 | AR6: 0 | AS6: 9240 | AU6: 121728 | AV6: 63940 | AY6: 8340 | AZ6: 39615 | BA6: 121275 | BB6: 56604 | BE6: 1721261 | BK6: 1328388 | BL6: 392873 | BM6: 58243 | BN6: 6951
A7: Harju | B7: Keila linn | C7: Keila linn | D7: Keila linn | G7: 1230 | H7: 204 | I7: 109 | J7: 0 | K7: 37 | L7: 0 | M7: 0 | N7: 0 | O7: 5 | P7: 26 | Q7: 0 | R7: 0 | S7: 0 | T7: 119 | U7: 0 | V7: 0 | W7: 0 | X7: 1730 | Y7: 0 | Z7: 0 | AA7: 0 | AB7: 0.027 | AC7: 1.03 | AD7: 1871211 | AE7: 540582 | AF7: 3914 | AG7: 38402 | AL7: 2454109 | AO7: 1.12 | AP7: 337465 | AQ7: 0 | AR7: 151156 | AS7: 8135 | AU7: 496756 | AV7: 159160 | AY7: 20760 | AZ7: 98610 | BA7: 276500 | BB7: 274476 | BE7: 3780371 | BK7: 2961801 | BL7: 818570 | BM7: 103926 | BN7: 18836
A8: Harju | B8: Kiili | C8: Kiili | D8: Kiili vald | G8: 713 | H8: 66 | I8: 8 | J8: 0 | K8: 7 | L8: 0 | M8: 0 | N8: 0 | O8: 0 | P8: 0 | Q8: 0 | R8: 0 | S8: 0 | T8: 0 | U8: 0 | V8: 0 | W8: 0 | X8: 794 | Y8: 0 | Z8: 0 | AA8: 0 | AB8: 0.093 | AC8: 1.03 | AD8: 1084694 | AE8: 64988 | AF8: 0 | AG8: 0 | AL8: 1149682 | AO8: 1.12 | AP8: 109180 | AQ8: 0 | AR8: 0 | AS8: 9066 | AU8: 118246 | AV8: 73048 | AY8: 9528 | AZ8: 45258 | BA8: 138950 | BB8: 38448 | BE8: 1573160 | BK8: 1276044 | BL8: 297116 | BM8: 47533 | BN8: 6979
A9: Harju | B9: Kose | C9: Kose | D9: Kose vald | G9: 754 | H9: 102 | I9: 5 | J9: 0 | K9: 13 | L9: 1 | M9: 4 | N9: 1 | O9: 4 | P9: 0 | Q9: 0 | R9: 0 | S9: 0 | T9: 2 | U9: 0 | V9: 1 | W9: 9 | X9: 887 | Y9: 0 | Z9: 0 | AA9: 0 | AB9: 0.076 | AC9: 1.3 | AD9: 1447755 | AE9: 97482 | AF9: 3131 | AG9: 0 | AL9: 1548368 | AO9: 1.12 | AP9: 168732 | AQ9: 29540 | AR9: 3471 | AS9: 11450 | AU9: 213193 | AV9: 92119 | AY9: 11612 | AZ9: 50513 | BA9: 153650 | BB9: 86508 | BE9: 2155963 | BK9: 1743292 | BL9: 412671 | BM9: 92119 | BN9: 11612
A10: Harju | B10: Kuusalu | C10: Kuusalu | D10: Kuusalu vald | G10: 693 | H10: 80 | I10: 6 | J10: 0 | K10: 30 | L10: 1 | M10: 1 | N10: 0 | O10: 1 | P10: 0 | Q10: 0 | R10: 0 | S10: 0 | T10: 0 | U10: 0 | V10: 0 | W10: 0 | X10: 812 | Y10: 0 | Z10: 0 | AA10: 0 | AB10: 0.086 | AC10: 1.24 | AD10: 1269216 | AE10: 200872 | AF10: 783 | AG10: 0 | AL10: 1470871 | AO10: 1.12 | AP10: 132339 | AQ10: 5908 | AR10: 0 | AS10: 10162 | AU10: 148409 | AV10: 74932 | AY10: 10747 | AZ10: 46284 | BA10: 141750 | BB10: 143112 | BE10: 2036105 | BK10: 1555959 | BL10: 480146 | BM10: 74932 | BN10: 10747
A11: Harju | B11: Loksa | C11: Loksa linn | D11: Loksa linn | G11: 235 | H11: 51 | I11: 3 | J11: 0 | K11: 1 | L11: 0 | M11: 0 | N11: 0 | O11: 0 | P11: 0 | Q11: 0 | R11: 0 | S11: 0 | T11: 0 | U11: 0 | V11: 0 | W11: 0 | X11: 290 | Y11: 0 | Z11: 0 | AA11: 0 | AB11: 0.1 | AC11: 1.52 | AD11: 527584 | AE11: 14770 | AF11: 0 | AG11: 0 | AJ11: 4163 | AL11: 546517 | AO11: 1.12 | AP11: 84366 | AQ11: 0 | AR11: 0 | AS11: 7533 | AT11: =ROUND(H11*C$33*AT$29,0) -> 7533 | AU11: 99432 | AV11: 34199 | AY11: 6498 | AZ11: 16530 | BA11: 50750 | BB11: 7476 | BE11: 761402 | BK11: 690156 | BL11: 71246 | BM11: 34199 | BN11: 6498
A12: Harju | B12: Keila vald, Paldiski linn, Vasalemma, Padise | C12: Lääne-Harju | D12: Lääne-Harju vald | G12: 916 | H12: 47 | I12: 58 | J12: 0 | K12: 19 | L12: 1 | M12: 0 | N12: 0 | O12: 4 | P12: 1 | Q12: 0 | R12: 0 | S12: 0 | T12: 60 | U12: 0 | V12: 0 | W12: 0 | X12: 1106 | Y12: 0 | Z12: 0 | AA12: 0 | AB12: 0.057 | AC12: 1.535 | AD12: 2076751 | AE12: 289492 | AF12: 3131 | AG12: 1477 | AL12: 2370851 | AO12: 1.12 | AP12: 77749 | AQ12: 0 | AR12: 76213 | AS12: 3957 | AT12: =ROUND(H12*C$33*AT$29,0) -> 6942 | AU12: 164861 | AV12: 166722 | AY12: 18484 | AZ12: 63042 | BA12: 182000 | BB12: 147384 | BE12: 3113344 | BK12: 2528601 | BL12: 584743 | BM12: 166722 | BN12: 18484
A13: Harju | B13: Maardu linn | C13: Maardu linn | D13: Maardu linn | G13: 1125 | H13: 109 | I13: 35 | J13: 0 | K13: 31 | L13: 3 | M13: 0 | N13: 0 | O13: 0 | P13: 9 | Q13: 0 | R13: 0 | S13: 0 | T13: 81 | U13: 0 | V13: 0 | W13: 0 | X13: 1393 | Y13: 0 | Z13: 0 | AA13: 0 | AB13: 0.072 | AC13: 1.03 | AD13: 1711474 | AE13: 304262 | AF13: 0 | AG13: 13293 | AL13: 2029029 | AO13: 1.12 | AP13: 180312 | AQ13: 0 | AR13: 102888 | AS13: 11591 | AU13: 294791 | AV13: 128156 | AY13: 17960 | AZ13: 79401 | BA13: 227500 | BB13: 182628 | BE13: 2959465 | BK13: 2373306 | BL13: 586159 | BM13: 124790 | BN13: 17960
A14: Harju | B14: Raasiku | C14: Raasiku | D14: Raasiku vald | G14: 576 | H14: 0 | I14: 13 | J14: 0 | K14: 10 | L14: 0 | M14: 0 | N14: 0 | O14: 0 | P14: 0 | Q14: 0 | R14: 0 | S14: 0 | T14: 0 | U14: 0 | V14: 0 | W14: 0 | X14: 599 | Y14: 0 | Z14: 0 | AA14: 0 | AB14: 0 | AC14: 1.31 | AD14: 1114485 | AE14: 97482 | AF14: 0 | AG14: 0 | AL14: 1211967 | AO14: 0 | AP14: 0 | AQ14: 0 | AR14: 0 | AS14: 0 | AU14: 0 | AV14: 61068 | AY14: 7216 | AZ14: 34143 | BA14: 104825 | BB14: 56604 | BE14: 1475823 | BK14: 1153808 | BL14: 322015 | BM14: 61068 | BN14: 7216
A15: Harju | B15: Rae | C15: Rae | D15: Rae vald | G15: 2483 | H15: 162 | I15: 21 | J15: 2 | K15: 34 | L15: 1 | M15: 0 | N15: 0 | O15: 7 | P15: 0 | Q15: 0 | R15: 0 | S15: 0 | T15: 0 | U15: 0 | V15: 0 | W15: 0 | X15: 2710 | Y15: 0 | Z15: 0 | AA15: 0 | AB15: 0.047 | AC15: 1 | AD15: 3667391 | AE15: 268814 | AF15: 5480 | AG15: 0 | AL15: 3941685 | AO15: 1.12 | AP15: 267987 | AQ15: 7976 | AR15: 0 | AS15: 11246 | AU15: 287209 | AV15: 249320 | AY15: 32520 | AZ15: 154470 | BA15: 472850 | BB15: 175579 | BE15: 5313633 | BK15: 3957565 | BL15: 1356068 | BM15: 151603 | BN15: 19426
A16: Harju | B16: Saku | C16: Saku | D16: Saku vald | G16: 1263 | H16: 171 | I16: 28 | J16: 0 | K16: 23 | L16: 1 | M16: 0 | N16: 0 | O16: 1 | P16: 0 | Q16: 0 | R16: 0 | S16: 0 | T16: 0 | U16: 0 | V16: 0 | W16: 0 | X16: 1487 | Y16: 0 | Z16: 0 | AA16: 0 | AB16: 0.043 | AC16: 1 | AD16: 1865451 | AE16: 224504 | AF16: 783 | AG16: 0 | AL16: 2090738 | AO16: 1.12 | AP16: 282875 | AQ16: 0 | AR16: 0 | AS16: 10860 | AU16: 293735 | AV16: 136804 | AY16: 17844 | AZ16: 84759 | BA16: 259875 | BB16: 132432 | BE16: 3016187 | BK16: 2332441 | BL16: 683746 | BM16: 98508 | BN16: 13613
A17: Harju | B17: Saue vald, Saue linn, Kernu, Nissi | C17: Saue | D17: Saue vald | G17: 2257 | H17: 113 | I17: 69 | J17: 0 | K17: 58 | L17: 1 | M17: 1 | N17: 0 | O17: 6 | P17: 0 | Q17: 0 | R17: 0 | S17: 0 | T17: 0 | U17: 0 | V17: 0 | W17: 0 | X17: 2505 | Y17: 0 | Z17: 0 | AA17: 0 | AB17: 0.07 | AC17: 1.109 | AD17: 3696950 | AE17: 552398 | AF17: 4697 | AG17: 0 | AL17: 4254045 | AO17: 1.12 | AP17: 186929 | AQ17: 5908 | AR17: 0 | AS17: 11683 | AU17: 204520 | AV17: 230460 | AY17: 30060 | AZ17: 142785 | BA17: 437150 | BB17: 330012 | BE17: 5629032 | BK17: 4499437 | BL17: 1129595 | BM17: 216644 | BN17: 28352
A18: Harju | B18: Tallinn | C18: Tallinn | D18: Tallinna linn | G18: 33564 | H18: 7415 | I18: 560 | J18: 26 | K18: 1077 | L18: 27 | M18: 25 | N18: 2 | O18: 135 | P18: 153 | Q18: 0 | R18: 4 | S18: 19 | T18: 1444 | U18: 139 | V18: 165 | W18: 1155 | X18: 44736 | Y18: 13 | Z18: 2 | AA18: 1 | AB18: 0 | AC18: 1 | AD18: 49574028 | AE18: 8176672 | AF18: 105679 | AG18: 227665 | AL18: 58084044 | AO18: 1 | AP18: 10951955 | AQ18: 263201 | AR18: 2021363 | AS18: 0 | AU18: 13236519 | AV18: 4115712 | AY18: 536832 | AZ18: 2535907 | BA18: 7466725 | BB18: 5493686 | BE18: 91469425 | BK18: 73222379 | BL18: 18247046 | BM18: 3224948 | BN18: 491412
A19: Harju | B19: Viimsi | C19: Viimsi | D19: Viimsi vald | G19: 2195 | H19: 253 | I19: 33 | J19: 0 | K19: 67 | L19: 2 | M19: 0 | N19: 0 | O19: 17 | P19: 0 | Q19: 0 | R19: 0 | S19: 0 | T19: 0 | U19: 0 | V19: 0 | W19: 0 | X19: 2567 | Y19: 0 | Z19: 0 | AA19: 0 | AB19: 0 | AC19: 1 | AD19: 3242015 | AE19: 505134 | AF19: 13308 | AG19: 0 | AL19: 3760457 | AO19: 1.12 | AP19: 418523 | AQ19: 0 | AR19: 0 | AS19: 0 | AU19: 418523 | AV19: 236164 | AY19: 30804 | AZ19: 146319 | BA19: 445900 | BB19: 330012 | BE19: 5368179 | BK19: 4185072 | BL19: 1183107 | BM19: 118705 | BN19: 23347
A20: Hiiu | B20: Käina, Hiiu, Emmaste, Pühalepa | C20: Hiiumaa | D20: Hiiumaa vald | G20: 642 | H20: 0 | I20: 38 | J20: 0 | K20: 18 | L20: 1 | M20: 0 | N20: 0 | O20: 0 | P20: 0 | Q20: 0 | R20: 0 | S20: 0 | T20: 0 | U20: 0 | V20: 0 | W20: 0 | X20: 699 | Y20: 0 | Z20: 0 | AA20: 0 | AB20: 0 | AC20: 1.499 | AD20: 1421403 | AE20: 224504 | AF20: 0 | AG20: 0 | AK20: =SUM(AK21:AK27) -> 1433759 | AL20: 1645907 | AO20: 1.12 | AP20: 0 | AQ20: 0 | AR20: 0 | AS20: 0 | AU20: 0 | AV20: 118281 | AY20: 14384 | AZ20: 39843 | BA20: 122150 | BB20: 121752 | BE20: 2062317 | BK20: 1702080 | BL20: 360237 | BM20: 118281 | BN20: 14384
C21: Pühalepa OV | D21: Palade Põhikool | G21: 71 | I21: 3 | X21: 74 | AC21: 1.499 | AD21: 157196 | AE21: 8862 | AK21: 259149 | AL21: 166058 | AN21: =(AL21+AL22)-(AM21+AM22) -> 225837 | AV21: 17600 | AY21: 2200 | AZ21: 4218 | BA21: 12950 | BB21: 3204 | BE21: 206230
D22: Suuremõisa Lasteaed-Põhikool | G22: 27 | X22: 27 | AC22: 1.499 | AD22: 59779 | AE22: 0 | AL22: 59779 | AZ22: 1539 | BA22: 4725 | BB22: 0 | BE22: 66043
C23: Käina OV | D23: Käina Põhikool | G23: 148 | I23: 1 | K23: 2 | X23: 151 | AC23: 1.499 | AD23: 327675 | AE23: 14770 | AK23: 266359 | AL23: 342445 | AM23: =(284459.3-853.3)*1.338 -> 379464.828 | AN23: =AL23-AM23 -> -37019.828 | AV23: 30048 | AW23: =31485*1.338 -> 42126.93 | AX23: =AV23-AW23 -> -12078.93 | AY23: 3256 | AZ23: 8607 | BA23: 26425 | BB23: 9612 | BC23: =13800*1.338 -> 18464.4 | BE23: 420393
C24: Emmaste OV | D24: Emmaste Põhikool | G24: 80 | I24: 2 | K24: 2 | X24: 84 | AC24: 1.499 | AD24: 177122 | AE24: 17724 | AK24: 218807 | AL24: 194846 | AM24: =(184608-5784)*1.338 -> 239266.512 | AN24: =AL24-AM24 -> -44420.512 | AV24: 14097 | AW24: 16008 | AX24: =AV24-AW24 -> -1911 | AY24: 1610 | AZ24: 4788 | BA24: 14700 | BB24: 10680 | BC24: =(11640+3492)*1.338 -> 20246.616 | BE24: 240721
C25: Kõrgessaare OV | D25: Lauka Põhikool | G25: 52 | X25: =SUM(G25:W25)-S25-W25 -> 52 | AC25: 1.499 | AD25: 115129 | AE25: 0 | AL25: =SUM(AD25:AJ25) -> 115129 | AZ25: 2964 | BA25: 9100 | BB25: 0 | BE25: 127193
D26: Kõpus
C27: Kärdla OV | D27: Kärdla Põhikool | G27: =278-11-3 -> 264 | I27: =9+12+11 -> 32 | K27: =3+4+3+1+3 -> 14 | L27: 1 | X27: 311 | AC27: 1.499 | AD27: =ROUND(G27*AC27*C$33,0) -> 584502 | AE27: =ROUND((I27*I$29+K27*K$29+L27*L$29)*C$33,0) -> 183148 | AK27: 689444 | AL27: 767650 | AV27: 56536 | AW27: =1700*12*1.338 -> 27295.2 | AY27: 7318 | AZ27: =ROUND((SUM(G27:N27)+O27+P27+SUM(Q27:R27)/5+T27+SUM(U27:V27)/5)*C$36,0) -> 17727 | BA27: =ROUND((G27+H27+I27+J27+K27+M27)*C$37,0) -> 54250 | BB27: =ROUND((I27*I$30+J27*J$30+K27*K$30+L27*L$30+M27*M$30+N27*N$30)*C$38,0)+ROUND((Y27*Y$30)*C$38,0)+ROUND((Z27*Z$30+AA27*AA$30)*C$38,0) -> 98256 | BE27: =AL27+AU27+AV27+AY27+AZ27+BA27+BB27 -> 1001737
G28: =SUM(G21:G27) -> 642 | H28: 0 | I28: 38 | J28: 0 | K28: 18 | L28: 1 | M28: 0 | N28: 0 | X28: =SUM(X21:X27) -> 699 | AD28: =SUM(AD21:AD27) -> 1421403 | AE28: =SUM(AE21:AE27) -> 224504 | AK28: =SUM(AK21:AK27) -> 1433759 | AL28: =SUM(AL21:AL27) -> 1645907 | AM28: =SUM(AM21:AM27) -> 618731.34 | AV28: =SUM(AV21:AV27) -> 118281 | AY28: =SUM(AY21:AY27) -> 14384 | AZ28: =SUM(AZ21:AZ27) -> 39843 | BA28: =SUM(BA21:BA27) -> 122150 | BB28: =SUM(BB21:BB27) -> 121752 | BC28: =SUM(BC21:BC27) -> 38711.016 | BE28: =SUM(BE21:BE27) -> 2062317
C29: Õpetaja tööjõukulu koefitsiendid: | I29: 2 | J29: 2.7 | K29: 4 | L29: =K29 -> 4 | M29: =K29 -> 4 | N29: =L29 -> 4 | O29: 0.53 | P29: 1 | Q29: 0.31 | S29: 0.06 | T29: 0.86 | U29: 0.33 | W29: 0.07 | AT29: 0.1
C30: Tegevustoetuse koefitsiendid: | I30: 1 | J30: 1.7 | K30: 4 | L30: 4 | M30: 4 | N30: 4 | Y30: 0.7 | Z30: 1.3 | AA30: 4
B32: Toetusmäärad (eurodes)
B33: Õpetaja tööjõukulud | C33: =ROUND(1150*1.2*12*1.338/15,0) -> 1477
B34: Direktorite ja õppealajuhatajate tööjõukulud | C34: 92
B35: Täienduskoolitus | C35: 12
B36: Õppevahendid | C36: 57
B37: Koolilõuna | C37: 175
B38: HEV tegevuskulu toetus | C38: =89*12 -> 1068
C40: =ROUND(1150*1.2*12*1.338,0) -> 22157
A42: Maakond | B42: Kohalik omavalitsus | C42: Kohalik omavalitsus | D42: Kohalik omavalitsus | G42: Õpilaste arv 2018 | AB42: Väike gümnaasiumi lisa koefitsient | AC42: Toetus põhikooli õpetaja tööjõukuludeks | AO42: Toetus gümnaasiumi õpetaja tööjõukuludeks | AV42: Direktori ja õppeala-juhataja tööjõukulud | AY42: Täiendus-koolitus | AZ42: Õppe-kirjandus | BA42: Koolilõuna | BB42: Tõhustatud ja eritoe tegevustoetus | BE42: Toetus 2018 KOKKU | BK42: Toetus 2017 | BL42: Muutus | BM42: Toetus 2014 juhtimis-kuludeks | BN42: Toetus 2014 täienduskoolitus
F43: Õpilaste arv | G43: Tava | I43: Tõhustatud tugi | K43: Eritugi | O43: Koduõpe lapse-vanema soovil | P43: Mittestatsionaarne PK | T43: Mittestatsionaarne G | X43: KOKKU | Y43: sh mittestatsionaarne | AC43: Tavaõpe | AE43: HEV | AF43: Koduõpe lapse-vanema soovil | AG43: Mitte-statsionaarne | AH43: Väikesaarte lisa | AI43: Õpilase kohta toetuse säilitamine | AJ43: HEV rahastuse muutuse tasandus | AL43: KOKKU | AO43: Tavaõpe | AQ43: HEV | AR43: Mitte-statsionaarne | AS43: Väike G lisa | AT43: Vene koolide 60/40 õppe lisa | AU43: KOKKU
F44: 2017 | G44: PK | H44: G | I44: PK | J44: G | K44: PK | L44: KÕP PK | M44: G | N44: KÕP G | P44: Tava | Q44: Ekstern | R44: Üksik-ained | S44: Üksikaine kursusi | T44: Tava | U44: Ekstern | V44: Üksik-ained | W44: Üksikaine kursusi | Y44: tõhustatud tugi PK | Z44: tõhustatud tugi G | AA44: eritugi | AC44: koefitsient PK | AD44: Toetus | AK44: 2017 | AM44: Õpetajate palgakulu | AN44: VAHE | AO44: koefitsient G | AP44: Toetus | AW44: Direktori palk | AX44: VAHE | BC44: Eritoe palk | BD44: vahe | BF44: Toetus töötasu | BG44: Palgafond | BO44: TÖÖTASU TOETUS KOKKU | BP44: TÖÖTASU KOKKU | BQ44: vahe
A45: Harju | B45: Aegviidu, Anija | C45: Anija | D45: Anija vald | G45: 450 | H45: 39 | I45: 71 | J45: 0 | K45: 5 | L45: 0 | M45: 0 | N45: 0 | O45: 0 | P45: 0 | Q45: 0 | R45: 0 | S45: 0 | T45: 0 | U45: 0 | V45: 0 | W45: 0 | X45: =SUM(G45:W45)-S45-W45 -> 565 | Y45: 0 | Z45: 0 | AA45: 0 | AB45: 0 | AC45: 1.469 | AD45: =ROUND(G45*AC45*C$33,0) -> 976371 | AE45: =ROUND((I45*I$29+K45*K$29+L45*L$29)*C$33,0) -> 239274 | AF45: =ROUND(O45*O$29*C$33,0) -> 0 | AG45: =ROUND((P45*P$29+Q45*Q$29+S45*S$29)*C$33,0) -> 0 | AL45: =SUM(AD45:AJ45) -> 1215645 | AO45: 1.12 | AP45: =ROUND(H45*AO45*C$33,0) -> 64515 | AQ45: =ROUND((J45*J$29+M45*M$29+N45*N$29)*C$33,0) -> 0 | AR45: =ROUND((T45*T$29)*C$33,0)+ROUND((W45*W$29)*C$33,0)+ROUND((U45*U$29)*C$33,0) -> 0 | AS45: =ROUND(H45*AB45*C$33,0) -> 0 | AT45: =ROUND(H45*C$33*AT$29,0) -> 5760 | AU45: =SUM(AP45:AT45) -> 70275 | AV45: =ROUND(MAX(X45*C$34,BM45),0) -> 71164 | AY45: =ROUND(MAX(X45*C$35,BN45),0) -> 9598 | AZ45: =ROUND((SUM(G45:N45)+O45+P45+SUM(Q45:R45)/5+T45+SUM(U45:V45)/5)*C$36,0) -> 32205 | BA45: =ROUND((G45+H45+I45+J45+K45+M45)*C$37,0) -> 98875 | BB45: =ROUND((I45*I$30+J45*J$30+K45*K$30+L45*L$30+M45*M$30+N45*N$30)*C$38,0)+ROUND((Y45*Y$30)*C$38,0)+ROUND((Z45*Z$30+AA45*AA$30)*C$38,0) -> 97188 | BE45: =AL45+AU45+AV45+AY45+AZ45+BA45+BB45 -> 1594950 | BK45: 1276874 | BL45: =BE45-BK45 -> 318076 | BM45: 71164 | BN45: 9598
A46: Harju | B46: Harku | C46: Harku | D46: Harku vald | G46: 1547 | H46: 105 | I46: 22 | J46: 0 | K46: 22 | L46: 0 | M46: 0 | N46: 0 | O46: 4 | P46: 0 | Q46: 0 | R46: 0 | S46: 0 | T46: 0 | U46: 0 | V46: 0 | W46: 0 | X46: =SUM(G46:W46)-S46-W46 -> 1700 | Y46: 0 | Z46: 0 | AA46: 0 | AB46: 0.074 | AC46: 1 | AD46: 2284919 | AE46: 194964 | AF46: 3131 | AG46: 0 | AL46: =SUM(AD46:AJ46) -> 2483014 | AO46: 1.12 | AP46: 173695 | AQ46: 0 | AR46: 0 | AS46: 11476 | AU46: =SUM(AP46:AT46) -> 185171 | AV46: =MAX(X46*C$34,BM46) -> 156400 | AY46: =MAX(X46*C$35,BN46) -> 20400 | AZ46: 96900 | BA46: 296800 | BB46: 117480 | BE46: 3356165 | BK46: 2686489 | BL46: =BE46-BK46 -> 669676 | BM46: 108839 | BN46: 14128
A47: Harju | B47: Jõelähtme | C47: Jõelähtme | D47: Jõelähtme vald | G47: 609 | H47: 68 | I47: 5 | J47: 0 | K47: 11 | L47: 1 | M47: 0 | N47: 0 | O47: 1 | P47: 0 | Q47: 0 | R47: 0 | S47: 0 | T47: 0 | U47: 0 | V47: 0 | W47: 0 | X47: 695 | Y47: 0 | Z47: 0 | AA47: 0 | AB47: 0.092 | AC47: 1.36 | AD47: 1223310 | AE47: 85666 | AF47: 783 | AG47: 0 | AL47: 1309759 | AO47: 1.12 | AP47: 112488 | AQ47: 0 | AR47: 0 | AS47: 9240 | AU47: 121728 | AV47: 63940 | AY47: 8340 | AZ47: 39615 | BA47: 121275 | BB47: 56604 | BE47: 1721261 | BK47: 1328388 | BL47: 392873 | BM47: 58243 | BN47: 6951
A48: Harju | B48: Keila linn | C48: Keila linn | D48: Keila linn | G48: 1230 | H48: 204 | I48: 109 | J48: 0 | K48: 37 | L48: 0 | M48: 0 | N48: 0 | O48: 5 | P48: 26 | Q48: 0 | R48: 0 | S48: 0 | T48: 119 | U48: 0 | V48: 0 | W48: 0 | X48: 1730 | Y48: 0 | Z48: 0 | AA48: 0 | AB48: 0.027 | AC48: 1.03 | AD48: 1871211 | AE48: 540582 | AF48: 3914 | AG48: 38402 | AL48: 2454109 | AO48: 1.12 | AP48: 337465 | AQ48: 0 | AR48: 151156 | AS48: 8135 | AU48: 496756 | AV48: 159160 | AY48: 20760 | AZ48: 98610 | BA48: 276500 | BB48: 274476 | BE48: 3780371 | BK48: 2961801 | BL48: 818570 | BM48: 103926 | BN48: 18836
A49: Harju | B49: Kiili | C49: Kiili | D49: Kiili vald | G49: 713 | H49: 66 | I49: 8 | J49: 0 | K49: 7 | L49: 0 | M49: 0 | N49: 0 | O49: 0 | P49: 0 | Q49: 0 | R49: 0 | S49: 0 | T49: 0 | U49: 0 | V49: 0 | W49: 0 | X49: 794 | Y49: 0 | Z49: 0 | AA49: 0 | AB49: 0.093 | AC49: 1.03 | AD49: 1084694 | AE49: 64988 | AF49: 0 | AG49: 0 | AL49: 1149682 | AO49: 1.12 | AP49: 109180 | AQ49: 0 | AR49: 0 | AS49: 9066 | AU49: 118246 | AV49: 73048 | AY49: 9528 | AZ49: 45258 | BA49: 138950 | BB49: 38448 | BE49: 1573160 | BK49: 1276044 | BL49: 297116 | BM49: 47533 | BN49: 6979
A50: Harju | B50: Kose | C50: Kose | D50: Kose vald | G50: 754 | H50: 102 | I50: 5 | J50: 0 | K50: 13 | L50: 1 | M50: 4 | N50: 1 | O50: 4 | P50: 0 | Q50: 0 | R50: 0 | S50: 0 | T50: 2 | U50: 0 | V50: 1 | W50: 9 | X50: 887 | Y50: 0 | Z50: 0 | AA50: 0 | AB50: 0.076 | AC50: 1.3 | AD50: 1447755 | AE50: 97482 | AF50: 3131 | AG50: 0 | AL50: 1548368 | AO50: 1.12 | AP50: 168732 | AQ50: 29540 | AR50: 3471 | AS50: 11450 | AU50: 213193 | AV50: 92119 | AY50: 11612 | AZ50: 50513 | BA50: 153650 | BB50: 86508 | BE50: 2155963 | BK50: 1743292 | BL50: 412671 | BM50: 92119 | BN50: 11612
A51: Harju | B51: Kuusalu | C51: Kuusalu | D51: Kuusalu vald | G51: 693 | H51: 80 | I51: 6 | J51: 0 | K51: 30 | L51: 1 | M51: 1 | N51: 0 | O51: 1 | P51: 0 | Q51: 0 | R51: 0 | S51: 0 | T51: 0 | U51: 0 | V51: 0 | W51: 0 | X51: 812 | Y51: 0 | Z51: 0 | AA51: 0 | AB51: 0.086 | AC51: 1.24 | AD51: 1269216 | AE51: 200872 | AF51: 783 | AG51: 0 | AL51: 1470871 | AO51: 1.12 | AP51: 132339 | AQ51: 5908 | AR51: 0 | AS51: 10162 | AU51: 148409 | AV51: 74932 | AY51: 10747 | AZ51: 46284 | BA51: 141750 | BB51: 143112 | BE51: 2036105 | BK51: 1555959 | BL51: 480146 | BM51: 74932 | BN51: 10747
A52: Harju | B52: Loksa | C52: Loksa linn | D52: Loksa linn | G52: 235 | H52: 51 | I52: 3 | J52: 0 | K52: 1 | L52: 0 | M52: 0 | N52: 0 | O52: 0 | P52: 0 | Q52: 0 | R52: 0 | S52: 0 | T52: 0 | U52: 0 | V52: 0 | W52: 0 | X52: 290 | Y52: 0 | Z52: 0 | AA52: 0 | AB52: 0.1 | AC52: 1.52 | AD52: 527584 | AE52: 14770 | AF52: 0 | AG52: 0 | AJ52: 4163 | AL52: 546517 | AO52: 1.12 | AP52: 84366 | AQ52: 0 | AR52: 0 | AS52: 7533 | AT52: =ROUND(H52*C$33*AT$29,0) -> 7533 | AU52: 99432 | AV52: 34199 | AY52: 6498 | AZ52: 16530 | BA52: 50750 | BB52: 7476 | BE52: 761402 | BK52: 690156 | BL52: 71246 | BM52: 34199 | BN52: 6498
A53: Harju | B53: Keila vald, Paldiski linn, Vasalemma, Padise | C53: Lääne-Harju | D53: Lääne-Harju vald | G53: 916 | H53: 47 | I53: 58 | J53: 0 | K53: 19 | L53: 1 | M53: 0 | N53: 0 | O53: 4 | P53: 1 | Q53: 0 | R53: 0 | S53: 0 | T53: 60 | U53: 0 | V53: 0 | W53: 0 | X53: 1106 | Y53: 0 | Z53: 0 | AA53: 0 | AB53: 0.057 | AC53: 1.535 | AD53: 2076751 | AE53: 289492 | AF53: 3131 | AG53: 1477 | AL53: 2370851 | AO53: 1.12 | AP53: 77749 | AQ53: 0 | AR53: 76213 | AS53: 3957 | AT53: =ROUND(H53*C$33*AT$29,0) -> 6942 | AU53: 164861 | AV53: 166722 | AY53: 18484 | AZ53: 63042 | BA53: 182000 | BB53: 147384 | BE53: 3113344 | BK53: 2528601 | BL53: 584743 | BM53: 166722 | BN53: 18484
A54: Harju | B54: Maardu linn | C54: Maardu linn | D54: Maardu linn | G54: 1125 | H54: 109 | I54: 35 | J54: 0 | K54: 31 | L54: 3 | M54: 0 | N54: 0 | O54: 0 | P54: 9 | Q54: 0 | R54: 0 | S54: 0 | T54: 81 | U54: 0 | V54: 0 | W54: 0 | X54: 1393 | Y54: 0 | Z54: 0 | AA54: 0 | AB54: 0.072 | AC54: 1.03 | AD54: 1711474 | AE54: 304262 | AF54: 0 | AG54: 13293 | AL54: 2029029 | AO54: 1.12 | AP54: 180312 | AQ54: 0 | AR54: 102888 | AS54: 11591 | AU54: 294791 | AV54: 128156 | AY54: 17960 | AZ54: 79401 | BA54: 227500 | BB54: 182628 | BE54: 2959465 | BK54: 2373306 | BL54: 586159 | BM54: 124790 | BN54: 17960
A55: Harju | B55: Raasiku | C55: Raasiku | D55: Raasiku vald | G55: 576 | H55: 0 | I55: 13 | J55: 0 | K55: 10 | L55: 0 | M55: 0 | N55: 0 | O55: 0 | P55: 0 | Q55: 0 | R55: 0 | S55: 0 | T55: 0 | U55: 0 | V55: 0 | W55: 0 | X55: 599 | Y55: 0 | Z55: 0 | AA55: 0 | AB55: 0 | AC55: 1.31 | AD55: 1114485 | AE55: 97482 | AF55: 0 | AG55: 0 | AL55: 1211967 | AO55: 0 | AP55: 0 | AQ55: 0 | AR55: 0 | AS55: 0 | AU55: 0 | AV55: 61068 | AY55: 7216 | AZ55: 34143 | BA55: 104825 | BB55: 56604 | BE55: 1475823 | BK55: 1153808 | BL55: 322015 | BM55: 61068 | BN55: 7216
A56: Harju | B56: Rae | C56: Rae | D56: Rae vald | G56: 2483 | H56: 162 | I56: 21 | J56: 2 | K56: 34 | L56: 1 | M56: 0 | N56: 0 | O56: 7 | P56: 0 | Q56: 0 | R56: 0 | S56: 0 | T56: 0 | U56: 0 | V56: 0 | W56: 0 | X56: 2710 | Y56: 0 | Z56: 0 | AA56: 0 | AB56: 0.047 | AC56: 1 | AD56: 3667391 | AE56: 268814 | AF56: 5480 | AG56: 0 | AL56: 3941685 | AO56: 1.12 | AP56: 267987 | AQ56: 7976 | AR56: 0 | AS56: 11246 | AU56: 287209 | AV56: 249320 | AY56: 32520 | AZ56: 154470 | BA56: 472850 | BB56: 175579 | BE56: 5313633 | BK56: 3957565 | BL56: 1356068 | BM56: 151603 | BN56: 19426
A57: Harju | B57: Saku | C57: Saku | D57: Saku vald | G57: 1263 | H57: 171 | I57: 28 | J57: 0 | K57: 23 | L57: 1 | M57: 0 | N57: 0 | O57: 1 | P57: 0 | Q57: 0 | R57: 0 | S57: 0 | T57: 0 | U57: 0 | V57: 0 | W57: 0 | X57: 1487 | Y57: 0 | Z57: 0 | AA57: 0 | AB57: 0.043 | AC57: 1 | AD57: 1865451 | AE57: 224504 | AF57: 783 | AG57: 0 | AL57: 2090738 | AO57: 1.12 | AP57: 282875 | AQ57: 0 | AR57: 0 | AS57: 10860 | AU57: 293735 | AV57: 136804 | AY57: 17844 | AZ57: 84759 | BA57: 259875 | BB57: 132432 | BE57: 3016187 | BK57: 2332441 | BL57: 683746 | BM57: 98508 | BN57: 13613
A58: Harju | B58: Saue vald, Saue linn, Kernu, Nissi | C58: Saue | D58: Saue vald | G58: 2257 | H58: 113 | I58: 69 | J58: 0 | K58: 58 | L58: 1 | M58: 1 | N58: 0 | O58: 6 | P58: 0 | Q58: 0 | R58: 0 | S58: 0 | T58: 0 | U58: 0 | V58: 0 | W58: 0 | X58: 2505 | Y58: 0 | Z58: 0 | AA58: 0 | AB58: 0.07 | AC58: 1.109 | AD58: 3696950 | AE58: 552398 | AF58: 4697 | AG58: 0 | AL58: 4254045 | AO58: 1.12 | AP58: 186929 | AQ58: 5908 | AR58: 0 | AS58: 11683 | AU58: 204520 | AV58: 230460 | AY58: 30060 | AZ58: 142785 | BA58: 437150 | BB58: 330012 | BE58: 5629032 | BK58: 4499437 | BL58: 1129595 | BM58: 216644 | BN58: 28352
A59: Harju | B59: Tallinn | C59: Tallinn | D59: Tallinna linn | G59: 33564 | H59: 7415 | I59: 560 | J59: 26 | K59: 1077 | L59: 27 | M59: 25 | N59: 2 | O59: 135 | P59: 153 | Q59: 0 | R59: 4 | S59: 19 | T59: 1444 | U59: 139 | V59: 165 | W59: 1155 | X59: 44736 | Y59: 13 | Z59: 2 | AA59: 1 | AB59: 0 | AC59: 1 | AD59: 49574028 | AE59: 8176672 | AF59: 105679 | AG59: 227665 | AL59: 58084044 | AO59: 1 | AP59: 10951955 | AQ59: 263201 | AR59: 2021363 | AS59: 0 | AU59: 13236519 | AV59: 4115712 | AY59: 536832 | AZ59: 2535907 | BA59: 7466725 | BB59: 5493686 | BE59: 91469425 | BK59: 73222379 | BL59: 18247046 | BM59: 3224948 | BN59: 491412
A60: Harju | B60: Viimsi | C60: Viimsi | D60: Viimsi vald | G60: 2195 | H60: 253 | I60: 33 | J60: 0 | K60: 67 | L60: 2 | M60: 0 | N60: 0 | O60: 17 | P60: 0 | Q60: 0 | R60: 0 | S60: 0 | T60: 0 | U60: 0 | V60: 0 | W60: 0 | X60: 2567 | Y60: 0 | Z60: 0 | AA60: 0 | AB60: 0 | AC60: 1 | AD60: 3242015 | AE60: 505134 | AF60: 13308 | AG60: 0 | AL60: 3760457 | AO60: 1.12 | AP60: 418523 | AQ60: 0 | AR60: 0 | AS60: 0 | AU60: 418523 | AV60: 236164 | AY60: 30804 | AZ60: 146319 | BA60: 445900 | BB60: 330012 | BE60: 5368179 | BK60: 4185072 | BL60: 1183107 | BM60: 118705 | BN60: 23347
A61: Hiiu | B61: Käina, Hiiu, Emmaste, Pühalepa | C61: Hiiumaa | D61: Hiiumaa vald | E61: =SUM(E62:E68) -> -3 | F61: =SUM(F62:F68) -> 702 | G61: 642 | H61: 0 | I61: 38 | J61: 0 | K61: 18 | L61: 1 | M61: 0 | N61: 0 | O61: 0 | P61: 0 | Q61: 0 | R61: 0 | S61: 0 | T61: 0 | U61: 0 | V61: 0 | W61: 0 | X61: 699 | Y61: 0 | Z61: 0 | AA61: 0 | AB61: 0 | AC61: 1.499 | AD61: 1421403 | AE61: 224504 | AF61: 0 | AG61: 0 | AK61: =SUM(AK62:AK68) -> 1433759 | AL61: 1645907 | AM61: =AM62+AM63+AM64+AM65+AM66+AM68 -> 1685360.788 | AN61: =AN62+AN63+AN64+AN65+AN66+AN68 -> -39731.788 | AO61: 1.12 | AP61: 0 | AQ61: 0 | AR61: 0 | AS61: 0 | AU61: 0 | AV61: 118281 | AW61: =AW62+AW64+AW65+AW66+AW68 -> 168551.874 | AX61: =AX62+AX64+AX65+AX66+AX68 -> -58441.874 | AY61: 14384 | AZ61: 39843 | BA61: 122150 | BB61: 121752 | BC61: =BC62+BC63+BC64+BC65+BC66+BC68 -> 108407.604 | BD61: =BB61-BC61 -> 13344.396 | BE61: 2062317 | BF61: =AL61+AV61 -> 1764188 | BG61: =AM61+AW61 -> 1853912.662 | BH61: =BF61-BG61 -> -89724.662 | BK61: 1702080 | BL61: 360237 | BM61: 118281 | BN61: 14384 | BO61: =BO62+BO63+BO64+BO65+BO66+BO68 -> 1885662 | BP61: =BP62+BP63+BP64+BP65+BP66+BP68 -> 1962320.266 | BQ61: =BQ62+BQ63+BQ64+BQ65+BQ66+BQ68 -> -76658.266
C62: Pühalepa OV | D62: Palade Põhikool | G62: 68 | I62: 4 | L62: 1 | X62: 73 | AC62: 1.97 | AD62: 197859 | AE62: 17724 | AK62: 259149 | AL62: 215583 | AM62: =162894*1.338 -> 217952.172 | AN62: =AL62-AM62 -> -2369.172 | AV62: 17600 | AW62: =(2140+300)*12*1.338 -> 39176.64 | AX62: =AV62-AW62 -> -21576.64 | AY62: 1672 | AZ62: 4161 | BA62: 12600 | BB62: 8544 | BC62: =3456*1.338 -> 4624.128 | BD62: =BB62-BC62 -> 3919.872 | BE62: 260160 | BF62: 233183 | BG62: 257128.812 | BH62: =BF62-BG62 -> -23945.812 | BO62: =AL62+AV62+BB62 -> 241727 | BP62: =AM62+AW62+BC62 -> 261752.94 | BQ62: =BO62-BP62 -> -20025.94
D63: Suuremõisa Lasteaed-Põhikool | E63: =(X62+X63)-F63 -> 0 | F63: 100 | G63: 25 | I63: 2 | X63: 27 | AC63: 1.97 | AD63: 72742 | AE63: 5908 | AL63: =SUM(AD63:AJ63) -> 78650 | AM63: =50700*1.338 -> 67836.6 | AN63: =AL63-AM63 -> 10813.4 | AY63: 528 | AZ63: 1539 | BA63: 4725 | BB63: 2136 | BC63: =3456*1.338 -> 4624.128 | BD63: =BB63-BC63 -> -2488.128 | BE63: 87578 | BF63: 78650 | BG63: 67836.6 | BH63: 10813.4 | BO63: 80786 | BP63: 72460.728 | BQ63: 8325.272
C64: Käina OV | D64: Käina Põhikool | E64: =X64-F64 -> -2 | F64: 153 | G64: 148 | I64: 2 | K64: 1 | X64: 151 | AC64: 1.33 | AD64: 290733 | AE64: 11816 | AK64: 266359 | AL64: 302549 | AM64: =(223124)*1.338 -> 298539.912 | AN64: =AL64-AM64 -> 4009.088 | AV64: 30048 | AW64: =31485*1.338 -> 42126.93 | AX64: =AV64-AW64 -> -12078.93 | AY64: 3256 | AZ64: 8607 | BA64: 26425 | BB64: 6408 | BC64: =19610*1.338 -> 26238.18 | BD64: =BB64-BC64 -> -19830.18 | BE64: 377293 | BF64: =AL64+AV64 -> 332597 | BG64: =AM64+AW64 -> 340666.842 | BH64: -8069.842 | BK64: 331282 | BL64: =BF64-BK64 -> 1315 | BO64: 339005 | BP64: 366905.022 | BQ64: -27900.022
C65: Emmaste OV | D65: Emmaste Põhikool | E65: =X65-F65 -> 1 | F65: 83 | G65: 80 | I65: 2 | K65: 2 | X65: 84 | AC65: 1.98 | AD65: 233957 | AE65: 17724 | AK65: 218807 | AL65: 251681 | AM65: =(184608)*1.338 -> 247005.504 | AN65: =AL65-AM65 -> 4675.496 | AV65: 14097 | AW65: =16008*1.338 -> 21418.704 | AX65: =AV65-AW65 -> -7321.704 | AY65: 1610 | AZ65: 4788 | BA65: 14700 | BB65: 10680 | BC65: =(11640+3492+5820+5184)*1.338 -> 34969.968 | BD65: =BB65-BC65 -> -24289.968 | BE65: 297556 | BF65: 265778 | BG65: 268424.208 | BH65: -2646.208 | BO65: 276458 | BP65: =AM65+AW65+BC65 -> 303394.176 | BQ65: =BO65-BP65 -> -26936.176
C66: Kõrgessaare OV | D66: Lauka Põhikool | E66: =X66-F66 -> -6 | F66: 58 | G66: 47 | I66: 5 | X66: =SUM(G66:W66)-S66-W66 -> 52 | AC66: 1.32 | AD66: 91633 | AE66: 14770 | AL66: =SUM(AD66:AJ66) -> 106403 | AM66: =131700*1.338 -> 176214.6 | AN66: =AL66-AM66 -> -69811.6 | AV66: 8171 | AW66: =1100*12*1.338 -> 17661.6 | AY66: =20*58 -> 1160 | AZ66: 2964 | BA66: 9100 | BB66: 5340 | BC66: =3900*1.338 -> 5218.2 | BE66: 133138 | BF66: 114574 | BG66: 193876.2 | BH66: -79302.2 | BO66: 119914 | BP66: =AM66+AW66+BC66 -> 199094.4 | BQ66: =BO66-BP66 -> -79180.4
D67: Kõpus | AC67: 1.32 | BF67: 0 | BG67: 0 | BH67: 0 | BO67: 0 | BP67: 0 | BQ67: 0
C68: Kärdla OV | D68: Kärdla Põhikool | E68: =X68-F68 -> 4 | F68: 308 | G68: 274 | I68: 23 | K68: 15 | X68: 312 | AC68: 1.32 | AD68: =ROUND(G68*AC68*C$33,0) -> 534201 | AE68: =ROUND((I68*I$29+K68*K$29+L68*L$29)*C$33,0) -> 156562 | AK68: 689444 | AL68: 690763 | AM68: 677812 | AN68: =AL68-AM68 -> 12951 | AV68: =56536-AV66 -> 48365 | AW68: =(1700+1300)*12*1.338 -> 48168 | AX68: =AV68-AW66-AW68 -> -17464.6 | AY68: =F68*20-2 -> 6158 | AZ68: =ROUND((SUM(G68:N68)+O68+P68+SUM(Q68:R68)/5+T68+SUM(U68:V68)/5)*C$36,0) -> 17784 | BA68: =ROUND((G68+H68+I68+J68+K68+M68)*C$37,0) -> 54600 | BB68: =ROUND((I68*I$30+J68*J$30+K68*K$30+L68*L$30+M68*M$30+N68*N$30)*C$38,0)+ROUND((Y68*Y$30)*C$38,0)+ROUND((Z68*Z$30+AA68*AA$30)*C$38,0) -> 88644 | BC68: 32733 | BD68: =BB68-(BC66+BC68) -> 50692.8 | BE68: =AL68+AU68+AV68+AY68+AZ68+BA68+BB68 -> 906314 | BF68: 739128 | BG68: =AM68+AW68 -> 725980 | BH68: 13148 | BO68: 827772 | BP68: 758713 | BQ68: 69059
G69: =SUM(G62:G68) -> 642 | H69: 0 | I69: 38 | J69: 0 | K69: 18 | L69: 1 | M69: 0 | N69: 0 | X69: =SUM(X62:X68) -> 699 | AD69: =SUM(AD62:AD68) -> 1421125 | AE69: =SUM(AE62:AE68) -> 224504 | AK69: =SUM(AK62:AK68) -> 1433759 | AL69: =SUM(AL62:AL68) -> 1645629 | AM69: =SUM(AM62:AM68) -> 1685360.788 | AV69: =SUM(AV62:AV68) -> 118281 | AY69: =SUM(AY62:AY68) -> 14384 | AZ69: =SUM(AZ62:AZ68) -> 39843 | BA69: =SUM(BA62:BA68) -> 122150 | BB69: =SUM(BB62:BB68) -> 121752 | BC69: =SUM(BC62:BC68) -> 108407.604 | BE69: =SUM(BE62:BE68) -> 2062039 | BF69: =SUM(BF62:BF68) -> 1763910 | BG69: =SUM(BG62:BG68) -> 1853912.662 | BH69: =SUM(BH62:BH68) -> -90002.662
C70: Õpetaja tööjõukulu koefitsiendid: | I70: 2 | J70: 2.7 | K70: 4 | L70: =K70 -> 4 | M70: =K70 -> 4 | N70: =L70 -> 4 | O70: 0.53 | P70: 1 | Q70: 0.31 | S70: 0.06 | T70: 0.86 | U70: 0.33 | W70: 0.07 | AL70: =AL61-AL69 -> 278 | AT70: 0.1
C71: Tegevustoetuse koefitsiendid: | I71: 1 | J71: 1.7 | K71: 4 | L71: 4 | M71: 4 | N71: 4 | Y71: 0.7 | Z71: 1.3 | AA71: 4 | AC71: Üld- valitsemine | AD71: osavalda | AE71: KOKKU
X72: Õpetajad | AC72: =AL61+AV61+BB61 -> 1885940 | AD72: =AY61+AZ61+BA61 -> 176377 | AE72: =AC72+AD72 -> 2062317
B73: Toetusmäärad (eurodes) | X73: Pühalepa | AD73: =AY62+AZ62+BA62+BA63+AZ63+AY63 -> 25225
B74: Õpetaja tööjõukulud | C74: =ROUND(1150*1.2*12*1.338/15,0) -> 1477 | X74: Käina | AD74: =AY64+AZ64+BA64 -> 38288
B75: Direktorite ja õppealajuhatajate tööjõukulud | C75: 92 | X75: Emmaste | AD75: =AY65+AZ65+BA65 -> 21098
B76: Täienduskoolitus | C76: 12 | X76: Kõrgessaar | AD76: =AY66+AZ66+BA66 -> 13224
B77: Õppevahendid | C77: 57 | X77: Kärdla | AD77: =AY68+AZ68+BA68 -> 78542
B78: Koolilõuna | C78: 175
B79: HEV tegevuskulu toetus | C79: =89*12 -> 1068
C81: =ROUND(1150*1.2*12*1.338,0) -> 22157

Sheet Õpilasüritused (hidden)
A2: Maakond/linn | B2: Õpilaste arv (2014)* | C2: Õpilaste arv (2015)* | D2: Õpilaste arvu muutus % | E2: Õpilaste arv (2016)* | F2: Õpilaste arvu muutus % | G2: Õpilaste arv (2017)* | H2: Õpilaste arvu muutus % | I2: Õpilaste arv (2018)* | J2: Õpilaste arvu muutus % | K2: Kokku 2014.a. | L2: Baas | M2: Kokku 2015.a. | N2: Toetuse muutus % | O2: Baas | P2: Kokku 2016.a. | Q2: Toetuse muutus % | R2: Baas | S2: Kokku 2017.a. | T2: Toetuse muutus % | U2: Baas | V2: Kokku 2018.a. | W2: Toetuse muutus % | Y2: pearaha | Z2: 7.43751 | AA2: €/õpilane
Y3: baasraha | Z3: 7900 | AA3: €/maakond
A4: HARJU MAAKOND | B4: 16228 | C4: ='[2]Õpilaste arvud'!C27-'[2]Õpilaste arvud'!C26 -> 17058 | D4: =C4/B4-1 -> 0.05114616712 | E4: =64488-E19 -> 18004 | F4: =E4/C4-1 -> 0.05545784969 | G4: 18960 | H4: =G4/E4-1 -> 0.05309931126 | I4: 20140 | J4: =I4/G4-1 -> 0.06223628692 | K4: 126061 | L4: 0 | M4: 137152 | N4: =M4/K4-1 -> 0.08798121544 | O4: 0 | P4: 140829 | Q4: =P4/M4-1 -> 0.02680967102 | R4: 0 | S4: 145062 | T4: =S4/P4-1 -> 0.03005772959 | U4: =IF(I4<$Z$4,$Z$3,0) -> 0 | V4: =ROUND((I4*$Z$2)+U4,0) -> 149791 | W4: =V4/S4-1 -> 0.03259985386 | Y4: baasraha kriteerium | Z4: 5200 | AA4: õpilast maakonnas
A5: HIIU MAAKOND | B5: 868 | C5: ='[2]Õpilaste arvud'!C32 -> 836 | D5: -0.03686635945 | E5: 841 | F5: =E5/C5-1 -> 0.005980861244 | G5: 833 | H5: -0.009512485137 | I5: 840 | J5: =I5/G5-1 -> 0.008403361345 | K5: 14742 | L5: 8000 | M5: 14722 | N5: -0.001356668023 | O5: 7900 | P5: 14478 | Q5: =P5/M5-1 -> -0.01657383508 | R5: 7900 | S5: 14273 | T5: =S5/P5-1 -> -0.01415941428 | U5: =IF(I5<$Z$4,$Z$3,0) -> 7900 | V5: =ROUND((I5*$Z$2)+U5,0) -> 14148 | W5: =V5/S5-1 -> -0.008757794437
A6: IDA-VIRU MAAKOND | B6: 8330 | C6: ='[2]Õpilaste arvud'!C51-'[2]Õpilaste arvud'!C44 -> 8309 | D6: -0.002521008403 | E6: =14462-E20 -> 8299 | F6: -0.001203514262 | G6: 8272 | H6: -0.003253404025 | I6: 7906 | J6: -0.04424564797 | K6: 64708 | L6: 0 | M6: 66807 | N6: 0.0324380293 | O6: 0 | P6: 64916 | Q6: -0.0283054171 | R6: 0 | S6: 63289 | T6: -0.02506315854 | U6: 0 | V6: 58801 | W6: -0.07091279685
A7: JÕGEVA MAAKOND | B7: 3410 | C7: ='[2]Õpilaste arvud'!C64 -> 3308 | D7: -0.02991202346 | E7: 3277 | F7: -0.009371221282 | G7: 3209 | H7: -0.0207506866 | I7: 3140 | J7: -0.02150202555 | K7: 34489 | L7: 8000 | M7: 34597 | N7: 0.003131433211 | O7: 7900 | P7: 33533 | Q7: -0.03075411163 | R7: 7900 | S7: 32452 | T7: -0.03223690096 | U7: 7900 | V7: 31254 | W7: -0.03691606064
A8: JÄRVA MAAKOND | B8: 3368 | C8: ='[2]Õpilaste arvud'!C77 -> 3295 | D8: -0.02167458432 | E8: 3337 | F8: 0.01274658574 | G8: 3297 | H8: -0.0119868145 | I8: 3365 | J8: 0.02062481043 | K8: 34163 | L8: 8000 | M8: 34493 | N8: 0.009659573222 | O8: 7900 | P8: 34002 | Q8: -0.01423477227 | R8: 7900 | S8: 33125 | T8: -0.02579260044 | U8: 7900 | V8: 32927 | W8: -0.005977358491
A9: LÄÄNE MAAKOND | B9: 2822 | C9: ='[2]Õpilaste arvud'!C88 -> 2830 | D9: 0.002834868887 | E9: 2803 | F9: -0.009540636042 | G9: 2820 | H9: 0.006064930432 | I9: 2532 | J9: -0.1021276596 | K9: 29922 | L9: 8000 | M9: 30754 | N9: 0.02780562797 | O9: 7900 | P9: 29825 | Q9: -0.03020745269 | R9: 7900 | S9: 29476 | T9: -0.01170159262 | U9: 7900 | V9: 26732 | W9: -0.09309268557
A10: LÄÄNE-VIRU MAAKOND | B10: 6864 | C10: ='[2]Õpilaste arvud'!C104 -> 6789 | D10: -0.01092657343 | E10: 6777 | F10: -0.001767565179 | G10: 6763 | H10: -0.002065810831 | I10: 6979 | J10: 0.03193848884 | K10: 53320 | L10: 0 | M10: 54586 | N10: 0.02374343586 | O10: 0 | P10: 53010 | Q10: -0.02887187191 | R10: 0 | S10: 51743 | T10: -0.02390115073 | U10: 0 | V10: 51906 | W10: 0.003150184566
A11: PÕLVA MAAKOND | B11: 2700 | C11: ='[2]Õpilaste arvud'!C118 -> 2620 | D11: -0.02962962963 | E11: 2575 | F11: -0.01717557252 | G11: 2574 | H11: -0.0003883495146 | I11: 2473 | J11: -0.03923853924 | K11: 28974 | L11: 8000 | M11: 29066 | N11: 0.003175260578 | O11: 7900 | P11: 28042 | Q11: -0.03523016583 | R11: 7900 | S11: 27594 | T11: -0.01597603595 | U11: 7900 | V11: 26293 | W11: -0.04714793071
A12: PÄRNU MAAKOND | B12: 3507 | C12: ='[2]Õpilaste arvud'!C138-'[2]Õpilaste arvud'!C126 -> 3437 | D12: -0.01996007984 | E12: =9314-E21 -> 3454 | F12: 0.004946173989 | G12: 3507 | H12: 0.01534452808 | I12: 2868 | J12: -0.1822070145 | K12: 35242 | L12: 8000 | M12: 35635 | N12: 0.011151467 | O12: 7900 | P12: 34918 | Q12: -0.02012066788 | R12: 7900 | S12: 34732 | T12: -0.005326765565 | U12: 7900 | V12: 29231 | W12: -0.158384199
A13: RAPLA MAAKOND | B13: 3820 | C13: ='[2]Õpilaste arvud'!C149 -> 3811 | D13: -0.002356020942 | E13: 3891 | F13: 0.02099186565 | G13: 3983 | H13: 0.02364430738 | I13: 4023 | J13: 0.0100426814 | K13: 37674 | L13: 8000 | M13: 38642 | N13: 0.02569411265 | O13: 7900 | P13: 38336 | Q13: -0.00791884478 | R13: 7900 | S13: 38374 | T13: 0.0009912353923 | U13: 7900 | V13: 37821 | W13: -0.01441079898
A14: SAARE MAAKOND | B14: 3368 | C14: ='[2]Õpilaste arvud'!C165 -> 3390 | D14: 0.006532066508 | E14: 3385 | F14: -0.001474926254 | G14: 3482 | H14: 0.02865583456 | I14: 3520 | J14: 0.01091326824 | K14: 34163 | L14: 8000 | M14: 35257 | N14: 0.0320229488 | O14: 7900 | P14: 34378 | Q14: -0.02493121933 | R14: 7900 | S14: 34541 | T14: 0.004741404387 | U14: 7900 | V14: 34080 | W14: -0.01334645783
A15: TARTU MAAKOND | B15: 5100 | C15: ='[2]Õpilaste arvud'!C187-'[2]Õpilaste arvud'!C181 -> 5299 | D15: 0.03901960784 | E15: =18872-E22 -> 5392 | F15: 0.01755048122 | G15: 5572 | H15: 0.03338278932 | I15: 5954 | J15: 0.06855707107 | K15: 39617 | L15: 0 | M15: 42606 | N15: 0.07544740894 | O15: 0 | P15: 42177 | Q15: -0.01006900437 | R15: 0 | S15: 42631 | T15: 0.01076416056 | U15: 0 | V15: 44283 | W15: 0.03875114353
A16: VALGA MAAKOND | B16: 3302 | C16: ='[2]Õpilaste arvud'!C201 -> 3239 | D16: -0.01907934585 | E16: 3212 | F16: -0.008335906144 | G16: 3155 | H16: -0.01774595268 | I16: 3030 | J16: -0.03961965135 | K16: 33650 | L16: 8000 | M16: 34043 | N16: 0.01167904903 | O16: 7900 | P16: 33025 | Q16: -0.02990335752 | R16: 7900 | S16: 32039 | T16: -0.02985616957 | U16: 7900 | V16: 30436 | W16: -0.05003277256
A17: VILJANDI MAAKOND | B17: 5031 | C17: ='[2]Õpilaste arvud'!C214 -> 5041 | D17: 0.001987676406 | E17: 5076 | F17: 0.006943066852 | G17: 5145 | H17: 0.01359338061 | I17: 5317 | J17: 0.03343051506 | K17: 39081 | L17: 0 | M17: 40531 | N17: 0.03710242829 | O17: 7900 | P17: 47605 | Q17: 0.1745330734 | R17: 7900 | S17: 47264 | T17: -0.007163113118 | U17: 0 | V17: 39545 | W17: -0.1633166892
A18: VÕRU MAAKOND | B18: 3699 | C18: ='[2]Õpilaste arvud'!C228 -> 3606 | D18: -0.02514193025 | E18: 3550 | F18: -0.01552967277 | G18: 3500 | H18: -0.01408450704 | I18: 3655 | J18: 0.04428571429 | K18: 36735 | L18: 8000 | M18: 36993 | N18: 0.007023274806 | O18: 7900 | P18: 35669 | Q18: -0.03579055497 | R18: 7900 | S18: 34678 | T18: -0.02778322913 | U18: 7900 | V18: 35084 | W18: 0.01170771094
A19: Tallinn | B19: 43158 | C19: ='[2]Õpilaste arvud'!C26 -> 44609 | D19: 0.03362064971 | E19: 46484 | F19: 0.04203187698 | G19: 48104 | H19: 0.03485070132 | I19: 49690 | J19: 0.03297023117 | K19: 335255 | L19: 0 | M19: 358670 | N19: 0.0698423588 | O19: 0 | P19: 363603 | Q19: 0.01375358965 | R19: 0 | S19: 368041 | T19: 0.01220561987 | U19: 0 | V19: 369570 | W19: 0.004154428447
A20: Narva L | B20: 6088 | C20: ='[2]Õpilaste arvud'!C44 -> 6113 | D20: 0.004106438896 | E20: 6163 | F20: 0.008179290038 | G20: 6162 | H20: -0.0001622586403 | I20: 6146 | J20: -0.002596559559 | K20: 47292 | L20: 0 | M20: 49150 | N20: 0.03928782881 | O20: 0 | P20: 48208 | Q20: -0.01916581892 | R20: 0 | S20: 47145 | T20: -0.02205028211 | U20: 0 | V20: 45711 | W20: -0.03041679924
A21: Pärnu L | B21: 5754 | C21: ='[2]Õpilaste arvud'!C126 -> 5765 | D21: 0.001911713591 | E21: 5860 | F21: 0.01647875108 | G21: 5924 | H21: 0.01092150171 | I21: 7156 | J21: 0.2079675895 | K21: 44697 | L21: 0 | M21: 46352 | N21: 0.03702709354 | O21: 0 | P21: 45838 | Q21: -0.01108905765 | R21: 0 | S21: 45324 | T21: -0.01121340373 | U21: 0 | V21: 53223 | W21: 0.1742785279
A22: Tartu L | B22: 13050 | C22: ='[2]Õpilaste arvud'!C181 -> 13160 | D22: 0.008429118774 | E22: 13480 | F22: 0.02431610942 | G22: 13899 | H22: 0.03108308605 | I22: 14543 | J22: 0.04633426865 | K22: 101374 | L22: 0 | M22: 105810 | N22: 0.04375875471 | O22: 0 | P22: 105442 | Q22: -0.003477932143 | R22: 0 | S22: 106340 | T22: 0.008516530415 | U22: 0 | V22: 108164 | W22: 0.01715252962
A23: KOKKU | B23: 140467 | C23: =SUM(C4:C22) -> 142515 | D23: 0.01457993692 | E23: =SUM(E4:E22) -> 145860 | F23: =E23/C23-1 -> 0.02347121356 | G23: =SUM(G4:G22) -> 149161 | H23: =G23/E23-1 -> 0.02263129028 | I23: =SUM(I4:I22) -> 153277 | J23: =I23/G23-1 -> 0.02759434437 | K23: 1171159 | L23: =SUM(L4:L22) -> 80000 | M23: =ROUND(SUM(M4:M22),0) -> 1225866 | N23: 0.04671184698 | O23: =SUM(O4:O22) -> 86900 | P23: =ROUND(SUM(P4:P22),0) -> 1227834 | Q23: =P23/M23-1 -> 0.001605395696 | R23: =SUM(R4:R22) -> 86900 | S23: =ROUND(SUM(S4:S22),0) -> 1228123 | T23: =S23/P23-1 -> 0.0002353738372 | U23: =SUM(U4:U22) -> 79000 | V23: =ROUND(SUM(V4:V22),0) -> 1219000 | W23: =V23/S23-1 -> -0.007428409044
A24: Kontroll | C24: =C23-'[2]Õpilaste arvud'!C229 -> 0 | P24: =P23-P25 -> 0 | S24: =S23-S25 -> 0 | V24: =V23-V25 -> 0
A25: *õpilased KOV+ERA+Riik | M25: Eelarve+ jääk | P25: =1219172+8662 -> 1227834 | S25: =1219172+8951 -> 1228123 | V25: 1219000

Sheet Lasteaia koolitus (hidden)
B1: 2018.a. aasta eelarve jaotus
B2: Maakond/linn | C2: Laste arv 2014 | D2: Laste arv 2015 | E2: Muutus % | F2: Laste arv 2016 | G2: Muutus % | H2: Laste arv 2017 | I2: Muutus % | J2: Laste arv 2018 | K2: Muutus % | L2: Koolituseks 2014 | M2: Koolituseks 2015 | N2: Muutus % | O2: Koolituseks 2016 | P2: Muutus % | Q2: Koolituseks 2017 | R2: Muutus % | S2: Koolituseks 2018 | T2: Muutus % | V2: lasteaiaõpetajate koolituse pearaha | W2: 6.48844 | X2: €/õpilane
V3: erirühma laste pearaha 2 x kõrgem
B4: HARJU MAAKOND | C4: 8555 | D4: ='[2]KELA_laste arvud'!C28-D19 -> 8909 | E4: =D4/C4-1 -> 0.04137931034 | F4: =32845-F19 -> 9650 | G4: =F4/D4-1 -> 0.08317431811 | H4: 9745 | I4: =H4/F4-1 -> 0.009844559585 | J4: 9748 | K4: =J4/H4-1 -> 0.0003078501796 | L4: 56374 | M4: 59037 | N4: =M4/L4-1 -> 0.04723808848 | O4: 61756 | P4: =O4/M4-1 -> 0.04605586327 | Q4: 63586 | R4: =Q4/O4-1 -> 0.02963274823 | S4: =ROUND((J4*$W$2)+(W15*$W$2),0) -> 63626 | T4: =S4/Q4-1 -> 0.000629069292
B5: HIIU MAAKOND | C5: 371 | D5: ='[2]KELA_laste arvud'!C33 -> 376 | E5: =D5/C5-1 -> 0.01347708895 | F5: 349 | G5: =F5/D5-1 -> -0.07180851064 | H5: 349 | I5: =H5/F5-1 -> 0 | J5: 330 | K5: =J5/H5-1 -> -0.05444126074 | L5: 2445 | M5: 2479 | N5: =M5/L5-1 -> 0.01390593047 | O5: 2221 | P5: =O5/M5-1 -> -0.1040742235 | Q5: 2263 | R5: =Q5/O5-1 -> 0.01891040072 | S5: =ROUND(J5*$W$2,0) -> 2141 | T5: =S5/Q5-1 -> -0.05391073796 | V5: Hariduslike erivajadustega laste rühmades osalevad lapsed 2017/2018
B6: IDA-VIRU MAAKOND | C6: 3564 | D6: ='[2]KELA_laste arvud'!C52-D20 -> 3487 | E6: -0.02160493827 | F6: =6357-F20 -> 3644 | G6: 0.04502437625 | H6: 3637 | I6: -0.001920965971 | J6: 3485 | K6: -0.04179268628 | L6: 23485 | M6: 23658 | N6: 0.007366404088 | O6: 23827 | P6: 0.007143460986 | Q6: 24035 | R6: 0.008729592479 | S6: =ROUND((J6*$W$2)+(W16*$W$2),0) -> 23391 | T6: -0.02679425837 | V6: arendusrühm (vaimse alaarenguga lastele)
B7: JÕGEVA MAAKOND | C7: 1366 | D7: ='[2]KELA_laste arvud'!C66 -> 1365 | E7: -0.0007320644217 | F7: 1345 | G7: -0.01465201465 | H7: 1354 | I7: 0.006691449814 | J7: 1229 | K7: -0.09231905465 | L7: 9001 | M7: 9123 | N7: 0.01355404955 | O7: 8738 | P7: -0.04220103036 | Q7: 8961 | R7: 0.02552071412 | S7: =ROUND((J7*$W$2)+(W17*$W$2),0) -> 8156 | T7: -0.08983372391 | V7: erirühm (erihooldust ja -õpet vajavad lapsed)
B8: JÄRVA MAAKOND | C8: 1473 | D8: ='[2]KELA_laste arvud'!C79 -> 1463 | E8: -0.006788866259 | F8: 1427 | G8: -0.02460697198 | H8: 1404 | I8: -0.0161177295 | J8: 1377 | K8: -0.01923076923 | L8: 9706 | M8: 9644 | N8: -0.00638780136 | O8: 9081 | P8: -0.05837826628 | Q8: 9103 | R8: 0.002422640678 | S8: 8935 | T8: -0.01845545425 | V8: kehapuudega laste rühm
B9: LÄÄNE MAAKOND | C9: 1036 | D9: ='[2]KELA_laste arvud'!C90 -> 988 | E9: -0.04633204633 | F9: 1003 | G9: 0.01518218623 | H9: 1017 | I9: 0.01395812562 | J9: 887 | K9: -0.127826942 | L9: 6827 | M9: 6559 | N9: -0.03925589571 | O9: 6434 | P9: -0.0190577832 | Q9: 6665 | R9: 0.03590301523 | S9: =ROUND((J9*$W$2)+(W18*$W$2),0) -> 5820 | T9: -0.1267816954 | V9: liitpuudega laste rühm
B10: LÄÄNE-VIRU MAAKOND | C10: 2574 | D10: ='[2]KELA_laste arvud'!C106 -> 2521 | E10: -0.02059052059 | F10: 2739 | G10: 0.08647362158 | H10: 2681 | I10: -0.02117561154 | J10: 2745 | K10: 0.02387168967 | L10: 16962 | M10: 16750 | N10: -0.01249852612 | O10: 17571 | P10: 0.04901492537 | Q10: 17590 | R10: 0.001081327187 | S10: =ROUND((J10*$W$2)+(W19*W2),0) -> 18018 | T10: 0.02433200682 | V10: meelepuudega laste rühm
B11: PÕLVA MAAKOND | C11: 1130 | D11: ='[2]KELA_laste arvud'!C120 -> 1148 | E11: 0.01592920354 | F11: 1146 | G11: -0.001742160279 | H11: 1109 | I11: -0.03228621291 | J11: 983 | K11: -0.1136158702 | L11: 7446 | M11: 7620 | N11: 0.02336825141 | O11: 7319 | P11: -0.03950131234 | Q11: 7216 | R11: -0.01407296079 | S11: =ROUND((J11*$W$2)+(W20*$W$2),0) -> 6411 | T11: -0.1115576497 | V11: pervasiivsete arenguhäiretega rühm
B12: PÄRNU MAAKOND | C12: 2047 | D12: ='[2]KELA_laste arvud'!C140-D21 -> 2086 | E12: 0.01905227162 | F12: =4271-F21 -> 2062 | G12: -0.01150527325 | H12: 2050 | I12: -0.005819592629 | J12: 1532 | K12: -0.2526829268 | L12: 13489 | M12: 13902 | N12: 0.03061754022 | O12: 13269 | P12: -0.04553301683 | Q12: 13447 | R12: 0.01341472605 | S12: =ROUND((J12*$W$2)+(W21*$W$2),0) -> 10090 | T12: -0.2496467614 | V12: tasandusrühm (kõnehälvetega ja spetsiifiliste arenguhäiretega lastele)
B13: RAPLA MAAKOND | C13: 1762 | D13: ='[2]KELA_laste arvud'!C151 -> 1734 | E13: -0.01589103292 | F13: 1745 | G13: 0.006343713956 | H13: 1723 | I13: -0.01260744986 | J13: 1636 | K13: -0.05049332559 | L13: 11611 | M13: 11575 | N13: -0.003100508139 | O13: 11239 | P13: -0.02902807775 | Q13: 11301 | R13: 0.005516505027 | S13: =ROUND((J13*$W$2)+(W22*$W$2),0) -> 10745 | T13: -0.04919918591
B14: SAARE MAAKOND | C14: 1471 | D14: ='[2]KELA_laste arvud'!C166 -> 1448 | E14: -0.01563562203 | F14: 1598 | G14: 0.1035911602 | H14: 1589 | I14: -0.00563204005 | J14: 1527 | K14: -0.03901825047 | L14: 9693 | M14: 9723 | N14: 0.003095017023 | O14: 10342 | P14: 0.06366347835 | Q14: 10543 | R14: 0.01943531232 | S14: =ROUND((J14*$W$2)+(W23*$W$2),0) -> 10135 | T14: -0.03869866262 | V14: Maakond | W14: KOV
B15: TARTU MAAKOND | C15: 2587 | D15: ='[2]KELA_laste arvud'!C187-D22 -> 2682 | E15: 0.0367220719 | F15: =8491-F22 -> 2735 | G15: 0.01976137211 | H15: 2895 | I15: 0.05850091408 | J15: 3036 | K15: 0.04870466321 | L15: 17047 | M15: 17679 | N15: 0.03707397196 | O15: 17406 | P15: -0.01544204989 | Q15: 18770 | R15: 0.0783637826 | S15: =ROUND((J15*$W$2)+(W24*$W$2),0) -> 19783 | T15: 0.05396909963 | V15: Harju maakond | W15: ='[2]2018 HEV alusharidus'!L3+'[2]2018 HEV alusharidus'!L4+'[2]2018 HEV alusharidus'!L5+'[2]2018 HEV alusharidus'!L6+'[2]2018 HEV alusharidus'!L8 -> 58
B16: VALGA MAAKOND | C16: 1232 | D16: ='[2]KELA_laste arvud'!C201 -> 1241 | E16: 0.007305194805 | F16: 1281 | G16: 0.03223207091 | H16: 1261 | I16: -0.0156128025 | J16: 1168 | K16: -0.07375099128 | L16: 8118 | M16: 8181 | N16: 0.007760532151 | O16: 8152 | P16: -0.003544798924 | Q16: 8176 | R16: 0.002944062807 | S16: 7578 | T16: -0.0731409002 | V16: Ida-Viru maakond | W16: ='[2]2018 HEV alusharidus'!L9+'[2]2018 HEV alusharidus'!L10+'[2]2018 HEV alusharidus'!L12 -> 120
B17: VILJANDI MAAKOND | C17: 2034 | D17: ='[2]KELA_laste arvud'!C214 -> 2053 | E17: 0.009341199607 | F17: 2163 | G17: 0.05358012664 | H17: 2160 | I17: -0.001386962552 | J17: 2191 | K17: 0.01435185185 | L17: 13403 | M17: 13757 | N17: 0.02641199731 | O17: 14052 | P17: 0.0214436287 | Q17: 14277 | R17: 0.01601195559 | S17: =ROUND((J17*$W$2)+(W25*$W$2),0) -> 14515 | T17: 0.0166701688 | V17: Jõgeva maakond | W17: ='[2]2018 HEV alusharidus'!M14 -> 28
B18: VÕRU MAAKOND | C18: 1544 | D18: ='[2]KELA_laste arvud'!C228 -> 1539 | E18: -0.003238341969 | F18: 1571 | G18: 0.02079272255 | H18: 1558 | I18: -0.008274984087 | J18: 1605 | K18: 0.03016688062 | L18: 10174 | M18: 10145 | N18: -0.002850402988 | O18: 9998 | P18: -0.0144898965 | Q18: 10179 | R18: 0.01810362072 | S18: =ROUND((J18*$W$2)+(W26*$W$2),0) -> 10492 | T18: 0.03074958247 | V18: Lääne maakond | W18: ='[2]2018 HEV alusharidus'!M15 -> 10
B19: Tallinn | C19: 22590 | D19: ='[2]KELA_laste arvud'!C25 -> 22551 | E19: -0.001726427623 | F19: 23195 | G19: 0.02855749191 | H19: 22675 | I19: -0.0224186247 | J19: 22297 | K19: -0.01667034179 | L19: 148860 | M19: 152253 | N19: 0.02279322854 | O19: 151146 | P19: -0.007270792694 | Q19: 150825 | R19: -0.002123774364 | S19: =ROUND((J19*$W$2)+(W29*$W$2),0) -> 148378 | T19: -0.01622410078 | V19: Lääne-Viru maakond | W19: ='[2]2018 HEV alusharidus'!M17 -> 32
B20: Narva L | C20: 2886 | D20: ='[2]KELA_laste arvud'!C45 -> 2852 | E20: -0.01178101178 | F20: 2713 | G20: -0.04873772791 | H20: 2622 | I20: -0.0335422042 | J20: 2603 | K20: -0.007246376812 | L20: 19018 | M20: 19525 | N20: 0.02665895467 | O20: 17959 | P20: -0.08020486556 | Q20: 17681 | R20: -0.01547970377 | S20: =ROUND((J20*$W$2)+(W27*$W$2),0) -> 17636 | T20: -0.002545104915 | V20: Põlva maakond | W20: ='[2]2018 HEV alusharidus'!M18 -> 5
B21: Pärnu L | C21: 2232 | D21: ='[2]KELA_laste arvud'!C128 -> 2239 | E21: 0.003136200717 | F21: 2209 | G21: -0.01339883877 | H21: 2158 | I21: -0.02308736985 | J21: 2725 | K21: 0.2627432808 | L21: 14708 | M21: 15438 | N21: 0.04963285287 | O21: 14707 | P21: -0.04735069309 | Q21: 14718 | R21: 0.0007479431563 | S21: =ROUND((J21*$W$2)+(W28*$W$2),0) -> 18440 | T21: 0.2528876206 | V21: Pärnu maakond | W21: ='[2]2018 HEV alusharidus'!L20+'[2]2018 HEV alusharidus'!L21 -> 23
B22: Tartu L | C22: 5425 | D22: ='[2]KELA_laste arvud'!C181 -> 5268 | E22: -0.02894009217 | F22: 5756 | G22: 0.09263477601 | H22: 5591 | I22: -0.0286657401 | J22: 5793 | K22: 0.03612949383 | L22: 35748 | M22: 35952 | N22: 0.005706612957 | O22: 37783 | P22: 0.05092901647 | Q22: 37340 | R22: -0.0117248498 | S22: =ROUND((J22*$W$2)+(W31*$W$2),0) -> 38710 | T22: 0.03668987681 | V22: Rapla maakond | W22: ='[2]2018 HEV alusharidus'!M22 -> 20
B23: KOKKU | C23: =SUM(C4:C22) -> 65879 | D23: =SUM(D4:D22) -> 65950 | E23: 0.00107773342 | F23: =SUM(F4:F22) -> 68331 | G23: =F23/D23-1 -> 0.03610310842 | H23: =SUM(H4:H22) -> 67578 | I23: =H23/F23-1 -> -0.01101988848 | J23: =SUM(J4:J22) -> 66897 | K23: =J23/H23-1 -> -0.01007724407 | L23: =SUM(L4:L22) -> 434115 | M23: =ROUND(SUM(M4:M22),0) -> 443000 | N23: 0.02046692697 | O23: =ROUND(SUM(O4:O22),0) -> 443000 | P23: =O23/M23-1 -> 0 | Q23: =ROUND(SUM(Q4:Q22),0) -> 446676 | R23: =Q23/O23-1 -> 0.008297968397 | S23: =ROUND(SUM(S4:S22),0) -> 443000 | T23: =S23/Q23-1 -> -0.008229678783 | V23: Saare maakond | W23: ='[2]2018 HEV alusharidus'!M23 -> 35
B24: Kontroll | D24: =D23-'[2]KELA_laste arvud'!C229 -> 0 | M24: =M25-M23 -> 0 | O24: =O23-O25 -> 0 | Q24: =Q23-Q25 -> 0 | S24: =S23-S25 -> 0 | V24: Tartu maakond | W24: ='[2]2018 HEV alusharidus'!L25 -> 13
L25: eelarve | M25: 443000 | O25: 443000 | Q25: =443000+3676 -> 446676 | S25: 443000 | V25: Viljandi maakond | W25: ='[2]2018 HEV alusharidus'!M27 -> 46
V26: Võru maakond | W26: ='[2]2018 HEV alusharidus'!M28 -> 12
H27: KOOLITUSEKS 2018 | I27: Laste arv 2018 | J27: Koolituseks 2018 | K27: 27 | V27: Narva linn | W27: ='[2]2018 HEV alusharidus'!L11 -> 115
B28: Emmaste lasteaed | H28: =J28-L28 -> 231.0898204 | I28: 36 | J28: =ROUND(I28*$W$2,0) -> 234 | K28: =I28/$I$34 -> 0.1077844311 | L28: =$K$27*K28 -> 2.910179641 | V28: Pärnu linn | W28: ='[2]2018 HEV alusharidus'!L19 -> 117
B29: Kalda maja | H29: 775.2185629 | I29: 121 | J29: =ROUND(I29*$W$2,0) -> 785 | K29: 0.3622754491 | L29: 9.781437126 | V29: Tallinna linn | W29: ='[2]2018 HEV alusharidus'!L7 -> 571
B30: Vigri maja | H30: 205.4131737 | I30: 32 | J30: 208 | K30: 0.09580838323 | L30: 2.586826347
B31: Käina lasteaed | H31: 653.754491 | I31: 102 | J31: 662 | K31: 0.3053892216 | L31: 8.245508982 | V31: Tartu linn | W31: ='[2]2018 HEV alusharidus'!L24 -> 173
B32: Palade lasteaed | H32: 218.251497 | I32: 34 | J32: 221 | K32: 0.1017964072 | L32: 2.748502994
B33: Suuremõisa lasteaed | H33: 57.27245509 | I33: 9 | J33: 58 | K33: 0.02694610778 | L33: 0.7275449102 | W33: =SUM(W15:W32) -> 1378
H34: =SUM(H28:H33) -> 2141 | I34: =SUM(I28:I33) -> 334 | J34: =SUM(J28:J33) -> 2168 | K34: =SUM(K28:K33) -> 1 | L34: =SUM(L28:L33) -> 27 | M34: =SUM(M28:M33) -> 0 | N34: 0 | O34: 0 | P34: 0

Sheet Leht2 (hidden)
A1: Kirje | B1: Summa | C1: Eelarvekonto | E1: Eelarveosa | G1: Projekt | I1: Üksus | K1: Tegevusala | M1: Objekt
A2: Maa -elamumaade soetamine Allikamäe- ei realiseeruenne kui müüki ei ole | B2: 2000 | C2: 1550 | D2: Maa | E2: 3 | F2: Investeerimistegevus | I2: 234 | J2: Käina majandus | K2: 06605 | L2: Muud elamu- ja kommunaalmajanduse tegevus
A3: Maa (mõõtmine, munitsipaliseerimine) Anita eelarve | B3: 4500 | C3: 1550 | D3: Maa | E3: 3 | F3: Investeerimistegevus | I3: 234 | J3: Käina majandus | K3: 04900 | L3: Muu majandus (sh majanduse haldus)
A4: Hooned ja rajatised (omaosalus) | B4: 150000 | C4: 1551 | D4: Hooned ja rajatised | E4: 3 | F4: Investeerimistegevus | G4: 1005 | H4: Ühinemine | I4: 333 | J4: Hiiumaa Loodus- ja Tegevuskeskus | K4: 08109 | L4: Vaba aja üritused
A5: Hooned ja rajatised (EAS - elamuskeskus) | B5: 1110000 | C5: 1551 | D5: Hooned ja rajatised | E5: 3 | F5: Investeerimistegevus | I5: 333 | J5: Hiiumaa Loodus- ja Tegevuskeskus | K5: 08109 | L5: Vaba aja üritused
A6: Hooned ja rajatised (omaosalus) | B6: 555000 | C6: 1551 | D6: Hooned ja rajatised | E6: 3 | F6: Investeerimistegevus | I6: 333 | J6: Hiiumaa Loodus- ja Tegevuskeskus | K6: 08109 | L6: Vaba aja üritused
A7: Hooned ja rajatised- strateegia alusel 2019 aastasse | B7: -1100000 | C7: 1551 | D7: Hooned ja rajatised | E7: 3 | F7: Investeerimistegevus | I7: 234 | J7: Käina majandus | K7: 08202 | L7: Rahvakultuur | M7: 21 | N7: Halduse eelarve
A8: Hooned ja rajatised, Käina kultuurikeskuse rekonstrueerimine | B8: 1100000 | C8: 1551 | D8: Hooned ja rajatised | E8: 3 | F8: Investeerimistegevus | I8: 234 | J8: Käina majandus | K8: 08202 | L8: Rahvakultuur | M8: 21 | N8: Halduse eelarve
A9: Hooned ja rajatised Riigi rahadest | B9: 83764 | C9: 1551 | D9: Hooned ja rajatised | E9: 3 | F9: Investeerimistegevus | G9: 1001 | H9: Rahandusministeerium - toetusfond | I9: 234 | J9: Käina majandus | K9: 04510 | L9: Maanteetransport | M9: 4011 | N9: Teed
A10: Hooned ja rajatised; Orjaku kalasadma väikepaatide bassein | B10: 10000 | C10: 1551 | D10: Hooned ja rajatised | E10: 3 | F10: Investeerimistegevus | I10: 234 | J10: Käina majandus | K10: 04520 | L10: Veetransport
A11: Hooned ja rajatised, Orjaku kalasadama väikepaatide bassein | B11: 165000 | C11: 1551 | D11: Hooned ja rajatised | E11: 3 | F11: Investeerimistegevus | I11: 234 | J11: Käina majandus | K11: 04520 | L11: Veetransport
A12: Hooned ja rajatised, Lussuliiva puhkeala projekt | B12: 20000 | C12: 1551 | D12: Hooned ja rajatised | E12: 3 | F12: Investeerimistegevus | I12: 234 | J12: Käina majandus | K12: 04740 | L12: Üldmajanduslikud arendusprojektid
A13: Keskosa planeering projekteerimine Maanteeametiga koostöös | B13: 10000 | C13: 1551 | D13: Hooned ja rajatised | E13: 3 | F13: Investeerimistegevus | I13: 234 | J13: Käina majandus | K13: 04740 | L13: Üldmajanduslikud arendusprojektid
A14: Hooned ja rajatised, Käina tööstusala DP elluviimine | B14: 10000 | C14: 1551 | D14: Hooned ja rajatised | E14: 3 | F14: Investeerimistegevus | I14: 234 | J14: Käina majandus | K14: 04740 | L14: Üldmajanduslikud arendusprojektid
A15: Soojatrass (b-osa süsteem maja sees) | B15: 27700 | C15: 1551 | D15: Hooned ja rajatised | E15: 3 | F15: Investeerimistegevus | I15: 331 | J15: Käina Sprodikeskus | K15: 08102 | L15: Sport
A16: Soojatrass (a-osa lõppmaksed) | B16: 375 | C16: 1551 | D16: Hooned ja rajatised | E16: 3 | F16: Investeerimistegevus | I16: 331 | J16: Käina Sprodikeskus | K16: 08102 | L16: Sport
A17: Hooned ja rajatised Remondid (plaatimine + põhjatrapid) | B17: 18500 | C17: 1551 | D17: Hooned ja rajatised | E17: 3 | F17: Investeerimistegevus | I17: 331 | J17: Käina Sprodikeskus | K17: 08102 | L17: Sport
A18: Hooned ja rajatised Turg omaosalus 89000 | B18: 1 | C18: 1551 | D18: Hooned ja rajatised | E18: 3 | F18: Investeerimistegevus | I18: 234 | J18: Käina majandus | K18: 05101 | L18: Avalike alade puhastus (2017)
A19: Ühinemistoetus | B19: -150000 | C19: 3502 | D19: Saadud sihtfinantseerimine põhivara soetuseks | E19: 3 | F19: Investeerimistegevus | G19: 1005 | H19: Ühinemine | I19: 20 | J19: Vallavalitsus | K19: 01112 | L19: Valla- ja linnavalitsus
A20: Kodumaine sihtfinantseerimine põhivara soetuseks EAS | B20: -1110000 | C20: 350200 | D20: Kodumaine sihtfinantseerimine põhivara soetuseks | E20: 3 | F20: Investeerimistegevus | I20: 333 | J20: Hiiumaa Loodus- ja Tegevuskeskus | K20: 08109 | L20: Vaba aja üritused
A21: Kodumaine sihtfinantseerimine põhivara soetuseks; orjaku kalasadama väikepaatide bassein | B21: -123770 | C21: 350200 | D21: Kodumaine sihtfinantseerimine põhivara soetuseks | E21: 3 | F21: Investeerimistegevus | I21: 234 | J21: Käina majandus | K21: 04520 | L21: Veetransport
A22: Kodumaine sihtfinantseerimine põhivara soetuseks Turu ala | B22: -1 | C22: 350200 | D22: Kodumaine sihtfinantseerimine põhivara soetuseks | E22: 3 | F22: Investeerimistegevus | I22: 234 | J22: Käina majandus | K22: 05101 | L22: Avalike alade puhastus (2017)
A23: mereküla Kalurite Klubi PRIA projekti omaosaluse toetus | B23: 6000 | C23: 4502 | D23: Antud sihtfinantseerimine põhivara soetuseks | E23: 3 | F23: Investeerimistegevus | I23: 234 | J23: Käina majandus | K23: 04520 | L23: Veetransport
A24: EELK Käina kogudus kiriku restaureerimine | B24: 5000 | C24: 450200 | D24: Kodumaine sihtfinantseerimine põhivara soetuseks | E24: 3 | F24: Investeerimistegevus | I24: 236 | J24: Käina kultuur | K24: 08109 | L24: Vaba aja üritused
A25: Kodumaine sihtfinantseerimine põhivara soetuseks | B25: 1788 | C25: 450200 | D25: Kodumaine sihtfinantseerimine põhivara soetuseks | E25: 3 | F25: Investeerimistegevus | I25: 236 | J25: Käina kultuur | K25: 08109 | L25: Vaba aja üritused
A26: Kodumaine sihtfinantseerimine põhivara soetuseks | B26: -509 | C26: 450200 | D26: Kodumaine sihtfinantseerimine põhivara soetuseks | E26: 3 | F26: Investeerimistegevus | I26: 234 | J26: Käina majandus | K26: 06300 | L26: Veevarustus
A27: Kodumaine sihtfinantseerimine põhivara soetuseks 2016 projekti jääk Metsand | B27: 509 | C27: 450200 | D27: Kodumaine sihtfinantseerimine põhivara soetuseks | E27: 3 | F27: Investeerimistegevus | I27: 234 | J27: Käina majandus | K27: 06300 | L27: Veevarustus
A28: Intressi-, viivise- ja kohustistasu kulu võetud laenudelt Danske 2017 | B28: 2480 | C28: 650100 | D28: Intressi-, viivise- ja kohustistasu kulu võetud laenudelt | E28: 3 | F28: Investeerimistegevus | I28: 20 | J28: Vallavalitsus | K28: 01700 | L28: Valitsussektori võla teenindamine
A29: Intressi-, viivise- ja kohustistasu kulu võetud laenudelt SEB 2014 | B29: 462 | C29: 650100 | D29: Intressi-, viivise- ja kohustistasu kulu võetud laenudelt | E29: 3 | F29: Investeerimistegevus | I29: 20 | J29: Vallavalitsus | K29: 01700 | L29: Valitsussektori võla teenindamine
A30: Intressi-, viivise- ja kohustistasu kulu võetud laenudelt SEB 2016 | B30: 3886 | C30: 650100 | D30: Intressi-, viivise- ja kohustistasu kulu võetud laenudelt | E30: 3 | F30: Investeerimistegevus | I30: 20 | J30: Vallavalitsus | K30: 01700 | L30: Valitsussektori võla teenindamine
A31: Intressi-, viivise- ja kohustistasu kulu võetud laenudelt Danske 2016 | B31: 2183 | C31: 650100 | D31: Intressi-, viivise- ja kohustistasu kulu võetud laenudelt | E31: 3 | F31: Investeerimistegevus | I31: 20 | J31: Vallavalitsus | K31: 01700 | L31: Valitsussektori võla teenindamine
A32: Intressi-, viivise- ja kohustistasu kulu võetud laenudelt Danske 2013 | B32: 1540 | C32: 650100 | D32: Intressi-, viivise- ja kohustistasu kulu võetud laenudelt | E32: 3 | F32: Investeerimistegevus | I32: 20 | J32: Vallavalitsus | K32: 01700 | L32: Valitsussektori võla teenindamine
A33: Intressi-, viivise- ja kohustistasu kulu kapitalirendilt | B33: 70 | C33: 650200 | D33: Intressi-, viivise- ja kohustistasu kulu kapitalirendilt | E33: 3 | F33: Investeerimistegevus | I33: 20 | J33: Vallavalitsus | K33: 01700 | L33: Valitsussektori võla teenindamine

Sheet Leht1 (hidden)
B2: Puudega lapsed | C2: Toimetulek | D2: Vajaduspõhine
A3: jääk rahandusmin.2017 | B3: 606 | C3: 43394 | D3: 9225
A4: Emmaste | B4: 0 | C4: 7051 | D4: 1381 | E4: =SUM(B4:D4) -> 8432
A5: Pühalepa | B5: 0 | C5: 9017 | D5: 2160 | E5: =SUM(B5:D5) -> 11177
A6: Käina | B6: 606 | C6: 8443 | D6: 2264 | E6: 11313
A7: Hiiu | B7: 0 | C7: 18883 | D7: 3420 | E7: 22303
B8: =SUM(B4:B7) -> 606 | C8: =SUM(C4:C7) -> 43394 | D8: 9225 | E8: 53225

Sheet laenud (hidden)
A1: Osavald | B1: Pank | C1: Lepingu number | D1: Tagasimakse tähtaeg | E1: lepingu intress | G1: 1% euribor + lepingu intress | I1: 2%euribor + lepingu intress | K1: 5% euribor + lepingu intress | M1: Maksete arv | N1: Laenujääk | O1: Kuumakse | P1: Euribor 0%+lepingu intress Tagasimakstav kogusumma | Q1: Kuumakse | R1: Euribor 1%+lepingu intress Tagasimakstav kogusumma | S1: Kuumakse | T1: Euribor 2%+lepingu intress Tagasimakstav kogusumma | U1: Kuumakse | V1: Euribor 5%+lepingu intress Tagasimakstav kogusumma
A2: Emmaste | B2: SEB | C2: 2008030197 | D2: 2018-11-20 | E2: 0.00741 | F2: 0.0006175 | G2: 0.01741 | H2: 0.001450833333 | I2: 0.02741 | J2: 0.002284166667 | K2: 0.05741 | L2: 0.004784166667 | M2: 10 | N2: 18348.6 | O2: -1841.097414 | P2: -18410.97414 | Q2: -1849.533258 | R2: -18495.33258 | S2: -1857.990082 | T2: -18579.90082 | U2: -1883.486152 | V2: -18834.86152
A3: Emmaste | B3: SEB | C3: 2017016784 | D3: 2027-07-25 | E3: 0.0098 | F3: 0.0008166666667 | G3: 0.0198 | H3: 0.00165 | I3: 0.0298 | J3: 0.002483333333 | K3: 0.0598 | L3: 0.004983333333 | M3: 115 | N3: 740000 | O3: -6744.303577 | P3: -775594.9114 | Q3: -7069.86945 | R3: -813034.9867 | S3: -7405.223083 | T3: -851600.6546 | U3: -8469.360884 | V3: -973976.5016
A4: Emmaste Kokku | P4: -794005.8855 | R4: -831530.3193 | T4: -870180.5554 | V4: -992811.3631
A5: Hiiu | B5: Danske Bank | C5: KL-190116HI | D5: 2023-06-20 | E5: 0.0099 | F5: 0.000825 | G5: 0.0199 | H5: 0.001658333333 | I5: 0.0299 | J5: 0.002491666667 | K5: 0.0599 | L5: 0.004991666667 | M5: 66 | N5: 1515535 | O5: -23602.95119 | P5: -1557794.778 | Q5: -24261.21672 | R5: -1601240.304 | S5: -24931.0135 | T5: -1645446.891 | U5: -27009.2411 | V5: -1782609.913
A6: Hiiu | B6: Danske Bank | C6: KL-280617HI | D6: 2028-12-20 | E6: 0.0082 | F6: 0.0006833333333 | G6: 0.0182 | H6: 0.001516666667 | I6: 0.0282 | J6: 0.00235 | K6: 0.0582 | L6: 0.00485 | M6: 131 | N6: 320000 | O6: -2554.546353 | P6: -334645.5723 | Q6: -2695.290987 | R6: -353083.1193 | S6: -2840.856202 | T6: -372152.1624 | U6: -3306.096645 | V6: -433098.6605
A7: Hiiu | B7: Danske Bank | C7: KL-290515HI | D7: 2023-03-29 | E7: 0.00738 | F7: 0.000615 | G7: 0.01738 | H7: 0.001448333333 | I7: 0.02738 | J7: 0.002281666667 | K7: 0.05738 | L7: 0.004781666667 | M7: 62 | N7: 328294.93 | O7: -5398.299606 | P7: -334694.5756 | Q7: -5540.208352 | R7: -343492.9178 | S7: -5684.465204 | T7: -352436.8426 | U7: -6131.26112 | V7: -380138.1894
A8: Hiiu Kokku | P8: -2227134.926 | R8: -2297816.341 | T8: -2370035.896 | V8: -2595846.762
A9: Hiiumaa | B9: uus laen | D9: 2028-01-01 | E9: 0.01 | F9: 0.0008333333333 | G9: 0.02 | H9: 0.001666666667 | I9: 0.03 | J9: 0.0025 | K9: 0.06 | L9: 0.005 | M9: 120 | N9: 1600000 | O9: -14016.65942 | P9: -1681999.13 | Q9: -14722.15261 | R9: -1766658.314 | S9: -15449.71915 | T9: -1853966.298 | U9: -17763.28031 | V9: -2131593.637
A10: Hiiumaa Kokku | P10: -1681999.13 | R10: -1766658.314 | T10: -1853966.298 | V10: -2131593.637
A11: Käina | B11: SEB | C11: 2014033303 | D11: 2021-12-15 | E11: 0.00855 | F11: 0.0007125 | G11: 0.01855 | H11: 0.001545833333 | I11: 0.02855 | J11: 0.002379166667 | K11: 0.05855 | L11: 0.004879166667 | M11: 47 | N11: 59988.13 | O11: -1298.287837 | P11: -61019.52834 | Q11: -1324.256232 | R11: -62240.04291 | S11: -1350.54987 | T11: -63475.84387 | U11: -1431.375357 | V11: -67274.6418
A12: Käina | B12: SEB | C12: 2016017066 | D12: 2026-09-15 | E12: 0.011 | F12: 0.0009166666667 | G12: 0.021 | H12: 0.00175 | I12: 0.031 | J12: 0.002583333333 | K12: 0.061 | L12: 0.005083333333 | M12: 104 | N12: 366716.48 | O12: -3698.48323 | P12: -384642.2559 | Q12: -3859.800781 | R12: -401419.2812 | S12: -4025.505477 | T12: -418652.5696 | U12: -4548.686328 | V12: -473063.3781
A13: Käina | B13: Danske Bank | C13: KL-040713PY | D13: 2023-12-04 | E13: 0.00888 | F13: 0.00074 | G13: 0.01888 | H13: 0.001573333333 | I13: 0.02888 | J13: 0.002406666667 | K13: 0.05888 | L13: 0.004906666667 | M13: 71 | N13: 90000 | O13: -1301.666066 | P13: -92418.29067 | Q13: -1340.719385 | R13: -95191.07634 | S13: -1380.509439 | T13: -98016.17014 | U13: -1504.276077 | V13: -106803.6015
A14: Käina | B14: Danske Bank | C14: KL-220917KA | D14: 2027-09-20 | E14: 0.0094 | F14: 0.0007833333333 | G14: 0.0194 | H14: 0.001616666667 | I14: 0.0294 | J14: 0.00245 | K14: 0.0594 | L14: 0.00495 | M14: 116 | N14: 263000 | O14: -2372.696779 | P14: -275232.8263 | Q14: -2488.300663 | R14: -288642.8769 | S14: -2607.413881 | T14: -302460.0102 | U14: -2985.575888 | V14: -346326.803
A15: Käina | B15: Danske Bank | C15: KL-170815KA | D15: 2022-08-20 | E15: 0.0082 | F15: 0.0006833333333 | G15: 0.0182 | H15: 0.001516666667 | I15: 0.0282 | J15: 0.00235 | K15: 0.0582 | L15: 0.00485 | M15: 55 | N15: 276512.55 | O15: -5124.28513 | P15: -281835.6821 | Q15: -5243.913861 | R15: -288415.2623 | S15: -5365.296942 | T15: -295091.3318 | U15: -5739.929824 | V15: -315696.1403
A16: Käina | B16: Danske Bank | C16: KL-181013KA | D16: 2020-10-20 | E16: 0.00806 | F16: 0.0006716666667 | G16: 0.01806 | H16: 0.001505 | I16: 0.02806 | J16: 0.002338333333 | K16: 0.05806 | L16: 0.004838333333 | M16: 33 | N16: 213680.38 | O16: -6549.363363 | P16: -216128.991 | Q16: -6642.158776 | R16: -219191.2396 | S16: -6735.767533 | T16: -222280.3286 | U16: -7021.460307 | V16: -231708.1901
A17: Käina Kokku | P17: -1311277.574 | R17: -1355099.779 | T17: -1399976.254 | V17: -1540872.755
A18: Pühalepa | B18: SEB | C18: 2016019802 | D18: 2027-12-20 | E18: 0.0098 | F18: 0.0008166666667 | G18: 0.0198 | H18: 0.00165 | I18: 0.0298 | J18: 0.002483333333 | K18: 0.0598 | L18: 0.004983333333 | M18: 119 | N18: 320000 | O18: -2822.955427 | P18: -335931.6959 | Q18: -2963.920256 | R18: -352706.5104 | S18: -3109.263711 | T18: -370002.3816 | U18: -3571.258641 | V18: -424979.7783
A19: Pühalepa | B19: SEB | C19: 2017008642 | D19: 2027-04-20 | E19: 0.0085 | F19: 0.0007083333333 | G19: 0.0185 | H19: 0.001541666667 | I19: 0.0285 | J19: 0.002375 | K19: 0.0585 | L19: 0.004875 | M19: 110 | N19: 300000 | O19: -2835.867669 | P19: -311945.4436 | Q19: -2967.152328 | R19: -326386.7561 | S19: -3102.235857 | T19: -341245.9443 | U19: -3530.052897 | V19: -388305.8187
A20: Pühalepa | B20: SEB | C20: 2017021694 | D20: 2027-09-15 | E20: 0.0096 | F20: 0.0008 | G20: 0.0196 | H20: 0.001633333333 | I20: 0.0296 | J20: 0.002466666667 | K20: 0.0596 | L20: 0.004966666667 | M20: 116 | N20: 400000 | O20: -3612.128311 | P20: -419006.8841 | Q20: -3788.058696 | R20: -439414.8087 | S20: -3969.32595 | T20: -460441.8103 | U20: -4544.791658 | V20: -527195.8323
A21: Pühalepa Kokku | P21: -1066884.024 | R21: -1118508.075 | T21: -1171690.136 | V21: -1340481.429
A22: Üldkokkuvõte | P22: -7081301.54 | R22: -7369612.828 | T22: -7665849.14 | V22: -8601605.947
R23: -288311.2886 | S23: 0 | T23: -584547.6004 | U23: 0 | V23: -1520304.407

Sheet Lasteaiad (hidden)
C1: HIIUMAA VALD | D1: Emmaste Osavald | E1: Pühalepa Osavald | G1: Käina Osavald
C2: KOKKU | D2: Naksitrallid | E2: Palade lasteaed | F2: Suuremõisa lasteaed | G2: Tirtspõnn | H2: Kalda maja | I2: Vigri maja
A3: Laste arv 2017 | D3: 42 | E3: 39 | G3: 100 | H3: 163
A4: Laste arv 2018 | D4: 36 | E4: 34 | F4: 9 | G4: 102 | H4: 121 | I4: 32
A5: Lastepõhine toetus | B5: 63.21 | C5: =SUM(D5:I5) -> 21112.14 | D5: =D4*$B$5 -> 2275.56 | E5: =E4*$B$5 -> 2149.14 | F5: 568.89 | G5: 6447.42 | H5: 7648.41 | I5: 2022.72
A9: Maakond | B9: Kohalik omavalitsus | C9: Kohalik omavalitsus | D9: Lasteaia õpetajate täiskohale taandatud ametikohtade arv (EHIS 2017/18 õa) | E9: Lasteaialaste arv KOV+era (10.11.2017 EHIS, elukohajärgselt) | F9: Kõrgharidusega lasteaia õpetaja töötasu alammäär (s. 2017 aprill) | G9: 2018. a toetuse arvutus | J9: Toetus 2017 | K9: Muutus
G10: Tasandustoetus (min 977,5 eurot) | H10: Lapsepõhine toetus | I10: KOKKU
L11: Ühinenud
A12: Hiiu | B12: Hiiu vallavalitsus | D12: 18.56 | E12: 153 | F12: 800 | G12: =IF(F12>977.5,0,ROUND((977.5-F12)*D12*12*1.338*0.67,0)) -> 35440 | H12: =ROUND($H$21*E12,0) -> 9847 | I12: =SUM(G12:H12) -> 45287 | J12: 6943 | K12: =I12-J12 -> 38344 | L12: Hiiumaa
C13: Kalda maja | E13: 121 | H13: =ROUND($H$21*E13,0) -> 7788
C14: Vigri maja | E14: 32 | H14: 2060
A15: Hiiu | B15: Emmaste vallavalitsus | C15: Emmaste Lasteaed | D15: 7 | E15: 36 | F15: 838 | G15: 10505 | H15: =ROUND($H$21*E15,0) -> 2317 | I15: 12822 | J15: 983 | K15: 11839 | L15: Hiiumaa
A16: Hiiu | B16: Käina vallavalitsus | C16: Käina vald | D16: 11 | E16: 100 | F16: 820 | G16: 18637 | H16: =ROUND($H$21*E16,0) -> 6436 | I16: 25073 | J16: 3188 | K16: 21885 | L16: Hiiumaa
A17: Hiiu | B17: Pühalepa vallavalitsus | C17: Pühalepa vald | D17: 5.5 | E17: =E18+E19 -> 35 | F17: 821 | G17: 9260 | H17: =ROUND($H$21*E17,0) -> 2253 | I17: 11513 | J17: 1307 | K17: 10206 | L17: Hiiumaa
C18: Palade lasteaed | E18: 30 | F18: 821 | G18: 0 | H18: =ROUND($H$21*E18,0) -> 1931 | I18: =SUM(G18:H18) -> 1931 | J18: 1308 | K18: =I18-J18 -> 623 | L18: =I17*0.78 -> 8980.14
C19: Suuremõisa | E19: 5 | F19: 821 | G19: 0 | H19: 322 | I19: 322 | J19: 1309 | K19: -987 | L19: =I17*0.22 -> 2532.86
E20: =E12+E15+E16+E17 -> 324 | G20: =SUM(G12:G17) -> 73842 | H20: =SUM(H12:H17) -> 30701 | I20: 104543 | L20: =SUM(L18:L19) -> 11513
E21: 328 | H21: 64.36027
E22: =E21-E20 -> 4
B25: Maakond | C25: Kohalik omavalitsus | D25: Kohalik omavalitsus | E25: Õpetaja töötasu alammäär vähemalt 977,5 eurot. Õpetajate ja lasteaia laste arv on toodud ühinenud KOV-de lõikes tabelis, mis algab reast 88! | H25: 2018. a toetuse arvutus | K25: Toetus 2017 | L25: Muutus
H26: Tasandustoetus (min 977,5 eurot) | I26: Lapsepõhine toetus | J26: KOKKU
B28: Hiiu | C28: Hiiu vallavalitsus | D28: Hiiu vald | E28: 18.56 | F28: 158 | G28: 800 | H28: 35440 | I28: 10169 | J28: 45609 | K28: =I28+J28 -> 55778 | L28: 38666 | M28: Hiiumaa
B29: Hiiu | C29: Emmaste vallavalitsus | D29: Emmaste vald | E29: 7 | F29: 38 | G29: 838 | H29: 10505 | I29: 2446 | J29: 12951 | K29: =I29+J29 -> 15397 | L29: 11968 | M29: Hiiumaa
B30: Hiiu | C30: Käina vallavalitsus | D30: Käina vald | E30: 11 | F30: 102 | G30: 820 | H30: 18637 | I30: 6565 | J30: 25202 | K30: 31767 | L30: 22014 | M30: Hiiumaa
B31: Hiiu | C31: Pühalepa vallavalitsus | D31: Pühalepa vald | E31: 5.5 | F31: 30 | G31: 821 | H31: 9260 | I31: 1931 | J31: 11191 | K31: 13122 | L31: 9884 | M31: Hiiumaa
H32: =SUM(H28:H31) -> 73842 | I32: 21111 | J32: =SUM(J28:J31) -> 94953

Sheet Teed
A2: Kohalik omavalitsus | B2: Kohalike teede pikkus (km) 2016 | E2: Toetus 2016 | F2: Toetus 2015
B4: maanteed | C4: tänavad | D4: kaalutud pikkus
A5: Hiiu vallavalitsus | B5: 90.032 | C5: 39.21 | D5: 286.082 | E5: 192674 | F5: 158921
A6: Emmaste vallavalitsus | B6: 113.278 | C6: 0 | D6: 113.278 | E6: 76292 | F6: 63556
A7: Käina vallavalitsus | B7: 91.091 | C7: 7.078 | D7: 126.481 | E7: 85184 | F7: 72651
A8: Pühalepa vallavalitsus | B8: 126.332 | C8: 0 | D8: 126.332 | E8: 85084 | F8: 70332
A9: HIIUMAA | B9: =SUM(B5:B8) -> 420.733 | C9: =SUM(C5:C8) -> 46.288 | D9: 652.173 | E9: 439234 | F9: 365460
A11: Kohalik omavalitsus | B11: Kohalike teede pikkus (km) 2017 | E11: Toetus 2017 | F11: Toetus 2016
B13: maanteed | C13: tänavad | D13: kaalutud pikkus
A14: Hiiu vallavalitsus | B14: 89.903 | C14: 39.52 | D14: 287.503 | E14: 191175 | F14: 192674
A15: Emmaste vallavalitsus | B15: 113.278 | C15: 0 | D15: 113.278 | E15: 75324 | F15: 76292
A16: Käina vallavalitsus | B16: 90.58 | C16: 7.078 | D16: 125.97 | E16: 83764 | F16: 85184
A17: Pühalepa vallavalitsus | B17: 126.893 | C17: 0 | D17: 126.893 | E17: 84377 | F17: 85084
A18: HIIUMAA | B18: =SUM(B14:B17) -> 420.654 | C18: =SUM(C14:C17) -> 46.598 | D18: 653.644 | E18: 434640 | F18: 439234
A20: Kohalik omavalitsus | B20: Kohalike teede pikkus (km) 2018 | E20: Toetus 2018 | F20: Toetus 2017
B22: maanteed | C22: tänavad | D22: kaalutud pikkus
A23: HIIUMAA | B23: 423.827 | C23: 46.598 | D23: 656.817 | E23: 435111 | F23: 434640
A24: Hiiu vallavalitsus | E24: =E14+171 -> 191346
A25: Emmaste vallavalitsus | E25: =E15+100 -> 75424
A26: Käina vallavalitsus | E26: =E16+100 -> 83864
A27: Pühalepa vallavalitsus | E27: =E17+100 -> 84477

Sheet 32 (hidden)
A1: Kirje 2018 | B1: Summa | C1: Eelarvekonto | D1: Üksus | F1: Tegevusala | H1: Objekt
A2: Riigilõivud? kuhu laekuvad? | B2: 3000 | C2: 320 | D2: 20 | E2: Vallavalitsus | F2: 01112 | G2: Valla- ja linnavalitsus
A3: Riigilõivud | B3: 4500 | C3: 320 | D3: 20 | E3: Vallavalitsus | F3: 01112 | G3: Valla- ja linnavalitsus | H3: 11 | I3: Omatulude eelarve
A4: Riigilõivud | B4: 2500 | C4: 320 | D4: 20 | E4: Vallavalitsus | F4: 01112 | G4: Valla- ja linnavalitsus
A5: Riigilõivud | B5: 2500 | C5: 320 | D5: 20 | E5: Vallavalitsus | F5: 01112 | G5: Valla- ja linnavalitsus
B6: =SUBTOTAL(9,B2:B5) -> 12500 | C6: 320 Kokku
A7: Tulud majandustegevusest (järg) | B7: 1100 | C7: 323 | D7: 20 | E7: Vallavalitsus | F7: 01112 | G7: Valla- ja linnavalitsus | H7: 11 | I7: Omatulude eelarve
B8: =SUBTOTAL(9,B7:B7) -> 1100 | C8: 323 Kokku
A9: Tulud haridusalasest tegevusest | B9: 21000 | C9: 3220 | D9: 20 | E9: Vallavalitsus | F9: 01112 | G9: Valla- ja linnavalitsus | H9: 11 | I9: Omatulude eelarve
B10: =SUBTOTAL(9,B9:B9) -> 21000 | C10: 3220 Kokku
A11: Tulud kultuuri- ja kunstialasest tegevusest | B11: 3500 | C11: 3221 | D11: 20 | E11: Vallavalitsus | F11: 01112 | G11: Valla- ja linnavalitsus | H11: 11 | I11: Omatulude eelarve
B12: =SUBTOTAL(9,B11:B11) -> 3500 | C12: 3221 Kokku
A13: Tulud sotsiaalabialasest tegevusest | B13: 5700 | C13: 3224 | D13: 20 | E13: Vallavalitsus | F13: 01112 | G13: Valla- ja linnavalitsus | H13: 11 | I13: Omatulude eelarve
B14: =SUBTOTAL(9,B13:B13) -> 5700 | C14: 3224 Kokku
A15: Elamu- ja kommunaaltegevuse tulud | B15: 3300 | C15: 3225 | D15: 20 | E15: Vallavalitsus | F15: 01112 | G15: Valla- ja linnavalitsus | H15: 11 | I15: Omatulude eelarve
B16: =SUBTOTAL(9,B15:B15) -> 3300 | C16: 3225 Kokku
A17: Tulud üldvalitsemisest kantseleiteenused osavallas | B17: 500 | C17: 3229 | D17: 20 | E17: Vallavalitsus | F17: 01112 | G17: Valla- ja linnavalitsus
B18: =SUBTOTAL(9,B17:B17) -> 500 | C18: 3229 Kokku
A19: Tulu muudelt majandusaladelt | B19: 5500 | C19: 3232 | D19: 20 | E19: Vallavalitsus | F19: 01112 | G19: Valla- ja linnavalitsus
B20: =SUBTOTAL(9,B19:B19) -> 5500 | C20: 3232 Kokku
A21: Üür ja rent | B21: 2000 | C21: 3233 | D21: 20 | E21: Vallavalitsus | F21: 01112 | G21: Valla- ja linnavalitsus
A22: Mitteeluruumidelt | B22: 1815 | C22: 3233 | D22: 20 | E22: Vallavalitsus | F22: 01112 | G22: Valla- ja linnavalitsus
A23: Mitteeluruumidelt | B23: 255 | C23: 3233 | D23: 20 | E23: Vallavalitsus | F23: 01112 | G23: Valla- ja linnavalitsus
A24: Mitteeluruumidelt | B24: 4800 | C24: 3233 | D24: 20 | E24: Vallavalitsus | F24: 01112 | G24: Valla- ja linnavalitsus
B25: =SUBTOTAL(9,B21:B24) -> 8870 | C25: 3233 Kokku
A26: Hoonestusõiguse seadmise tasu (kardirada, Lükkepakk, Prügila) | B26: 1378 | C26: 3237 | D26: 20 | E26: Vallavalitsus | F26: 01112 | G26: Valla- ja linnavalitsus
A27: Õiguste müük | B27: 80 | C27: 3237 | D27: 20 | E27: Vallavalitsus | F27: 01112 | G27: Valla- ja linnavalitsus
A28: Hoonestusõiguse seadmise tasu | B28: 1200 | C28: 3237 | D28: 20 | E28: Vallavalitsus | F28: 01112 | G28: Valla- ja linnavalitsus
A29: Hoonestusõiguse seadmise tasu | B29: 0.24 | C29: 3237 | D29: 20 | E29: Vallavalitsus | F29: 01112 | G29: Valla- ja linnavalitsus
A30: Hoonestusõiguse seadmise tasu | B30: 1661.76 | C30: 3237 | D30: 20 | E30: Vallavalitsus | F30: 01112 | G30: Valla- ja linnavalitsus
B31: =SUBTOTAL(9,B26:B30) -> 4320 | C31: 3237 Kokku
A32: Muu toodete ja teenuste müük (veoauto kasutus) | B32: 1000 | C32: 3238 | D32: 20 | E32: Vallavalitsus | F32: 01112 | G32: Valla- ja linnavalitsus
A33: Kantseleiteenuste tasu | B33: 50 | C33: 3238 | D33: 20 | E33: Vallavalitsus | F33: 01112 | G33: Valla- ja linnavalitsus
B34: =SUBTOTAL(9,B32:B33) -> 1050 | C34: 3238 Kokku
B35: =SUBTOTAL(9,B2:B33) -> 67340 | F35: 01112 Kokku
A36: Muud riigilõivud a-e | B36: 2500 | C36: 3201 | D36: 20 | E36: Vallavalitsus | F36: 01600 | G36: Muud üldised valitsussektori teenused
B37: =SUBTOTAL(9,B36:B36) -> 2500 | C37: 3201 Kokku
B38: =SUBTOTAL(9,B36:B36) -> 2500 | F38: 01600 Kokku
A39: Tulu soojusenergia müügist Kajakael KÜ | B39: 4000 | C39: 3232 | D39: 234 | E39: Käina majandus | F39: 04360 | G39: Muu energia- ja soojamajandus
B40: =SUBTOTAL(9,B39:B39) -> 4000 | C40: 3232 Kokku
B41: =SUBTOTAL(9,B39:B39) -> 4000 | F41: 04360 Kokku
A42: Muu vara üür ja rent | B42: -2200 | C42: 3233 | D42: 234 | E42: Käina majandus | F42: 04520 | G42: Veetransport
A43: Muu vara üür ja rent Meretamme | B43: 2200 | C43: 3233 | D43: 234 | E43: Käina majandus | F43: 04520 | G43: Veetransport
A44: Muu vara üür ja rent | B44: 2200 | C44: 3233 | D44: 234 | E44: Käina majandus | F44: 04520 | G44: Veetransport
B45: =SUBTOTAL(9,B42:B44) -> 2200 | C45: 3233 Kokku
A46: Kasutamisõiguse tasu | B46: -6200 | C46: 3237 | D46: 234 | E46: Käina majandus | F46: 04520 | G46: Veetransport
A47: Kasutamisõiguse tasu | B47: 6200 | C47: 3237 | D47: 234 | E47: Käina majandus | F47: 04520 | G47: Veetransport
A48: Kasutamisõiguse tasu | B48: 6200 | C48: 3237 | D48: 234 | E48: Käina majandus | F48: 04520 | G48: Veetransport
B49: =SUBTOTAL(9,B46:B48) -> 6200 | C49: 3237 Kokku
B50: =SUBTOTAL(9,B42:B48) -> 8400 | F50: 04520 Kokku
A51: Tulu muudelt majandusaladelt | B51: 9900 | C51: 3232 | D51: 264 | E51: Hiiu majandus | F51: 04710 | G51: Kaubandus ja laondus | H51: 4101 | I51: Kärdla turg
A52: Tulu muudelt majandusaladelt | B52: 100 | C52: 3232 | D52: 264 | E52: Hiiu majandus | F52: 04710 | G52: Kaubandus ja laondus | H52: 4101 | I52: Kärdla turg
B53: =SUBTOTAL(9,B51:B52) -> 10000 | C53: 3232 Kokku
B54: =SUBTOTAL(9,B51:B52) -> 10000 | F54: 04710 Kokku
A55: Tulud muudelt majandusaladelt | B55: 58000 | C55: 3232 | D55: 264 | E55: Hiiu majandus | F55: 04730 | G55: Turism
B56: =SUBTOTAL(9,B55:B55) -> 58000 | C56: 3232 Kokku
B57: =SUBTOTAL(9,B55:B55) -> 58000 | F57: 04730 Kokku
A58: Tulud transpordi- ja sidealasest tegevusest | B58: 1300 | C58: 3230 | D58: 941 | E58: Munitsipaalasutus EMKO | F58: 04900 | G58: Muu majandus (sh majanduse haldus)
B59: =SUBTOTAL(9,B58:B58) -> 1300 | C59: 3230 Kokku
A60: Tulud muudelt majandusaladelt | B60: 11000 | C60: 3232 | D60: 941 | E60: Munitsipaalasutus EMKO | F60: 04900 | G60: Muu majandus (sh majanduse haldus)
B61: =SUBTOTAL(9,B60:B60) -> 11000 | C61: 3232 Kokku
B62: =SUBTOTAL(9,B58:B60) -> 12300 | F62: 04900 Kokku
A63: Elamu- ja kommunaaltegevuse tulud | B63: 2000 | C63: 3225 | D63: 244 | E63: Emmaste majandus | F63: 05200 | G63: Heitveekäitlus
B64: =SUBTOTAL(9,B63:B63) -> 2000 | C64: 3225 Kokku
B65: =SUBTOTAL(9,B63:B63) -> 2000 | F65: 05200 Kokku
A66: Muu toodete ja teenuste müük | B66: 4000 | C66: 3238 | D66: 264 | E66: Hiiu majandus | F66: 05400 | G66: Bioloogilise mitmekesisuse ja maastiku kaitse
B67: =SUBTOTAL(9,B66:B66) -> 4000 | C67: 3238 Kokku
B68: =SUBTOTAL(9,B66:B66) -> 4000 | F68: 05400 Kokku
A69: Elamu- ja kommunaaltegevuse tulud | B69: 1500 | C69: 3225 | D69: 244 | E69: Emmaste majandus | F69: 06300 | G69: Veevarustus
B70: =SUBTOTAL(9,B69:B69) -> 1500 | C70: 3225 Kokku
B71: =SUBTOTAL(9,B69:B69) -> 1500 | F71: 06300 Kokku
A72: Tulu soojuse ja kütte müügist | B72: 5000 | C72: 3225 | D72: 234 | E72: Käina majandus | F72: 06605 | G72: Muud elamu- ja kommunaalmajanduse tegevus
A73: Tulu vee- ja kanalisatsiooniteenustest | B73: 2100 | C73: 3225 | D73: 234 | E73: Käina majandus | F73: 06605 | G73: Muud elamu- ja kommunaalmajanduse tegevus
A74: Muu elamute ja korterite üür ja rent | B74: 12500 | C74: 3225 | D74: 234 | E74: Käina majandus | F74: 06605 | G74: Muud elamu- ja kommunaalmajanduse tegevus
A75: Tulu elektrienergia müügist | B75: 4800 | C75: 3225 | D75: 234 | E75: Käina majandus | F75: 06605 | G75: Muud elamu- ja kommunaalmajanduse tegevus
A76: Muu tulu elamu- ja kommunaaltegevusest | B76: 1800 | C76: 3225 | D76: 234 | E76: Käina majandus | F76: 06605 | G76: Muud elamu- ja kommunaalmajanduse tegevus
B77: =SUBTOTAL(9,B72:B76) -> 26200 | C77: 3225 Kokku
A78: Üür ja rent | B78: 2000 | C78: 3233 | D78: 244 | E78: Emmaste majandus | F78: 06605 | G78: Muud elamu- ja kommunaalmajanduse tegevus | H78: 4016 | I78: Korterid (sh. sotsiaalkorterid)
A79: Eluruumidelt | B79: 4200 | C79: 3233 | D79: 264 | E79: Hiiu majandus | F79: 06605 | G79: Muud elamu- ja kommunaalmajanduse tegevus
A80: Eluruumidelt | B80: 4000 | C80: 3233 | D80: 264 | E80: Hiiu majandus | F80: 06605 | G80: Muud elamu- ja kommunaalmajanduse tegevus
B81: =SUBTOTAL(9,B78:B80) -> 10200 | C81: 3233 Kokku
B82: =SUBTOTAL(9,B72:B80) -> 36400 | F82: 06605 Kokku
A83: Spordibaaside ja spordikomplekside tulud | B83: 61000 | C83: 3222 | D83: 331 | E83: Käina Sprodikeskus | F83: 08102 | G83: Sport
A84: Tulud puhkebaasidelt Kauba müük | B84: 2000 | C84: 3222 | D84: 331 | E84: Käina Sprodikeskus | F84: 08102 | G84: Sport
A85: Muud tulud spordi- ja puhkealasest tegevusest (rendid) | B85: 3780 | C85: 3222 | D85: 331 | E85: Käina Sprodikeskus | F85: 08102 | G85: Sport
B86: =SUBTOTAL(9,B83:B85) -> 66780 | C86: 3222 Kokku
A87: Üür ja rent (kütte müük)(ilma elamuteta) | B87: 9000 | C87: 3233 | D87: 331 | E87: Käina Sprodikeskus | F87: 08102 | G87: Sport
B88: =SUBTOTAL(9,B87:B87) -> 9000 | C88: 3233 Kokku
B89: =SUBTOTAL(9,B83:B87) -> 75780 | F89: 08102 Kokku
A90: Tulud spordi- ja puhkealasest tegevusest | B90: 1000 | C90: 3222 | D90: 341 | E90: Emmaste spordibaas | F90: 08103 | G90: Puhkepargid ja -baasid
B91: =SUBTOTAL(9,B90:B90) -> 1000 | C91: 3222 Kokku
B92: =SUBTOTAL(9,B90:B90) -> 1000 | F92: 08103 Kokku
A93: Tulud haridusalasest tegevusest | B93: 10800 | C93: 3220 | D93: N12 | E93: Hupsi maja | F93: 08107 | G93: Noorsootöö ja noortekeskused
B94: =SUBTOTAL(9,B93:B93) -> 10800 | C94: 3220 Kokku
A95: Tulud kultuuri- ja kunstialasest tegevusest | B95: 1440 | C95: 3221 | D95: N11 | E95: Kärdla noortekeskus | F95: 08107 | G95: Noorsootöö ja noortekeskused
A96: Tulud kultuuri- ja kunstialasest tegevusest | B96: 180 | C96: 3221 | D96: N21 | E96: Kõrgessaare noortekeskus | F96: 08107 | G96: Noorsootöö ja noortekeskused
B97: =SUBTOTAL(9,B95:B96) -> 1620 | C97: 3221 Kokku
A98: Üür ja rent | B98: 700 | C98: 3233 | D98: N41 | E98: Emmaste Avatud Noortekeskus | F98: 08107 | G98: Noorsootöö ja noortekeskused
B99: =SUBTOTAL(9,B98:B98) -> 700 | C99: 3233 Kokku
B100: =SUBTOTAL(9,B93:B98) -> 13120 | F100: 08107 Kokku
A101: Tulud kultuuri- ja kunstialasest tegevusest | B101: 140 | C101: 3221 | D101: 631 | E101: Käina raamatukogu | F101: 08201 | G101: Raamatukogud
A102: Raamatukogude tasulised teenused | B102: -100 | C102: 3221 | D102: 661 | E102: Hiiu valla raamatukogu | F102: 08201 | G102: Raamatukogud
